{"text_format":"1","workbook":"xlsx","n_sheets":10,"sheets":["Enhance logic (Do not use)","Introduction & Help","Tender Finder","Competition Data","Hidden Tabs >>","Manual Entry ","Data","Lists & wording","result period from comp name","result type from comp name"],"not_rendered":{"charts":0,"images":3,"macros":1,"external_links":0,"defined_names":10,"comments":0,"pivot_tables":0},"unopened":[],"bounds":{"document_bytes":16777216,"sheet_cells":100000,"rows_first":2000,"rows_last":500,"rows_between":2000,"halvings":0,"cell_chars":16384,"cell_head_chars":4096},"cells_cut":0,"cells_raw":0,"read":"whole","date_system":"1900"}

{"sheet":"Enhance logic (Do not use)","index":0,"n_rows":17,"n_cols":10,"rows_kept":17,"cut":false,"hidden":true,"merged":[[7,7,7,8],[8,7,8,8],[9,3,9,4],[14,0,14,2],[14,3,15,3],[14,4,14,7],[14,8,15,8],[3,6,3,7],[4,0,6,0],[4,3,4,4],[4,7,4,8],[5,3,5,4],[5,7,5,8],[6,3,6,4],[6,7,6,8]]}
[]
[null,"Tender Finder","Yes"]
[]
[null,"Insert Bid Details Here",null,null,null,null,"Competition details (auto-populated)"]
["Competion details","Competition Name",null,{"$f":"IF(ISBLANK(C5),\"Enter data\",\"\")","v":"Enter data"},null,null,"Competition ID",{"$f":"IF(C2=\"No\",\"N/A\",IFERROR(VLOOKUP(J5,Data!$A:$I,3,FALSE),\"No tender matching these perameters\"))","v":""},null,{"$f":"CONCATENATE(C5,C6,C7)","v":""}]
[null,"Period",null,{"$f":"IF(OR(ISBLANK(C5),ISBLANK(C6),ISBLANK(C7)),\"Enter data\",IF(H5=\"No Tender matching these perameters\",\"No tender matching these perameters\",\"\"))","v":"Enter data"},null,null,"Celling Price per annum",{"$f":"IFERROR(VLOOKUP(J5,Data!$A:$I,6,FALSE),\"No tender matching these perameters\")","v":""}]
[null,"Service Type",null,{"$f":"IF(ISBLANK(C7),\"Enter data\",\"\")","v":"Enter data"},null,null,"Availability Hours",{"$f":"IFERROR(VLOOKUP(J5,Data!$A:$I,8,FALSE),\"No tender matching these perameters\")","v":""}]
[null,{"$f":"IF(C2=\"No\",\"Insert Bid Details Here\",\"\")","v":""},null,{"$f":"IF(AND(C7=\"restore\",C9>0,C9),\"No availability payments for Restore contracts\",\"\")","v":""},null,null,"Utilisation Hours",{"$f":"IFERROR(VLOOKUP(J5,Data!$A:$I,7,FALSE),\"No tender matching these perameters\")","v":""}]
["Bid Details","Availability £/MWh",2,null,null,null,"Capacity Required MW",{"$f":"IFERROR(VLOOKUP(J5,Data!$A:$I,9,FALSE),\"No tender matching these perameters\")","v":""}]
[null,"Utilisation £/MWh",6,{"$f":"IF(C11>H9,\"Capacity exceeds network requirements\",\"\")","v":""}]
[null,"Capacity MW",2000]
[]
[]
[]
["Total Bid Price ",null,null,"% of capacity\n required","Total price if scaled up to total capacity required",null,null,null,"% of celling Price"]
["Availability £","Utilisation £","Total Bid \nPrice",null,"Availability £",null,"Utilisation","Total Bid Price"]
[{"$f":"IFERROR(C9*H7*C11,\"\")","v":""},{"$f":"IFERROR(C10*H8*C11,\"\")","v":""},{"$f":"IFERROR(A17+B17,\"\")","v":""},{"$f":"IFERROR(C11/H9,\"\")","v":""},{"$f":"IFERROR(C9*H7*H9,\"\")","v":""},null,{"$f":"IFERROR(C10*H8*H9,\"\")","v":""},{"$f":"IFERROR(E17+G17,\"\")","v":""},{"$f":"IFERROR(H17/H6,\"\")","v":""}]

{"sheet":"Introduction & Help","index":1,"n_rows":22,"n_cols":12,"rows_kept":22,"cut":false,"hidden":false,"merged":[[1,4,3,8],[9,1,16,9],[2,11,3,12],[8,11,14,12],[20,1,20,9],[21,1,21,9],[18,11,18,12],[18,1,19,9]]}
[]
[null,null,null,null,"Flexible Services \ncost checker"]
[null,null,null,null,null,null,null,null,null,null,null,"Click here to visit ElectronConnect"]
[]
[]
[]
[]
[]
[null,"Description:",null,null,null,null,null,null,null,null,null,"Click here to visit our website"]
[null,"The aim of this tool is to allow potential participants of ENWL's flexible services contracts to be able to check the prices they are offering for providing availability and utilisation services prior to submitting a bid. This will allow users to identify if their bid exceeds the ceiling (maximum) price which ENWL are offering as part of this tender. It should be noted that a positive or negative result from this tool does not guarantee that a bid will or will not be accepted, other factors will also be considered within the awarding of contracts post tender completion."]
[]
[]
[]
[]
[]
[]
[]
[null,"Help Guide:"]
[null,"This tool offers methods to calculate bidding prices. \n\nThe Tender Finder tab allows users to search for the specific tender they are looking to participate within. A successful search for the tender will automatically compete the variables for the tender. \n\nThe user will need to compete the name of the tender, the period of the tender, and the type of service. Additionally users should complete the details for their proposed availability, utilisation, and capacity offering.\n\nDetails of the tender requirements are provided within the Competition Data tab.\n\n",null,null,null,null,null,null,null,null,null,"Click here to contact us"]
[]
[null,"If you encouter any issues whilst utilising the tool, please feel free to get in touch: "]
[null,"flexible.contracts@enwl.co.uk"]

{"sheet":"Tender Finder","index":2,"n_rows":31,"n_cols":14,"rows_kept":31,"cut":false,"hidden":false,"merged":[[30,2,31,2],[30,3,31,3],[30,4,31,6],[30,8,31,9],[26,3,27,9],[26,2,27,2],[16,9,16,10],[12,4,12,6],[14,4,14,6],[16,4,16,6],[22,10,23,10],[22,6,22,9],[22,1,22,3],[22,4,23,4],[1,3,3,8],[17,4,17,6],[18,4,18,6],[13,4,13,6],[12,1,14,1],[1,13,1,14],[10,13,11,14],[15,13,15,14],[12,9,12,10],[13,9,13,10],[14,9,14,10],[15,9,15,10],[2,13,3,14]]}
[]
[null,null,null,"Flexible Services \ncost checker"]
[null,null,null,null,null,null,null,null,null,null,null,null,null,"Click here to visit ElectronConnect"]
[]
[]
[]
[]
[]
[]
[]
[null,null,null,null,null,null,null,null,null,null,null,null,null,"Click here to visit our website"]
[null,null,null,"Insert Bid Details Here",null,null,null,null,"Competition details (auto-populated)",null,null,"CONCATENATE:"]
[null,"Competion details","Competition Name",null,{"$f":"IF(ISBLANK(D13),\"Enter data\",\"\")","v":"Enter data"},null,null,null,"Competition ID",{"$f":"IFERROR(VLOOKUP(L13,Data!$A:$I,3,FALSE),'Lists & wording'!J11)","v":""},null,{"$f":"CONCATENATE(D13,D14,D15)","v":""}]
[null,null,"Period",null,{"$f":"IF(ISBLANK(D14),\"Enter data\",IF(OR(ISBLANK(D13),ISBLANK(D14),ISBLANK(D15)),\"\",IF(J13='Lists & wording'!J11,'Lists & wording'!J11,\"\")))","v":"Enter data"},null,null,null,"Celling Price for Period",{"$f":"IFERROR(VLOOKUP(L13,Data!$A:$I,6,FALSE),'Lists & wording'!J11)","v":""}]
[null,null,"Service Type",null,{"$f":"IF(ISBLANK(D15),\"Enter data\",\"\")","v":"Enter data"},null,null,null,"Availability Hours",{"$f":"IFERROR(VLOOKUP(L13,Data!$A:$I,8,FALSE),'Lists & wording'!J11)","v":""},null,"FLAG:"]
[null,null,null,null,null,null,null,null,"Utilisation Hours",{"$f":"IFERROR(VLOOKUP(L13,Data!$A:$I,7,FALSE),'Lists & wording'!J11)","v":""},null,{"$f":"IF(OR(E13=\"No Tender matching these parameters\",E14=\"No Tender matching these parameters\",E15=\"No Tender matching these parameters\",E13=\"Enter data\", E14=\"Enter data\", E15=\"Enter data\"),TRUE,FALSE)","v":true},null,"Click here to contact us"]
[null,"Bid Details","Availability £/MW/h",null,{"$f":"IF(ISBLANK(D17),\"Enter data\",IF(AND(D15=\"Operational Utilisation\",D17>0,D17),\"No availability payments for Operational Utilisation contracts\",IF(AND(D15=\"Peak Reduction\",D17>0,D17),\"No availability payments for Peak Reduction contracts\",IF(AND(D15=\"Scheduled Utilisation\",D17>0,D17),\"No availability payments for Scheduled Utilisation contracts\",\"\"))))","v":"Enter data"},null,null,null,"Capacity Required MW",{"$f":"IFERROR(VLOOKUP(L13,Data!$A:$I,9,FALSE),'Lists & wording'!J11)","v":""}]
[null,null,"Utilisation £/MWh",null,{"$f":"IF(ISBLANK(D18),\"Enter data\",\"\")","v":"Enter data"}]
[null,null,"Capacity MW",null,{"$f":"IF(ISBLANK(D19),\"Enter data\",\"\")","v":"Enter data"}]
[]
[]
[]
[null,"Total Bid Price ",null,null,"% of capacity\n required",null,"Total price if scaled up to total capacity required",null,null,null,"% of celling Price"]
[null,"Availability £","Utilisation £","Total Bid \nPrice",null,null,"Availability £",null,"Utilisation","Total Bid Price"]
[null,{"$f":"IFERROR(D17*J15*D19,\"\")","v":""},{"$f":"IFERROR(D18*J16*D19,\"\")","v":""},{"$f":"IFERROR(B25+C25,\"\")","v":""},{"$f":"IFERROR(D19/J17,\"\")","v":""},null,{"$f":"IFERROR(D17*J15*J17,\"\")","v":""},null,{"$f":"IFERROR(D18*J16*J17,\"\")","v":""},{"$f":"IFERROR(G25+I25,\"\")","v":""},{"$f":"IFERROR(J25/J14,\"\")","v":""}]
[]
[null,null,"Result:",{"$f":"IF(OR(K25=0,K25=\"\"),\"\",IF(K25>1,'Lists & wording'!K4,'Lists & wording'!K3))","v":""}]
[]
[]
[]
[null,null,"Result:",{"$f":"IF(OR(D15 = \"Operational Utilisation\", D15 = \"Scheduled Utilisation\", D15= \"Peak Reduction\"),\"Ceiling Price is:\", \"\")","v":""},{"$f":" IF(OR(D15 = \"Operational Utilisation\", D15 = \"Scheduled Utilisation\", D15= \"Peak Reduction\"), INDEX(Data!K:K, MATCH($L$13,Data!A:A, 0)),\"\")","v":""},null,null,null,{"$f":"IF(OR(D15 = \"Operational Utilisation\", D15 = \"Scheduled Utilisation\", D15= \"Peak Reduction\"),\"£/MWh\", \"\")","v":""}]

{"sheet":"Competition Data","index":3,"n_rows":244,"n_cols":9,"rows_kept":244,"cut":false,"hidden":false,"merged":[]}
["Competition Name","Period","Competition type","Utilisation (hrs)","Availability (hrs)","Capacity Required (MW)","Ceiling Price for Period (£)","Competition Ref","Ceiling Price for OU/ SU/ PR\n(£/MWh)"]
["Alston","S25","Operational Utilisation Variable Availability",100,1330,0.93,97844,"ENWL-2",{"$f":"IF(OR(C2 = \"Operational Utilisation\", C2 = \"Scheduled Utilisation\", C2= \"Peak Reduction\"),G2/D2/(F2), \"N/A\")","v":"N/A"}]
["Alston","W25/26","Operational Utilisation Variable Availability",48,688,0.99,104156,"ENWL-2",{"$f":"IF(OR(C3 = \"Operational Utilisation\", C3 = \"Scheduled Utilisation\", C3= \"Peak Reduction\"),G3/D3/(F3), \"N/A\")","v":"N/A"}]
["Alston","S26","Operational Utilisation Variable Availability",100,1621,0.98,98000,"ENWL-2","N/A"]
["Alston","W26/27","Operational Utilisation Variable Availability",100,744,1.04,104000,"ENWL-2","N/A"]
["Alston","S27","Operational Utilisation Variable Availability",100,1670,1.02,97649,"ENWL-2","N/A"]
["Alston","W27/28","Operational Utilisation Variable Availability",100,813,1.0900000000000001,104351,"ENWL-2","N/A"]
["Alston","FY26","Operational Utilisation",100,0,1.4,24310,"ENWL-3",173.64285714285714]
["Alston","FY27","Operational Utilisation",100,0,1.4,24310,"ENWL-3",173.64285714285714]
["Alston","FY28","Operational Utilisation",100,0,1.4,24310,"ENWL-3",173.64285714285714]
["Alston","S25","Peak Reduction",1530,0,0.93,97844,"ENWL-4",68.76379225525335]
["Alston","W25/26","Peak Reduction",1638,0,0.99,104156,"ENWL-4",64.229597562930891]
["Alston","S26","Peak Reduction",1830,0,0.98,98000,"ENWL-4",54.644808743169399]
["Alston","W26/27","Peak Reduction",1638,0,1.04,104000,"ENWL-4",61.050061050061046]
["Alston","S27","Peak Reduction",1830,0,1.02,97649,"ENWL-4",52.313832636879887]
["Alston","W27/28","Peak Reduction",1647,0,1.0900000000000001,104351,"ENWL-4",58.126813834439041]
["Ambleside, Calgarth, Mintsfeet & Windermere","W26/27","Operational Utilisation Variable Availability",48,72,4.4800000000000004,59000,"ENWL-5","N/A"]
["Ambleside, Calgarth, Mintsfeet & Windermere","W27/28","Operational Utilisation Variable Availability",48,103,4.9800000000000004,59000,"ENWL-5","N/A"]
["Ambleside, Calgarth, Mintsfeet & Windermere","W26/27","Peak Reduction",1331,0,4.4800000000000004,59000,"ENWL-6",9.8945476011591698]
["Ambleside, Calgarth, Mintsfeet & Windermere","W27/28","Peak Reduction",1824,0,4.9800000000000004,59000,"ENWL-6",6.4952793630663006]
["Ardwick","W25/26","Operational Utilisation Variable Availability",100,913,3.07,242000,"ENWL-7","N/A"]
["Ardwick","W26/27","Operational Utilisation Variable Availability",100,1211,3.74,242000,"ENWL-7","N/A"]
["Ardwick","W27/28","Operational Utilisation Variable Availability",100,1516,4.41,242000,"ENWL-7","N/A"]
["Ardwick","W25/26","Operational Utilisation",100,0,3.07,84223,"ENWL-8",274.34201954397395]
["Ardwick","W26/27","Operational Utilisation",100,0,3.74,84223,"ENWL-8",225.19518716577539]
["Ardwick","W27/28","Operational Utilisation",100,0,4.41,84223,"ENWL-8",190.98185941043084]
["Ardwick","W25/26","Peak Reduction",2114,0,3.07,242000,"ENWL-9",37.288250503083219]
["Ardwick","W26/27","Peak Reduction",2730,0,3.74,242000,"ENWL-9",23.701788407670758]
["Ardwick","W27/28","Peak Reduction",2928,0,4.41,242000,"ENWL-9",18.741558554204925]
["Askerton Castle","FY26","Operational Utilisation",100,0,1.4,8256,"ENWL-10",58.971428571428575]
["Askerton Castle","FY27","Operational Utilisation",100,0,1.4,8256,"ENWL-10",58.971428571428575]
["Askerton Castle","FY28","Operational Utilisation",100,0,1.4,8256,"ENWL-10",58.971428571428575]
["Bentham","FY26","Operational Utilisation",100,0,3.5,43050,"ENWL-11",123]
["Bentham","FY27","Operational Utilisation",100,0,3.5,43050,"ENWL-11",123]
["Bentham","FY28","Operational Utilisation",100,0,3.5,43050,"ENWL-11",123]
["Blackpool Airport Enterprise Zone","S25","Peak Reduction",3519,0,32,96000,"ENWL-12",0.85251491901108267]
["Blackpool Airport Enterprise Zone","W25/26","Peak Reduction",4186,0,32,96000,"ENWL-12",0.71667462971810802]
["Blackpool Airport Enterprise Zone","S26","Peak Reduction",4209,0,32,96000,"ENWL-12",0.71275837491090521]
["Blackpool Airport Enterprise Zone","W26/27","Peak Reduction",4186,0,32,96000,"ENWL-12",0.71667462971810802]
["Blackpool Airport Enterprise Zone","S27","Peak Reduction",4209,0,32,96000,"ENWL-12",0.71275837491090521]
["Blackpool Airport Enterprise Zone","W27/28","Peak Reduction",4209,0,32,96000,"ENWL-12",0.71275837491090521]
["Blackpool Airport Enterprise Zone","S25","Scheduled Utilisation",3519,0,32,96000,"ENWL-13",0.85251491901108267]
["Blackpool Airport Enterprise Zone","W25/26","Scheduled Utilisation",4186,0,32,96000,"ENWL-13",0.71667462971810802]
["Blackpool Airport Enterprise Zone","S26","Scheduled Utilisation",4209,0,32,96000,"ENWL-13",0.71275837491090521]
["Blackpool Airport Enterprise Zone","W26/27","Scheduled Utilisation",4186,0,32,96000,"ENWL-13",0.71667462971810802]
["Blackpool Airport Enterprise Zone","S27","Scheduled Utilisation",4209,0,32,96000,"ENWL-13",0.71275837491090521]
["Blackpool Airport Enterprise Zone","W27/28","Scheduled Utilisation",4209,0,32,96000,"ENWL-13",0.71275837491090521]
["Bolton By Bowland","FY26","Operational Utilisation",100,0,2.2999999999999998,19097,"ENWL-14",83.030434782608708]
["Bolton By Bowland","FY27","Operational Utilisation",100,0,2.2999999999999998,19097,"ENWL-14",83.030434782608708]
["Bolton By Bowland","FY28","Operational Utilisation",100,0,2.2999999999999998,19097,"ENWL-14",83.030434782608708]
["Burrow Beck","S25","Operational Utilisation Variable Availability",48,33,1.58,69443,"ENWL-15","N/A"]
["Burrow Beck","W25/26","Operational Utilisation Variable Availability",100,1539,9.91,435557,"ENWL-15","N/A"]
["Burrow Beck","S26","Operational Utilisation Variable Availability",48,151,2.64,95502,"ENWL-15","N/A"]
["Burrow Beck","W26/27","Operational Utilisation Variable Availability",100,1921,11.32,409498,"ENWL-15","N/A"]
["Burrow Beck","S27","Operational Utilisation Variable Availability",48,416,3.74,114190,"ENWL-15","N/A"]
["Burrow Beck","W27/28","Operational Utilisation Variable Availability",200,2250,12.8,390810,"ENWL-15","N/A"]
["Burrow Beck","W25/26","Operational Utilisation",100,0,9.91,129410,"ENWL-16",130.58526740665994]
["Burrow Beck","W26/27","Operational Utilisation",100,0,11.32,129410,"ENWL-16",114.31978798586572]
["Burrow Beck","W27/28","Operational Utilisation",100,0,12.8,129410,"ENWL-16",101.10156249999999]
["Burrow Beck","S25","Peak Reduction",1530,0,1.58,69443,"ENWL-17",28.726317531231899]
["Burrow Beck","W25/26","Peak Reduction",2912,0,9.91,435557,"ENWL-17",15.093152936871402]
["Burrow Beck","S26","Peak Reduction",2379,0,2.64,95502,"ENWL-17",15.205968894493482]
["Burrow Beck","W26/27","Peak Reduction",3094,0,11.32,409498,"ENWL-17",11.691898830747304]
["Burrow Beck","S27","Peak Reduction",2562,0,3.74,114190,"ENWL-17",11.917285543129323]
["Burrow Beck","W27/28","Peak Reduction",3111,0,12.8,390810,"ENWL-17",9.8142176952748308]
["Capontree, Westlinton & Pirelli","W25/26","Operational Utilisation Variable Availability",48,68,3.39,156000,"ENWL-18","N/A"]
["Capontree, Westlinton & Pirelli","W26/27","Operational Utilisation Variable Availability",48,142,4.34,156000,"ENWL-18",{"$f":"IF(OR(C67 = \"Operational Utilisation\", C67 = \"Scheduled Utilisation\", C67= \"Peak Reduction\"),G67/D67/(F67), \"N/A\")","v":"N/A"}]
["Capontree, Westlinton & Pirelli","W27/28","Operational Utilisation Variable Availability",48,341,5.52,156000,"ENWL-18","N/A"]
["Capontree, Westlinton & Pirelli","W25/26","Peak Reduction",1320,0,3.39,156000,"ENWL-19",34.861893268972914]
["Capontree, Westlinton & Pirelli","W26/27","Peak Reduction",1812,0,4.34,156000,"ENWL-19",19.837031159398176]
["Capontree, Westlinton & Pirelli","W27/28","Peak Reduction",2128,0,5.52,156000,"ENWL-19",13.280483818241256]
["Catterall Waterworks","S25","Operational Utilisation Variable Availability",100,1705,2.37,97502,"ENWL-20","N/A"]
["Catterall Waterworks","W25/26","Operational Utilisation Variable Availability",200,2970,3.01,123832,"ENWL-20","N/A"]
["Catterall Waterworks","S26","Operational Utilisation Variable Availability",200,2346,3.1,111205,"ENWL-20","N/A"]
["Catterall Waterworks","W26/27","Operational Utilisation Variable Availability",300,3039,3.07,110129,"ENWL-20","N/A"]
["Catterall Waterworks","S27","Operational Utilisation Variable Availability",200,2406,3.13,111200,"ENWL-20","N/A"]
["Catterall Waterworks","W27/28","Operational Utilisation Variable Availability",300,3104,3.1,110134,"ENWL-20","N/A"]
["Catterall Waterworks","FY26","Operational Utilisation",100,0,7.5,35167,"ENWL-21",46.889333333333333]
["Catterall Waterworks","FY27","Operational Utilisation",100,0,7.5,35167,"ENWL-21",46.889333333333333]
["Catterall Waterworks","FY28","Operational Utilisation",100,0,7.5,35167,"ENWL-21",46.889333333333333]
["Catterall Waterworks","S25","Peak Reduction",3519,0,2.37,97502,"ENWL-22",11.690845236767734]
["Catterall Waterworks","W25/26","Peak Reduction",4186,0,3.01,123832,"ENWL-22",9.82804570844438]
["Catterall Waterworks","S26","Peak Reduction",4209,0,3.1,111205,"ENWL-22",8.522827428168517]
["Catterall Waterworks","W26/27","Peak Reduction",4186,0,3.07,110129,"ENWL-22",8.5696699561591227]
["Catterall Waterworks","S27","Peak Reduction",4209,0,3.13,111200,"ENWL-22",8.4407594558139145]
["Catterall Waterworks","W27/28","Peak Reduction",4209,0,3.1,110134,"ENWL-22",8.4407452540255505]
["Church","FY26","Operational Utilisation",100,0,5.7,73606,"ENWL-23",129.13333333333333]
["Church","FY27","Operational Utilisation",100,0,5.7,73606,"ENWL-23",129.13333333333333]
["Church","FY28","Operational Utilisation",100,0,5.7,73606,"ENWL-23",129.13333333333333]
["Claughton","FY26","Operational Utilisation",100,0,2.9,33312,"ENWL-24",114.86896551724138]
["Claughton","FY27","Operational Utilisation",100,0,2.9,33312,"ENWL-24",114.86896551724138]
["Claughton","FY28","Operational Utilisation",100,0,2.9,33312,"ENWL-24",114.86896551724138]
["Coniston","S25","Operational Utilisation Variable Availability",48,57,0.15,15938,"ENWL-25","N/A"]
["Coniston","W25/26","Operational Utilisation Variable Availability",100,1288,0.65,69063,"ENWL-25","N/A"]
["Coniston","S26","Operational Utilisation Variable Availability",48,331,0.59,38876,"ENWL-25","N/A"]
["Coniston","W26/27","Operational Utilisation Variable Availability",100,1546,0.7,46124,"ENWL-25","N/A"]
["Coniston","S27","Operational Utilisation Variable Availability",48,487,0.65,38908,"ENWL-25","N/A"]
["Coniston","W27/28","Operational Utilisation Variable Availability",100,1868,0.77,46092,"ENWL-25","N/A"]
["Coniston","FY26","Operational Utilisation",100,0,2.1,24582,"ENWL-26",117.05714285714285]
["Coniston","FY27","Operational Utilisation",100,0,2.1,24582,"ENWL-26",117.05714285714285]
["Coniston","FY28","Operational Utilisation",100,0,2.1,24582,"ENWL-26",117.05714285714285]
["Coniston","S25","Peak Reduction",1683,0,0.15,15938,"ENWL-27",63.133293721529014]
["Coniston","W25/26","Peak Reduction",3640,0,0.65,69063,"ENWL-27",29.189771766694843]
["Coniston","S26","Peak Reduction",2562,0,0.59,38876,"ENWL-27",25.718784318395322]
["Coniston","W26/27","Peak Reduction",4004,0,0.7,46124,"ENWL-27",16.456400742115029]
["Coniston","S27","Peak Reduction",2745,0,0.65,38908,"ENWL-27",21.806361216197281]
["Coniston","W27/28","Peak Reduction",4209,0,0.77,46092,"ENWL-27",14.221843730040451]
["Flat Lane","W25/26","Operational Utilisation Variable Availability",24,12,0.23,32000,"ENWL-28","N/A"]
["Flat Lane","W26/27","Operational Utilisation Variable Availability",48,25,0.28999999999999998,32000,"ENWL-28","N/A"]
["Flat Lane","W27/28","Operational Utilisation Variable Availability",48,47,0.39,32000,"ENWL-28","N/A"]
["Flat Lane","FY26","Operational Utilisation",100,0,4.0999999999999996,37725,"ENWL-29",92.012195121951223]
["Flat Lane","FY27","Operational Utilisation",100,0,4.0999999999999996,37725,"ENWL-29",92.012195121951223]
["Flat Lane","FY28","Operational Utilisation",100,0,4.0999999999999996,37725,"ENWL-29",92.012195121951223]
["Flat Lane","W25/26","Peak Reduction",62,0,0.23,32000,"ENWL-30",2244.0392706872367]
["Flat Lane","W26/27","Peak Reduction",184,0,0.28999999999999998,32000,"ENWL-30",599.70014992503752]
["Flat Lane","W27/28","Peak Reduction",304,0,0.39,32000,"ENWL-30",269.90553306342775]
["Frederick Rd BSP","W25/26","Operational Utilisation Variable Availability",48,173,12.2,349000,"ENWL-31","N/A"]
["Frederick Rd BSP","W26/27","Operational Utilisation Variable Availability",48,631,23.3,349000,"ENWL-31","N/A"]
["Frederick Rd BSP","W27/28","Operational Utilisation Variable Availability",100,978,30.1,349000,"ENWL-31","N/A"]
["Frederick Rd BSP","W27/28","Operational Utilisation",100,0,30.1,917277,"ENWL-32",304.74318936877074]
["Frederick Rd BSP","W25/26","Peak Reduction",1661,0,12.2,349000,"ENWL-33",17.222490895273438]
["Frederick Rd BSP","W26/27","Peak Reduction",2114,0,23.3,349000,"ENWL-33",7.0854024467985752]
["Frederick Rd BSP","W27/28","Peak Reduction",2128,0,30.1,349000,"ENWL-33",5.4486298803487125]
["Gillsrow","FY26","Operational Utilisation",100,0,3.4,50789,"ENWL-34",149.37941176470588]
["Gillsrow","FY27","Operational Utilisation",100,0,3.4,50789,"ENWL-34",149.37941176470588]
["Gillsrow","FY28","Operational Utilisation",100,0,3.4,50789,"ENWL-34",149.37941176470588]
["Helwith Bridge","FY26","Operational Utilisation",100,0,3.6,15643,"ENWL-35",43.452777777777776]
["Helwith Bridge","FY27","Operational Utilisation",100,0,3.6,15643,"ENWL-35",43.452777777777776]
["Helwith Bridge","FY28","Operational Utilisation",100,0,3.6,15643,"ENWL-35",43.452777777777776]
["Ingleton","FY26","Operational Utilisation",100,0,2.2000000000000002,26500,"ENWL-36",120.45454545454544]
["Ingleton","FY27","Operational Utilisation",100,0,2.2000000000000002,26500,"ENWL-36",{"$f":"IF(OR(C131 = \"Operational Utilisation\", C131 = \"Scheduled Utilisation\", C131= \"Peak Reduction\"),G131/D131/(F131), \"N/A\")","v":120.45454545454544}]
["Ingleton","FY28","Operational Utilisation",100,0,2.2000000000000002,26500,"ENWL-36",120.45454545454544]
["Knott Mill","W25/26","Operational Utilisation Variable Availability",48,46,2.5,33000,"ENWL-37","N/A"]
["Knott Mill","W26/27","Operational Utilisation Variable Availability",48,61,2.89,33000,"ENWL-37","N/A"]
["Knott Mill","W27/28","Operational Utilisation Variable Availability",48,83,3.26,33000,"ENWL-37","N/A"]
["Knott Mill","W25/26","Peak Reduction",450,0,2.5,33000,"ENWL-38",29.333333333333332]
["Knott Mill","W26/27","Peak Reduction",600,0,2.89,33000,"ENWL-38",19.031141868512108]
["Knott Mill","W27/28","Peak Reduction",760,0,3.26,33000,"ENWL-38",13.319341298030352]
["Longsight BSP","W27/28","Operational Utilisation Variable Availability",48,53,7.24,68126,"ENWL-39","N/A"]
["Longsight BSP","W27/28","Peak Reduction",1331,0,7.24,68126,"ENWL-40",7.0696232218537132]
["Marple","FY26","Operational Utilisation",100,0,4.7,63181,"ENWL-41",134.42765957446807]
["Marple","FY27","Operational Utilisation",100,0,4.7,63181,"ENWL-41",134.42765957446807]
["Marple","FY28","Operational Utilisation",100,0,4.7,63181,"ENWL-41",134.42765957446807]
["Melling","FY26","Operational Utilisation",100,0,2.2999999999999998,21480,"ENWL-42",93.391304347826093]
["Melling","FY27","Operational Utilisation",100,0,2.2999999999999998,21480,"ENWL-42",93.391304347826093]
["Melling","FY28","Operational Utilisation",100,0,2.2999999999999998,21480,"ENWL-42",93.391304347826093]
["Mintsfeet","S25","Operational Utilisation Variable Availability",48,535,7.26,159118,"ENWL-43","N/A"]
["Mintsfeet","W25/26","Operational Utilisation Variable Availability",200,2190,12.77,279882,"ENWL-43","N/A"]
["Mintsfeet","S26","Operational Utilisation Variable Availability",48,681,7.52,160257,"ENWL-43","N/A"]
["Mintsfeet","W26/27","Operational Utilisation Variable Availability",200,2264,13.08,278743,"ENWL-43","N/A"]
["Mintsfeet","S27","Operational Utilisation Variable Availability",100,766,7.83,161530,"ENWL-43","N/A"]
["Mintsfeet","W27/28","Operational Utilisation Variable Availability",200,2354,13.45,277470,"ENWL-43","N/A"]
["Mintsfeet","W25/26","Operational Utilisation",100,0,12.77,125972,"ENWL-44",98.646828504306981]
["Mintsfeet","W26/27","Operational Utilisation",100,0,13.08,125972,"ENWL-44",96.308868501529048]
["Mintsfeet","S27","Operational Utilisation",100,0,7.83,125972,"ENWL-44",160.8837803320562]
["Mintsfeet","W27/28","Operational Utilisation",100,0,13.45,125972,"ENWL-44",93.659479553903353]
["Mintsfeet","S25","Peak Reduction",2448,0,7.26,159118,"ENWL-45",8.953055510542141]
["Mintsfeet","W25/26","Peak Reduction",4186,0,12.77,279882,"ENWL-45",5.2358216840188856]
["Mintsfeet","S26","Peak Reduction",2928,0,7.52,160257,"ENWL-45",7.2782688786187659]
["Mintsfeet","W26/27","Peak Reduction",4186,0,13.08,278743,"ENWL-45",5.0909285502424719]
["Mintsfeet","S27","Peak Reduction",3111,0,7.83,161530,"ENWL-45",6.6311892091384212]
["Mintsfeet","W27/28","Peak Reduction",4209,0,13.45,277470,"ENWL-45",4.9013399327516449]
["Morton Park & Pirelli","W25/26","Operational Utilisation Variable Availability",48,504,9.9499999999999993,66000,"ENWL-46","N/A"]
["Morton Park & Pirelli","S26","Operational Utilisation Variable Availability",48,59,2.7,11976,"ENWL-46","N/A"]
["Morton Park & Pirelli","W26/27","Operational Utilisation Variable Availability",100,964,12.18,54024,"ENWL-46","N/A"]
["Morton Park & Pirelli","S27","Operational Utilisation Variable Availability",48,188,4.58,15884,"ENWL-46","N/A"]
["Morton Park & Pirelli","W27/28","Operational Utilisation Variable Availability",100,1521,14.45,50116,"ENWL-46","N/A"]
["Morton Park & Pirelli","W26/27","Operational Utilisation",100,0,12.18,175524,"ENWL-47",144.10837438423647]
["Morton Park & Pirelli","W27/28","Operational Utilisation",100,0,14.45,175524,"ENWL-47",121.46989619377163]
["Morton Park & Pirelli","W25/26","Peak Reduction",2730,0,9.9499999999999993,66000,"ENWL-48",2.4297310729471535]
["Morton Park & Pirelli","S26","Peak Reduction",2379,0,2.7,11976,"ENWL-48",1.8644621923310447]
["Morton Park & Pirelli","W26/27","Peak Reduction",3094,0,12.18,54024,"ENWL-48",1.4335707757904221]
["Morton Park & Pirelli","S27","Peak Reduction",2562,0,4.58,15884,"ENWL-48",1.3536777013045895]
["Morton Park & Pirelli","W27/28","Peak Reduction",4209,0,14.45,50116,"ENWL-48",0.82400458401464649]
["Moss Side (Longsight)","W25/26","Operational Utilisation Variable Availability",48,76,1.2,10000,"ENWL-49","N/A"]
["Moss Side (Longsight)","W26/27","Operational Utilisation Variable Availability",48,134,1.63,10000,"ENWL-49","N/A"]
["Moss Side (Longsight)","W27/28","Operational Utilisation Variable Availability",48,234,2.15,10000,"ENWL-49","N/A"]
["Moss Side (Longsight)","W25/26","Peak Reduction",906,0,1.2,10000,"ENWL-50",9.1979396615158198]
["Moss Side (Longsight)","W26/27","Peak Reduction",906,0,1.63,10000,"ENWL-50",6.7714893213613401]
["Moss Side (Longsight)","W27/28","Peak Reduction",1520,0,2.15,10000,"ENWL-50",3.0599755201958385]
["Newbiggin on Lune","FY26","Operational Utilisation",100,0,0.9,10047,"ENWL-51",111.63333333333333]
["Newbiggin on Lune","FY27","Operational Utilisation",100,0,0.9,10047,"ENWL-51",111.63333333333333]
["Newbiggin on Lune","FY28","Operational Utilisation",100,0,0.9,10047,"ENWL-51",111.63333333333333]
["Newby","FY26","Operational Utilisation",100,0,5.3,48518,"ENWL-52",91.543396226415098]
["Newby","FY27","Operational Utilisation",100,0,5.3,48518,"ENWL-52",91.543396226415098]
["Newby","FY28","Operational Utilisation",100,0,5.3,48518,"ENWL-52",91.543396226415098]
["Rossall","FY26","Operational Utilisation",100,0,2.7,15851,"ENWL-53",58.707407407407402]
["Rossall","FY27","Operational Utilisation",100,0,2.7,15851,"ENWL-53",58.707407407407402]
["Rossall","FY28","Operational Utilisation",100,0,2.7,15851,"ENWL-53",58.707407407407402]
["Scarisbrick","FY26","Operational Utilisation",100,0,3.7,29315,"ENWL-54",79.229729729729726]
["Scarisbrick","FY27","Operational Utilisation",100,0,3.7,29315,"ENWL-54",79.229729729729726]
["Scarisbrick","FY28","Operational Utilisation",100,0,3.7,29315,"ENWL-54",79.229729729729726]
["Sebergham","S25","Operational Utilisation Variable Availability",24,15,0.43,132000,"ENWL-55","N/A"]
["Sebergham","S26","Operational Utilisation Variable Availability",48,28,0.51,132000,"ENWL-55","N/A"]
["Sebergham","S27","Operational Utilisation Variable Availability",48,44,0.6,77647,"ENWL-55",{"$f":"IF(OR(C195 = \"Operational Utilisation\", C195 = \"Scheduled Utilisation\", C195= \"Peak Reduction\"),G195/D195/(F195), \"N/A\")","v":"N/A"}]
["Sebergham","W27/28","Operational Utilisation Variable Availability",24,19,0.42,54353,"ENWL-55","N/A"]
["Sebergham","FY26","Operational Utilisation",100,0,4.0999999999999996,20648,"ENWL-56",50.360975609756096]
["Sebergham","FY27","Operational Utilisation",100,0,4.0999999999999996,20648,"ENWL-56",50.360975609756096]
["Sebergham","FY28","Operational Utilisation",100,0,4.0999999999999996,20648,"ENWL-56",50.360975609756096]
["Sebergham","S25","Peak Reduction",765,0,0.43,132000,"ENWL-57",401.27678978568173]
["Sebergham","S26","Peak Reduction",1830,0,0.51,132000,"ENWL-57",141.43362262937961]
["Sebergham","S27","Peak Reduction",1830,0,0.6,77647,"ENWL-57",70.716757741347905]
["Sebergham","W27/28","Peak Reduction",1281,0,0.42,54353,"ENWL-57",101.02412549719341]
["Sedbergh","FY26","Operational Utilisation",100,0,4.4000000000000004,41723,"ENWL-58",94.825000000000003]
["Sedbergh","FY27","Operational Utilisation",100,0,4.4000000000000004,41723,"ENWL-58",94.825000000000003]
["Sedbergh","FY28","Operational Utilisation",100,0,4.4000000000000004,41723,"ENWL-58",94.825000000000003]
["Settle","FY26","Operational Utilisation",100,0,4.0999999999999996,41723,"ENWL-59",101.76341463414636]
["Settle","FY27","Operational Utilisation",100,0,4.0999999999999996,41723,"ENWL-59",101.76341463414636]
["Settle","FY28","Operational Utilisation",100,0,4.0999999999999996,41723,"ENWL-59",101.76341463414636]
["Yealand","W25/26","Operational Utilisation Variable Availability",48,360,0.89,32000,"ENWL-60","N/A"]
["Yealand","S26","Operational Utilisation Variable Availability",48,48,0.47,10517,"ENWL-60","N/A"]
["Yealand","W26/27","Operational Utilisation Variable Availability",48,424,0.96,21483,"ENWL-60","N/A"]
["Yealand","S27","Operational Utilisation Variable Availability",48,66,0.56000000000000005,11130,"ENWL-60","N/A"]
["Yealand","W27/28","Operational Utilisation Variable Availability",48,527,1.05,20870,"ENWL-60","N/A"]
["Yealand","FY26","Operational Utilisation",100,0,2.9,21943,"ENWL-61",75.66551724137932]
["Yealand","FY27","Operational Utilisation",100,0,2.9,21943,"ENWL-61",75.66551724137932]
["Yealand","FY28","Operational Utilisation",100,0,2.9,21943,"ENWL-61",75.66551724137932]
["Yealand","W25/26","Peak Reduction",2548,0,0.89,32000,"ENWL-62",14.111089552502072]
["Yealand","S26","Peak Reduction",732,0,0.47,10517,"ENWL-62",30.569119869782586]
["Yealand","W26/27","Peak Reduction",2548,0,0.96,21483,"ENWL-62",8.7826236263736259]
["Yealand","S27","Peak Reduction",1464,0,0.56000000000000005,11130,"ENWL-62",13.575819672131146]
["Yealand","W27/28","Peak Reduction",2745,0,1.05,20870,"ENWL-62",7.2408708474282237]
["ANDREW ST","W25/26","Peak Reduction",465.5,0,0.01,"N/A","ENWL-A24-74",116.5996]
["ANDREW ST","W25/26","Scheduled Utilisation",465.5,0,0.01,"N/A","ENWL-A24-63",116.5996]
["ARMISTEAD ST","W25/26","Peak Reduction",465.5,0,0.02,"N/A","ENWL-A24-75",116.5996]
["ARMISTEAD ST","W25/26","Scheduled Utilisation",465.5,0,0.02,"N/A","ENWL-A24-64",116.5996]
["BACK ROCHDALE RD","W25/26","Peak Reduction",465.5,0,1.0999999999999999E-2,"N/A","ENWL-A24-76",116.5996]
["BACK ROCHDALE RD","W25/26","Scheduled Utilisation",465.5,0,1.0999999999999999E-2,"N/A","ENWL-A24-65",116.5996]
["BK MANCHESTER RD","W25/26","Peak Reduction",465.5,0,1.2999999999999999E-2,"N/A","ENWL-A24-77",116.5996]
["BK MANCHESTER RD","W25/26","Scheduled Utilisation",465.5,0,1.2999999999999999E-2,"N/A","ENWL-A24-66",116.5996]
["CARLTON ST","W25/26","Peak Reduction",465.5,0,1.2E-2,"N/A","ENWL-A24-78",116.5996]
["CARLTON ST","W25/26","Scheduled Utilisation",465.5,0,1.2E-2,"N/A","ENWL-A24-67",116.5996]
["CORONATION DR","W25/26","Peak Reduction",465.5,0,0.01,"N/A","ENWL-A24-79",116.5996]
["CORONATION DR","W25/26","Scheduled Utilisation",465.5,0,0.01,"N/A","ENWL-A24-68",116.5996]
["KINGSTON AVE","W25/26","Peak Reduction",465.5,0,1.2E-2,"N/A","ENWL-A24-80",116.5996]
["KINGSTON AVE","W25/26","Scheduled Utilisation",465.5,0,1.2E-2,"N/A","ENWL-A24-69",116.5996]
["MANCHESTER RD","W25/26","Peak Reduction",465.5,0,2.3E-2,"N/A","ENWL-A24-81",116.5996]
["MANCHESTER RD","W25/26","Scheduled Utilisation",465.5,0,2.3E-2,"N/A","ENWL-A24-70",116.5996]
["SPENDMORE LN W","W25/26","Peak Reduction",465.5,0,1.2999999999999999E-2,"N/A","ENWL-A24-82",116.5996]
["SPENDMORE LN W","W25/26","Scheduled Utilisation",465.5,0,1.2999999999999999E-2,"N/A","ENWL-A24-71",116.5996]
["ST GEORGES ST","W25/26","Peak Reduction",465.5,0,2.5000000000000001E-2,"N/A","ENWL-A24-83",116.5996]
["ST GEORGES ST","W25/26","Scheduled Utilisation",465.5,0,2.5000000000000001E-2,"N/A","ENWL-A24-72",116.5996]
["SYCAMORE EST","W25/26","Peak Reduction",465.5,0,2.1000000000000001E-2,"N/A","ENWL-A24-84",116.5996]
["SYCAMORE EST","W25/26","Scheduled Utilisation",465.5,0,2.1000000000000001E-2,"N/A","ENWL-A24-73",116.5996]

{"sheet":"Hidden Tabs >>","index":4,"n_rows":0,"n_cols":0,"rows_kept":0,"cut":false,"hidden":true,"merged":[]}

{"sheet":"Manual Entry ","index":5,"n_rows":22,"n_cols":12,"rows_kept":22,"cut":false,"hidden":true,"merged":[[16,9,17,9],[16,1,16,3],[16,4,17,4],[11,4,11,6],[10,4,10,6],[8,11,9,12],[1,3,3,7],[1,11,1,12],[2,11,2,12],[13,11,13,12],[21,2,22,2],[21,3,22,8],[8,7,9,8],[12,4,12,6],[8,1,9,3],[16,6,16,8]]}
[]
[null,null,null,"Flexible Services \ncost checker"]
[null,null,null,null,null,null,null,null,null,null,null,"Click here to visit Piclo"]
[]
[]
[]
[]
[]
[null,"Insert Bid Details Here",null,null,null,null,null,"Competition details (Manually-populated)",null,null,null,"Click here to visit our website"]
[]
[null,"Bid Details","Availability £/MWh",0,{"$f":"IF(ISBLANK(I11),\"Enter data\",\"\")","v":""},null,null,"Celling Price per annum",29820,{"$f":"IF(ISBLANK(I11),\"Enter data\",\"\")","v":""}]
[null,null,"Utilisation £/MWh",20,{"$f":"IF(ISBLANK(D12),\"Enter data\",\"\")","v":""},null,null,"Availability Hours",0,{"$f":"IF(ISBLANK(I12),\"Enter data\",\"\")","v":""}]
[null,null,"Capacity MW",1,{"$f":"IF(ISBLANK(D13),\"Enter data\",IF(D13>I14,\"Capacity exceeds network requirements\",\"\"))","v":""},null,null,"Utilisation Hours",150,""]
[null,null,null,null,null,null,null,"Capacity Required MW",1.5,"",null,"Click here to contact us"]
[]
[]
[null,"Total Bid Price ",null,null,"% of capacity\n required",null,"Total price if scaled up to total capacity required",null,null,"% of celling Price"]
[null,"Availability £","Utilisation £","Total Bid \nPrice",null,null,"Availability £","Utilisation","Total Bid Price"]
[null,{"$f":"IFERROR(D11*I12*D13,\"\")","v":0},{"$f":"IFERROR(D12*I13*D13,\"\")","v":3000},{"$f":"IFERROR(B19+C19,\"\")","v":3000},{"$f":"IFERROR(D13/I14,\"\")","v":0.66666666666666663},null,{"$f":"IFERROR(D11*I12*I14,\"\")","v":0},{"$f":"IFERROR(D12*I13*I14,\"\")","v":4500},{"$f":"IFERROR(G19+H19,\"\")","v":4500},{"$f":"IFERROR(I19/I11,\"\")","v":0.15090543259557343}]
[]
[]
[null,null,"Result:",{"$f":"IF(I19=0,\"\",IF(J19>1,'Lists & wording'!K4,'Lists & wording'!K3))","v":"Your tendered price is within the ceiling price. \nNote: This is not a guarantee that your submission will be accepted."}]

{"sheet":"Data","index":6,"n_rows":348,"n_cols":11,"rows_kept":348,"cut":false,"hidden":true,"merged":[]}
["Concatenate","Competition Name","Competition Ref","Period","Competition type","Celing Price per annum","Utilisation","Availability","Capacity Required",null,"Ceiling Price for OU/ SU/ PR\n(£/MWh)"]
[{"$f":"CONCATENATE(B2,D2,E2)","v":"AlstonS25Operational Utilisation Variable Availability"},{"$f":"IF(ISBLANK('Competition Data'!A2),\"\",'Competition Data'!A2)","v":"Alston"},{"$f":"IF(ISBLANK('Competition Data'!H2),\"\",'Competition Data'!H2)","v":"ENWL-2"},{"$f":"IF(ISBLANK('Competition Data'!B2),\"\",'Competition Data'!B2)","v":"S25"},{"$f":"IF(ISBLANK('Competition Data'!C2),\"\",'Competition Data'!C2)","v":"Operational Utilisation Variable Availability"},{"$f":"IF(ISBLANK('Competition Data'!G2),\"\",'Competition Data'!G2)","v":97844},{"$f":"IF(ISBLANK('Competition Data'!D2),\"\",'Competition Data'!D2)","v":100},{"$f":"IF(ISBLANK('Competition Data'!E2),\"\",'Competition Data'!E2)","v":1330},{"$f":"IF(ISBLANK('Competition Data'!F2),\"\",'Competition Data'!F2)","v":0.93},{"$f":"CONCATENATE(B2,\" (\",E2,\")\")","v":"Alston (Operational Utilisation Variable Availability)"},{"$f":"IF(ISBLANK('Competition Data'!I2),\"\",'Competition Data'!I2)","v":"N/A"}]
[{"$f":"CONCATENATE(B3,D3,E3)","v":"AlstonW25/26Operational Utilisation Variable Availability"},{"$f":"IF(ISBLANK('Competition Data'!A3),\"\",'Competition Data'!A3)","v":"Alston"},{"$f":"IF(ISBLANK('Competition Data'!H3),\"\",'Competition Data'!H3)","v":"ENWL-2"},{"$f":"IF(ISBLANK('Competition Data'!B3),\"\",'Competition Data'!B3)","v":"W25/26"},{"$f":"IF(ISBLANK('Competition Data'!C3),\"\",'Competition Data'!C3)","v":"Operational Utilisation Variable Availability"},{"$f":"IF(ISBLANK('Competition Data'!G3),\"\",'Competition Data'!G3)","v":104156},{"$f":"IF(ISBLANK('Competition Data'!D3),\"\",'Competition Data'!D3)","v":48},{"$f":"IF(ISBLANK('Competition Data'!E3),\"\",'Competition Data'!E3)","v":688},{"$f":"IF(ISBLANK('Competition Data'!F3),\"\",'Competition Data'!F3)","v":0.99},{"$f":"CONCATENATE(B3,\" (\",E3,\")\")","v":"Alston (Operational Utilisation Variable Availability)"},{"$f":"IF(ISBLANK('Competition Data'!I3),\"\",'Competition Data'!I3)","v":"N/A"}]
["AlstonS26Operational Utilisation Variable Availability",{"$f":"IF(ISBLANK('Competition Data'!A4),\"\",'Competition Data'!A4)","v":"Alston"},{"$f":"IF(ISBLANK('Competition Data'!H4),\"\",'Competition Data'!H4)","v":"ENWL-2"},{"$f":"IF(ISBLANK('Competition Data'!B4),\"\",'Competition Data'!B4)","v":"S26"},{"$f":"IF(ISBLANK('Competition Data'!C4),\"\",'Competition Data'!C4)","v":"Operational Utilisation Variable Availability"},{"$f":"IF(ISBLANK('Competition Data'!G4),\"\",'Competition Data'!G4)","v":98000},{"$f":"IF(ISBLANK('Competition Data'!D4),\"\",'Competition Data'!D4)","v":100},{"$f":"IF(ISBLANK('Competition Data'!E4),\"\",'Competition Data'!E4)","v":1621},{"$f":"IF(ISBLANK('Competition Data'!F4),\"\",'Competition Data'!F4)","v":0.98},"Alston (Operational Utilisation Variable Availability)",{"$f":"IF(ISBLANK('Competition Data'!I4),\"\",'Competition Data'!I4)","v":"N/A"}]
["AlstonW26/27Operational Utilisation Variable Availability",{"$f":"IF(ISBLANK('Competition Data'!A5),\"\",'Competition Data'!A5)","v":"Alston"},{"$f":"IF(ISBLANK('Competition Data'!H5),\"\",'Competition Data'!H5)","v":"ENWL-2"},{"$f":"IF(ISBLANK('Competition Data'!B5),\"\",'Competition Data'!B5)","v":"W26/27"},{"$f":"IF(ISBLANK('Competition Data'!C5),\"\",'Competition Data'!C5)","v":"Operational Utilisation Variable Availability"},{"$f":"IF(ISBLANK('Competition Data'!G5),\"\",'Competition Data'!G5)","v":104000},{"$f":"IF(ISBLANK('Competition Data'!D5),\"\",'Competition Data'!D5)","v":100},{"$f":"IF(ISBLANK('Competition Data'!E5),\"\",'Competition Data'!E5)","v":744},{"$f":"IF(ISBLANK('Competition Data'!F5),\"\",'Competition Data'!F5)","v":1.04},"Alston (Operational Utilisation Variable Availability)",{"$f":"IF(ISBLANK('Competition Data'!I5),\"\",'Competition Data'!I5)","v":"N/A"}]
["AlstonS27Operational Utilisation Variable Availability",{"$f":"IF(ISBLANK('Competition Data'!A6),\"\",'Competition Data'!A6)","v":"Alston"},{"$f":"IF(ISBLANK('Competition Data'!H6),\"\",'Competition Data'!H6)","v":"ENWL-2"},{"$f":"IF(ISBLANK('Competition Data'!B6),\"\",'Competition Data'!B6)","v":"S27"},{"$f":"IF(ISBLANK('Competition Data'!C6),\"\",'Competition Data'!C6)","v":"Operational Utilisation Variable Availability"},{"$f":"IF(ISBLANK('Competition Data'!G6),\"\",'Competition Data'!G6)","v":97649},{"$f":"IF(ISBLANK('Competition Data'!D6),\"\",'Competition Data'!D6)","v":100},{"$f":"IF(ISBLANK('Competition Data'!E6),\"\",'Competition Data'!E6)","v":1670},{"$f":"IF(ISBLANK('Competition Data'!F6),\"\",'Competition Data'!F6)","v":1.02},"Alston (Operational Utilisation Variable Availability)",{"$f":"IF(ISBLANK('Competition Data'!I6),\"\",'Competition Data'!I6)","v":"N/A"}]
["AlstonW27/28Operational Utilisation Variable Availability",{"$f":"IF(ISBLANK('Competition Data'!A7),\"\",'Competition Data'!A7)","v":"Alston"},{"$f":"IF(ISBLANK('Competition Data'!H7),\"\",'Competition Data'!H7)","v":"ENWL-2"},{"$f":"IF(ISBLANK('Competition Data'!B7),\"\",'Competition Data'!B7)","v":"W27/28"},{"$f":"IF(ISBLANK('Competition Data'!C7),\"\",'Competition Data'!C7)","v":"Operational Utilisation Variable Availability"},{"$f":"IF(ISBLANK('Competition Data'!G7),\"\",'Competition Data'!G7)","v":104351},{"$f":"IF(ISBLANK('Competition Data'!D7),\"\",'Competition Data'!D7)","v":100},{"$f":"IF(ISBLANK('Competition Data'!E7),\"\",'Competition Data'!E7)","v":813},{"$f":"IF(ISBLANK('Competition Data'!F7),\"\",'Competition Data'!F7)","v":1.0900000000000001},"Alston (Operational Utilisation Variable Availability)",{"$f":"IF(ISBLANK('Competition Data'!I7),\"\",'Competition Data'!I7)","v":"N/A"}]
["AlstonFY26Operational Utilisation",{"$f":"IF(ISBLANK('Competition Data'!A8),\"\",'Competition Data'!A8)","v":"Alston"},{"$f":"IF(ISBLANK('Competition Data'!H8),\"\",'Competition Data'!H8)","v":"ENWL-3"},{"$f":"IF(ISBLANK('Competition Data'!B8),\"\",'Competition Data'!B8)","v":"FY26"},{"$f":"IF(ISBLANK('Competition Data'!C8),\"\",'Competition Data'!C8)","v":"Operational Utilisation"},{"$f":"IF(ISBLANK('Competition Data'!G8),\"\",'Competition Data'!G8)","v":24310},{"$f":"IF(ISBLANK('Competition Data'!D8),\"\",'Competition Data'!D8)","v":100},{"$f":"IF(ISBLANK('Competition Data'!E8),\"\",'Competition Data'!E8)","v":0},{"$f":"IF(ISBLANK('Competition Data'!F8),\"\",'Competition Data'!F8)","v":1.4},"Alston (Operational Utilisation)",{"$f":"IF(ISBLANK('Competition Data'!I8),\"\",'Competition Data'!I8)","v":173.64285714285714}]
["AlstonFY27Operational Utilisation",{"$f":"IF(ISBLANK('Competition Data'!A9),\"\",'Competition Data'!A9)","v":"Alston"},{"$f":"IF(ISBLANK('Competition Data'!H9),\"\",'Competition Data'!H9)","v":"ENWL-3"},{"$f":"IF(ISBLANK('Competition Data'!B9),\"\",'Competition Data'!B9)","v":"FY27"},{"$f":"IF(ISBLANK('Competition Data'!C9),\"\",'Competition Data'!C9)","v":"Operational Utilisation"},{"$f":"IF(ISBLANK('Competition Data'!G9),\"\",'Competition Data'!G9)","v":24310},{"$f":"IF(ISBLANK('Competition Data'!D9),\"\",'Competition Data'!D9)","v":100},{"$f":"IF(ISBLANK('Competition Data'!E9),\"\",'Competition Data'!E9)","v":0},{"$f":"IF(ISBLANK('Competition Data'!F9),\"\",'Competition Data'!F9)","v":1.4},"Alston (Operational Utilisation)",{"$f":"IF(ISBLANK('Competition Data'!I9),\"\",'Competition Data'!I9)","v":173.64285714285714}]
["AlstonFY28Operational Utilisation",{"$f":"IF(ISBLANK('Competition Data'!A10),\"\",'Competition Data'!A10)","v":"Alston"},{"$f":"IF(ISBLANK('Competition Data'!H10),\"\",'Competition Data'!H10)","v":"ENWL-3"},{"$f":"IF(ISBLANK('Competition Data'!B10),\"\",'Competition Data'!B10)","v":"FY28"},{"$f":"IF(ISBLANK('Competition Data'!C10),\"\",'Competition Data'!C10)","v":"Operational Utilisation"},{"$f":"IF(ISBLANK('Competition Data'!G10),\"\",'Competition Data'!G10)","v":24310},{"$f":"IF(ISBLANK('Competition Data'!D10),\"\",'Competition Data'!D10)","v":100},{"$f":"IF(ISBLANK('Competition Data'!E10),\"\",'Competition Data'!E10)","v":0},{"$f":"IF(ISBLANK('Competition Data'!F10),\"\",'Competition Data'!F10)","v":1.4},"Alston (Operational Utilisation)",{"$f":"IF(ISBLANK('Competition Data'!I10),\"\",'Competition Data'!I10)","v":173.64285714285714}]
["AlstonS25Peak Reduction",{"$f":"IF(ISBLANK('Competition Data'!A11),\"\",'Competition Data'!A11)","v":"Alston"},{"$f":"IF(ISBLANK('Competition Data'!H11),\"\",'Competition Data'!H11)","v":"ENWL-4"},{"$f":"IF(ISBLANK('Competition Data'!B11),\"\",'Competition Data'!B11)","v":"S25"},{"$f":"IF(ISBLANK('Competition Data'!C11),\"\",'Competition Data'!C11)","v":"Peak Reduction"},{"$f":"IF(ISBLANK('Competition Data'!G11),\"\",'Competition Data'!G11)","v":97844},{"$f":"IF(ISBLANK('Competition Data'!D11),\"\",'Competition Data'!D11)","v":1530},{"$f":"IF(ISBLANK('Competition Data'!E11),\"\",'Competition Data'!E11)","v":0},{"$f":"IF(ISBLANK('Competition Data'!F11),\"\",'Competition Data'!F11)","v":0.93},"Alston (Peak Reduction)",{"$f":"IF(ISBLANK('Competition Data'!I11),\"\",'Competition Data'!I11)","v":68.76379225525335}]
["AlstonW25/26Peak Reduction",{"$f":"IF(ISBLANK('Competition Data'!A12),\"\",'Competition Data'!A12)","v":"Alston"},{"$f":"IF(ISBLANK('Competition Data'!H12),\"\",'Competition Data'!H12)","v":"ENWL-4"},{"$f":"IF(ISBLANK('Competition Data'!B12),\"\",'Competition Data'!B12)","v":"W25/26"},{"$f":"IF(ISBLANK('Competition Data'!C12),\"\",'Competition Data'!C12)","v":"Peak Reduction"},{"$f":"IF(ISBLANK('Competition Data'!G12),\"\",'Competition Data'!G12)","v":104156},{"$f":"IF(ISBLANK('Competition Data'!D12),\"\",'Competition Data'!D12)","v":1638},{"$f":"IF(ISBLANK('Competition Data'!E12),\"\",'Competition Data'!E12)","v":0},{"$f":"IF(ISBLANK('Competition Data'!F12),\"\",'Competition Data'!F12)","v":0.99},"Alston (Peak Reduction)",{"$f":"IF(ISBLANK('Competition Data'!I12),\"\",'Competition Data'!I12)","v":64.229597562930891}]
["AlstonS26Peak Reduction",{"$f":"IF(ISBLANK('Competition Data'!A13),\"\",'Competition Data'!A13)","v":"Alston"},{"$f":"IF(ISBLANK('Competition Data'!H13),\"\",'Competition Data'!H13)","v":"ENWL-4"},{"$f":"IF(ISBLANK('Competition Data'!B13),\"\",'Competition Data'!B13)","v":"S26"},{"$f":"IF(ISBLANK('Competition Data'!C13),\"\",'Competition Data'!C13)","v":"Peak Reduction"},{"$f":"IF(ISBLANK('Competition Data'!G13),\"\",'Competition Data'!G13)","v":98000},{"$f":"IF(ISBLANK('Competition Data'!D13),\"\",'Competition Data'!D13)","v":1830},{"$f":"IF(ISBLANK('Competition Data'!E13),\"\",'Competition Data'!E13)","v":0},{"$f":"IF(ISBLANK('Competition Data'!F13),\"\",'Competition Data'!F13)","v":0.98},"Alston (Peak Reduction)",{"$f":"IF(ISBLANK('Competition Data'!I13),\"\",'Competition Data'!I13)","v":54.644808743169399}]
["AlstonW26/27Peak Reduction",{"$f":"IF(ISBLANK('Competition Data'!A14),\"\",'Competition Data'!A14)","v":"Alston"},{"$f":"IF(ISBLANK('Competition Data'!H14),\"\",'Competition Data'!H14)","v":"ENWL-4"},{"$f":"IF(ISBLANK('Competition Data'!B14),\"\",'Competition Data'!B14)","v":"W26/27"},{"$f":"IF(ISBLANK('Competition Data'!C14),\"\",'Competition Data'!C14)","v":"Peak Reduction"},{"$f":"IF(ISBLANK('Competition Data'!G14),\"\",'Competition Data'!G14)","v":104000},{"$f":"IF(ISBLANK('Competition Data'!D14),\"\",'Competition Data'!D14)","v":1638},{"$f":"IF(ISBLANK('Competition Data'!E14),\"\",'Competition Data'!E14)","v":0},{"$f":"IF(ISBLANK('Competition Data'!F14),\"\",'Competition Data'!F14)","v":1.04},"Alston (Peak Reduction)",{"$f":"IF(ISBLANK('Competition Data'!I14),\"\",'Competition Data'!I14)","v":61.050061050061046}]
["AlstonS27Peak Reduction",{"$f":"IF(ISBLANK('Competition Data'!A15),\"\",'Competition Data'!A15)","v":"Alston"},{"$f":"IF(ISBLANK('Competition Data'!H15),\"\",'Competition Data'!H15)","v":"ENWL-4"},{"$f":"IF(ISBLANK('Competition Data'!B15),\"\",'Competition Data'!B15)","v":"S27"},{"$f":"IF(ISBLANK('Competition Data'!C15),\"\",'Competition Data'!C15)","v":"Peak Reduction"},{"$f":"IF(ISBLANK('Competition Data'!G15),\"\",'Competition Data'!G15)","v":97649},{"$f":"IF(ISBLANK('Competition Data'!D15),\"\",'Competition Data'!D15)","v":1830},{"$f":"IF(ISBLANK('Competition Data'!E15),\"\",'Competition Data'!E15)","v":0},{"$f":"IF(ISBLANK('Competition Data'!F15),\"\",'Competition Data'!F15)","v":1.02},"Alston (Peak Reduction)",{"$f":"IF(ISBLANK('Competition Data'!I15),\"\",'Competition Data'!I15)","v":52.313832636879887}]
["AlstonW27/28Peak Reduction",{"$f":"IF(ISBLANK('Competition Data'!A16),\"\",'Competition Data'!A16)","v":"Alston"},{"$f":"IF(ISBLANK('Competition Data'!H16),\"\",'Competition Data'!H16)","v":"ENWL-4"},{"$f":"IF(ISBLANK('Competition Data'!B16),\"\",'Competition Data'!B16)","v":"W27/28"},{"$f":"IF(ISBLANK('Competition Data'!C16),\"\",'Competition Data'!C16)","v":"Peak Reduction"},{"$f":"IF(ISBLANK('Competition Data'!G16),\"\",'Competition Data'!G16)","v":104351},{"$f":"IF(ISBLANK('Competition Data'!D16),\"\",'Competition Data'!D16)","v":1647},{"$f":"IF(ISBLANK('Competition Data'!E16),\"\",'Competition Data'!E16)","v":0},{"$f":"IF(ISBLANK('Competition Data'!F16),\"\",'Competition Data'!F16)","v":1.0900000000000001},"Alston (Peak Reduction)",{"$f":"IF(ISBLANK('Competition Data'!I16),\"\",'Competition Data'!I16)","v":58.126813834439041}]
["Ambleside, Calgarth, Mintsfeet & WindermereW26/27Operational Utilisation Variable Availability",{"$f":"IF(ISBLANK('Competition Data'!A17),\"\",'Competition Data'!A17)","v":"Ambleside, Calgarth, Mintsfeet & Windermere"},{"$f":"IF(ISBLANK('Competition Data'!H17),\"\",'Competition Data'!H17)","v":"ENWL-5"},{"$f":"IF(ISBLANK('Competition Data'!B17),\"\",'Competition Data'!B17)","v":"W26/27"},{"$f":"IF(ISBLANK('Competition Data'!C17),\"\",'Competition Data'!C17)","v":"Operational Utilisation Variable Availability"},{"$f":"IF(ISBLANK('Competition Data'!G17),\"\",'Competition Data'!G17)","v":59000},{"$f":"IF(ISBLANK('Competition Data'!D17),\"\",'Competition Data'!D17)","v":48},{"$f":"IF(ISBLANK('Competition Data'!E17),\"\",'Competition Data'!E17)","v":72},{"$f":"IF(ISBLANK('Competition Data'!F17),\"\",'Competition Data'!F17)","v":4.4800000000000004},"Ambleside, Calgarth, Mintsfeet & Windermere (Operational Utilisation Variable Availability)",{"$f":"IF(ISBLANK('Competition Data'!I17),\"\",'Competition Data'!I17)","v":"N/A"}]
["Ambleside, Calgarth, Mintsfeet & WindermereW27/28Operational Utilisation Variable Availability",{"$f":"IF(ISBLANK('Competition Data'!A18),\"\",'Competition Data'!A18)","v":"Ambleside, Calgarth, Mintsfeet & Windermere"},{"$f":"IF(ISBLANK('Competition Data'!H18),\"\",'Competition Data'!H18)","v":"ENWL-5"},{"$f":"IF(ISBLANK('Competition Data'!B18),\"\",'Competition Data'!B18)","v":"W27/28"},{"$f":"IF(ISBLANK('Competition Data'!C18),\"\",'Competition Data'!C18)","v":"Operational Utilisation Variable Availability"},{"$f":"IF(ISBLANK('Competition Data'!G18),\"\",'Competition Data'!G18)","v":59000},{"$f":"IF(ISBLANK('Competition Data'!D18),\"\",'Competition Data'!D18)","v":48},{"$f":"IF(ISBLANK('Competition Data'!E18),\"\",'Competition Data'!E18)","v":103},{"$f":"IF(ISBLANK('Competition Data'!F18),\"\",'Competition Data'!F18)","v":4.9800000000000004},"Ambleside, Calgarth, Mintsfeet & Windermere (Operational Utilisation Variable Availability)",{"$f":"IF(ISBLANK('Competition Data'!I18),\"\",'Competition Data'!I18)","v":"N/A"}]
["Ambleside, Calgarth, Mintsfeet & WindermereW26/27Peak Reduction",{"$f":"IF(ISBLANK('Competition Data'!A19),\"\",'Competition Data'!A19)","v":"Ambleside, Calgarth, Mintsfeet & Windermere"},{"$f":"IF(ISBLANK('Competition Data'!H19),\"\",'Competition Data'!H19)","v":"ENWL-6"},{"$f":"IF(ISBLANK('Competition Data'!B19),\"\",'Competition Data'!B19)","v":"W26/27"},{"$f":"IF(ISBLANK('Competition Data'!C19),\"\",'Competition Data'!C19)","v":"Peak Reduction"},{"$f":"IF(ISBLANK('Competition Data'!G19),\"\",'Competition Data'!G19)","v":59000},{"$f":"IF(ISBLANK('Competition Data'!D19),\"\",'Competition Data'!D19)","v":1331},{"$f":"IF(ISBLANK('Competition Data'!E19),\"\",'Competition Data'!E19)","v":0},{"$f":"IF(ISBLANK('Competition Data'!F19),\"\",'Competition Data'!F19)","v":4.4800000000000004},"Ambleside, Calgarth, Mintsfeet & Windermere (Peak Reduction)",{"$f":"IF(ISBLANK('Competition Data'!I19),\"\",'Competition Data'!I19)","v":9.8945476011591698}]
["Ambleside, Calgarth, Mintsfeet & WindermereW27/28Peak Reduction",{"$f":"IF(ISBLANK('Competition Data'!A20),\"\",'Competition Data'!A20)","v":"Ambleside, Calgarth, Mintsfeet & Windermere"},{"$f":"IF(ISBLANK('Competition Data'!H20),\"\",'Competition Data'!H20)","v":"ENWL-6"},{"$f":"IF(ISBLANK('Competition Data'!B20),\"\",'Competition Data'!B20)","v":"W27/28"},{"$f":"IF(ISBLANK('Competition Data'!C20),\"\",'Competition Data'!C20)","v":"Peak Reduction"},{"$f":"IF(ISBLANK('Competition Data'!G20),\"\",'Competition Data'!G20)","v":59000},{"$f":"IF(ISBLANK('Competition Data'!D20),\"\",'Competition Data'!D20)","v":1824},{"$f":"IF(ISBLANK('Competition Data'!E20),\"\",'Competition Data'!E20)","v":0},{"$f":"IF(ISBLANK('Competition Data'!F20),\"\",'Competition Data'!F20)","v":4.9800000000000004},"Ambleside, Calgarth, Mintsfeet & Windermere (Peak Reduction)",{"$f":"IF(ISBLANK('Competition Data'!I20),\"\",'Competition Data'!I20)","v":6.4952793630663006}]
["ArdwickW25/26Operational Utilisation Variable Availability",{"$f":"IF(ISBLANK('Competition Data'!A21),\"\",'Competition Data'!A21)","v":"Ardwick"},{"$f":"IF(ISBLANK('Competition Data'!H21),\"\",'Competition Data'!H21)","v":"ENWL-7"},{"$f":"IF(ISBLANK('Competition Data'!B21),\"\",'Competition Data'!B21)","v":"W25/26"},{"$f":"IF(ISBLANK('Competition Data'!C21),\"\",'Competition Data'!C21)","v":"Operational Utilisation Variable Availability"},{"$f":"IF(ISBLANK('Competition Data'!G21),\"\",'Competition Data'!G21)","v":242000},{"$f":"IF(ISBLANK('Competition Data'!D21),\"\",'Competition Data'!D21)","v":100},{"$f":"IF(ISBLANK('Competition Data'!E21),\"\",'Competition Data'!E21)","v":913},{"$f":"IF(ISBLANK('Competition Data'!F21),\"\",'Competition Data'!F21)","v":3.07},"Ardwick (Operational Utilisation Variable Availability)",{"$f":"IF(ISBLANK('Competition Data'!I21),\"\",'Competition Data'!I21)","v":"N/A"}]
["ArdwickW26/27Operational Utilisation Variable Availability",{"$f":"IF(ISBLANK('Competition Data'!A22),\"\",'Competition Data'!A22)","v":"Ardwick"},{"$f":"IF(ISBLANK('Competition Data'!H22),\"\",'Competition Data'!H22)","v":"ENWL-7"},{"$f":"IF(ISBLANK('Competition Data'!B22),\"\",'Competition Data'!B22)","v":"W26/27"},{"$f":"IF(ISBLANK('Competition Data'!C22),\"\",'Competition Data'!C22)","v":"Operational Utilisation Variable Availability"},{"$f":"IF(ISBLANK('Competition Data'!G22),\"\",'Competition Data'!G22)","v":242000},{"$f":"IF(ISBLANK('Competition Data'!D22),\"\",'Competition Data'!D22)","v":100},{"$f":"IF(ISBLANK('Competition Data'!E22),\"\",'Competition Data'!E22)","v":1211},{"$f":"IF(ISBLANK('Competition Data'!F22),\"\",'Competition Data'!F22)","v":3.74},"Ardwick (Operational Utilisation Variable Availability)",{"$f":"IF(ISBLANK('Competition Data'!I22),\"\",'Competition Data'!I22)","v":"N/A"}]
["ArdwickW27/28Operational Utilisation Variable Availability",{"$f":"IF(ISBLANK('Competition Data'!A23),\"\",'Competition Data'!A23)","v":"Ardwick"},{"$f":"IF(ISBLANK('Competition Data'!H23),\"\",'Competition Data'!H23)","v":"ENWL-7"},{"$f":"IF(ISBLANK('Competition Data'!B23),\"\",'Competition Data'!B23)","v":"W27/28"},{"$f":"IF(ISBLANK('Competition Data'!C23),\"\",'Competition Data'!C23)","v":"Operational Utilisation Variable Availability"},{"$f":"IF(ISBLANK('Competition Data'!G23),\"\",'Competition Data'!G23)","v":242000},{"$f":"IF(ISBLANK('Competition Data'!D23),\"\",'Competition Data'!D23)","v":100},{"$f":"IF(ISBLANK('Competition Data'!E23),\"\",'Competition Data'!E23)","v":1516},{"$f":"IF(ISBLANK('Competition Data'!F23),\"\",'Competition Data'!F23)","v":4.41},"Ardwick (Operational Utilisation Variable Availability)",{"$f":"IF(ISBLANK('Competition Data'!I23),\"\",'Competition Data'!I23)","v":"N/A"}]
["ArdwickW25/26Operational Utilisation",{"$f":"IF(ISBLANK('Competition Data'!A24),\"\",'Competition Data'!A24)","v":"Ardwick"},{"$f":"IF(ISBLANK('Competition Data'!H24),\"\",'Competition Data'!H24)","v":"ENWL-8"},{"$f":"IF(ISBLANK('Competition Data'!B24),\"\",'Competition Data'!B24)","v":"W25/26"},{"$f":"IF(ISBLANK('Competition Data'!C24),\"\",'Competition Data'!C24)","v":"Operational Utilisation"},{"$f":"IF(ISBLANK('Competition Data'!G24),\"\",'Competition Data'!G24)","v":84223},{"$f":"IF(ISBLANK('Competition Data'!D24),\"\",'Competition Data'!D24)","v":100},{"$f":"IF(ISBLANK('Competition Data'!E24),\"\",'Competition Data'!E24)","v":0},{"$f":"IF(ISBLANK('Competition Data'!F24),\"\",'Competition Data'!F24)","v":3.07},"Ardwick (Operational Utilisation)",{"$f":"IF(ISBLANK('Competition Data'!I24),\"\",'Competition Data'!I24)","v":274.34201954397395}]
["ArdwickW26/27Operational Utilisation",{"$f":"IF(ISBLANK('Competition Data'!A25),\"\",'Competition Data'!A25)","v":"Ardwick"},{"$f":"IF(ISBLANK('Competition Data'!H25),\"\",'Competition Data'!H25)","v":"ENWL-8"},{"$f":"IF(ISBLANK('Competition Data'!B25),\"\",'Competition Data'!B25)","v":"W26/27"},{"$f":"IF(ISBLANK('Competition Data'!C25),\"\",'Competition Data'!C25)","v":"Operational Utilisation"},{"$f":"IF(ISBLANK('Competition Data'!G25),\"\",'Competition Data'!G25)","v":84223},{"$f":"IF(ISBLANK('Competition Data'!D25),\"\",'Competition Data'!D25)","v":100},{"$f":"IF(ISBLANK('Competition Data'!E25),\"\",'Competition Data'!E25)","v":0},{"$f":"IF(ISBLANK('Competition Data'!F25),\"\",'Competition Data'!F25)","v":3.74},"Ardwick (Operational Utilisation)",{"$f":"IF(ISBLANK('Competition Data'!I25),\"\",'Competition Data'!I25)","v":225.19518716577539}]
["ArdwickW27/28Operational Utilisation",{"$f":"IF(ISBLANK('Competition Data'!A26),\"\",'Competition Data'!A26)","v":"Ardwick"},{"$f":"IF(ISBLANK('Competition Data'!H26),\"\",'Competition Data'!H26)","v":"ENWL-8"},{"$f":"IF(ISBLANK('Competition Data'!B26),\"\",'Competition Data'!B26)","v":"W27/28"},{"$f":"IF(ISBLANK('Competition Data'!C26),\"\",'Competition Data'!C26)","v":"Operational Utilisation"},{"$f":"IF(ISBLANK('Competition Data'!G26),\"\",'Competition Data'!G26)","v":84223},{"$f":"IF(ISBLANK('Competition Data'!D26),\"\",'Competition Data'!D26)","v":100},{"$f":"IF(ISBLANK('Competition Data'!E26),\"\",'Competition Data'!E26)","v":0},{"$f":"IF(ISBLANK('Competition Data'!F26),\"\",'Competition Data'!F26)","v":4.41},"Ardwick (Operational Utilisation)",{"$f":"IF(ISBLANK('Competition Data'!I26),\"\",'Competition Data'!I26)","v":190.98185941043084}]
["ArdwickW25/26Peak Reduction",{"$f":"IF(ISBLANK('Competition Data'!A27),\"\",'Competition Data'!A27)","v":"Ardwick"},{"$f":"IF(ISBLANK('Competition Data'!H27),\"\",'Competition Data'!H27)","v":"ENWL-9"},{"$f":"IF(ISBLANK('Competition Data'!B27),\"\",'Competition Data'!B27)","v":"W25/26"},{"$f":"IF(ISBLANK('Competition Data'!C27),\"\",'Competition Data'!C27)","v":"Peak Reduction"},{"$f":"IF(ISBLANK('Competition Data'!G27),\"\",'Competition Data'!G27)","v":242000},{"$f":"IF(ISBLANK('Competition Data'!D27),\"\",'Competition Data'!D27)","v":2114},{"$f":"IF(ISBLANK('Competition Data'!E27),\"\",'Competition Data'!E27)","v":0},{"$f":"IF(ISBLANK('Competition Data'!F27),\"\",'Competition Data'!F27)","v":3.07},"Ardwick (Peak Reduction)",{"$f":"IF(ISBLANK('Competition Data'!I27),\"\",'Competition Data'!I27)","v":37.288250503083219}]
["ArdwickW26/27Peak Reduction",{"$f":"IF(ISBLANK('Competition Data'!A28),\"\",'Competition Data'!A28)","v":"Ardwick"},{"$f":"IF(ISBLANK('Competition Data'!H28),\"\",'Competition Data'!H28)","v":"ENWL-9"},{"$f":"IF(ISBLANK('Competition Data'!B28),\"\",'Competition Data'!B28)","v":"W26/27"},{"$f":"IF(ISBLANK('Competition Data'!C28),\"\",'Competition Data'!C28)","v":"Peak Reduction"},{"$f":"IF(ISBLANK('Competition Data'!G28),\"\",'Competition Data'!G28)","v":242000},{"$f":"IF(ISBLANK('Competition Data'!D28),\"\",'Competition Data'!D28)","v":2730},{"$f":"IF(ISBLANK('Competition Data'!E28),\"\",'Competition Data'!E28)","v":0},{"$f":"IF(ISBLANK('Competition Data'!F28),\"\",'Competition Data'!F28)","v":3.74},"Ardwick (Peak Reduction)",{"$f":"IF(ISBLANK('Competition Data'!I28),\"\",'Competition Data'!I28)","v":23.701788407670758}]
["ArdwickW27/28Peak Reduction",{"$f":"IF(ISBLANK('Competition Data'!A29),\"\",'Competition Data'!A29)","v":"Ardwick"},{"$f":"IF(ISBLANK('Competition Data'!H29),\"\",'Competition Data'!H29)","v":"ENWL-9"},{"$f":"IF(ISBLANK('Competition Data'!B29),\"\",'Competition Data'!B29)","v":"W27/28"},{"$f":"IF(ISBLANK('Competition Data'!C29),\"\",'Competition Data'!C29)","v":"Peak Reduction"},{"$f":"IF(ISBLANK('Competition Data'!G29),\"\",'Competition Data'!G29)","v":242000},{"$f":"IF(ISBLANK('Competition Data'!D29),\"\",'Competition Data'!D29)","v":2928},{"$f":"IF(ISBLANK('Competition Data'!E29),\"\",'Competition Data'!E29)","v":0},{"$f":"IF(ISBLANK('Competition Data'!F29),\"\",'Competition Data'!F29)","v":4.41},"Ardwick (Peak Reduction)",{"$f":"IF(ISBLANK('Competition Data'!I29),\"\",'Competition Data'!I29)","v":18.741558554204925}]
["Askerton CastleFY26Operational Utilisation",{"$f":"IF(ISBLANK('Competition Data'!A30),\"\",'Competition Data'!A30)","v":"Askerton Castle"},{"$f":"IF(ISBLANK('Competition Data'!H30),\"\",'Competition Data'!H30)","v":"ENWL-10"},{"$f":"IF(ISBLANK('Competition Data'!B30),\"\",'Competition Data'!B30)","v":"FY26"},{"$f":"IF(ISBLANK('Competition Data'!C30),\"\",'Competition Data'!C30)","v":"Operational Utilisation"},{"$f":"IF(ISBLANK('Competition Data'!G30),\"\",'Competition Data'!G30)","v":8256},{"$f":"IF(ISBLANK('Competition Data'!D30),\"\",'Competition Data'!D30)","v":100},{"$f":"IF(ISBLANK('Competition Data'!E30),\"\",'Competition Data'!E30)","v":0},{"$f":"IF(ISBLANK('Competition Data'!F30),\"\",'Competition Data'!F30)","v":1.4},"Askerton Castle (Operational Utilisation)",{"$f":"IF(ISBLANK('Competition Data'!I30),\"\",'Competition Data'!I30)","v":58.971428571428575}]
["Askerton CastleFY27Operational Utilisation",{"$f":"IF(ISBLANK('Competition Data'!A31),\"\",'Competition Data'!A31)","v":"Askerton Castle"},{"$f":"IF(ISBLANK('Competition Data'!H31),\"\",'Competition Data'!H31)","v":"ENWL-10"},{"$f":"IF(ISBLANK('Competition Data'!B31),\"\",'Competition Data'!B31)","v":"FY27"},{"$f":"IF(ISBLANK('Competition Data'!C31),\"\",'Competition Data'!C31)","v":"Operational Utilisation"},{"$f":"IF(ISBLANK('Competition Data'!G31),\"\",'Competition Data'!G31)","v":8256},{"$f":"IF(ISBLANK('Competition Data'!D31),\"\",'Competition Data'!D31)","v":100},{"$f":"IF(ISBLANK('Competition Data'!E31),\"\",'Competition Data'!E31)","v":0},{"$f":"IF(ISBLANK('Competition Data'!F31),\"\",'Competition Data'!F31)","v":1.4},"Askerton Castle (Operational Utilisation)",{"$f":"IF(ISBLANK('Competition Data'!I31),\"\",'Competition Data'!I31)","v":58.971428571428575}]
["Askerton CastleFY28Operational Utilisation",{"$f":"IF(ISBLANK('Competition Data'!A32),\"\",'Competition Data'!A32)","v":"Askerton Castle"},{"$f":"IF(ISBLANK('Competition Data'!H32),\"\",'Competition Data'!H32)","v":"ENWL-10"},{"$f":"IF(ISBLANK('Competition Data'!B32),\"\",'Competition Data'!B32)","v":"FY28"},{"$f":"IF(ISBLANK('Competition Data'!C32),\"\",'Competition Data'!C32)","v":"Operational Utilisation"},{"$f":"IF(ISBLANK('Competition Data'!G32),\"\",'Competition Data'!G32)","v":8256},{"$f":"IF(ISBLANK('Competition Data'!D32),\"\",'Competition Data'!D32)","v":100},{"$f":"IF(ISBLANK('Competition Data'!E32),\"\",'Competition Data'!E32)","v":0},{"$f":"IF(ISBLANK('Competition Data'!F32),\"\",'Competition Data'!F32)","v":1.4},"Askerton Castle (Operational Utilisation)",{"$f":"IF(ISBLANK('Competition Data'!I32),\"\",'Competition Data'!I32)","v":58.971428571428575}]
["BenthamFY26Operational Utilisation",{"$f":"IF(ISBLANK('Competition Data'!A33),\"\",'Competition Data'!A33)","v":"Bentham"},{"$f":"IF(ISBLANK('Competition Data'!H33),\"\",'Competition Data'!H33)","v":"ENWL-11"},{"$f":"IF(ISBLANK('Competition Data'!B33),\"\",'Competition Data'!B33)","v":"FY26"},{"$f":"IF(ISBLANK('Competition Data'!C33),\"\",'Competition Data'!C33)","v":"Operational Utilisation"},{"$f":"IF(ISBLANK('Competition Data'!G33),\"\",'Competition Data'!G33)","v":43050},{"$f":"IF(ISBLANK('Competition Data'!D33),\"\",'Competition Data'!D33)","v":100},{"$f":"IF(ISBLANK('Competition Data'!E33),\"\",'Competition Data'!E33)","v":0},{"$f":"IF(ISBLANK('Competition Data'!F33),\"\",'Competition Data'!F33)","v":3.5},"Bentham (Operational Utilisation)",{"$f":"IF(ISBLANK('Competition Data'!I33),\"\",'Competition Data'!I33)","v":123}]
["BenthamFY27Operational Utilisation",{"$f":"IF(ISBLANK('Competition Data'!A34),\"\",'Competition Data'!A34)","v":"Bentham"},{"$f":"IF(ISBLANK('Competition Data'!H34),\"\",'Competition Data'!H34)","v":"ENWL-11"},{"$f":"IF(ISBLANK('Competition Data'!B34),\"\",'Competition Data'!B34)","v":"FY27"},{"$f":"IF(ISBLANK('Competition Data'!C34),\"\",'Competition Data'!C34)","v":"Operational Utilisation"},{"$f":"IF(ISBLANK('Competition Data'!G34),\"\",'Competition Data'!G34)","v":43050},{"$f":"IF(ISBLANK('Competition Data'!D34),\"\",'Competition Data'!D34)","v":100},{"$f":"IF(ISBLANK('Competition Data'!E34),\"\",'Competition Data'!E34)","v":0},{"$f":"IF(ISBLANK('Competition Data'!F34),\"\",'Competition Data'!F34)","v":3.5},"Bentham (Operational Utilisation)",{"$f":"IF(ISBLANK('Competition Data'!I34),\"\",'Competition Data'!I34)","v":123}]
["BenthamFY28Operational Utilisation",{"$f":"IF(ISBLANK('Competition Data'!A35),\"\",'Competition Data'!A35)","v":"Bentham"},{"$f":"IF(ISBLANK('Competition Data'!H35),\"\",'Competition Data'!H35)","v":"ENWL-11"},{"$f":"IF(ISBLANK('Competition Data'!B35),\"\",'Competition Data'!B35)","v":"FY28"},{"$f":"IF(ISBLANK('Competition Data'!C35),\"\",'Competition Data'!C35)","v":"Operational Utilisation"},{"$f":"IF(ISBLANK('Competition Data'!G35),\"\",'Competition Data'!G35)","v":43050},{"$f":"IF(ISBLANK('Competition Data'!D35),\"\",'Competition Data'!D35)","v":100},{"$f":"IF(ISBLANK('Competition Data'!E35),\"\",'Competition Data'!E35)","v":0},{"$f":"IF(ISBLANK('Competition Data'!F35),\"\",'Competition Data'!F35)","v":3.5},"Bentham (Operational Utilisation)",{"$f":"IF(ISBLANK('Competition Data'!I35),\"\",'Competition Data'!I35)","v":123}]
["Blackpool Airport Enterprise ZoneS25Peak Reduction",{"$f":"IF(ISBLANK('Competition Data'!A36),\"\",'Competition Data'!A36)","v":"Blackpool Airport Enterprise Zone"},{"$f":"IF(ISBLANK('Competition Data'!H36),\"\",'Competition Data'!H36)","v":"ENWL-12"},{"$f":"IF(ISBLANK('Competition Data'!B36),\"\",'Competition Data'!B36)","v":"S25"},{"$f":"IF(ISBLANK('Competition Data'!C36),\"\",'Competition Data'!C36)","v":"Peak Reduction"},{"$f":"IF(ISBLANK('Competition Data'!G36),\"\",'Competition Data'!G36)","v":96000},{"$f":"IF(ISBLANK('Competition Data'!D36),\"\",'Competition Data'!D36)","v":3519},{"$f":"IF(ISBLANK('Competition Data'!E36),\"\",'Competition Data'!E36)","v":0},{"$f":"IF(ISBLANK('Competition Data'!F36),\"\",'Competition Data'!F36)","v":32},"Blackpool Airport Enterprise Zone (Peak Reduction)",{"$f":"IF(ISBLANK('Competition Data'!I36),\"\",'Competition Data'!I36)","v":0.85251491901108267}]
["Blackpool Airport Enterprise ZoneW25/26Peak Reduction",{"$f":"IF(ISBLANK('Competition Data'!A37),\"\",'Competition Data'!A37)","v":"Blackpool Airport Enterprise Zone"},{"$f":"IF(ISBLANK('Competition Data'!H37),\"\",'Competition Data'!H37)","v":"ENWL-12"},{"$f":"IF(ISBLANK('Competition Data'!B37),\"\",'Competition Data'!B37)","v":"W25/26"},{"$f":"IF(ISBLANK('Competition Data'!C37),\"\",'Competition Data'!C37)","v":"Peak Reduction"},{"$f":"IF(ISBLANK('Competition Data'!G37),\"\",'Competition Data'!G37)","v":96000},{"$f":"IF(ISBLANK('Competition Data'!D37),\"\",'Competition Data'!D37)","v":4186},{"$f":"IF(ISBLANK('Competition Data'!E37),\"\",'Competition Data'!E37)","v":0},{"$f":"IF(ISBLANK('Competition Data'!F37),\"\",'Competition Data'!F37)","v":32},"Blackpool Airport Enterprise Zone (Peak Reduction)",{"$f":"IF(ISBLANK('Competition Data'!I37),\"\",'Competition Data'!I37)","v":0.71667462971810802}]
["Blackpool Airport Enterprise ZoneS26Peak Reduction",{"$f":"IF(ISBLANK('Competition Data'!A38),\"\",'Competition Data'!A38)","v":"Blackpool Airport Enterprise Zone"},{"$f":"IF(ISBLANK('Competition Data'!H38),\"\",'Competition Data'!H38)","v":"ENWL-12"},{"$f":"IF(ISBLANK('Competition Data'!B38),\"\",'Competition Data'!B38)","v":"S26"},{"$f":"IF(ISBLANK('Competition Data'!C38),\"\",'Competition Data'!C38)","v":"Peak Reduction"},{"$f":"IF(ISBLANK('Competition Data'!G38),\"\",'Competition Data'!G38)","v":96000},{"$f":"IF(ISBLANK('Competition Data'!D38),\"\",'Competition Data'!D38)","v":4209},{"$f":"IF(ISBLANK('Competition Data'!E38),\"\",'Competition Data'!E38)","v":0},{"$f":"IF(ISBLANK('Competition Data'!F38),\"\",'Competition Data'!F38)","v":32},"Blackpool Airport Enterprise Zone (Peak Reduction)",{"$f":"IF(ISBLANK('Competition Data'!I38),\"\",'Competition Data'!I38)","v":0.71275837491090521}]
["Blackpool Airport Enterprise ZoneW26/27Peak Reduction",{"$f":"IF(ISBLANK('Competition Data'!A39),\"\",'Competition Data'!A39)","v":"Blackpool Airport Enterprise Zone"},{"$f":"IF(ISBLANK('Competition Data'!H39),\"\",'Competition Data'!H39)","v":"ENWL-12"},{"$f":"IF(ISBLANK('Competition Data'!B39),\"\",'Competition Data'!B39)","v":"W26/27"},{"$f":"IF(ISBLANK('Competition Data'!C39),\"\",'Competition Data'!C39)","v":"Peak Reduction"},{"$f":"IF(ISBLANK('Competition Data'!G39),\"\",'Competition Data'!G39)","v":96000},{"$f":"IF(ISBLANK('Competition Data'!D39),\"\",'Competition Data'!D39)","v":4186},{"$f":"IF(ISBLANK('Competition Data'!E39),\"\",'Competition Data'!E39)","v":0},{"$f":"IF(ISBLANK('Competition Data'!F39),\"\",'Competition Data'!F39)","v":32},"Blackpool Airport Enterprise Zone (Peak Reduction)",{"$f":"IF(ISBLANK('Competition Data'!I39),\"\",'Competition Data'!I39)","v":0.71667462971810802}]
["Blackpool Airport Enterprise ZoneS27Peak Reduction",{"$f":"IF(ISBLANK('Competition Data'!A40),\"\",'Competition Data'!A40)","v":"Blackpool Airport Enterprise Zone"},{"$f":"IF(ISBLANK('Competition Data'!H40),\"\",'Competition Data'!H40)","v":"ENWL-12"},{"$f":"IF(ISBLANK('Competition Data'!B40),\"\",'Competition Data'!B40)","v":"S27"},{"$f":"IF(ISBLANK('Competition Data'!C40),\"\",'Competition Data'!C40)","v":"Peak Reduction"},{"$f":"IF(ISBLANK('Competition Data'!G40),\"\",'Competition Data'!G40)","v":96000},{"$f":"IF(ISBLANK('Competition Data'!D40),\"\",'Competition Data'!D40)","v":4209},{"$f":"IF(ISBLANK('Competition Data'!E40),\"\",'Competition Data'!E40)","v":0},{"$f":"IF(ISBLANK('Competition Data'!F40),\"\",'Competition Data'!F40)","v":32},"Blackpool Airport Enterprise Zone (Peak Reduction)",{"$f":"IF(ISBLANK('Competition Data'!I40),\"\",'Competition Data'!I40)","v":0.71275837491090521}]
["Blackpool Airport Enterprise ZoneW27/28Peak Reduction",{"$f":"IF(ISBLANK('Competition Data'!A41),\"\",'Competition Data'!A41)","v":"Blackpool Airport Enterprise Zone"},{"$f":"IF(ISBLANK('Competition Data'!H41),\"\",'Competition Data'!H41)","v":"ENWL-12"},{"$f":"IF(ISBLANK('Competition Data'!B41),\"\",'Competition Data'!B41)","v":"W27/28"},{"$f":"IF(ISBLANK('Competition Data'!C41),\"\",'Competition Data'!C41)","v":"Peak Reduction"},{"$f":"IF(ISBLANK('Competition Data'!G41),\"\",'Competition Data'!G41)","v":96000},{"$f":"IF(ISBLANK('Competition Data'!D41),\"\",'Competition Data'!D41)","v":4209},{"$f":"IF(ISBLANK('Competition Data'!E41),\"\",'Competition Data'!E41)","v":0},{"$f":"IF(ISBLANK('Competition Data'!F41),\"\",'Competition Data'!F41)","v":32},"Blackpool Airport Enterprise Zone (Peak Reduction)",{"$f":"IF(ISBLANK('Competition Data'!I41),\"\",'Competition Data'!I41)","v":0.71275837491090521}]
["Blackpool Airport Enterprise ZoneS25Scheduled Utilisation",{"$f":"IF(ISBLANK('Competition Data'!A42),\"\",'Competition Data'!A42)","v":"Blackpool Airport Enterprise Zone"},{"$f":"IF(ISBLANK('Competition Data'!H42),\"\",'Competition Data'!H42)","v":"ENWL-13"},{"$f":"IF(ISBLANK('Competition Data'!B42),\"\",'Competition Data'!B42)","v":"S25"},{"$f":"IF(ISBLANK('Competition Data'!C42),\"\",'Competition Data'!C42)","v":"Scheduled Utilisation"},{"$f":"IF(ISBLANK('Competition Data'!G42),\"\",'Competition Data'!G42)","v":96000},{"$f":"IF(ISBLANK('Competition Data'!D42),\"\",'Competition Data'!D42)","v":3519},{"$f":"IF(ISBLANK('Competition Data'!E42),\"\",'Competition Data'!E42)","v":0},{"$f":"IF(ISBLANK('Competition Data'!F42),\"\",'Competition Data'!F42)","v":32},"Blackpool Airport Enterprise Zone (Scheduled Utilisation)",{"$f":"IF(ISBLANK('Competition Data'!I42),\"\",'Competition Data'!I42)","v":0.85251491901108267}]
["Blackpool Airport Enterprise ZoneW25/26Scheduled Utilisation",{"$f":"IF(ISBLANK('Competition Data'!A43),\"\",'Competition Data'!A43)","v":"Blackpool Airport Enterprise Zone"},{"$f":"IF(ISBLANK('Competition Data'!H43),\"\",'Competition Data'!H43)","v":"ENWL-13"},{"$f":"IF(ISBLANK('Competition Data'!B43),\"\",'Competition Data'!B43)","v":"W25/26"},{"$f":"IF(ISBLANK('Competition Data'!C43),\"\",'Competition Data'!C43)","v":"Scheduled Utilisation"},{"$f":"IF(ISBLANK('Competition Data'!G43),\"\",'Competition Data'!G43)","v":96000},{"$f":"IF(ISBLANK('Competition Data'!D43),\"\",'Competition Data'!D43)","v":4186},{"$f":"IF(ISBLANK('Competition Data'!E43),\"\",'Competition Data'!E43)","v":0},{"$f":"IF(ISBLANK('Competition Data'!F43),\"\",'Competition Data'!F43)","v":32},"Blackpool Airport Enterprise Zone (Scheduled Utilisation)",{"$f":"IF(ISBLANK('Competition Data'!I43),\"\",'Competition Data'!I43)","v":0.71667462971810802}]
["Blackpool Airport Enterprise ZoneS26Scheduled Utilisation",{"$f":"IF(ISBLANK('Competition Data'!A44),\"\",'Competition Data'!A44)","v":"Blackpool Airport Enterprise Zone"},{"$f":"IF(ISBLANK('Competition Data'!H44),\"\",'Competition Data'!H44)","v":"ENWL-13"},{"$f":"IF(ISBLANK('Competition Data'!B44),\"\",'Competition Data'!B44)","v":"S26"},{"$f":"IF(ISBLANK('Competition Data'!C44),\"\",'Competition Data'!C44)","v":"Scheduled Utilisation"},{"$f":"IF(ISBLANK('Competition Data'!G44),\"\",'Competition Data'!G44)","v":96000},{"$f":"IF(ISBLANK('Competition Data'!D44),\"\",'Competition Data'!D44)","v":4209},{"$f":"IF(ISBLANK('Competition Data'!E44),\"\",'Competition Data'!E44)","v":0},{"$f":"IF(ISBLANK('Competition Data'!F44),\"\",'Competition Data'!F44)","v":32},"Blackpool Airport Enterprise Zone (Scheduled Utilisation)",{"$f":"IF(ISBLANK('Competition Data'!I44),\"\",'Competition Data'!I44)","v":0.71275837491090521}]
["Blackpool Airport Enterprise ZoneW26/27Scheduled Utilisation",{"$f":"IF(ISBLANK('Competition Data'!A45),\"\",'Competition Data'!A45)","v":"Blackpool Airport Enterprise Zone"},{"$f":"IF(ISBLANK('Competition Data'!H45),\"\",'Competition Data'!H45)","v":"ENWL-13"},{"$f":"IF(ISBLANK('Competition Data'!B45),\"\",'Competition Data'!B45)","v":"W26/27"},{"$f":"IF(ISBLANK('Competition Data'!C45),\"\",'Competition Data'!C45)","v":"Scheduled Utilisation"},{"$f":"IF(ISBLANK('Competition Data'!G45),\"\",'Competition Data'!G45)","v":96000},{"$f":"IF(ISBLANK('Competition Data'!D45),\"\",'Competition Data'!D45)","v":4186},{"$f":"IF(ISBLANK('Competition Data'!E45),\"\",'Competition Data'!E45)","v":0},{"$f":"IF(ISBLANK('Competition Data'!F45),\"\",'Competition Data'!F45)","v":32},"Blackpool Airport Enterprise Zone (Scheduled Utilisation)",{"$f":"IF(ISBLANK('Competition Data'!I45),\"\",'Competition Data'!I45)","v":0.71667462971810802}]
["Blackpool Airport Enterprise ZoneS27Scheduled Utilisation",{"$f":"IF(ISBLANK('Competition Data'!A46),\"\",'Competition Data'!A46)","v":"Blackpool Airport Enterprise Zone"},{"$f":"IF(ISBLANK('Competition Data'!H46),\"\",'Competition Data'!H46)","v":"ENWL-13"},{"$f":"IF(ISBLANK('Competition Data'!B46),\"\",'Competition Data'!B46)","v":"S27"},{"$f":"IF(ISBLANK('Competition Data'!C46),\"\",'Competition Data'!C46)","v":"Scheduled Utilisation"},{"$f":"IF(ISBLANK('Competition Data'!G46),\"\",'Competition Data'!G46)","v":96000},{"$f":"IF(ISBLANK('Competition Data'!D46),\"\",'Competition Data'!D46)","v":4209},{"$f":"IF(ISBLANK('Competition Data'!E46),\"\",'Competition Data'!E46)","v":0},{"$f":"IF(ISBLANK('Competition Data'!F46),\"\",'Competition Data'!F46)","v":32},"Blackpool Airport Enterprise Zone (Scheduled Utilisation)",{"$f":"IF(ISBLANK('Competition Data'!I46),\"\",'Competition Data'!I46)","v":0.71275837491090521}]
["Blackpool Airport Enterprise ZoneW27/28Scheduled Utilisation",{"$f":"IF(ISBLANK('Competition Data'!A47),\"\",'Competition Data'!A47)","v":"Blackpool Airport Enterprise Zone"},{"$f":"IF(ISBLANK('Competition Data'!H47),\"\",'Competition Data'!H47)","v":"ENWL-13"},{"$f":"IF(ISBLANK('Competition Data'!B47),\"\",'Competition Data'!B47)","v":"W27/28"},{"$f":"IF(ISBLANK('Competition Data'!C47),\"\",'Competition Data'!C47)","v":"Scheduled Utilisation"},{"$f":"IF(ISBLANK('Competition Data'!G47),\"\",'Competition Data'!G47)","v":96000},{"$f":"IF(ISBLANK('Competition Data'!D47),\"\",'Competition Data'!D47)","v":4209},{"$f":"IF(ISBLANK('Competition Data'!E47),\"\",'Competition Data'!E47)","v":0},{"$f":"IF(ISBLANK('Competition Data'!F47),\"\",'Competition Data'!F47)","v":32},"Blackpool Airport Enterprise Zone (Scheduled Utilisation)",{"$f":"IF(ISBLANK('Competition Data'!I47),\"\",'Competition Data'!I47)","v":0.71275837491090521}]
["Bolton By BowlandFY26Operational Utilisation",{"$f":"IF(ISBLANK('Competition Data'!A48),\"\",'Competition Data'!A48)","v":"Bolton By Bowland"},{"$f":"IF(ISBLANK('Competition Data'!H48),\"\",'Competition Data'!H48)","v":"ENWL-14"},{"$f":"IF(ISBLANK('Competition Data'!B48),\"\",'Competition Data'!B48)","v":"FY26"},{"$f":"IF(ISBLANK('Competition Data'!C48),\"\",'Competition Data'!C48)","v":"Operational Utilisation"},{"$f":"IF(ISBLANK('Competition Data'!G48),\"\",'Competition Data'!G48)","v":19097},{"$f":"IF(ISBLANK('Competition Data'!D48),\"\",'Competition Data'!D48)","v":100},{"$f":"IF(ISBLANK('Competition Data'!E48),\"\",'Competition Data'!E48)","v":0},{"$f":"IF(ISBLANK('Competition Data'!F48),\"\",'Competition Data'!F48)","v":2.2999999999999998},"Bolton By Bowland (Operational Utilisation)",{"$f":"IF(ISBLANK('Competition Data'!I48),\"\",'Competition Data'!I48)","v":83.030434782608708}]
["Bolton By BowlandFY27Operational Utilisation",{"$f":"IF(ISBLANK('Competition Data'!A49),\"\",'Competition Data'!A49)","v":"Bolton By Bowland"},{"$f":"IF(ISBLANK('Competition Data'!H49),\"\",'Competition Data'!H49)","v":"ENWL-14"},{"$f":"IF(ISBLANK('Competition Data'!B49),\"\",'Competition Data'!B49)","v":"FY27"},{"$f":"IF(ISBLANK('Competition Data'!C49),\"\",'Competition Data'!C49)","v":"Operational Utilisation"},{"$f":"IF(ISBLANK('Competition Data'!G49),\"\",'Competition Data'!G49)","v":19097},{"$f":"IF(ISBLANK('Competition Data'!D49),\"\",'Competition Data'!D49)","v":100},{"$f":"IF(ISBLANK('Competition Data'!E49),\"\",'Competition Data'!E49)","v":0},{"$f":"IF(ISBLANK('Competition Data'!F49),\"\",'Competition Data'!F49)","v":2.2999999999999998},"Bolton By Bowland (Operational Utilisation)",{"$f":"IF(ISBLANK('Competition Data'!I49),\"\",'Competition Data'!I49)","v":83.030434782608708}]
["Bolton By BowlandFY28Operational Utilisation",{"$f":"IF(ISBLANK('Competition Data'!A50),\"\",'Competition Data'!A50)","v":"Bolton By Bowland"},{"$f":"IF(ISBLANK('Competition Data'!H50),\"\",'Competition Data'!H50)","v":"ENWL-14"},{"$f":"IF(ISBLANK('Competition Data'!B50),\"\",'Competition Data'!B50)","v":"FY28"},{"$f":"IF(ISBLANK('Competition Data'!C50),\"\",'Competition Data'!C50)","v":"Operational Utilisation"},{"$f":"IF(ISBLANK('Competition Data'!G50),\"\",'Competition Data'!G50)","v":19097},{"$f":"IF(ISBLANK('Competition Data'!D50),\"\",'Competition Data'!D50)","v":100},{"$f":"IF(ISBLANK('Competition Data'!E50),\"\",'Competition Data'!E50)","v":0},{"$f":"IF(ISBLANK('Competition Data'!F50),\"\",'Competition Data'!F50)","v":2.2999999999999998},"Bolton By Bowland (Operational Utilisation)",{"$f":"IF(ISBLANK('Competition Data'!I50),\"\",'Competition Data'!I50)","v":83.030434782608708}]
["Burrow BeckS25Operational Utilisation Variable Availability",{"$f":"IF(ISBLANK('Competition Data'!A51),\"\",'Competition Data'!A51)","v":"Burrow Beck"},{"$f":"IF(ISBLANK('Competition Data'!H51),\"\",'Competition Data'!H51)","v":"ENWL-15"},{"$f":"IF(ISBLANK('Competition Data'!B51),\"\",'Competition Data'!B51)","v":"S25"},{"$f":"IF(ISBLANK('Competition Data'!C51),\"\",'Competition Data'!C51)","v":"Operational Utilisation Variable Availability"},{"$f":"IF(ISBLANK('Competition Data'!G51),\"\",'Competition Data'!G51)","v":69443},{"$f":"IF(ISBLANK('Competition Data'!D51),\"\",'Competition Data'!D51)","v":48},{"$f":"IF(ISBLANK('Competition Data'!E51),\"\",'Competition Data'!E51)","v":33},{"$f":"IF(ISBLANK('Competition Data'!F51),\"\",'Competition Data'!F51)","v":1.58},"Burrow Beck (Operational Utilisation Variable Availability)",{"$f":"IF(ISBLANK('Competition Data'!I51),\"\",'Competition Data'!I51)","v":"N/A"}]
["Burrow BeckW25/26Operational Utilisation Variable Availability",{"$f":"IF(ISBLANK('Competition Data'!A52),\"\",'Competition Data'!A52)","v":"Burrow Beck"},{"$f":"IF(ISBLANK('Competition Data'!H52),\"\",'Competition Data'!H52)","v":"ENWL-15"},{"$f":"IF(ISBLANK('Competition Data'!B52),\"\",'Competition Data'!B52)","v":"W25/26"},{"$f":"IF(ISBLANK('Competition Data'!C52),\"\",'Competition Data'!C52)","v":"Operational Utilisation Variable Availability"},{"$f":"IF(ISBLANK('Competition Data'!G52),\"\",'Competition Data'!G52)","v":435557},{"$f":"IF(ISBLANK('Competition Data'!D52),\"\",'Competition Data'!D52)","v":100},{"$f":"IF(ISBLANK('Competition Data'!E52),\"\",'Competition Data'!E52)","v":1539},{"$f":"IF(ISBLANK('Competition Data'!F52),\"\",'Competition Data'!F52)","v":9.91},"Burrow Beck (Operational Utilisation Variable Availability)",{"$f":"IF(ISBLANK('Competition Data'!I52),\"\",'Competition Data'!I52)","v":"N/A"}]
["Burrow BeckS26Operational Utilisation Variable Availability",{"$f":"IF(ISBLANK('Competition Data'!A53),\"\",'Competition Data'!A53)","v":"Burrow Beck"},{"$f":"IF(ISBLANK('Competition Data'!H53),\"\",'Competition Data'!H53)","v":"ENWL-15"},{"$f":"IF(ISBLANK('Competition Data'!B53),\"\",'Competition Data'!B53)","v":"S26"},{"$f":"IF(ISBLANK('Competition Data'!C53),\"\",'Competition Data'!C53)","v":"Operational Utilisation Variable Availability"},{"$f":"IF(ISBLANK('Competition Data'!G53),\"\",'Competition Data'!G53)","v":95502},{"$f":"IF(ISBLANK('Competition Data'!D53),\"\",'Competition Data'!D53)","v":48},{"$f":"IF(ISBLANK('Competition Data'!E53),\"\",'Competition Data'!E53)","v":151},{"$f":"IF(ISBLANK('Competition Data'!F53),\"\",'Competition Data'!F53)","v":2.64},"Burrow Beck (Operational Utilisation Variable Availability)",{"$f":"IF(ISBLANK('Competition Data'!I53),\"\",'Competition Data'!I53)","v":"N/A"}]
["Burrow BeckW26/27Operational Utilisation Variable Availability",{"$f":"IF(ISBLANK('Competition Data'!A54),\"\",'Competition Data'!A54)","v":"Burrow Beck"},{"$f":"IF(ISBLANK('Competition Data'!H54),\"\",'Competition Data'!H54)","v":"ENWL-15"},{"$f":"IF(ISBLANK('Competition Data'!B54),\"\",'Competition Data'!B54)","v":"W26/27"},{"$f":"IF(ISBLANK('Competition Data'!C54),\"\",'Competition Data'!C54)","v":"Operational Utilisation Variable Availability"},{"$f":"IF(ISBLANK('Competition Data'!G54),\"\",'Competition Data'!G54)","v":409498},{"$f":"IF(ISBLANK('Competition Data'!D54),\"\",'Competition Data'!D54)","v":100},{"$f":"IF(ISBLANK('Competition Data'!E54),\"\",'Competition Data'!E54)","v":1921},{"$f":"IF(ISBLANK('Competition Data'!F54),\"\",'Competition Data'!F54)","v":11.32},"Burrow Beck (Operational Utilisation Variable Availability)",{"$f":"IF(ISBLANK('Competition Data'!I54),\"\",'Competition Data'!I54)","v":"N/A"}]
["Burrow BeckS27Operational Utilisation Variable Availability",{"$f":"IF(ISBLANK('Competition Data'!A55),\"\",'Competition Data'!A55)","v":"Burrow Beck"},{"$f":"IF(ISBLANK('Competition Data'!H55),\"\",'Competition Data'!H55)","v":"ENWL-15"},{"$f":"IF(ISBLANK('Competition Data'!B55),\"\",'Competition Data'!B55)","v":"S27"},{"$f":"IF(ISBLANK('Competition Data'!C55),\"\",'Competition Data'!C55)","v":"Operational Utilisation Variable Availability"},{"$f":"IF(ISBLANK('Competition Data'!G55),\"\",'Competition Data'!G55)","v":114190},{"$f":"IF(ISBLANK('Competition Data'!D55),\"\",'Competition Data'!D55)","v":48},{"$f":"IF(ISBLANK('Competition Data'!E55),\"\",'Competition Data'!E55)","v":416},{"$f":"IF(ISBLANK('Competition Data'!F55),\"\",'Competition Data'!F55)","v":3.74},"Burrow Beck (Operational Utilisation Variable Availability)",{"$f":"IF(ISBLANK('Competition Data'!I55),\"\",'Competition Data'!I55)","v":"N/A"}]
["Burrow BeckW27/28Operational Utilisation Variable Availability",{"$f":"IF(ISBLANK('Competition Data'!A56),\"\",'Competition Data'!A56)","v":"Burrow Beck"},{"$f":"IF(ISBLANK('Competition Data'!H56),\"\",'Competition Data'!H56)","v":"ENWL-15"},{"$f":"IF(ISBLANK('Competition Data'!B56),\"\",'Competition Data'!B56)","v":"W27/28"},{"$f":"IF(ISBLANK('Competition Data'!C56),\"\",'Competition Data'!C56)","v":"Operational Utilisation Variable Availability"},{"$f":"IF(ISBLANK('Competition Data'!G56),\"\",'Competition Data'!G56)","v":390810},{"$f":"IF(ISBLANK('Competition Data'!D56),\"\",'Competition Data'!D56)","v":200},{"$f":"IF(ISBLANK('Competition Data'!E56),\"\",'Competition Data'!E56)","v":2250},{"$f":"IF(ISBLANK('Competition Data'!F56),\"\",'Competition Data'!F56)","v":12.8},"Burrow Beck (Operational Utilisation Variable Availability)",{"$f":"IF(ISBLANK('Competition Data'!I56),\"\",'Competition Data'!I56)","v":"N/A"}]
["Burrow BeckW25/26Operational Utilisation",{"$f":"IF(ISBLANK('Competition Data'!A57),\"\",'Competition Data'!A57)","v":"Burrow Beck"},{"$f":"IF(ISBLANK('Competition Data'!H57),\"\",'Competition Data'!H57)","v":"ENWL-16"},{"$f":"IF(ISBLANK('Competition Data'!B57),\"\",'Competition Data'!B57)","v":"W25/26"},{"$f":"IF(ISBLANK('Competition Data'!C57),\"\",'Competition Data'!C57)","v":"Operational Utilisation"},{"$f":"IF(ISBLANK('Competition Data'!G57),\"\",'Competition Data'!G57)","v":129410},{"$f":"IF(ISBLANK('Competition Data'!D57),\"\",'Competition Data'!D57)","v":100},{"$f":"IF(ISBLANK('Competition Data'!E57),\"\",'Competition Data'!E57)","v":0},{"$f":"IF(ISBLANK('Competition Data'!F57),\"\",'Competition Data'!F57)","v":9.91},"Burrow Beck (Operational Utilisation)",{"$f":"IF(ISBLANK('Competition Data'!I57),\"\",'Competition Data'!I57)","v":130.58526740665994}]
["Burrow BeckW26/27Operational Utilisation",{"$f":"IF(ISBLANK('Competition Data'!A58),\"\",'Competition Data'!A58)","v":"Burrow Beck"},{"$f":"IF(ISBLANK('Competition Data'!H58),\"\",'Competition Data'!H58)","v":"ENWL-16"},{"$f":"IF(ISBLANK('Competition Data'!B58),\"\",'Competition Data'!B58)","v":"W26/27"},{"$f":"IF(ISBLANK('Competition Data'!C58),\"\",'Competition Data'!C58)","v":"Operational Utilisation"},{"$f":"IF(ISBLANK('Competition Data'!G58),\"\",'Competition Data'!G58)","v":129410},{"$f":"IF(ISBLANK('Competition Data'!D58),\"\",'Competition Data'!D58)","v":100},{"$f":"IF(ISBLANK('Competition Data'!E58),\"\",'Competition Data'!E58)","v":0},{"$f":"IF(ISBLANK('Competition Data'!F58),\"\",'Competition Data'!F58)","v":11.32},"Burrow Beck (Operational Utilisation)",{"$f":"IF(ISBLANK('Competition Data'!I58),\"\",'Competition Data'!I58)","v":114.31978798586572}]
["Burrow BeckW27/28Operational Utilisation",{"$f":"IF(ISBLANK('Competition Data'!A59),\"\",'Competition Data'!A59)","v":"Burrow Beck"},{"$f":"IF(ISBLANK('Competition Data'!H59),\"\",'Competition Data'!H59)","v":"ENWL-16"},{"$f":"IF(ISBLANK('Competition Data'!B59),\"\",'Competition Data'!B59)","v":"W27/28"},{"$f":"IF(ISBLANK('Competition Data'!C59),\"\",'Competition Data'!C59)","v":"Operational Utilisation"},{"$f":"IF(ISBLANK('Competition Data'!G59),\"\",'Competition Data'!G59)","v":129410},{"$f":"IF(ISBLANK('Competition Data'!D59),\"\",'Competition Data'!D59)","v":100},{"$f":"IF(ISBLANK('Competition Data'!E59),\"\",'Competition Data'!E59)","v":0},{"$f":"IF(ISBLANK('Competition Data'!F59),\"\",'Competition Data'!F59)","v":12.8},"Burrow Beck (Operational Utilisation)",{"$f":"IF(ISBLANK('Competition Data'!I59),\"\",'Competition Data'!I59)","v":101.10156249999999}]
["Burrow BeckS25Peak Reduction",{"$f":"IF(ISBLANK('Competition Data'!A60),\"\",'Competition Data'!A60)","v":"Burrow Beck"},{"$f":"IF(ISBLANK('Competition Data'!H60),\"\",'Competition Data'!H60)","v":"ENWL-17"},{"$f":"IF(ISBLANK('Competition Data'!B60),\"\",'Competition Data'!B60)","v":"S25"},{"$f":"IF(ISBLANK('Competition Data'!C60),\"\",'Competition Data'!C60)","v":"Peak Reduction"},{"$f":"IF(ISBLANK('Competition Data'!G60),\"\",'Competition Data'!G60)","v":69443},{"$f":"IF(ISBLANK('Competition Data'!D60),\"\",'Competition Data'!D60)","v":1530},{"$f":"IF(ISBLANK('Competition Data'!E60),\"\",'Competition Data'!E60)","v":0},{"$f":"IF(ISBLANK('Competition Data'!F60),\"\",'Competition Data'!F60)","v":1.58},"Burrow Beck (Peak Reduction)",{"$f":"IF(ISBLANK('Competition Data'!I60),\"\",'Competition Data'!I60)","v":28.726317531231899}]
["Burrow BeckW25/26Peak Reduction",{"$f":"IF(ISBLANK('Competition Data'!A61),\"\",'Competition Data'!A61)","v":"Burrow Beck"},{"$f":"IF(ISBLANK('Competition Data'!H61),\"\",'Competition Data'!H61)","v":"ENWL-17"},{"$f":"IF(ISBLANK('Competition Data'!B61),\"\",'Competition Data'!B61)","v":"W25/26"},{"$f":"IF(ISBLANK('Competition Data'!C61),\"\",'Competition Data'!C61)","v":"Peak Reduction"},{"$f":"IF(ISBLANK('Competition Data'!G61),\"\",'Competition Data'!G61)","v":435557},{"$f":"IF(ISBLANK('Competition Data'!D61),\"\",'Competition Data'!D61)","v":2912},{"$f":"IF(ISBLANK('Competition Data'!E61),\"\",'Competition Data'!E61)","v":0},{"$f":"IF(ISBLANK('Competition Data'!F61),\"\",'Competition Data'!F61)","v":9.91},"Burrow Beck (Peak Reduction)",{"$f":"IF(ISBLANK('Competition Data'!I61),\"\",'Competition Data'!I61)","v":15.093152936871402}]
["Burrow BeckS26Peak Reduction",{"$f":"IF(ISBLANK('Competition Data'!A62),\"\",'Competition Data'!A62)","v":"Burrow Beck"},{"$f":"IF(ISBLANK('Competition Data'!H62),\"\",'Competition Data'!H62)","v":"ENWL-17"},{"$f":"IF(ISBLANK('Competition Data'!B62),\"\",'Competition Data'!B62)","v":"S26"},{"$f":"IF(ISBLANK('Competition Data'!C62),\"\",'Competition Data'!C62)","v":"Peak Reduction"},{"$f":"IF(ISBLANK('Competition Data'!G62),\"\",'Competition Data'!G62)","v":95502},{"$f":"IF(ISBLANK('Competition Data'!D62),\"\",'Competition Data'!D62)","v":2379},{"$f":"IF(ISBLANK('Competition Data'!E62),\"\",'Competition Data'!E62)","v":0},{"$f":"IF(ISBLANK('Competition Data'!F62),\"\",'Competition Data'!F62)","v":2.64},"Burrow Beck (Peak Reduction)",{"$f":"IF(ISBLANK('Competition Data'!I62),\"\",'Competition Data'!I62)","v":15.205968894493482}]
["Burrow BeckW26/27Peak Reduction",{"$f":"IF(ISBLANK('Competition Data'!A63),\"\",'Competition Data'!A63)","v":"Burrow Beck"},{"$f":"IF(ISBLANK('Competition Data'!H63),\"\",'Competition Data'!H63)","v":"ENWL-17"},{"$f":"IF(ISBLANK('Competition Data'!B63),\"\",'Competition Data'!B63)","v":"W26/27"},{"$f":"IF(ISBLANK('Competition Data'!C63),\"\",'Competition Data'!C63)","v":"Peak Reduction"},{"$f":"IF(ISBLANK('Competition Data'!G63),\"\",'Competition Data'!G63)","v":409498},{"$f":"IF(ISBLANK('Competition Data'!D63),\"\",'Competition Data'!D63)","v":3094},{"$f":"IF(ISBLANK('Competition Data'!E63),\"\",'Competition Data'!E63)","v":0},{"$f":"IF(ISBLANK('Competition Data'!F63),\"\",'Competition Data'!F63)","v":11.32},"Burrow Beck (Peak Reduction)",{"$f":"IF(ISBLANK('Competition Data'!I63),\"\",'Competition Data'!I63)","v":11.691898830747304}]
["Burrow BeckS27Peak Reduction",{"$f":"IF(ISBLANK('Competition Data'!A64),\"\",'Competition Data'!A64)","v":"Burrow Beck"},{"$f":"IF(ISBLANK('Competition Data'!H64),\"\",'Competition Data'!H64)","v":"ENWL-17"},{"$f":"IF(ISBLANK('Competition Data'!B64),\"\",'Competition Data'!B64)","v":"S27"},{"$f":"IF(ISBLANK('Competition Data'!C64),\"\",'Competition Data'!C64)","v":"Peak Reduction"},{"$f":"IF(ISBLANK('Competition Data'!G64),\"\",'Competition Data'!G64)","v":114190},{"$f":"IF(ISBLANK('Competition Data'!D64),\"\",'Competition Data'!D64)","v":2562},{"$f":"IF(ISBLANK('Competition Data'!E64),\"\",'Competition Data'!E64)","v":0},{"$f":"IF(ISBLANK('Competition Data'!F64),\"\",'Competition Data'!F64)","v":3.74},"Burrow Beck (Peak Reduction)",{"$f":"IF(ISBLANK('Competition Data'!I64),\"\",'Competition Data'!I64)","v":11.917285543129323}]
["Burrow BeckW27/28Peak Reduction",{"$f":"IF(ISBLANK('Competition Data'!A65),\"\",'Competition Data'!A65)","v":"Burrow Beck"},{"$f":"IF(ISBLANK('Competition Data'!H65),\"\",'Competition Data'!H65)","v":"ENWL-17"},{"$f":"IF(ISBLANK('Competition Data'!B65),\"\",'Competition Data'!B65)","v":"W27/28"},{"$f":"IF(ISBLANK('Competition Data'!C65),\"\",'Competition Data'!C65)","v":"Peak Reduction"},{"$f":"IF(ISBLANK('Competition Data'!G65),\"\",'Competition Data'!G65)","v":390810},{"$f":"IF(ISBLANK('Competition Data'!D65),\"\",'Competition Data'!D65)","v":3111},{"$f":"IF(ISBLANK('Competition Data'!E65),\"\",'Competition Data'!E65)","v":0},{"$f":"IF(ISBLANK('Competition Data'!F65),\"\",'Competition Data'!F65)","v":12.8},"Burrow Beck (Peak Reduction)",{"$f":"IF(ISBLANK('Competition Data'!I65),\"\",'Competition Data'!I65)","v":9.8142176952748308}]
["Capontree, Westlinton & PirelliW25/26Operational Utilisation Variable Availability",{"$f":"IF(ISBLANK('Competition Data'!A66),\"\",'Competition Data'!A66)","v":"Capontree, Westlinton & Pirelli"},{"$f":"IF(ISBLANK('Competition Data'!H66),\"\",'Competition Data'!H66)","v":"ENWL-18"},{"$f":"IF(ISBLANK('Competition Data'!B66),\"\",'Competition Data'!B66)","v":"W25/26"},{"$f":"IF(ISBLANK('Competition Data'!C66),\"\",'Competition Data'!C66)","v":"Operational Utilisation Variable Availability"},{"$f":"IF(ISBLANK('Competition Data'!G66),\"\",'Competition Data'!G66)","v":156000},{"$f":"IF(ISBLANK('Competition Data'!D66),\"\",'Competition Data'!D66)","v":48},{"$f":"IF(ISBLANK('Competition Data'!E66),\"\",'Competition Data'!E66)","v":68},{"$f":"IF(ISBLANK('Competition Data'!F66),\"\",'Competition Data'!F66)","v":3.39},"Capontree, Westlinton & Pirelli (Operational Utilisation Variable Availability)",{"$f":"IF(ISBLANK('Competition Data'!I66),\"\",'Competition Data'!I66)","v":"N/A"}]
[{"$f":"CONCATENATE(B67,D67,E67)","v":"Capontree, Westlinton & PirelliW26/27Operational Utilisation Variable Availability"},{"$f":"IF(ISBLANK('Competition Data'!A67),\"\",'Competition Data'!A67)","v":"Capontree, Westlinton & Pirelli"},{"$f":"IF(ISBLANK('Competition Data'!H67),\"\",'Competition Data'!H67)","v":"ENWL-18"},{"$f":"IF(ISBLANK('Competition Data'!B67),\"\",'Competition Data'!B67)","v":"W26/27"},{"$f":"IF(ISBLANK('Competition Data'!C67),\"\",'Competition Data'!C67)","v":"Operational Utilisation Variable Availability"},{"$f":"IF(ISBLANK('Competition Data'!G67),\"\",'Competition Data'!G67)","v":156000},{"$f":"IF(ISBLANK('Competition Data'!D67),\"\",'Competition Data'!D67)","v":48},{"$f":"IF(ISBLANK('Competition Data'!E67),\"\",'Competition Data'!E67)","v":142},{"$f":"IF(ISBLANK('Competition Data'!F67),\"\",'Competition Data'!F67)","v":4.34},{"$f":"CONCATENATE(B67,\" (\",E67,\")\")","v":"Capontree, Westlinton & Pirelli (Operational Utilisation Variable Availability)"},{"$f":"IF(ISBLANK('Competition Data'!I67),\"\",'Competition Data'!I67)","v":"N/A"}]
["Capontree, Westlinton & PirelliW27/28Operational Utilisation Variable Availability",{"$f":"IF(ISBLANK('Competition Data'!A68),\"\",'Competition Data'!A68)","v":"Capontree, Westlinton & Pirelli"},{"$f":"IF(ISBLANK('Competition Data'!H68),\"\",'Competition Data'!H68)","v":"ENWL-18"},{"$f":"IF(ISBLANK('Competition Data'!B68),\"\",'Competition Data'!B68)","v":"W27/28"},{"$f":"IF(ISBLANK('Competition Data'!C68),\"\",'Competition Data'!C68)","v":"Operational Utilisation Variable Availability"},{"$f":"IF(ISBLANK('Competition Data'!G68),\"\",'Competition Data'!G68)","v":156000},{"$f":"IF(ISBLANK('Competition Data'!D68),\"\",'Competition Data'!D68)","v":48},{"$f":"IF(ISBLANK('Competition Data'!E68),\"\",'Competition Data'!E68)","v":341},{"$f":"IF(ISBLANK('Competition Data'!F68),\"\",'Competition Data'!F68)","v":5.52},"Capontree, Westlinton & Pirelli (Operational Utilisation Variable Availability)",{"$f":"IF(ISBLANK('Competition Data'!I68),\"\",'Competition Data'!I68)","v":"N/A"}]
["Capontree, Westlinton & PirelliW25/26Peak Reduction",{"$f":"IF(ISBLANK('Competition Data'!A69),\"\",'Competition Data'!A69)","v":"Capontree, Westlinton & Pirelli"},{"$f":"IF(ISBLANK('Competition Data'!H69),\"\",'Competition Data'!H69)","v":"ENWL-19"},{"$f":"IF(ISBLANK('Competition Data'!B69),\"\",'Competition Data'!B69)","v":"W25/26"},{"$f":"IF(ISBLANK('Competition Data'!C69),\"\",'Competition Data'!C69)","v":"Peak Reduction"},{"$f":"IF(ISBLANK('Competition Data'!G69),\"\",'Competition Data'!G69)","v":156000},{"$f":"IF(ISBLANK('Competition Data'!D69),\"\",'Competition Data'!D69)","v":1320},{"$f":"IF(ISBLANK('Competition Data'!E69),\"\",'Competition Data'!E69)","v":0},{"$f":"IF(ISBLANK('Competition Data'!F69),\"\",'Competition Data'!F69)","v":3.39},"Capontree, Westlinton & Pirelli (Peak Reduction)",{"$f":"IF(ISBLANK('Competition Data'!I69),\"\",'Competition Data'!I69)","v":34.861893268972914}]
["Capontree, Westlinton & PirelliW26/27Peak Reduction",{"$f":"IF(ISBLANK('Competition Data'!A70),\"\",'Competition Data'!A70)","v":"Capontree, Westlinton & Pirelli"},{"$f":"IF(ISBLANK('Competition Data'!H70),\"\",'Competition Data'!H70)","v":"ENWL-19"},{"$f":"IF(ISBLANK('Competition Data'!B70),\"\",'Competition Data'!B70)","v":"W26/27"},{"$f":"IF(ISBLANK('Competition Data'!C70),\"\",'Competition Data'!C70)","v":"Peak Reduction"},{"$f":"IF(ISBLANK('Competition Data'!G70),\"\",'Competition Data'!G70)","v":156000},{"$f":"IF(ISBLANK('Competition Data'!D70),\"\",'Competition Data'!D70)","v":1812},{"$f":"IF(ISBLANK('Competition Data'!E70),\"\",'Competition Data'!E70)","v":0},{"$f":"IF(ISBLANK('Competition Data'!F70),\"\",'Competition Data'!F70)","v":4.34},"Capontree, Westlinton & Pirelli (Peak Reduction)",{"$f":"IF(ISBLANK('Competition Data'!I70),\"\",'Competition Data'!I70)","v":19.837031159398176}]
["Capontree, Westlinton & PirelliW27/28Peak Reduction",{"$f":"IF(ISBLANK('Competition Data'!A71),\"\",'Competition Data'!A71)","v":"Capontree, Westlinton & Pirelli"},{"$f":"IF(ISBLANK('Competition Data'!H71),\"\",'Competition Data'!H71)","v":"ENWL-19"},{"$f":"IF(ISBLANK('Competition Data'!B71),\"\",'Competition Data'!B71)","v":"W27/28"},{"$f":"IF(ISBLANK('Competition Data'!C71),\"\",'Competition Data'!C71)","v":"Peak Reduction"},{"$f":"IF(ISBLANK('Competition Data'!G71),\"\",'Competition Data'!G71)","v":156000},{"$f":"IF(ISBLANK('Competition Data'!D71),\"\",'Competition Data'!D71)","v":2128},{"$f":"IF(ISBLANK('Competition Data'!E71),\"\",'Competition Data'!E71)","v":0},{"$f":"IF(ISBLANK('Competition Data'!F71),\"\",'Competition Data'!F71)","v":5.52},"Capontree, Westlinton & Pirelli (Peak Reduction)",{"$f":"IF(ISBLANK('Competition Data'!I71),\"\",'Competition Data'!I71)","v":13.280483818241256}]
["Catterall WaterworksS25Operational Utilisation Variable Availability",{"$f":"IF(ISBLANK('Competition Data'!A72),\"\",'Competition Data'!A72)","v":"Catterall Waterworks"},{"$f":"IF(ISBLANK('Competition Data'!H72),\"\",'Competition Data'!H72)","v":"ENWL-20"},{"$f":"IF(ISBLANK('Competition Data'!B72),\"\",'Competition Data'!B72)","v":"S25"},{"$f":"IF(ISBLANK('Competition Data'!C72),\"\",'Competition Data'!C72)","v":"Operational Utilisation Variable Availability"},{"$f":"IF(ISBLANK('Competition Data'!G72),\"\",'Competition Data'!G72)","v":97502},{"$f":"IF(ISBLANK('Competition Data'!D72),\"\",'Competition Data'!D72)","v":100},{"$f":"IF(ISBLANK('Competition Data'!E72),\"\",'Competition Data'!E72)","v":1705},{"$f":"IF(ISBLANK('Competition Data'!F72),\"\",'Competition Data'!F72)","v":2.37},"Catterall Waterworks (Operational Utilisation Variable Availability)",{"$f":"IF(ISBLANK('Competition Data'!I72),\"\",'Competition Data'!I72)","v":"N/A"}]
["Catterall WaterworksW25/26Operational Utilisation Variable Availability",{"$f":"IF(ISBLANK('Competition Data'!A73),\"\",'Competition Data'!A73)","v":"Catterall Waterworks"},{"$f":"IF(ISBLANK('Competition Data'!H73),\"\",'Competition Data'!H73)","v":"ENWL-20"},{"$f":"IF(ISBLANK('Competition Data'!B73),\"\",'Competition Data'!B73)","v":"W25/26"},{"$f":"IF(ISBLANK('Competition Data'!C73),\"\",'Competition Data'!C73)","v":"Operational Utilisation Variable Availability"},{"$f":"IF(ISBLANK('Competition Data'!G73),\"\",'Competition Data'!G73)","v":123832},{"$f":"IF(ISBLANK('Competition Data'!D73),\"\",'Competition Data'!D73)","v":200},{"$f":"IF(ISBLANK('Competition Data'!E73),\"\",'Competition Data'!E73)","v":2970},{"$f":"IF(ISBLANK('Competition Data'!F73),\"\",'Competition Data'!F73)","v":3.01},"Catterall Waterworks (Operational Utilisation Variable Availability)",{"$f":"IF(ISBLANK('Competition Data'!I73),\"\",'Competition Data'!I73)","v":"N/A"}]
["Catterall WaterworksS26Operational Utilisation Variable Availability",{"$f":"IF(ISBLANK('Competition Data'!A74),\"\",'Competition Data'!A74)","v":"Catterall Waterworks"},{"$f":"IF(ISBLANK('Competition Data'!H74),\"\",'Competition Data'!H74)","v":"ENWL-20"},{"$f":"IF(ISBLANK('Competition Data'!B74),\"\",'Competition Data'!B74)","v":"S26"},{"$f":"IF(ISBLANK('Competition Data'!C74),\"\",'Competition Data'!C74)","v":"Operational Utilisation Variable Availability"},{"$f":"IF(ISBLANK('Competition Data'!G74),\"\",'Competition Data'!G74)","v":111205},{"$f":"IF(ISBLANK('Competition Data'!D74),\"\",'Competition Data'!D74)","v":200},{"$f":"IF(ISBLANK('Competition Data'!E74),\"\",'Competition Data'!E74)","v":2346},{"$f":"IF(ISBLANK('Competition Data'!F74),\"\",'Competition Data'!F74)","v":3.1},"Catterall Waterworks (Operational Utilisation Variable Availability)",{"$f":"IF(ISBLANK('Competition Data'!I74),\"\",'Competition Data'!I74)","v":"N/A"}]
["Catterall WaterworksW26/27Operational Utilisation Variable Availability",{"$f":"IF(ISBLANK('Competition Data'!A75),\"\",'Competition Data'!A75)","v":"Catterall Waterworks"},{"$f":"IF(ISBLANK('Competition Data'!H75),\"\",'Competition Data'!H75)","v":"ENWL-20"},{"$f":"IF(ISBLANK('Competition Data'!B75),\"\",'Competition Data'!B75)","v":"W26/27"},{"$f":"IF(ISBLANK('Competition Data'!C75),\"\",'Competition Data'!C75)","v":"Operational Utilisation Variable Availability"},{"$f":"IF(ISBLANK('Competition Data'!G75),\"\",'Competition Data'!G75)","v":110129},{"$f":"IF(ISBLANK('Competition Data'!D75),\"\",'Competition Data'!D75)","v":300},{"$f":"IF(ISBLANK('Competition Data'!E75),\"\",'Competition Data'!E75)","v":3039},{"$f":"IF(ISBLANK('Competition Data'!F75),\"\",'Competition Data'!F75)","v":3.07},"Catterall Waterworks (Operational Utilisation Variable Availability)",{"$f":"IF(ISBLANK('Competition Data'!I75),\"\",'Competition Data'!I75)","v":"N/A"}]
["Catterall WaterworksS27Operational Utilisation Variable Availability",{"$f":"IF(ISBLANK('Competition Data'!A76),\"\",'Competition Data'!A76)","v":"Catterall Waterworks"},{"$f":"IF(ISBLANK('Competition Data'!H76),\"\",'Competition Data'!H76)","v":"ENWL-20"},{"$f":"IF(ISBLANK('Competition Data'!B76),\"\",'Competition Data'!B76)","v":"S27"},{"$f":"IF(ISBLANK('Competition Data'!C76),\"\",'Competition Data'!C76)","v":"Operational Utilisation Variable Availability"},{"$f":"IF(ISBLANK('Competition Data'!G76),\"\",'Competition Data'!G76)","v":111200},{"$f":"IF(ISBLANK('Competition Data'!D76),\"\",'Competition Data'!D76)","v":200},{"$f":"IF(ISBLANK('Competition Data'!E76),\"\",'Competition Data'!E76)","v":2406},{"$f":"IF(ISBLANK('Competition Data'!F76),\"\",'Competition Data'!F76)","v":3.13},"Catterall Waterworks (Operational Utilisation Variable Availability)",{"$f":"IF(ISBLANK('Competition Data'!I76),\"\",'Competition Data'!I76)","v":"N/A"}]
["Catterall WaterworksW27/28Operational Utilisation Variable Availability",{"$f":"IF(ISBLANK('Competition Data'!A77),\"\",'Competition Data'!A77)","v":"Catterall Waterworks"},{"$f":"IF(ISBLANK('Competition Data'!H77),\"\",'Competition Data'!H77)","v":"ENWL-20"},{"$f":"IF(ISBLANK('Competition Data'!B77),\"\",'Competition Data'!B77)","v":"W27/28"},{"$f":"IF(ISBLANK('Competition Data'!C77),\"\",'Competition Data'!C77)","v":"Operational Utilisation Variable Availability"},{"$f":"IF(ISBLANK('Competition Data'!G77),\"\",'Competition Data'!G77)","v":110134},{"$f":"IF(ISBLANK('Competition Data'!D77),\"\",'Competition Data'!D77)","v":300},{"$f":"IF(ISBLANK('Competition Data'!E77),\"\",'Competition Data'!E77)","v":3104},{"$f":"IF(ISBLANK('Competition Data'!F77),\"\",'Competition Data'!F77)","v":3.1},"Catterall Waterworks (Operational Utilisation Variable Availability)",{"$f":"IF(ISBLANK('Competition Data'!I77),\"\",'Competition Data'!I77)","v":"N/A"}]
["Catterall WaterworksFY26Operational Utilisation",{"$f":"IF(ISBLANK('Competition Data'!A78),\"\",'Competition Data'!A78)","v":"Catterall Waterworks"},{"$f":"IF(ISBLANK('Competition Data'!H78),\"\",'Competition Data'!H78)","v":"ENWL-21"},{"$f":"IF(ISBLANK('Competition Data'!B78),\"\",'Competition Data'!B78)","v":"FY26"},{"$f":"IF(ISBLANK('Competition Data'!C78),\"\",'Competition Data'!C78)","v":"Operational Utilisation"},{"$f":"IF(ISBLANK('Competition Data'!G78),\"\",'Competition Data'!G78)","v":35167},{"$f":"IF(ISBLANK('Competition Data'!D78),\"\",'Competition Data'!D78)","v":100},{"$f":"IF(ISBLANK('Competition Data'!E78),\"\",'Competition Data'!E78)","v":0},{"$f":"IF(ISBLANK('Competition Data'!F78),\"\",'Competition Data'!F78)","v":7.5},"Catterall Waterworks (Operational Utilisation)",{"$f":"IF(ISBLANK('Competition Data'!I78),\"\",'Competition Data'!I78)","v":46.889333333333333}]
["Catterall WaterworksFY27Operational Utilisation",{"$f":"IF(ISBLANK('Competition Data'!A79),\"\",'Competition Data'!A79)","v":"Catterall Waterworks"},{"$f":"IF(ISBLANK('Competition Data'!H79),\"\",'Competition Data'!H79)","v":"ENWL-21"},{"$f":"IF(ISBLANK('Competition Data'!B79),\"\",'Competition Data'!B79)","v":"FY27"},{"$f":"IF(ISBLANK('Competition Data'!C79),\"\",'Competition Data'!C79)","v":"Operational Utilisation"},{"$f":"IF(ISBLANK('Competition Data'!G79),\"\",'Competition Data'!G79)","v":35167},{"$f":"IF(ISBLANK('Competition Data'!D79),\"\",'Competition Data'!D79)","v":100},{"$f":"IF(ISBLANK('Competition Data'!E79),\"\",'Competition Data'!E79)","v":0},{"$f":"IF(ISBLANK('Competition Data'!F79),\"\",'Competition Data'!F79)","v":7.5},"Catterall Waterworks (Operational Utilisation)",{"$f":"IF(ISBLANK('Competition Data'!I79),\"\",'Competition Data'!I79)","v":46.889333333333333}]
["Catterall WaterworksFY28Operational Utilisation",{"$f":"IF(ISBLANK('Competition Data'!A80),\"\",'Competition Data'!A80)","v":"Catterall Waterworks"},{"$f":"IF(ISBLANK('Competition Data'!H80),\"\",'Competition Data'!H80)","v":"ENWL-21"},{"$f":"IF(ISBLANK('Competition Data'!B80),\"\",'Competition Data'!B80)","v":"FY28"},{"$f":"IF(ISBLANK('Competition Data'!C80),\"\",'Competition Data'!C80)","v":"Operational Utilisation"},{"$f":"IF(ISBLANK('Competition Data'!G80),\"\",'Competition Data'!G80)","v":35167},{"$f":"IF(ISBLANK('Competition Data'!D80),\"\",'Competition Data'!D80)","v":100},{"$f":"IF(ISBLANK('Competition Data'!E80),\"\",'Competition Data'!E80)","v":0},{"$f":"IF(ISBLANK('Competition Data'!F80),\"\",'Competition Data'!F80)","v":7.5},"Catterall Waterworks (Operational Utilisation)",{"$f":"IF(ISBLANK('Competition Data'!I80),\"\",'Competition Data'!I80)","v":46.889333333333333}]
["Catterall WaterworksS25Peak Reduction",{"$f":"IF(ISBLANK('Competition Data'!A81),\"\",'Competition Data'!A81)","v":"Catterall Waterworks"},{"$f":"IF(ISBLANK('Competition Data'!H81),\"\",'Competition Data'!H81)","v":"ENWL-22"},{"$f":"IF(ISBLANK('Competition Data'!B81),\"\",'Competition Data'!B81)","v":"S25"},{"$f":"IF(ISBLANK('Competition Data'!C81),\"\",'Competition Data'!C81)","v":"Peak Reduction"},{"$f":"IF(ISBLANK('Competition Data'!G81),\"\",'Competition Data'!G81)","v":97502},{"$f":"IF(ISBLANK('Competition Data'!D81),\"\",'Competition Data'!D81)","v":3519},{"$f":"IF(ISBLANK('Competition Data'!E81),\"\",'Competition Data'!E81)","v":0},{"$f":"IF(ISBLANK('Competition Data'!F81),\"\",'Competition Data'!F81)","v":2.37},"Catterall Waterworks (Peak Reduction)",{"$f":"IF(ISBLANK('Competition Data'!I81),\"\",'Competition Data'!I81)","v":11.690845236767734}]
["Catterall WaterworksW25/26Peak Reduction",{"$f":"IF(ISBLANK('Competition Data'!A82),\"\",'Competition Data'!A82)","v":"Catterall Waterworks"},{"$f":"IF(ISBLANK('Competition Data'!H82),\"\",'Competition Data'!H82)","v":"ENWL-22"},{"$f":"IF(ISBLANK('Competition Data'!B82),\"\",'Competition Data'!B82)","v":"W25/26"},{"$f":"IF(ISBLANK('Competition Data'!C82),\"\",'Competition Data'!C82)","v":"Peak Reduction"},{"$f":"IF(ISBLANK('Competition Data'!G82),\"\",'Competition Data'!G82)","v":123832},{"$f":"IF(ISBLANK('Competition Data'!D82),\"\",'Competition Data'!D82)","v":4186},{"$f":"IF(ISBLANK('Competition Data'!E82),\"\",'Competition Data'!E82)","v":0},{"$f":"IF(ISBLANK('Competition Data'!F82),\"\",'Competition Data'!F82)","v":3.01},"Catterall Waterworks (Peak Reduction)",{"$f":"IF(ISBLANK('Competition Data'!I82),\"\",'Competition Data'!I82)","v":9.82804570844438}]
["Catterall WaterworksS26Peak Reduction",{"$f":"IF(ISBLANK('Competition Data'!A83),\"\",'Competition Data'!A83)","v":"Catterall Waterworks"},{"$f":"IF(ISBLANK('Competition Data'!H83),\"\",'Competition Data'!H83)","v":"ENWL-22"},{"$f":"IF(ISBLANK('Competition Data'!B83),\"\",'Competition Data'!B83)","v":"S26"},{"$f":"IF(ISBLANK('Competition Data'!C83),\"\",'Competition Data'!C83)","v":"Peak Reduction"},{"$f":"IF(ISBLANK('Competition Data'!G83),\"\",'Competition Data'!G83)","v":111205},{"$f":"IF(ISBLANK('Competition Data'!D83),\"\",'Competition Data'!D83)","v":4209},{"$f":"IF(ISBLANK('Competition Data'!E83),\"\",'Competition Data'!E83)","v":0},{"$f":"IF(ISBLANK('Competition Data'!F83),\"\",'Competition Data'!F83)","v":3.1},"Catterall Waterworks (Peak Reduction)",{"$f":"IF(ISBLANK('Competition Data'!I83),\"\",'Competition Data'!I83)","v":8.522827428168517}]
["Catterall WaterworksW26/27Peak Reduction",{"$f":"IF(ISBLANK('Competition Data'!A84),\"\",'Competition Data'!A84)","v":"Catterall Waterworks"},{"$f":"IF(ISBLANK('Competition Data'!H84),\"\",'Competition Data'!H84)","v":"ENWL-22"},{"$f":"IF(ISBLANK('Competition Data'!B84),\"\",'Competition Data'!B84)","v":"W26/27"},{"$f":"IF(ISBLANK('Competition Data'!C84),\"\",'Competition Data'!C84)","v":"Peak Reduction"},{"$f":"IF(ISBLANK('Competition Data'!G84),\"\",'Competition Data'!G84)","v":110129},{"$f":"IF(ISBLANK('Competition Data'!D84),\"\",'Competition Data'!D84)","v":4186},{"$f":"IF(ISBLANK('Competition Data'!E84),\"\",'Competition Data'!E84)","v":0},{"$f":"IF(ISBLANK('Competition Data'!F84),\"\",'Competition Data'!F84)","v":3.07},"Catterall Waterworks (Peak Reduction)",{"$f":"IF(ISBLANK('Competition Data'!I84),\"\",'Competition Data'!I84)","v":8.5696699561591227}]
["Catterall WaterworksS27Peak Reduction",{"$f":"IF(ISBLANK('Competition Data'!A85),\"\",'Competition Data'!A85)","v":"Catterall Waterworks"},{"$f":"IF(ISBLANK('Competition Data'!H85),\"\",'Competition Data'!H85)","v":"ENWL-22"},{"$f":"IF(ISBLANK('Competition Data'!B85),\"\",'Competition Data'!B85)","v":"S27"},{"$f":"IF(ISBLANK('Competition Data'!C85),\"\",'Competition Data'!C85)","v":"Peak Reduction"},{"$f":"IF(ISBLANK('Competition Data'!G85),\"\",'Competition Data'!G85)","v":111200},{"$f":"IF(ISBLANK('Competition Data'!D85),\"\",'Competition Data'!D85)","v":4209},{"$f":"IF(ISBLANK('Competition Data'!E85),\"\",'Competition Data'!E85)","v":0},{"$f":"IF(ISBLANK('Competition Data'!F85),\"\",'Competition Data'!F85)","v":3.13},"Catterall Waterworks (Peak Reduction)",{"$f":"IF(ISBLANK('Competition Data'!I85),\"\",'Competition Data'!I85)","v":8.4407594558139145}]
["Catterall WaterworksW27/28Peak Reduction",{"$f":"IF(ISBLANK('Competition Data'!A86),\"\",'Competition Data'!A86)","v":"Catterall Waterworks"},{"$f":"IF(ISBLANK('Competition Data'!H86),\"\",'Competition Data'!H86)","v":"ENWL-22"},{"$f":"IF(ISBLANK('Competition Data'!B86),\"\",'Competition Data'!B86)","v":"W27/28"},{"$f":"IF(ISBLANK('Competition Data'!C86),\"\",'Competition Data'!C86)","v":"Peak Reduction"},{"$f":"IF(ISBLANK('Competition Data'!G86),\"\",'Competition Data'!G86)","v":110134},{"$f":"IF(ISBLANK('Competition Data'!D86),\"\",'Competition Data'!D86)","v":4209},{"$f":"IF(ISBLANK('Competition Data'!E86),\"\",'Competition Data'!E86)","v":0},{"$f":"IF(ISBLANK('Competition Data'!F86),\"\",'Competition Data'!F86)","v":3.1},"Catterall Waterworks (Peak Reduction)",{"$f":"IF(ISBLANK('Competition Data'!I86),\"\",'Competition Data'!I86)","v":8.4407452540255505}]
["ChurchFY26Operational Utilisation",{"$f":"IF(ISBLANK('Competition Data'!A87),\"\",'Competition Data'!A87)","v":"Church"},{"$f":"IF(ISBLANK('Competition Data'!H87),\"\",'Competition Data'!H87)","v":"ENWL-23"},{"$f":"IF(ISBLANK('Competition Data'!B87),\"\",'Competition Data'!B87)","v":"FY26"},{"$f":"IF(ISBLANK('Competition Data'!C87),\"\",'Competition Data'!C87)","v":"Operational Utilisation"},{"$f":"IF(ISBLANK('Competition Data'!G87),\"\",'Competition Data'!G87)","v":73606},{"$f":"IF(ISBLANK('Competition Data'!D87),\"\",'Competition Data'!D87)","v":100},{"$f":"IF(ISBLANK('Competition Data'!E87),\"\",'Competition Data'!E87)","v":0},{"$f":"IF(ISBLANK('Competition Data'!F87),\"\",'Competition Data'!F87)","v":5.7},"Church (Operational Utilisation)",{"$f":"IF(ISBLANK('Competition Data'!I87),\"\",'Competition Data'!I87)","v":129.13333333333333}]
["ChurchFY27Operational Utilisation",{"$f":"IF(ISBLANK('Competition Data'!A88),\"\",'Competition Data'!A88)","v":"Church"},{"$f":"IF(ISBLANK('Competition Data'!H88),\"\",'Competition Data'!H88)","v":"ENWL-23"},{"$f":"IF(ISBLANK('Competition Data'!B88),\"\",'Competition Data'!B88)","v":"FY27"},{"$f":"IF(ISBLANK('Competition Data'!C88),\"\",'Competition Data'!C88)","v":"Operational Utilisation"},{"$f":"IF(ISBLANK('Competition Data'!G88),\"\",'Competition Data'!G88)","v":73606},{"$f":"IF(ISBLANK('Competition Data'!D88),\"\",'Competition Data'!D88)","v":100},{"$f":"IF(ISBLANK('Competition Data'!E88),\"\",'Competition Data'!E88)","v":0},{"$f":"IF(ISBLANK('Competition Data'!F88),\"\",'Competition Data'!F88)","v":5.7},"Church (Operational Utilisation)",{"$f":"IF(ISBLANK('Competition Data'!I88),\"\",'Competition Data'!I88)","v":129.13333333333333}]
["ChurchFY28Operational Utilisation",{"$f":"IF(ISBLANK('Competition Data'!A89),\"\",'Competition Data'!A89)","v":"Church"},{"$f":"IF(ISBLANK('Competition Data'!H89),\"\",'Competition Data'!H89)","v":"ENWL-23"},{"$f":"IF(ISBLANK('Competition Data'!B89),\"\",'Competition Data'!B89)","v":"FY28"},{"$f":"IF(ISBLANK('Competition Data'!C89),\"\",'Competition Data'!C89)","v":"Operational Utilisation"},{"$f":"IF(ISBLANK('Competition Data'!G89),\"\",'Competition Data'!G89)","v":73606},{"$f":"IF(ISBLANK('Competition Data'!D89),\"\",'Competition Data'!D89)","v":100},{"$f":"IF(ISBLANK('Competition Data'!E89),\"\",'Competition Data'!E89)","v":0},{"$f":"IF(ISBLANK('Competition Data'!F89),\"\",'Competition Data'!F89)","v":5.7},"Church (Operational Utilisation)",{"$f":"IF(ISBLANK('Competition Data'!I89),\"\",'Competition Data'!I89)","v":129.13333333333333}]
["ClaughtonFY26Operational Utilisation",{"$f":"IF(ISBLANK('Competition Data'!A90),\"\",'Competition Data'!A90)","v":"Claughton"},{"$f":"IF(ISBLANK('Competition Data'!H90),\"\",'Competition Data'!H90)","v":"ENWL-24"},{"$f":"IF(ISBLANK('Competition Data'!B90),\"\",'Competition Data'!B90)","v":"FY26"},{"$f":"IF(ISBLANK('Competition Data'!C90),\"\",'Competition Data'!C90)","v":"Operational Utilisation"},{"$f":"IF(ISBLANK('Competition Data'!G90),\"\",'Competition Data'!G90)","v":33312},{"$f":"IF(ISBLANK('Competition Data'!D90),\"\",'Competition Data'!D90)","v":100},{"$f":"IF(ISBLANK('Competition Data'!E90),\"\",'Competition Data'!E90)","v":0},{"$f":"IF(ISBLANK('Competition Data'!F90),\"\",'Competition Data'!F90)","v":2.9},"Claughton (Operational Utilisation)",{"$f":"IF(ISBLANK('Competition Data'!I90),\"\",'Competition Data'!I90)","v":114.86896551724138}]
["ClaughtonFY27Operational Utilisation",{"$f":"IF(ISBLANK('Competition Data'!A91),\"\",'Competition Data'!A91)","v":"Claughton"},{"$f":"IF(ISBLANK('Competition Data'!H91),\"\",'Competition Data'!H91)","v":"ENWL-24"},{"$f":"IF(ISBLANK('Competition Data'!B91),\"\",'Competition Data'!B91)","v":"FY27"},{"$f":"IF(ISBLANK('Competition Data'!C91),\"\",'Competition Data'!C91)","v":"Operational Utilisation"},{"$f":"IF(ISBLANK('Competition Data'!G91),\"\",'Competition Data'!G91)","v":33312},{"$f":"IF(ISBLANK('Competition Data'!D91),\"\",'Competition Data'!D91)","v":100},{"$f":"IF(ISBLANK('Competition Data'!E91),\"\",'Competition Data'!E91)","v":0},{"$f":"IF(ISBLANK('Competition Data'!F91),\"\",'Competition Data'!F91)","v":2.9},"Claughton (Operational Utilisation)",{"$f":"IF(ISBLANK('Competition Data'!I91),\"\",'Competition Data'!I91)","v":114.86896551724138}]
["ClaughtonFY28Operational Utilisation",{"$f":"IF(ISBLANK('Competition Data'!A92),\"\",'Competition Data'!A92)","v":"Claughton"},{"$f":"IF(ISBLANK('Competition Data'!H92),\"\",'Competition Data'!H92)","v":"ENWL-24"},{"$f":"IF(ISBLANK('Competition Data'!B92),\"\",'Competition Data'!B92)","v":"FY28"},{"$f":"IF(ISBLANK('Competition Data'!C92),\"\",'Competition Data'!C92)","v":"Operational Utilisation"},{"$f":"IF(ISBLANK('Competition Data'!G92),\"\",'Competition Data'!G92)","v":33312},{"$f":"IF(ISBLANK('Competition Data'!D92),\"\",'Competition Data'!D92)","v":100},{"$f":"IF(ISBLANK('Competition Data'!E92),\"\",'Competition Data'!E92)","v":0},{"$f":"IF(ISBLANK('Competition Data'!F92),\"\",'Competition Data'!F92)","v":2.9},"Claughton (Operational Utilisation)",{"$f":"IF(ISBLANK('Competition Data'!I92),\"\",'Competition Data'!I92)","v":114.86896551724138}]
["ConistonS25Operational Utilisation Variable Availability",{"$f":"IF(ISBLANK('Competition Data'!A93),\"\",'Competition Data'!A93)","v":"Coniston"},{"$f":"IF(ISBLANK('Competition Data'!H93),\"\",'Competition Data'!H93)","v":"ENWL-25"},{"$f":"IF(ISBLANK('Competition Data'!B93),\"\",'Competition Data'!B93)","v":"S25"},{"$f":"IF(ISBLANK('Competition Data'!C93),\"\",'Competition Data'!C93)","v":"Operational Utilisation Variable Availability"},{"$f":"IF(ISBLANK('Competition Data'!G93),\"\",'Competition Data'!G93)","v":15938},{"$f":"IF(ISBLANK('Competition Data'!D93),\"\",'Competition Data'!D93)","v":48},{"$f":"IF(ISBLANK('Competition Data'!E93),\"\",'Competition Data'!E93)","v":57},{"$f":"IF(ISBLANK('Competition Data'!F93),\"\",'Competition Data'!F93)","v":0.15},"Coniston (Operational Utilisation Variable Availability)",{"$f":"IF(ISBLANK('Competition Data'!I93),\"\",'Competition Data'!I93)","v":"N/A"}]
["ConistonW25/26Operational Utilisation Variable Availability",{"$f":"IF(ISBLANK('Competition Data'!A94),\"\",'Competition Data'!A94)","v":"Coniston"},{"$f":"IF(ISBLANK('Competition Data'!H94),\"\",'Competition Data'!H94)","v":"ENWL-25"},{"$f":"IF(ISBLANK('Competition Data'!B94),\"\",'Competition Data'!B94)","v":"W25/26"},{"$f":"IF(ISBLANK('Competition Data'!C94),\"\",'Competition Data'!C94)","v":"Operational Utilisation Variable Availability"},{"$f":"IF(ISBLANK('Competition Data'!G94),\"\",'Competition Data'!G94)","v":69063},{"$f":"IF(ISBLANK('Competition Data'!D94),\"\",'Competition Data'!D94)","v":100},{"$f":"IF(ISBLANK('Competition Data'!E94),\"\",'Competition Data'!E94)","v":1288},{"$f":"IF(ISBLANK('Competition Data'!F94),\"\",'Competition Data'!F94)","v":0.65},"Coniston (Operational Utilisation Variable Availability)",{"$f":"IF(ISBLANK('Competition Data'!I94),\"\",'Competition Data'!I94)","v":"N/A"}]
["ConistonS26Operational Utilisation Variable Availability",{"$f":"IF(ISBLANK('Competition Data'!A95),\"\",'Competition Data'!A95)","v":"Coniston"},{"$f":"IF(ISBLANK('Competition Data'!H95),\"\",'Competition Data'!H95)","v":"ENWL-25"},{"$f":"IF(ISBLANK('Competition Data'!B95),\"\",'Competition Data'!B95)","v":"S26"},{"$f":"IF(ISBLANK('Competition Data'!C95),\"\",'Competition Data'!C95)","v":"Operational Utilisation Variable Availability"},{"$f":"IF(ISBLANK('Competition Data'!G95),\"\",'Competition Data'!G95)","v":38876},{"$f":"IF(ISBLANK('Competition Data'!D95),\"\",'Competition Data'!D95)","v":48},{"$f":"IF(ISBLANK('Competition Data'!E95),\"\",'Competition Data'!E95)","v":331},{"$f":"IF(ISBLANK('Competition Data'!F95),\"\",'Competition Data'!F95)","v":0.59},"Coniston (Operational Utilisation Variable Availability)",{"$f":"IF(ISBLANK('Competition Data'!I95),\"\",'Competition Data'!I95)","v":"N/A"}]
["ConistonW26/27Operational Utilisation Variable Availability",{"$f":"IF(ISBLANK('Competition Data'!A96),\"\",'Competition Data'!A96)","v":"Coniston"},{"$f":"IF(ISBLANK('Competition Data'!H96),\"\",'Competition Data'!H96)","v":"ENWL-25"},{"$f":"IF(ISBLANK('Competition Data'!B96),\"\",'Competition Data'!B96)","v":"W26/27"},{"$f":"IF(ISBLANK('Competition Data'!C96),\"\",'Competition Data'!C96)","v":"Operational Utilisation Variable Availability"},{"$f":"IF(ISBLANK('Competition Data'!G96),\"\",'Competition Data'!G96)","v":46124},{"$f":"IF(ISBLANK('Competition Data'!D96),\"\",'Competition Data'!D96)","v":100},{"$f":"IF(ISBLANK('Competition Data'!E96),\"\",'Competition Data'!E96)","v":1546},{"$f":"IF(ISBLANK('Competition Data'!F96),\"\",'Competition Data'!F96)","v":0.7},"Coniston (Operational Utilisation Variable Availability)",{"$f":"IF(ISBLANK('Competition Data'!I96),\"\",'Competition Data'!I96)","v":"N/A"}]
["ConistonS27Operational Utilisation Variable Availability",{"$f":"IF(ISBLANK('Competition Data'!A97),\"\",'Competition Data'!A97)","v":"Coniston"},{"$f":"IF(ISBLANK('Competition Data'!H97),\"\",'Competition Data'!H97)","v":"ENWL-25"},{"$f":"IF(ISBLANK('Competition Data'!B97),\"\",'Competition Data'!B97)","v":"S27"},{"$f":"IF(ISBLANK('Competition Data'!C97),\"\",'Competition Data'!C97)","v":"Operational Utilisation Variable Availability"},{"$f":"IF(ISBLANK('Competition Data'!G97),\"\",'Competition Data'!G97)","v":38908},{"$f":"IF(ISBLANK('Competition Data'!D97),\"\",'Competition Data'!D97)","v":48},{"$f":"IF(ISBLANK('Competition Data'!E97),\"\",'Competition Data'!E97)","v":487},{"$f":"IF(ISBLANK('Competition Data'!F97),\"\",'Competition Data'!F97)","v":0.65},"Coniston (Operational Utilisation Variable Availability)",{"$f":"IF(ISBLANK('Competition Data'!I97),\"\",'Competition Data'!I97)","v":"N/A"}]
["ConistonW27/28Operational Utilisation Variable Availability",{"$f":"IF(ISBLANK('Competition Data'!A98),\"\",'Competition Data'!A98)","v":"Coniston"},{"$f":"IF(ISBLANK('Competition Data'!H98),\"\",'Competition Data'!H98)","v":"ENWL-25"},{"$f":"IF(ISBLANK('Competition Data'!B98),\"\",'Competition Data'!B98)","v":"W27/28"},{"$f":"IF(ISBLANK('Competition Data'!C98),\"\",'Competition Data'!C98)","v":"Operational Utilisation Variable Availability"},{"$f":"IF(ISBLANK('Competition Data'!G98),\"\",'Competition Data'!G98)","v":46092},{"$f":"IF(ISBLANK('Competition Data'!D98),\"\",'Competition Data'!D98)","v":100},{"$f":"IF(ISBLANK('Competition Data'!E98),\"\",'Competition Data'!E98)","v":1868},{"$f":"IF(ISBLANK('Competition Data'!F98),\"\",'Competition Data'!F98)","v":0.77},"Coniston (Operational Utilisation Variable Availability)",{"$f":"IF(ISBLANK('Competition Data'!I98),\"\",'Competition Data'!I98)","v":"N/A"}]
["ConistonFY26Operational Utilisation",{"$f":"IF(ISBLANK('Competition Data'!A99),\"\",'Competition Data'!A99)","v":"Coniston"},{"$f":"IF(ISBLANK('Competition Data'!H99),\"\",'Competition Data'!H99)","v":"ENWL-26"},{"$f":"IF(ISBLANK('Competition Data'!B99),\"\",'Competition Data'!B99)","v":"FY26"},{"$f":"IF(ISBLANK('Competition Data'!C99),\"\",'Competition Data'!C99)","v":"Operational Utilisation"},{"$f":"IF(ISBLANK('Competition Data'!G99),\"\",'Competition Data'!G99)","v":24582},{"$f":"IF(ISBLANK('Competition Data'!D99),\"\",'Competition Data'!D99)","v":100},{"$f":"IF(ISBLANK('Competition Data'!E99),\"\",'Competition Data'!E99)","v":0},{"$f":"IF(ISBLANK('Competition Data'!F99),\"\",'Competition Data'!F99)","v":2.1},"Coniston (Operational Utilisation)",{"$f":"IF(ISBLANK('Competition Data'!I99),\"\",'Competition Data'!I99)","v":117.05714285714285}]
["ConistonFY27Operational Utilisation",{"$f":"IF(ISBLANK('Competition Data'!A100),\"\",'Competition Data'!A100)","v":"Coniston"},{"$f":"IF(ISBLANK('Competition Data'!H100),\"\",'Competition Data'!H100)","v":"ENWL-26"},{"$f":"IF(ISBLANK('Competition Data'!B100),\"\",'Competition Data'!B100)","v":"FY27"},{"$f":"IF(ISBLANK('Competition Data'!C100),\"\",'Competition Data'!C100)","v":"Operational Utilisation"},{"$f":"IF(ISBLANK('Competition Data'!G100),\"\",'Competition Data'!G100)","v":24582},{"$f":"IF(ISBLANK('Competition Data'!D100),\"\",'Competition Data'!D100)","v":100},{"$f":"IF(ISBLANK('Competition Data'!E100),\"\",'Competition Data'!E100)","v":0},{"$f":"IF(ISBLANK('Competition Data'!F100),\"\",'Competition Data'!F100)","v":2.1},"Coniston (Operational Utilisation)",{"$f":"IF(ISBLANK('Competition Data'!I100),\"\",'Competition Data'!I100)","v":117.05714285714285}]
["ConistonFY28Operational Utilisation",{"$f":"IF(ISBLANK('Competition Data'!A101),\"\",'Competition Data'!A101)","v":"Coniston"},{"$f":"IF(ISBLANK('Competition Data'!H101),\"\",'Competition Data'!H101)","v":"ENWL-26"},{"$f":"IF(ISBLANK('Competition Data'!B101),\"\",'Competition Data'!B101)","v":"FY28"},{"$f":"IF(ISBLANK('Competition Data'!C101),\"\",'Competition Data'!C101)","v":"Operational Utilisation"},{"$f":"IF(ISBLANK('Competition Data'!G101),\"\",'Competition Data'!G101)","v":24582},{"$f":"IF(ISBLANK('Competition Data'!D101),\"\",'Competition Data'!D101)","v":100},{"$f":"IF(ISBLANK('Competition Data'!E101),\"\",'Competition Data'!E101)","v":0},{"$f":"IF(ISBLANK('Competition Data'!F101),\"\",'Competition Data'!F101)","v":2.1},"Coniston (Operational Utilisation)",{"$f":"IF(ISBLANK('Competition Data'!I101),\"\",'Competition Data'!I101)","v":117.05714285714285}]
["ConistonS25Peak Reduction",{"$f":"IF(ISBLANK('Competition Data'!A102),\"\",'Competition Data'!A102)","v":"Coniston"},{"$f":"IF(ISBLANK('Competition Data'!H102),\"\",'Competition Data'!H102)","v":"ENWL-27"},{"$f":"IF(ISBLANK('Competition Data'!B102),\"\",'Competition Data'!B102)","v":"S25"},{"$f":"IF(ISBLANK('Competition Data'!C102),\"\",'Competition Data'!C102)","v":"Peak Reduction"},{"$f":"IF(ISBLANK('Competition Data'!G102),\"\",'Competition Data'!G102)","v":15938},{"$f":"IF(ISBLANK('Competition Data'!D102),\"\",'Competition Data'!D102)","v":1683},{"$f":"IF(ISBLANK('Competition Data'!E102),\"\",'Competition Data'!E102)","v":0},{"$f":"IF(ISBLANK('Competition Data'!F102),\"\",'Competition Data'!F102)","v":0.15},"Coniston (Peak Reduction)",{"$f":"IF(ISBLANK('Competition Data'!I102),\"\",'Competition Data'!I102)","v":63.133293721529014}]
["ConistonW25/26Peak Reduction",{"$f":"IF(ISBLANK('Competition Data'!A103),\"\",'Competition Data'!A103)","v":"Coniston"},{"$f":"IF(ISBLANK('Competition Data'!H103),\"\",'Competition Data'!H103)","v":"ENWL-27"},{"$f":"IF(ISBLANK('Competition Data'!B103),\"\",'Competition Data'!B103)","v":"W25/26"},{"$f":"IF(ISBLANK('Competition Data'!C103),\"\",'Competition Data'!C103)","v":"Peak Reduction"},{"$f":"IF(ISBLANK('Competition Data'!G103),\"\",'Competition Data'!G103)","v":69063},{"$f":"IF(ISBLANK('Competition Data'!D103),\"\",'Competition Data'!D103)","v":3640},{"$f":"IF(ISBLANK('Competition Data'!E103),\"\",'Competition Data'!E103)","v":0},{"$f":"IF(ISBLANK('Competition Data'!F103),\"\",'Competition Data'!F103)","v":0.65},"Coniston (Peak Reduction)",{"$f":"IF(ISBLANK('Competition Data'!I103),\"\",'Competition Data'!I103)","v":29.189771766694843}]
["ConistonS26Peak Reduction",{"$f":"IF(ISBLANK('Competition Data'!A104),\"\",'Competition Data'!A104)","v":"Coniston"},{"$f":"IF(ISBLANK('Competition Data'!H104),\"\",'Competition Data'!H104)","v":"ENWL-27"},{"$f":"IF(ISBLANK('Competition Data'!B104),\"\",'Competition Data'!B104)","v":"S26"},{"$f":"IF(ISBLANK('Competition Data'!C104),\"\",'Competition Data'!C104)","v":"Peak Reduction"},{"$f":"IF(ISBLANK('Competition Data'!G104),\"\",'Competition Data'!G104)","v":38876},{"$f":"IF(ISBLANK('Competition Data'!D104),\"\",'Competition Data'!D104)","v":2562},{"$f":"IF(ISBLANK('Competition Data'!E104),\"\",'Competition Data'!E104)","v":0},{"$f":"IF(ISBLANK('Competition Data'!F104),\"\",'Competition Data'!F104)","v":0.59},"Coniston (Peak Reduction)",{"$f":"IF(ISBLANK('Competition Data'!I104),\"\",'Competition Data'!I104)","v":25.718784318395322}]
["ConistonW26/27Peak Reduction",{"$f":"IF(ISBLANK('Competition Data'!A105),\"\",'Competition Data'!A105)","v":"Coniston"},{"$f":"IF(ISBLANK('Competition Data'!H105),\"\",'Competition Data'!H105)","v":"ENWL-27"},{"$f":"IF(ISBLANK('Competition Data'!B105),\"\",'Competition Data'!B105)","v":"W26/27"},{"$f":"IF(ISBLANK('Competition Data'!C105),\"\",'Competition Data'!C105)","v":"Peak Reduction"},{"$f":"IF(ISBLANK('Competition Data'!G105),\"\",'Competition Data'!G105)","v":46124},{"$f":"IF(ISBLANK('Competition Data'!D105),\"\",'Competition Data'!D105)","v":4004},{"$f":"IF(ISBLANK('Competition Data'!E105),\"\",'Competition Data'!E105)","v":0},{"$f":"IF(ISBLANK('Competition Data'!F105),\"\",'Competition Data'!F105)","v":0.7},"Coniston (Peak Reduction)",{"$f":"IF(ISBLANK('Competition Data'!I105),\"\",'Competition Data'!I105)","v":16.456400742115029}]
["ConistonS27Peak Reduction",{"$f":"IF(ISBLANK('Competition Data'!A106),\"\",'Competition Data'!A106)","v":"Coniston"},{"$f":"IF(ISBLANK('Competition Data'!H106),\"\",'Competition Data'!H106)","v":"ENWL-27"},{"$f":"IF(ISBLANK('Competition Data'!B106),\"\",'Competition Data'!B106)","v":"S27"},{"$f":"IF(ISBLANK('Competition Data'!C106),\"\",'Competition Data'!C106)","v":"Peak Reduction"},{"$f":"IF(ISBLANK('Competition Data'!G106),\"\",'Competition Data'!G106)","v":38908},{"$f":"IF(ISBLANK('Competition Data'!D106),\"\",'Competition Data'!D106)","v":2745},{"$f":"IF(ISBLANK('Competition Data'!E106),\"\",'Competition Data'!E106)","v":0},{"$f":"IF(ISBLANK('Competition Data'!F106),\"\",'Competition Data'!F106)","v":0.65},"Coniston (Peak Reduction)",{"$f":"IF(ISBLANK('Competition Data'!I106),\"\",'Competition Data'!I106)","v":21.806361216197281}]
["ConistonW27/28Peak Reduction",{"$f":"IF(ISBLANK('Competition Data'!A107),\"\",'Competition Data'!A107)","v":"Coniston"},{"$f":"IF(ISBLANK('Competition Data'!H107),\"\",'Competition Data'!H107)","v":"ENWL-27"},{"$f":"IF(ISBLANK('Competition Data'!B107),\"\",'Competition Data'!B107)","v":"W27/28"},{"$f":"IF(ISBLANK('Competition Data'!C107),\"\",'Competition Data'!C107)","v":"Peak Reduction"},{"$f":"IF(ISBLANK('Competition Data'!G107),\"\",'Competition Data'!G107)","v":46092},{"$f":"IF(ISBLANK('Competition Data'!D107),\"\",'Competition Data'!D107)","v":4209},{"$f":"IF(ISBLANK('Competition Data'!E107),\"\",'Competition Data'!E107)","v":0},{"$f":"IF(ISBLANK('Competition Data'!F107),\"\",'Competition Data'!F107)","v":0.77},"Coniston (Peak Reduction)",{"$f":"IF(ISBLANK('Competition Data'!I107),\"\",'Competition Data'!I107)","v":14.221843730040451}]
["Flat LaneW25/26Operational Utilisation Variable Availability",{"$f":"IF(ISBLANK('Competition Data'!A108),\"\",'Competition Data'!A108)","v":"Flat Lane"},{"$f":"IF(ISBLANK('Competition Data'!H108),\"\",'Competition Data'!H108)","v":"ENWL-28"},{"$f":"IF(ISBLANK('Competition Data'!B108),\"\",'Competition Data'!B108)","v":"W25/26"},{"$f":"IF(ISBLANK('Competition Data'!C108),\"\",'Competition Data'!C108)","v":"Operational Utilisation Variable Availability"},{"$f":"IF(ISBLANK('Competition Data'!G108),\"\",'Competition Data'!G108)","v":32000},{"$f":"IF(ISBLANK('Competition Data'!D108),\"\",'Competition Data'!D108)","v":24},{"$f":"IF(ISBLANK('Competition Data'!E108),\"\",'Competition Data'!E108)","v":12},{"$f":"IF(ISBLANK('Competition Data'!F108),\"\",'Competition Data'!F108)","v":0.23},"Flat Lane (Operational Utilisation Variable Availability)",{"$f":"IF(ISBLANK('Competition Data'!I108),\"\",'Competition Data'!I108)","v":"N/A"}]
["Flat LaneW26/27Operational Utilisation Variable Availability",{"$f":"IF(ISBLANK('Competition Data'!A109),\"\",'Competition Data'!A109)","v":"Flat Lane"},{"$f":"IF(ISBLANK('Competition Data'!H109),\"\",'Competition Data'!H109)","v":"ENWL-28"},{"$f":"IF(ISBLANK('Competition Data'!B109),\"\",'Competition Data'!B109)","v":"W26/27"},{"$f":"IF(ISBLANK('Competition Data'!C109),\"\",'Competition Data'!C109)","v":"Operational Utilisation Variable Availability"},{"$f":"IF(ISBLANK('Competition Data'!G109),\"\",'Competition Data'!G109)","v":32000},{"$f":"IF(ISBLANK('Competition Data'!D109),\"\",'Competition Data'!D109)","v":48},{"$f":"IF(ISBLANK('Competition Data'!E109),\"\",'Competition Data'!E109)","v":25},{"$f":"IF(ISBLANK('Competition Data'!F109),\"\",'Competition Data'!F109)","v":0.28999999999999998},"Flat Lane (Operational Utilisation Variable Availability)",{"$f":"IF(ISBLANK('Competition Data'!I109),\"\",'Competition Data'!I109)","v":"N/A"}]
["Flat LaneW27/28Operational Utilisation Variable Availability",{"$f":"IF(ISBLANK('Competition Data'!A110),\"\",'Competition Data'!A110)","v":"Flat Lane"},{"$f":"IF(ISBLANK('Competition Data'!H110),\"\",'Competition Data'!H110)","v":"ENWL-28"},{"$f":"IF(ISBLANK('Competition Data'!B110),\"\",'Competition Data'!B110)","v":"W27/28"},{"$f":"IF(ISBLANK('Competition Data'!C110),\"\",'Competition Data'!C110)","v":"Operational Utilisation Variable Availability"},{"$f":"IF(ISBLANK('Competition Data'!G110),\"\",'Competition Data'!G110)","v":32000},{"$f":"IF(ISBLANK('Competition Data'!D110),\"\",'Competition Data'!D110)","v":48},{"$f":"IF(ISBLANK('Competition Data'!E110),\"\",'Competition Data'!E110)","v":47},{"$f":"IF(ISBLANK('Competition Data'!F110),\"\",'Competition Data'!F110)","v":0.39},"Flat Lane (Operational Utilisation Variable Availability)",{"$f":"IF(ISBLANK('Competition Data'!I110),\"\",'Competition Data'!I110)","v":"N/A"}]
["Flat LaneFY26Operational Utilisation",{"$f":"IF(ISBLANK('Competition Data'!A111),\"\",'Competition Data'!A111)","v":"Flat Lane"},{"$f":"IF(ISBLANK('Competition Data'!H111),\"\",'Competition Data'!H111)","v":"ENWL-29"},{"$f":"IF(ISBLANK('Competition Data'!B111),\"\",'Competition Data'!B111)","v":"FY26"},{"$f":"IF(ISBLANK('Competition Data'!C111),\"\",'Competition Data'!C111)","v":"Operational Utilisation"},{"$f":"IF(ISBLANK('Competition Data'!G111),\"\",'Competition Data'!G111)","v":37725},{"$f":"IF(ISBLANK('Competition Data'!D111),\"\",'Competition Data'!D111)","v":100},{"$f":"IF(ISBLANK('Competition Data'!E111),\"\",'Competition Data'!E111)","v":0},{"$f":"IF(ISBLANK('Competition Data'!F111),\"\",'Competition Data'!F111)","v":4.0999999999999996},"Flat Lane (Operational Utilisation)",{"$f":"IF(ISBLANK('Competition Data'!I111),\"\",'Competition Data'!I111)","v":92.012195121951223}]
["Flat LaneFY27Operational Utilisation",{"$f":"IF(ISBLANK('Competition Data'!A112),\"\",'Competition Data'!A112)","v":"Flat Lane"},{"$f":"IF(ISBLANK('Competition Data'!H112),\"\",'Competition Data'!H112)","v":"ENWL-29"},{"$f":"IF(ISBLANK('Competition Data'!B112),\"\",'Competition Data'!B112)","v":"FY27"},{"$f":"IF(ISBLANK('Competition Data'!C112),\"\",'Competition Data'!C112)","v":"Operational Utilisation"},{"$f":"IF(ISBLANK('Competition Data'!G112),\"\",'Competition Data'!G112)","v":37725},{"$f":"IF(ISBLANK('Competition Data'!D112),\"\",'Competition Data'!D112)","v":100},{"$f":"IF(ISBLANK('Competition Data'!E112),\"\",'Competition Data'!E112)","v":0},{"$f":"IF(ISBLANK('Competition Data'!F112),\"\",'Competition Data'!F112)","v":4.0999999999999996},"Flat Lane (Operational Utilisation)",{"$f":"IF(ISBLANK('Competition Data'!I112),\"\",'Competition Data'!I112)","v":92.012195121951223}]
["Flat LaneFY28Operational Utilisation",{"$f":"IF(ISBLANK('Competition Data'!A113),\"\",'Competition Data'!A113)","v":"Flat Lane"},{"$f":"IF(ISBLANK('Competition Data'!H113),\"\",'Competition Data'!H113)","v":"ENWL-29"},{"$f":"IF(ISBLANK('Competition Data'!B113),\"\",'Competition Data'!B113)","v":"FY28"},{"$f":"IF(ISBLANK('Competition Data'!C113),\"\",'Competition Data'!C113)","v":"Operational Utilisation"},{"$f":"IF(ISBLANK('Competition Data'!G113),\"\",'Competition Data'!G113)","v":37725},{"$f":"IF(ISBLANK('Competition Data'!D113),\"\",'Competition Data'!D113)","v":100},{"$f":"IF(ISBLANK('Competition Data'!E113),\"\",'Competition Data'!E113)","v":0},{"$f":"IF(ISBLANK('Competition Data'!F113),\"\",'Competition Data'!F113)","v":4.0999999999999996},"Flat Lane (Operational Utilisation)",{"$f":"IF(ISBLANK('Competition Data'!I113),\"\",'Competition Data'!I113)","v":92.012195121951223}]
["Flat LaneW25/26Peak Reduction",{"$f":"IF(ISBLANK('Competition Data'!A114),\"\",'Competition Data'!A114)","v":"Flat Lane"},{"$f":"IF(ISBLANK('Competition Data'!H114),\"\",'Competition Data'!H114)","v":"ENWL-30"},{"$f":"IF(ISBLANK('Competition Data'!B114),\"\",'Competition Data'!B114)","v":"W25/26"},{"$f":"IF(ISBLANK('Competition Data'!C114),\"\",'Competition Data'!C114)","v":"Peak Reduction"},{"$f":"IF(ISBLANK('Competition Data'!G114),\"\",'Competition Data'!G114)","v":32000},{"$f":"IF(ISBLANK('Competition Data'!D114),\"\",'Competition Data'!D114)","v":62},{"$f":"IF(ISBLANK('Competition Data'!E114),\"\",'Competition Data'!E114)","v":0},{"$f":"IF(ISBLANK('Competition Data'!F114),\"\",'Competition Data'!F114)","v":0.23},"Flat Lane (Peak Reduction)",{"$f":"IF(ISBLANK('Competition Data'!I114),\"\",'Competition Data'!I114)","v":2244.0392706872367}]
["Flat LaneW26/27Peak Reduction",{"$f":"IF(ISBLANK('Competition Data'!A115),\"\",'Competition Data'!A115)","v":"Flat Lane"},{"$f":"IF(ISBLANK('Competition Data'!H115),\"\",'Competition Data'!H115)","v":"ENWL-30"},{"$f":"IF(ISBLANK('Competition Data'!B115),\"\",'Competition Data'!B115)","v":"W26/27"},{"$f":"IF(ISBLANK('Competition Data'!C115),\"\",'Competition Data'!C115)","v":"Peak Reduction"},{"$f":"IF(ISBLANK('Competition Data'!G115),\"\",'Competition Data'!G115)","v":32000},{"$f":"IF(ISBLANK('Competition Data'!D115),\"\",'Competition Data'!D115)","v":184},{"$f":"IF(ISBLANK('Competition Data'!E115),\"\",'Competition Data'!E115)","v":0},{"$f":"IF(ISBLANK('Competition Data'!F115),\"\",'Competition Data'!F115)","v":0.28999999999999998},"Flat Lane (Peak Reduction)",{"$f":"IF(ISBLANK('Competition Data'!I115),\"\",'Competition Data'!I115)","v":599.70014992503752}]
["Flat LaneW27/28Peak Reduction",{"$f":"IF(ISBLANK('Competition Data'!A116),\"\",'Competition Data'!A116)","v":"Flat Lane"},{"$f":"IF(ISBLANK('Competition Data'!H116),\"\",'Competition Data'!H116)","v":"ENWL-30"},{"$f":"IF(ISBLANK('Competition Data'!B116),\"\",'Competition Data'!B116)","v":"W27/28"},{"$f":"IF(ISBLANK('Competition Data'!C116),\"\",'Competition Data'!C116)","v":"Peak Reduction"},{"$f":"IF(ISBLANK('Competition Data'!G116),\"\",'Competition Data'!G116)","v":32000},{"$f":"IF(ISBLANK('Competition Data'!D116),\"\",'Competition Data'!D116)","v":304},{"$f":"IF(ISBLANK('Competition Data'!E116),\"\",'Competition Data'!E116)","v":0},{"$f":"IF(ISBLANK('Competition Data'!F116),\"\",'Competition Data'!F116)","v":0.39},"Flat Lane (Peak Reduction)",{"$f":"IF(ISBLANK('Competition Data'!I116),\"\",'Competition Data'!I116)","v":269.90553306342775}]
["Frederick Rd BSPW25/26Operational Utilisation Variable Availability",{"$f":"IF(ISBLANK('Competition Data'!A117),\"\",'Competition Data'!A117)","v":"Frederick Rd BSP"},{"$f":"IF(ISBLANK('Competition Data'!H117),\"\",'Competition Data'!H117)","v":"ENWL-31"},{"$f":"IF(ISBLANK('Competition Data'!B117),\"\",'Competition Data'!B117)","v":"W25/26"},{"$f":"IF(ISBLANK('Competition Data'!C117),\"\",'Competition Data'!C117)","v":"Operational Utilisation Variable Availability"},{"$f":"IF(ISBLANK('Competition Data'!G117),\"\",'Competition Data'!G117)","v":349000},{"$f":"IF(ISBLANK('Competition Data'!D117),\"\",'Competition Data'!D117)","v":48},{"$f":"IF(ISBLANK('Competition Data'!E117),\"\",'Competition Data'!E117)","v":173},{"$f":"IF(ISBLANK('Competition Data'!F117),\"\",'Competition Data'!F117)","v":12.2},"Frederick Rd BSP (Operational Utilisation Variable Availability)",{"$f":"IF(ISBLANK('Competition Data'!I117),\"\",'Competition Data'!I117)","v":"N/A"}]
["Frederick Rd BSPW26/27Operational Utilisation Variable Availability",{"$f":"IF(ISBLANK('Competition Data'!A118),\"\",'Competition Data'!A118)","v":"Frederick Rd BSP"},{"$f":"IF(ISBLANK('Competition Data'!H118),\"\",'Competition Data'!H118)","v":"ENWL-31"},{"$f":"IF(ISBLANK('Competition Data'!B118),\"\",'Competition Data'!B118)","v":"W26/27"},{"$f":"IF(ISBLANK('Competition Data'!C118),\"\",'Competition Data'!C118)","v":"Operational Utilisation Variable Availability"},{"$f":"IF(ISBLANK('Competition Data'!G118),\"\",'Competition Data'!G118)","v":349000},{"$f":"IF(ISBLANK('Competition Data'!D118),\"\",'Competition Data'!D118)","v":48},{"$f":"IF(ISBLANK('Competition Data'!E118),\"\",'Competition Data'!E118)","v":631},{"$f":"IF(ISBLANK('Competition Data'!F118),\"\",'Competition Data'!F118)","v":23.3},"Frederick Rd BSP (Operational Utilisation Variable Availability)",{"$f":"IF(ISBLANK('Competition Data'!I118),\"\",'Competition Data'!I118)","v":"N/A"}]
["Frederick Rd BSPW27/28Operational Utilisation Variable Availability",{"$f":"IF(ISBLANK('Competition Data'!A119),\"\",'Competition Data'!A119)","v":"Frederick Rd BSP"},{"$f":"IF(ISBLANK('Competition Data'!H119),\"\",'Competition Data'!H119)","v":"ENWL-31"},{"$f":"IF(ISBLANK('Competition Data'!B119),\"\",'Competition Data'!B119)","v":"W27/28"},{"$f":"IF(ISBLANK('Competition Data'!C119),\"\",'Competition Data'!C119)","v":"Operational Utilisation Variable Availability"},{"$f":"IF(ISBLANK('Competition Data'!G119),\"\",'Competition Data'!G119)","v":349000},{"$f":"IF(ISBLANK('Competition Data'!D119),\"\",'Competition Data'!D119)","v":100},{"$f":"IF(ISBLANK('Competition Data'!E119),\"\",'Competition Data'!E119)","v":978},{"$f":"IF(ISBLANK('Competition Data'!F119),\"\",'Competition Data'!F119)","v":30.1},"Frederick Rd BSP (Operational Utilisation Variable Availability)",{"$f":"IF(ISBLANK('Competition Data'!I119),\"\",'Competition Data'!I119)","v":"N/A"}]
["Frederick Rd BSPW27/28Operational Utilisation",{"$f":"IF(ISBLANK('Competition Data'!A120),\"\",'Competition Data'!A120)","v":"Frederick Rd BSP"},{"$f":"IF(ISBLANK('Competition Data'!H120),\"\",'Competition Data'!H120)","v":"ENWL-32"},{"$f":"IF(ISBLANK('Competition Data'!B120),\"\",'Competition Data'!B120)","v":"W27/28"},{"$f":"IF(ISBLANK('Competition Data'!C120),\"\",'Competition Data'!C120)","v":"Operational Utilisation"},{"$f":"IF(ISBLANK('Competition Data'!G120),\"\",'Competition Data'!G120)","v":917277},{"$f":"IF(ISBLANK('Competition Data'!D120),\"\",'Competition Data'!D120)","v":100},{"$f":"IF(ISBLANK('Competition Data'!E120),\"\",'Competition Data'!E120)","v":0},{"$f":"IF(ISBLANK('Competition Data'!F120),\"\",'Competition Data'!F120)","v":30.1},"Frederick Rd BSP (Operational Utilisation)",{"$f":"IF(ISBLANK('Competition Data'!I120),\"\",'Competition Data'!I120)","v":304.74318936877074}]
["Frederick Rd BSPW25/26Peak Reduction",{"$f":"IF(ISBLANK('Competition Data'!A121),\"\",'Competition Data'!A121)","v":"Frederick Rd BSP"},{"$f":"IF(ISBLANK('Competition Data'!H121),\"\",'Competition Data'!H121)","v":"ENWL-33"},{"$f":"IF(ISBLANK('Competition Data'!B121),\"\",'Competition Data'!B121)","v":"W25/26"},{"$f":"IF(ISBLANK('Competition Data'!C121),\"\",'Competition Data'!C121)","v":"Peak Reduction"},{"$f":"IF(ISBLANK('Competition Data'!G121),\"\",'Competition Data'!G121)","v":349000},{"$f":"IF(ISBLANK('Competition Data'!D121),\"\",'Competition Data'!D121)","v":1661},{"$f":"IF(ISBLANK('Competition Data'!E121),\"\",'Competition Data'!E121)","v":0},{"$f":"IF(ISBLANK('Competition Data'!F121),\"\",'Competition Data'!F121)","v":12.2},"Frederick Rd BSP (Peak Reduction)",{"$f":"IF(ISBLANK('Competition Data'!I121),\"\",'Competition Data'!I121)","v":17.222490895273438}]
["Frederick Rd BSPW26/27Peak Reduction",{"$f":"IF(ISBLANK('Competition Data'!A122),\"\",'Competition Data'!A122)","v":"Frederick Rd BSP"},{"$f":"IF(ISBLANK('Competition Data'!H122),\"\",'Competition Data'!H122)","v":"ENWL-33"},{"$f":"IF(ISBLANK('Competition Data'!B122),\"\",'Competition Data'!B122)","v":"W26/27"},{"$f":"IF(ISBLANK('Competition Data'!C122),\"\",'Competition Data'!C122)","v":"Peak Reduction"},{"$f":"IF(ISBLANK('Competition Data'!G122),\"\",'Competition Data'!G122)","v":349000},{"$f":"IF(ISBLANK('Competition Data'!D122),\"\",'Competition Data'!D122)","v":2114},{"$f":"IF(ISBLANK('Competition Data'!E122),\"\",'Competition Data'!E122)","v":0},{"$f":"IF(ISBLANK('Competition Data'!F122),\"\",'Competition Data'!F122)","v":23.3},"Frederick Rd BSP (Peak Reduction)",{"$f":"IF(ISBLANK('Competition Data'!I122),\"\",'Competition Data'!I122)","v":7.0854024467985752}]
["Frederick Rd BSPW27/28Peak Reduction",{"$f":"IF(ISBLANK('Competition Data'!A123),\"\",'Competition Data'!A123)","v":"Frederick Rd BSP"},{"$f":"IF(ISBLANK('Competition Data'!H123),\"\",'Competition Data'!H123)","v":"ENWL-33"},{"$f":"IF(ISBLANK('Competition Data'!B123),\"\",'Competition Data'!B123)","v":"W27/28"},{"$f":"IF(ISBLANK('Competition Data'!C123),\"\",'Competition Data'!C123)","v":"Peak Reduction"},{"$f":"IF(ISBLANK('Competition Data'!G123),\"\",'Competition Data'!G123)","v":349000},{"$f":"IF(ISBLANK('Competition Data'!D123),\"\",'Competition Data'!D123)","v":2128},{"$f":"IF(ISBLANK('Competition Data'!E123),\"\",'Competition Data'!E123)","v":0},{"$f":"IF(ISBLANK('Competition Data'!F123),\"\",'Competition Data'!F123)","v":30.1},"Frederick Rd BSP (Peak Reduction)",{"$f":"IF(ISBLANK('Competition Data'!I123),\"\",'Competition Data'!I123)","v":5.4486298803487125}]
["GillsrowFY26Operational Utilisation",{"$f":"IF(ISBLANK('Competition Data'!A124),\"\",'Competition Data'!A124)","v":"Gillsrow"},{"$f":"IF(ISBLANK('Competition Data'!H124),\"\",'Competition Data'!H124)","v":"ENWL-34"},{"$f":"IF(ISBLANK('Competition Data'!B124),\"\",'Competition Data'!B124)","v":"FY26"},{"$f":"IF(ISBLANK('Competition Data'!C124),\"\",'Competition Data'!C124)","v":"Operational Utilisation"},{"$f":"IF(ISBLANK('Competition Data'!G124),\"\",'Competition Data'!G124)","v":50789},{"$f":"IF(ISBLANK('Competition Data'!D124),\"\",'Competition Data'!D124)","v":100},{"$f":"IF(ISBLANK('Competition Data'!E124),\"\",'Competition Data'!E124)","v":0},{"$f":"IF(ISBLANK('Competition Data'!F124),\"\",'Competition Data'!F124)","v":3.4},"Gillsrow (Operational Utilisation)",{"$f":"IF(ISBLANK('Competition Data'!I124),\"\",'Competition Data'!I124)","v":149.37941176470588}]
["GillsrowFY27Operational Utilisation",{"$f":"IF(ISBLANK('Competition Data'!A125),\"\",'Competition Data'!A125)","v":"Gillsrow"},{"$f":"IF(ISBLANK('Competition Data'!H125),\"\",'Competition Data'!H125)","v":"ENWL-34"},{"$f":"IF(ISBLANK('Competition Data'!B125),\"\",'Competition Data'!B125)","v":"FY27"},{"$f":"IF(ISBLANK('Competition Data'!C125),\"\",'Competition Data'!C125)","v":"Operational Utilisation"},{"$f":"IF(ISBLANK('Competition Data'!G125),\"\",'Competition Data'!G125)","v":50789},{"$f":"IF(ISBLANK('Competition Data'!D125),\"\",'Competition Data'!D125)","v":100},{"$f":"IF(ISBLANK('Competition Data'!E125),\"\",'Competition Data'!E125)","v":0},{"$f":"IF(ISBLANK('Competition Data'!F125),\"\",'Competition Data'!F125)","v":3.4},"Gillsrow (Operational Utilisation)",{"$f":"IF(ISBLANK('Competition Data'!I125),\"\",'Competition Data'!I125)","v":149.37941176470588}]
["GillsrowFY28Operational Utilisation",{"$f":"IF(ISBLANK('Competition Data'!A126),\"\",'Competition Data'!A126)","v":"Gillsrow"},{"$f":"IF(ISBLANK('Competition Data'!H126),\"\",'Competition Data'!H126)","v":"ENWL-34"},{"$f":"IF(ISBLANK('Competition Data'!B126),\"\",'Competition Data'!B126)","v":"FY28"},{"$f":"IF(ISBLANK('Competition Data'!C126),\"\",'Competition Data'!C126)","v":"Operational Utilisation"},{"$f":"IF(ISBLANK('Competition Data'!G126),\"\",'Competition Data'!G126)","v":50789},{"$f":"IF(ISBLANK('Competition Data'!D126),\"\",'Competition Data'!D126)","v":100},{"$f":"IF(ISBLANK('Competition Data'!E126),\"\",'Competition Data'!E126)","v":0},{"$f":"IF(ISBLANK('Competition Data'!F126),\"\",'Competition Data'!F126)","v":3.4},"Gillsrow (Operational Utilisation)",{"$f":"IF(ISBLANK('Competition Data'!I126),\"\",'Competition Data'!I126)","v":149.37941176470588}]
["Helwith BridgeFY26Operational Utilisation",{"$f":"IF(ISBLANK('Competition Data'!A127),\"\",'Competition Data'!A127)","v":"Helwith Bridge"},{"$f":"IF(ISBLANK('Competition Data'!H127),\"\",'Competition Data'!H127)","v":"ENWL-35"},{"$f":"IF(ISBLANK('Competition Data'!B127),\"\",'Competition Data'!B127)","v":"FY26"},{"$f":"IF(ISBLANK('Competition Data'!C127),\"\",'Competition Data'!C127)","v":"Operational Utilisation"},{"$f":"IF(ISBLANK('Competition Data'!G127),\"\",'Competition Data'!G127)","v":15643},{"$f":"IF(ISBLANK('Competition Data'!D127),\"\",'Competition Data'!D127)","v":100},{"$f":"IF(ISBLANK('Competition Data'!E127),\"\",'Competition Data'!E127)","v":0},{"$f":"IF(ISBLANK('Competition Data'!F127),\"\",'Competition Data'!F127)","v":3.6},"Helwith Bridge (Operational Utilisation)",{"$f":"IF(ISBLANK('Competition Data'!I127),\"\",'Competition Data'!I127)","v":43.452777777777776}]
["Helwith BridgeFY27Operational Utilisation",{"$f":"IF(ISBLANK('Competition Data'!A128),\"\",'Competition Data'!A128)","v":"Helwith Bridge"},{"$f":"IF(ISBLANK('Competition Data'!H128),\"\",'Competition Data'!H128)","v":"ENWL-35"},{"$f":"IF(ISBLANK('Competition Data'!B128),\"\",'Competition Data'!B128)","v":"FY27"},{"$f":"IF(ISBLANK('Competition Data'!C128),\"\",'Competition Data'!C128)","v":"Operational Utilisation"},{"$f":"IF(ISBLANK('Competition Data'!G128),\"\",'Competition Data'!G128)","v":15643},{"$f":"IF(ISBLANK('Competition Data'!D128),\"\",'Competition Data'!D128)","v":100},{"$f":"IF(ISBLANK('Competition Data'!E128),\"\",'Competition Data'!E128)","v":0},{"$f":"IF(ISBLANK('Competition Data'!F128),\"\",'Competition Data'!F128)","v":3.6},"Helwith Bridge (Operational Utilisation)",{"$f":"IF(ISBLANK('Competition Data'!I128),\"\",'Competition Data'!I128)","v":43.452777777777776}]
["Helwith BridgeFY28Operational Utilisation",{"$f":"IF(ISBLANK('Competition Data'!A129),\"\",'Competition Data'!A129)","v":"Helwith Bridge"},{"$f":"IF(ISBLANK('Competition Data'!H129),\"\",'Competition Data'!H129)","v":"ENWL-35"},{"$f":"IF(ISBLANK('Competition Data'!B129),\"\",'Competition Data'!B129)","v":"FY28"},{"$f":"IF(ISBLANK('Competition Data'!C129),\"\",'Competition Data'!C129)","v":"Operational Utilisation"},{"$f":"IF(ISBLANK('Competition Data'!G129),\"\",'Competition Data'!G129)","v":15643},{"$f":"IF(ISBLANK('Competition Data'!D129),\"\",'Competition Data'!D129)","v":100},{"$f":"IF(ISBLANK('Competition Data'!E129),\"\",'Competition Data'!E129)","v":0},{"$f":"IF(ISBLANK('Competition Data'!F129),\"\",'Competition Data'!F129)","v":3.6},"Helwith Bridge (Operational Utilisation)",{"$f":"IF(ISBLANK('Competition Data'!I129),\"\",'Competition Data'!I129)","v":43.452777777777776}]
["IngletonFY26Operational Utilisation",{"$f":"IF(ISBLANK('Competition Data'!A130),\"\",'Competition Data'!A130)","v":"Ingleton"},{"$f":"IF(ISBLANK('Competition Data'!H130),\"\",'Competition Data'!H130)","v":"ENWL-36"},{"$f":"IF(ISBLANK('Competition Data'!B130),\"\",'Competition Data'!B130)","v":"FY26"},{"$f":"IF(ISBLANK('Competition Data'!C130),\"\",'Competition Data'!C130)","v":"Operational Utilisation"},{"$f":"IF(ISBLANK('Competition Data'!G130),\"\",'Competition Data'!G130)","v":26500},{"$f":"IF(ISBLANK('Competition Data'!D130),\"\",'Competition Data'!D130)","v":100},{"$f":"IF(ISBLANK('Competition Data'!E130),\"\",'Competition Data'!E130)","v":0},{"$f":"IF(ISBLANK('Competition Data'!F130),\"\",'Competition Data'!F130)","v":2.2000000000000002},"Ingleton (Operational Utilisation)",{"$f":"IF(ISBLANK('Competition Data'!I130),\"\",'Competition Data'!I130)","v":120.45454545454544}]
[{"$f":"CONCATENATE(B131,D131,E131)","v":"IngletonFY27Operational Utilisation"},{"$f":"IF(ISBLANK('Competition Data'!A131),\"\",'Competition Data'!A131)","v":"Ingleton"},{"$f":"IF(ISBLANK('Competition Data'!H131),\"\",'Competition Data'!H131)","v":"ENWL-36"},{"$f":"IF(ISBLANK('Competition Data'!B131),\"\",'Competition Data'!B131)","v":"FY27"},{"$f":"IF(ISBLANK('Competition Data'!C131),\"\",'Competition Data'!C131)","v":"Operational Utilisation"},{"$f":"IF(ISBLANK('Competition Data'!G131),\"\",'Competition Data'!G131)","v":26500},{"$f":"IF(ISBLANK('Competition Data'!D131),\"\",'Competition Data'!D131)","v":100},{"$f":"IF(ISBLANK('Competition Data'!E131),\"\",'Competition Data'!E131)","v":0},{"$f":"IF(ISBLANK('Competition Data'!F131),\"\",'Competition Data'!F131)","v":2.2000000000000002},{"$f":"CONCATENATE(B131,\" (\",E131,\")\")","v":"Ingleton (Operational Utilisation)"},{"$f":"IF(ISBLANK('Competition Data'!I131),\"\",'Competition Data'!I131)","v":120.45454545454544}]
["IngletonFY28Operational Utilisation",{"$f":"IF(ISBLANK('Competition Data'!A132),\"\",'Competition Data'!A132)","v":"Ingleton"},{"$f":"IF(ISBLANK('Competition Data'!H132),\"\",'Competition Data'!H132)","v":"ENWL-36"},{"$f":"IF(ISBLANK('Competition Data'!B132),\"\",'Competition Data'!B132)","v":"FY28"},{"$f":"IF(ISBLANK('Competition Data'!C132),\"\",'Competition Data'!C132)","v":"Operational Utilisation"},{"$f":"IF(ISBLANK('Competition Data'!G132),\"\",'Competition Data'!G132)","v":26500},{"$f":"IF(ISBLANK('Competition Data'!D132),\"\",'Competition Data'!D132)","v":100},{"$f":"IF(ISBLANK('Competition Data'!E132),\"\",'Competition Data'!E132)","v":0},{"$f":"IF(ISBLANK('Competition Data'!F132),\"\",'Competition Data'!F132)","v":2.2000000000000002},"Ingleton (Operational Utilisation)",{"$f":"IF(ISBLANK('Competition Data'!I132),\"\",'Competition Data'!I132)","v":120.45454545454544}]
["Knott MillW25/26Operational Utilisation Variable Availability",{"$f":"IF(ISBLANK('Competition Data'!A133),\"\",'Competition Data'!A133)","v":"Knott Mill"},{"$f":"IF(ISBLANK('Competition Data'!H133),\"\",'Competition Data'!H133)","v":"ENWL-37"},{"$f":"IF(ISBLANK('Competition Data'!B133),\"\",'Competition Data'!B133)","v":"W25/26"},{"$f":"IF(ISBLANK('Competition Data'!C133),\"\",'Competition Data'!C133)","v":"Operational Utilisation Variable Availability"},{"$f":"IF(ISBLANK('Competition Data'!G133),\"\",'Competition Data'!G133)","v":33000},{"$f":"IF(ISBLANK('Competition Data'!D133),\"\",'Competition Data'!D133)","v":48},{"$f":"IF(ISBLANK('Competition Data'!E133),\"\",'Competition Data'!E133)","v":46},{"$f":"IF(ISBLANK('Competition Data'!F133),\"\",'Competition Data'!F133)","v":2.5},"Knott Mill (Operational Utilisation Variable Availability)",{"$f":"IF(ISBLANK('Competition Data'!I133),\"\",'Competition Data'!I133)","v":"N/A"}]
["Knott MillW26/27Operational Utilisation Variable Availability",{"$f":"IF(ISBLANK('Competition Data'!A134),\"\",'Competition Data'!A134)","v":"Knott Mill"},{"$f":"IF(ISBLANK('Competition Data'!H134),\"\",'Competition Data'!H134)","v":"ENWL-37"},{"$f":"IF(ISBLANK('Competition Data'!B134),\"\",'Competition Data'!B134)","v":"W26/27"},{"$f":"IF(ISBLANK('Competition Data'!C134),\"\",'Competition Data'!C134)","v":"Operational Utilisation Variable Availability"},{"$f":"IF(ISBLANK('Competition Data'!G134),\"\",'Competition Data'!G134)","v":33000},{"$f":"IF(ISBLANK('Competition Data'!D134),\"\",'Competition Data'!D134)","v":48},{"$f":"IF(ISBLANK('Competition Data'!E134),\"\",'Competition Data'!E134)","v":61},{"$f":"IF(ISBLANK('Competition Data'!F134),\"\",'Competition Data'!F134)","v":2.89},"Knott Mill (Operational Utilisation Variable Availability)",{"$f":"IF(ISBLANK('Competition Data'!I134),\"\",'Competition Data'!I134)","v":"N/A"}]
["Knott MillW27/28Operational Utilisation Variable Availability",{"$f":"IF(ISBLANK('Competition Data'!A135),\"\",'Competition Data'!A135)","v":"Knott Mill"},{"$f":"IF(ISBLANK('Competition Data'!H135),\"\",'Competition Data'!H135)","v":"ENWL-37"},{"$f":"IF(ISBLANK('Competition Data'!B135),\"\",'Competition Data'!B135)","v":"W27/28"},{"$f":"IF(ISBLANK('Competition Data'!C135),\"\",'Competition Data'!C135)","v":"Operational Utilisation Variable Availability"},{"$f":"IF(ISBLANK('Competition Data'!G135),\"\",'Competition Data'!G135)","v":33000},{"$f":"IF(ISBLANK('Competition Data'!D135),\"\",'Competition Data'!D135)","v":48},{"$f":"IF(ISBLANK('Competition Data'!E135),\"\",'Competition Data'!E135)","v":83},{"$f":"IF(ISBLANK('Competition Data'!F135),\"\",'Competition Data'!F135)","v":3.26},"Knott Mill (Operational Utilisation Variable Availability)",{"$f":"IF(ISBLANK('Competition Data'!I135),\"\",'Competition Data'!I135)","v":"N/A"}]
["Knott MillW25/26Peak Reduction",{"$f":"IF(ISBLANK('Competition Data'!A136),\"\",'Competition Data'!A136)","v":"Knott Mill"},{"$f":"IF(ISBLANK('Competition Data'!H136),\"\",'Competition Data'!H136)","v":"ENWL-38"},{"$f":"IF(ISBLANK('Competition Data'!B136),\"\",'Competition Data'!B136)","v":"W25/26"},{"$f":"IF(ISBLANK('Competition Data'!C136),\"\",'Competition Data'!C136)","v":"Peak Reduction"},{"$f":"IF(ISBLANK('Competition Data'!G136),\"\",'Competition Data'!G136)","v":33000},{"$f":"IF(ISBLANK('Competition Data'!D136),\"\",'Competition Data'!D136)","v":450},{"$f":"IF(ISBLANK('Competition Data'!E136),\"\",'Competition Data'!E136)","v":0},{"$f":"IF(ISBLANK('Competition Data'!F136),\"\",'Competition Data'!F136)","v":2.5},"Knott Mill (Peak Reduction)",{"$f":"IF(ISBLANK('Competition Data'!I136),\"\",'Competition Data'!I136)","v":29.333333333333332}]
["Knott MillW26/27Peak Reduction",{"$f":"IF(ISBLANK('Competition Data'!A137),\"\",'Competition Data'!A137)","v":"Knott Mill"},{"$f":"IF(ISBLANK('Competition Data'!H137),\"\",'Competition Data'!H137)","v":"ENWL-38"},{"$f":"IF(ISBLANK('Competition Data'!B137),\"\",'Competition Data'!B137)","v":"W26/27"},{"$f":"IF(ISBLANK('Competition Data'!C137),\"\",'Competition Data'!C137)","v":"Peak Reduction"},{"$f":"IF(ISBLANK('Competition Data'!G137),\"\",'Competition Data'!G137)","v":33000},{"$f":"IF(ISBLANK('Competition Data'!D137),\"\",'Competition Data'!D137)","v":600},{"$f":"IF(ISBLANK('Competition Data'!E137),\"\",'Competition Data'!E137)","v":0},{"$f":"IF(ISBLANK('Competition Data'!F137),\"\",'Competition Data'!F137)","v":2.89},"Knott Mill (Peak Reduction)",{"$f":"IF(ISBLANK('Competition Data'!I137),\"\",'Competition Data'!I137)","v":19.031141868512108}]
["Knott MillW27/28Peak Reduction",{"$f":"IF(ISBLANK('Competition Data'!A138),\"\",'Competition Data'!A138)","v":"Knott Mill"},{"$f":"IF(ISBLANK('Competition Data'!H138),\"\",'Competition Data'!H138)","v":"ENWL-38"},{"$f":"IF(ISBLANK('Competition Data'!B138),\"\",'Competition Data'!B138)","v":"W27/28"},{"$f":"IF(ISBLANK('Competition Data'!C138),\"\",'Competition Data'!C138)","v":"Peak Reduction"},{"$f":"IF(ISBLANK('Competition Data'!G138),\"\",'Competition Data'!G138)","v":33000},{"$f":"IF(ISBLANK('Competition Data'!D138),\"\",'Competition Data'!D138)","v":760},{"$f":"IF(ISBLANK('Competition Data'!E138),\"\",'Competition Data'!E138)","v":0},{"$f":"IF(ISBLANK('Competition Data'!F138),\"\",'Competition Data'!F138)","v":3.26},"Knott Mill (Peak Reduction)",{"$f":"IF(ISBLANK('Competition Data'!I138),\"\",'Competition Data'!I138)","v":13.319341298030352}]
["Longsight BSPW27/28Operational Utilisation Variable Availability",{"$f":"IF(ISBLANK('Competition Data'!A139),\"\",'Competition Data'!A139)","v":"Longsight BSP"},{"$f":"IF(ISBLANK('Competition Data'!H139),\"\",'Competition Data'!H139)","v":"ENWL-39"},{"$f":"IF(ISBLANK('Competition Data'!B139),\"\",'Competition Data'!B139)","v":"W27/28"},{"$f":"IF(ISBLANK('Competition Data'!C139),\"\",'Competition Data'!C139)","v":"Operational Utilisation Variable Availability"},{"$f":"IF(ISBLANK('Competition Data'!G139),\"\",'Competition Data'!G139)","v":68126},{"$f":"IF(ISBLANK('Competition Data'!D139),\"\",'Competition Data'!D139)","v":48},{"$f":"IF(ISBLANK('Competition Data'!E139),\"\",'Competition Data'!E139)","v":53},{"$f":"IF(ISBLANK('Competition Data'!F139),\"\",'Competition Data'!F139)","v":7.24},"Longsight BSP (Operational Utilisation Variable Availability)",{"$f":"IF(ISBLANK('Competition Data'!I139),\"\",'Competition Data'!I139)","v":"N/A"}]
["Longsight BSPW27/28Peak Reduction",{"$f":"IF(ISBLANK('Competition Data'!A140),\"\",'Competition Data'!A140)","v":"Longsight BSP"},{"$f":"IF(ISBLANK('Competition Data'!H140),\"\",'Competition Data'!H140)","v":"ENWL-40"},{"$f":"IF(ISBLANK('Competition Data'!B140),\"\",'Competition Data'!B140)","v":"W27/28"},{"$f":"IF(ISBLANK('Competition Data'!C140),\"\",'Competition Data'!C140)","v":"Peak Reduction"},{"$f":"IF(ISBLANK('Competition Data'!G140),\"\",'Competition Data'!G140)","v":68126},{"$f":"IF(ISBLANK('Competition Data'!D140),\"\",'Competition Data'!D140)","v":1331},{"$f":"IF(ISBLANK('Competition Data'!E140),\"\",'Competition Data'!E140)","v":0},{"$f":"IF(ISBLANK('Competition Data'!F140),\"\",'Competition Data'!F140)","v":7.24},"Longsight BSP (Peak Reduction)",{"$f":"IF(ISBLANK('Competition Data'!I140),\"\",'Competition Data'!I140)","v":7.0696232218537132}]
["MarpleFY26Operational Utilisation",{"$f":"IF(ISBLANK('Competition Data'!A141),\"\",'Competition Data'!A141)","v":"Marple"},{"$f":"IF(ISBLANK('Competition Data'!H141),\"\",'Competition Data'!H141)","v":"ENWL-41"},{"$f":"IF(ISBLANK('Competition Data'!B141),\"\",'Competition Data'!B141)","v":"FY26"},{"$f":"IF(ISBLANK('Competition Data'!C141),\"\",'Competition Data'!C141)","v":"Operational Utilisation"},{"$f":"IF(ISBLANK('Competition Data'!G141),\"\",'Competition Data'!G141)","v":63181},{"$f":"IF(ISBLANK('Competition Data'!D141),\"\",'Competition Data'!D141)","v":100},{"$f":"IF(ISBLANK('Competition Data'!E141),\"\",'Competition Data'!E141)","v":0},{"$f":"IF(ISBLANK('Competition Data'!F141),\"\",'Competition Data'!F141)","v":4.7},"Marple (Operational Utilisation)",{"$f":"IF(ISBLANK('Competition Data'!I141),\"\",'Competition Data'!I141)","v":134.42765957446807}]
["MarpleFY27Operational Utilisation",{"$f":"IF(ISBLANK('Competition Data'!A142),\"\",'Competition Data'!A142)","v":"Marple"},{"$f":"IF(ISBLANK('Competition Data'!H142),\"\",'Competition Data'!H142)","v":"ENWL-41"},{"$f":"IF(ISBLANK('Competition Data'!B142),\"\",'Competition Data'!B142)","v":"FY27"},{"$f":"IF(ISBLANK('Competition Data'!C142),\"\",'Competition Data'!C142)","v":"Operational Utilisation"},{"$f":"IF(ISBLANK('Competition Data'!G142),\"\",'Competition Data'!G142)","v":63181},{"$f":"IF(ISBLANK('Competition Data'!D142),\"\",'Competition Data'!D142)","v":100},{"$f":"IF(ISBLANK('Competition Data'!E142),\"\",'Competition Data'!E142)","v":0},{"$f":"IF(ISBLANK('Competition Data'!F142),\"\",'Competition Data'!F142)","v":4.7},"Marple (Operational Utilisation)",{"$f":"IF(ISBLANK('Competition Data'!I142),\"\",'Competition Data'!I142)","v":134.42765957446807}]
["MarpleFY28Operational Utilisation",{"$f":"IF(ISBLANK('Competition Data'!A143),\"\",'Competition Data'!A143)","v":"Marple"},{"$f":"IF(ISBLANK('Competition Data'!H143),\"\",'Competition Data'!H143)","v":"ENWL-41"},{"$f":"IF(ISBLANK('Competition Data'!B143),\"\",'Competition Data'!B143)","v":"FY28"},{"$f":"IF(ISBLANK('Competition Data'!C143),\"\",'Competition Data'!C143)","v":"Operational Utilisation"},{"$f":"IF(ISBLANK('Competition Data'!G143),\"\",'Competition Data'!G143)","v":63181},{"$f":"IF(ISBLANK('Competition Data'!D143),\"\",'Competition Data'!D143)","v":100},{"$f":"IF(ISBLANK('Competition Data'!E143),\"\",'Competition Data'!E143)","v":0},{"$f":"IF(ISBLANK('Competition Data'!F143),\"\",'Competition Data'!F143)","v":4.7},"Marple (Operational Utilisation)",{"$f":"IF(ISBLANK('Competition Data'!I143),\"\",'Competition Data'!I143)","v":134.42765957446807}]
["MellingFY26Operational Utilisation",{"$f":"IF(ISBLANK('Competition Data'!A144),\"\",'Competition Data'!A144)","v":"Melling"},{"$f":"IF(ISBLANK('Competition Data'!H144),\"\",'Competition Data'!H144)","v":"ENWL-42"},{"$f":"IF(ISBLANK('Competition Data'!B144),\"\",'Competition Data'!B144)","v":"FY26"},{"$f":"IF(ISBLANK('Competition Data'!C144),\"\",'Competition Data'!C144)","v":"Operational Utilisation"},{"$f":"IF(ISBLANK('Competition Data'!G144),\"\",'Competition Data'!G144)","v":21480},{"$f":"IF(ISBLANK('Competition Data'!D144),\"\",'Competition Data'!D144)","v":100},{"$f":"IF(ISBLANK('Competition Data'!E144),\"\",'Competition Data'!E144)","v":0},{"$f":"IF(ISBLANK('Competition Data'!F144),\"\",'Competition Data'!F144)","v":2.2999999999999998},"Melling (Operational Utilisation)",{"$f":"IF(ISBLANK('Competition Data'!I144),\"\",'Competition Data'!I144)","v":93.391304347826093}]
["MellingFY27Operational Utilisation",{"$f":"IF(ISBLANK('Competition Data'!A145),\"\",'Competition Data'!A145)","v":"Melling"},{"$f":"IF(ISBLANK('Competition Data'!H145),\"\",'Competition Data'!H145)","v":"ENWL-42"},{"$f":"IF(ISBLANK('Competition Data'!B145),\"\",'Competition Data'!B145)","v":"FY27"},{"$f":"IF(ISBLANK('Competition Data'!C145),\"\",'Competition Data'!C145)","v":"Operational Utilisation"},{"$f":"IF(ISBLANK('Competition Data'!G145),\"\",'Competition Data'!G145)","v":21480},{"$f":"IF(ISBLANK('Competition Data'!D145),\"\",'Competition Data'!D145)","v":100},{"$f":"IF(ISBLANK('Competition Data'!E145),\"\",'Competition Data'!E145)","v":0},{"$f":"IF(ISBLANK('Competition Data'!F145),\"\",'Competition Data'!F145)","v":2.2999999999999998},"Melling (Operational Utilisation)",{"$f":"IF(ISBLANK('Competition Data'!I145),\"\",'Competition Data'!I145)","v":93.391304347826093}]
["MellingFY28Operational Utilisation",{"$f":"IF(ISBLANK('Competition Data'!A146),\"\",'Competition Data'!A146)","v":"Melling"},{"$f":"IF(ISBLANK('Competition Data'!H146),\"\",'Competition Data'!H146)","v":"ENWL-42"},{"$f":"IF(ISBLANK('Competition Data'!B146),\"\",'Competition Data'!B146)","v":"FY28"},{"$f":"IF(ISBLANK('Competition Data'!C146),\"\",'Competition Data'!C146)","v":"Operational Utilisation"},{"$f":"IF(ISBLANK('Competition Data'!G146),\"\",'Competition Data'!G146)","v":21480},{"$f":"IF(ISBLANK('Competition Data'!D146),\"\",'Competition Data'!D146)","v":100},{"$f":"IF(ISBLANK('Competition Data'!E146),\"\",'Competition Data'!E146)","v":0},{"$f":"IF(ISBLANK('Competition Data'!F146),\"\",'Competition Data'!F146)","v":2.2999999999999998},"Melling (Operational Utilisation)",{"$f":"IF(ISBLANK('Competition Data'!I146),\"\",'Competition Data'!I146)","v":93.391304347826093}]
["MintsfeetS25Operational Utilisation Variable Availability",{"$f":"IF(ISBLANK('Competition Data'!A147),\"\",'Competition Data'!A147)","v":"Mintsfeet"},{"$f":"IF(ISBLANK('Competition Data'!H147),\"\",'Competition Data'!H147)","v":"ENWL-43"},{"$f":"IF(ISBLANK('Competition Data'!B147),\"\",'Competition Data'!B147)","v":"S25"},{"$f":"IF(ISBLANK('Competition Data'!C147),\"\",'Competition Data'!C147)","v":"Operational Utilisation Variable Availability"},{"$f":"IF(ISBLANK('Competition Data'!G147),\"\",'Competition Data'!G147)","v":159118},{"$f":"IF(ISBLANK('Competition Data'!D147),\"\",'Competition Data'!D147)","v":48},{"$f":"IF(ISBLANK('Competition Data'!E147),\"\",'Competition Data'!E147)","v":535},{"$f":"IF(ISBLANK('Competition Data'!F147),\"\",'Competition Data'!F147)","v":7.26},"Mintsfeet (Operational Utilisation Variable Availability)",{"$f":"IF(ISBLANK('Competition Data'!I147),\"\",'Competition Data'!I147)","v":"N/A"}]
["MintsfeetW25/26Operational Utilisation Variable Availability",{"$f":"IF(ISBLANK('Competition Data'!A148),\"\",'Competition Data'!A148)","v":"Mintsfeet"},{"$f":"IF(ISBLANK('Competition Data'!H148),\"\",'Competition Data'!H148)","v":"ENWL-43"},{"$f":"IF(ISBLANK('Competition Data'!B148),\"\",'Competition Data'!B148)","v":"W25/26"},{"$f":"IF(ISBLANK('Competition Data'!C148),\"\",'Competition Data'!C148)","v":"Operational Utilisation Variable Availability"},{"$f":"IF(ISBLANK('Competition Data'!G148),\"\",'Competition Data'!G148)","v":279882},{"$f":"IF(ISBLANK('Competition Data'!D148),\"\",'Competition Data'!D148)","v":200},{"$f":"IF(ISBLANK('Competition Data'!E148),\"\",'Competition Data'!E148)","v":2190},{"$f":"IF(ISBLANK('Competition Data'!F148),\"\",'Competition Data'!F148)","v":12.77},"Mintsfeet (Operational Utilisation Variable Availability)",{"$f":"IF(ISBLANK('Competition Data'!I148),\"\",'Competition Data'!I148)","v":"N/A"}]
["MintsfeetS26Operational Utilisation Variable Availability",{"$f":"IF(ISBLANK('Competition Data'!A149),\"\",'Competition Data'!A149)","v":"Mintsfeet"},{"$f":"IF(ISBLANK('Competition Data'!H149),\"\",'Competition Data'!H149)","v":"ENWL-43"},{"$f":"IF(ISBLANK('Competition Data'!B149),\"\",'Competition Data'!B149)","v":"S26"},{"$f":"IF(ISBLANK('Competition Data'!C149),\"\",'Competition Data'!C149)","v":"Operational Utilisation Variable Availability"},{"$f":"IF(ISBLANK('Competition Data'!G149),\"\",'Competition Data'!G149)","v":160257},{"$f":"IF(ISBLANK('Competition Data'!D149),\"\",'Competition Data'!D149)","v":48},{"$f":"IF(ISBLANK('Competition Data'!E149),\"\",'Competition Data'!E149)","v":681},{"$f":"IF(ISBLANK('Competition Data'!F149),\"\",'Competition Data'!F149)","v":7.52},"Mintsfeet (Operational Utilisation Variable Availability)",{"$f":"IF(ISBLANK('Competition Data'!I149),\"\",'Competition Data'!I149)","v":"N/A"}]
["MintsfeetW26/27Operational Utilisation Variable Availability",{"$f":"IF(ISBLANK('Competition Data'!A150),\"\",'Competition Data'!A150)","v":"Mintsfeet"},{"$f":"IF(ISBLANK('Competition Data'!H150),\"\",'Competition Data'!H150)","v":"ENWL-43"},{"$f":"IF(ISBLANK('Competition Data'!B150),\"\",'Competition Data'!B150)","v":"W26/27"},{"$f":"IF(ISBLANK('Competition Data'!C150),\"\",'Competition Data'!C150)","v":"Operational Utilisation Variable Availability"},{"$f":"IF(ISBLANK('Competition Data'!G150),\"\",'Competition Data'!G150)","v":278743},{"$f":"IF(ISBLANK('Competition Data'!D150),\"\",'Competition Data'!D150)","v":200},{"$f":"IF(ISBLANK('Competition Data'!E150),\"\",'Competition Data'!E150)","v":2264},{"$f":"IF(ISBLANK('Competition Data'!F150),\"\",'Competition Data'!F150)","v":13.08},"Mintsfeet (Operational Utilisation Variable Availability)",{"$f":"IF(ISBLANK('Competition Data'!I150),\"\",'Competition Data'!I150)","v":"N/A"}]
["MintsfeetS27Operational Utilisation Variable Availability",{"$f":"IF(ISBLANK('Competition Data'!A151),\"\",'Competition Data'!A151)","v":"Mintsfeet"},{"$f":"IF(ISBLANK('Competition Data'!H151),\"\",'Competition Data'!H151)","v":"ENWL-43"},{"$f":"IF(ISBLANK('Competition Data'!B151),\"\",'Competition Data'!B151)","v":"S27"},{"$f":"IF(ISBLANK('Competition Data'!C151),\"\",'Competition Data'!C151)","v":"Operational Utilisation Variable Availability"},{"$f":"IF(ISBLANK('Competition Data'!G151),\"\",'Competition Data'!G151)","v":161530},{"$f":"IF(ISBLANK('Competition Data'!D151),\"\",'Competition Data'!D151)","v":100},{"$f":"IF(ISBLANK('Competition Data'!E151),\"\",'Competition Data'!E151)","v":766},{"$f":"IF(ISBLANK('Competition Data'!F151),\"\",'Competition Data'!F151)","v":7.83},"Mintsfeet (Operational Utilisation Variable Availability)",{"$f":"IF(ISBLANK('Competition Data'!I151),\"\",'Competition Data'!I151)","v":"N/A"}]
["MintsfeetW27/28Operational Utilisation Variable Availability",{"$f":"IF(ISBLANK('Competition Data'!A152),\"\",'Competition Data'!A152)","v":"Mintsfeet"},{"$f":"IF(ISBLANK('Competition Data'!H152),\"\",'Competition Data'!H152)","v":"ENWL-43"},{"$f":"IF(ISBLANK('Competition Data'!B152),\"\",'Competition Data'!B152)","v":"W27/28"},{"$f":"IF(ISBLANK('Competition Data'!C152),\"\",'Competition Data'!C152)","v":"Operational Utilisation Variable Availability"},{"$f":"IF(ISBLANK('Competition Data'!G152),\"\",'Competition Data'!G152)","v":277470},{"$f":"IF(ISBLANK('Competition Data'!D152),\"\",'Competition Data'!D152)","v":200},{"$f":"IF(ISBLANK('Competition Data'!E152),\"\",'Competition Data'!E152)","v":2354},{"$f":"IF(ISBLANK('Competition Data'!F152),\"\",'Competition Data'!F152)","v":13.45},"Mintsfeet (Operational Utilisation Variable Availability)",{"$f":"IF(ISBLANK('Competition Data'!I152),\"\",'Competition Data'!I152)","v":"N/A"}]
["MintsfeetW25/26Operational Utilisation",{"$f":"IF(ISBLANK('Competition Data'!A153),\"\",'Competition Data'!A153)","v":"Mintsfeet"},{"$f":"IF(ISBLANK('Competition Data'!H153),\"\",'Competition Data'!H153)","v":"ENWL-44"},{"$f":"IF(ISBLANK('Competition Data'!B153),\"\",'Competition Data'!B153)","v":"W25/26"},{"$f":"IF(ISBLANK('Competition Data'!C153),\"\",'Competition Data'!C153)","v":"Operational Utilisation"},{"$f":"IF(ISBLANK('Competition Data'!G153),\"\",'Competition Data'!G153)","v":125972},{"$f":"IF(ISBLANK('Competition Data'!D153),\"\",'Competition Data'!D153)","v":100},{"$f":"IF(ISBLANK('Competition Data'!E153),\"\",'Competition Data'!E153)","v":0},{"$f":"IF(ISBLANK('Competition Data'!F153),\"\",'Competition Data'!F153)","v":12.77},"Mintsfeet (Operational Utilisation)",{"$f":"IF(ISBLANK('Competition Data'!I153),\"\",'Competition Data'!I153)","v":98.646828504306981}]
[{"$f":"CONCATENATE(B154,D154,E154)","v":"MintsfeetW26/27Operational Utilisation"},{"$f":"IF(ISBLANK('Competition Data'!A154),\"\",'Competition Data'!A154)","v":"Mintsfeet"},{"$f":"IF(ISBLANK('Competition Data'!H154),\"\",'Competition Data'!H154)","v":"ENWL-44"},{"$f":"IF(ISBLANK('Competition Data'!B154),\"\",'Competition Data'!B154)","v":"W26/27"},{"$f":"IF(ISBLANK('Competition Data'!C154),\"\",'Competition Data'!C154)","v":"Operational Utilisation"},{"$f":"IF(ISBLANK('Competition Data'!G154),\"\",'Competition Data'!G154)","v":125972},{"$f":"IF(ISBLANK('Competition Data'!D154),\"\",'Competition Data'!D154)","v":100},{"$f":"IF(ISBLANK('Competition Data'!E154),\"\",'Competition Data'!E154)","v":0},{"$f":"IF(ISBLANK('Competition Data'!F154),\"\",'Competition Data'!F154)","v":13.08},"Mintsfeet (Operational Utilisation)",{"$f":"IF(ISBLANK('Competition Data'!I154),\"\",'Competition Data'!I154)","v":96.308868501529048}]
["MintsfeetS27Operational Utilisation",{"$f":"IF(ISBLANK('Competition Data'!A155),\"\",'Competition Data'!A155)","v":"Mintsfeet"},{"$f":"IF(ISBLANK('Competition Data'!H155),\"\",'Competition Data'!H155)","v":"ENWL-44"},{"$f":"IF(ISBLANK('Competition Data'!B155),\"\",'Competition Data'!B155)","v":"S27"},{"$f":"IF(ISBLANK('Competition Data'!C155),\"\",'Competition Data'!C155)","v":"Operational Utilisation"},{"$f":"IF(ISBLANK('Competition Data'!G155),\"\",'Competition Data'!G155)","v":125972},{"$f":"IF(ISBLANK('Competition Data'!D155),\"\",'Competition Data'!D155)","v":100},{"$f":"IF(ISBLANK('Competition Data'!E155),\"\",'Competition Data'!E155)","v":0},{"$f":"IF(ISBLANK('Competition Data'!F155),\"\",'Competition Data'!F155)","v":7.83},"Mintsfeet (Operational Utilisation)",{"$f":"IF(ISBLANK('Competition Data'!I155),\"\",'Competition Data'!I155)","v":160.8837803320562}]
["MintsfeetW27/28Operational Utilisation",{"$f":"IF(ISBLANK('Competition Data'!A156),\"\",'Competition Data'!A156)","v":"Mintsfeet"},{"$f":"IF(ISBLANK('Competition Data'!H156),\"\",'Competition Data'!H156)","v":"ENWL-44"},{"$f":"IF(ISBLANK('Competition Data'!B156),\"\",'Competition Data'!B156)","v":"W27/28"},{"$f":"IF(ISBLANK('Competition Data'!C156),\"\",'Competition Data'!C156)","v":"Operational Utilisation"},{"$f":"IF(ISBLANK('Competition Data'!G156),\"\",'Competition Data'!G156)","v":125972},{"$f":"IF(ISBLANK('Competition Data'!D156),\"\",'Competition Data'!D156)","v":100},{"$f":"IF(ISBLANK('Competition Data'!E156),\"\",'Competition Data'!E156)","v":0},{"$f":"IF(ISBLANK('Competition Data'!F156),\"\",'Competition Data'!F156)","v":13.45},"Mintsfeet (Operational Utilisation)",{"$f":"IF(ISBLANK('Competition Data'!I156),\"\",'Competition Data'!I156)","v":93.659479553903353}]
["MintsfeetS25Peak Reduction",{"$f":"IF(ISBLANK('Competition Data'!A157),\"\",'Competition Data'!A157)","v":"Mintsfeet"},{"$f":"IF(ISBLANK('Competition Data'!H157),\"\",'Competition Data'!H157)","v":"ENWL-45"},{"$f":"IF(ISBLANK('Competition Data'!B157),\"\",'Competition Data'!B157)","v":"S25"},{"$f":"IF(ISBLANK('Competition Data'!C157),\"\",'Competition Data'!C157)","v":"Peak Reduction"},{"$f":"IF(ISBLANK('Competition Data'!G157),\"\",'Competition Data'!G157)","v":159118},{"$f":"IF(ISBLANK('Competition Data'!D157),\"\",'Competition Data'!D157)","v":2448},{"$f":"IF(ISBLANK('Competition Data'!E157),\"\",'Competition Data'!E157)","v":0},{"$f":"IF(ISBLANK('Competition Data'!F157),\"\",'Competition Data'!F157)","v":7.26},"Mintsfeet (Peak Reduction)",{"$f":"IF(ISBLANK('Competition Data'!I157),\"\",'Competition Data'!I157)","v":8.953055510542141}]
["MintsfeetW25/26Peak Reduction",{"$f":"IF(ISBLANK('Competition Data'!A158),\"\",'Competition Data'!A158)","v":"Mintsfeet"},{"$f":"IF(ISBLANK('Competition Data'!H158),\"\",'Competition Data'!H158)","v":"ENWL-45"},{"$f":"IF(ISBLANK('Competition Data'!B158),\"\",'Competition Data'!B158)","v":"W25/26"},{"$f":"IF(ISBLANK('Competition Data'!C158),\"\",'Competition Data'!C158)","v":"Peak Reduction"},{"$f":"IF(ISBLANK('Competition Data'!G158),\"\",'Competition Data'!G158)","v":279882},{"$f":"IF(ISBLANK('Competition Data'!D158),\"\",'Competition Data'!D158)","v":4186},{"$f":"IF(ISBLANK('Competition Data'!E158),\"\",'Competition Data'!E158)","v":0},{"$f":"IF(ISBLANK('Competition Data'!F158),\"\",'Competition Data'!F158)","v":12.77},"Mintsfeet (Peak Reduction)",{"$f":"IF(ISBLANK('Competition Data'!I158),\"\",'Competition Data'!I158)","v":5.2358216840188856}]
["MintsfeetS26Peak Reduction",{"$f":"IF(ISBLANK('Competition Data'!A159),\"\",'Competition Data'!A159)","v":"Mintsfeet"},{"$f":"IF(ISBLANK('Competition Data'!H159),\"\",'Competition Data'!H159)","v":"ENWL-45"},{"$f":"IF(ISBLANK('Competition Data'!B159),\"\",'Competition Data'!B159)","v":"S26"},{"$f":"IF(ISBLANK('Competition Data'!C159),\"\",'Competition Data'!C159)","v":"Peak Reduction"},{"$f":"IF(ISBLANK('Competition Data'!G159),\"\",'Competition Data'!G159)","v":160257},{"$f":"IF(ISBLANK('Competition Data'!D159),\"\",'Competition Data'!D159)","v":2928},{"$f":"IF(ISBLANK('Competition Data'!E159),\"\",'Competition Data'!E159)","v":0},{"$f":"IF(ISBLANK('Competition Data'!F159),\"\",'Competition Data'!F159)","v":7.52},"Mintsfeet (Peak Reduction)",{"$f":"IF(ISBLANK('Competition Data'!I159),\"\",'Competition Data'!I159)","v":7.2782688786187659}]
["MintsfeetW26/27Peak Reduction",{"$f":"IF(ISBLANK('Competition Data'!A160),\"\",'Competition Data'!A160)","v":"Mintsfeet"},{"$f":"IF(ISBLANK('Competition Data'!H160),\"\",'Competition Data'!H160)","v":"ENWL-45"},{"$f":"IF(ISBLANK('Competition Data'!B160),\"\",'Competition Data'!B160)","v":"W26/27"},{"$f":"IF(ISBLANK('Competition Data'!C160),\"\",'Competition Data'!C160)","v":"Peak Reduction"},{"$f":"IF(ISBLANK('Competition Data'!G160),\"\",'Competition Data'!G160)","v":278743},{"$f":"IF(ISBLANK('Competition Data'!D160),\"\",'Competition Data'!D160)","v":4186},{"$f":"IF(ISBLANK('Competition Data'!E160),\"\",'Competition Data'!E160)","v":0},{"$f":"IF(ISBLANK('Competition Data'!F160),\"\",'Competition Data'!F160)","v":13.08},"Mintsfeet (Peak Reduction)",{"$f":"IF(ISBLANK('Competition Data'!I160),\"\",'Competition Data'!I160)","v":5.0909285502424719}]
["MintsfeetS27Peak Reduction",{"$f":"IF(ISBLANK('Competition Data'!A161),\"\",'Competition Data'!A161)","v":"Mintsfeet"},{"$f":"IF(ISBLANK('Competition Data'!H161),\"\",'Competition Data'!H161)","v":"ENWL-45"},{"$f":"IF(ISBLANK('Competition Data'!B161),\"\",'Competition Data'!B161)","v":"S27"},{"$f":"IF(ISBLANK('Competition Data'!C161),\"\",'Competition Data'!C161)","v":"Peak Reduction"},{"$f":"IF(ISBLANK('Competition Data'!G161),\"\",'Competition Data'!G161)","v":161530},{"$f":"IF(ISBLANK('Competition Data'!D161),\"\",'Competition Data'!D161)","v":3111},{"$f":"IF(ISBLANK('Competition Data'!E161),\"\",'Competition Data'!E161)","v":0},{"$f":"IF(ISBLANK('Competition Data'!F161),\"\",'Competition Data'!F161)","v":7.83},"Mintsfeet (Peak Reduction)",{"$f":"IF(ISBLANK('Competition Data'!I161),\"\",'Competition Data'!I161)","v":6.6311892091384212}]
["MintsfeetW27/28Peak Reduction",{"$f":"IF(ISBLANK('Competition Data'!A162),\"\",'Competition Data'!A162)","v":"Mintsfeet"},{"$f":"IF(ISBLANK('Competition Data'!H162),\"\",'Competition Data'!H162)","v":"ENWL-45"},{"$f":"IF(ISBLANK('Competition Data'!B162),\"\",'Competition Data'!B162)","v":"W27/28"},{"$f":"IF(ISBLANK('Competition Data'!C162),\"\",'Competition Data'!C162)","v":"Peak Reduction"},{"$f":"IF(ISBLANK('Competition Data'!G162),\"\",'Competition Data'!G162)","v":277470},{"$f":"IF(ISBLANK('Competition Data'!D162),\"\",'Competition Data'!D162)","v":4209},{"$f":"IF(ISBLANK('Competition Data'!E162),\"\",'Competition Data'!E162)","v":0},{"$f":"IF(ISBLANK('Competition Data'!F162),\"\",'Competition Data'!F162)","v":13.45},"Mintsfeet (Peak Reduction)",{"$f":"IF(ISBLANK('Competition Data'!I162),\"\",'Competition Data'!I162)","v":4.9013399327516449}]
["Morton Park & PirelliW25/26Operational Utilisation Variable Availability",{"$f":"IF(ISBLANK('Competition Data'!A163),\"\",'Competition Data'!A163)","v":"Morton Park & Pirelli"},{"$f":"IF(ISBLANK('Competition Data'!H163),\"\",'Competition Data'!H163)","v":"ENWL-46"},{"$f":"IF(ISBLANK('Competition Data'!B163),\"\",'Competition Data'!B163)","v":"W25/26"},{"$f":"IF(ISBLANK('Competition Data'!C163),\"\",'Competition Data'!C163)","v":"Operational Utilisation Variable Availability"},{"$f":"IF(ISBLANK('Competition Data'!G163),\"\",'Competition Data'!G163)","v":66000},{"$f":"IF(ISBLANK('Competition Data'!D163),\"\",'Competition Data'!D163)","v":48},{"$f":"IF(ISBLANK('Competition Data'!E163),\"\",'Competition Data'!E163)","v":504},{"$f":"IF(ISBLANK('Competition Data'!F163),\"\",'Competition Data'!F163)","v":9.9499999999999993},"Morton Park & Pirelli (Operational Utilisation Variable Availability)",{"$f":"IF(ISBLANK('Competition Data'!I163),\"\",'Competition Data'!I163)","v":"N/A"}]
["Morton Park & PirelliS26Operational Utilisation Variable Availability",{"$f":"IF(ISBLANK('Competition Data'!A164),\"\",'Competition Data'!A164)","v":"Morton Park & Pirelli"},{"$f":"IF(ISBLANK('Competition Data'!H164),\"\",'Competition Data'!H164)","v":"ENWL-46"},{"$f":"IF(ISBLANK('Competition Data'!B164),\"\",'Competition Data'!B164)","v":"S26"},{"$f":"IF(ISBLANK('Competition Data'!C164),\"\",'Competition Data'!C164)","v":"Operational Utilisation Variable Availability"},{"$f":"IF(ISBLANK('Competition Data'!G164),\"\",'Competition Data'!G164)","v":11976},{"$f":"IF(ISBLANK('Competition Data'!D164),\"\",'Competition Data'!D164)","v":48},{"$f":"IF(ISBLANK('Competition Data'!E164),\"\",'Competition Data'!E164)","v":59},{"$f":"IF(ISBLANK('Competition Data'!F164),\"\",'Competition Data'!F164)","v":2.7},"Morton Park & Pirelli (Operational Utilisation Variable Availability)",{"$f":"IF(ISBLANK('Competition Data'!I164),\"\",'Competition Data'!I164)","v":"N/A"}]
["Morton Park & PirelliW26/27Operational Utilisation Variable Availability",{"$f":"IF(ISBLANK('Competition Data'!A165),\"\",'Competition Data'!A165)","v":"Morton Park & Pirelli"},{"$f":"IF(ISBLANK('Competition Data'!H165),\"\",'Competition Data'!H165)","v":"ENWL-46"},{"$f":"IF(ISBLANK('Competition Data'!B165),\"\",'Competition Data'!B165)","v":"W26/27"},{"$f":"IF(ISBLANK('Competition Data'!C165),\"\",'Competition Data'!C165)","v":"Operational Utilisation Variable Availability"},{"$f":"IF(ISBLANK('Competition Data'!G165),\"\",'Competition Data'!G165)","v":54024},{"$f":"IF(ISBLANK('Competition Data'!D165),\"\",'Competition Data'!D165)","v":100},{"$f":"IF(ISBLANK('Competition Data'!E165),\"\",'Competition Data'!E165)","v":964},{"$f":"IF(ISBLANK('Competition Data'!F165),\"\",'Competition Data'!F165)","v":12.18},"Morton Park & Pirelli (Operational Utilisation Variable Availability)",{"$f":"IF(ISBLANK('Competition Data'!I165),\"\",'Competition Data'!I165)","v":"N/A"}]
["Morton Park & PirelliS27Operational Utilisation Variable Availability",{"$f":"IF(ISBLANK('Competition Data'!A166),\"\",'Competition Data'!A166)","v":"Morton Park & Pirelli"},{"$f":"IF(ISBLANK('Competition Data'!H166),\"\",'Competition Data'!H166)","v":"ENWL-46"},{"$f":"IF(ISBLANK('Competition Data'!B166),\"\",'Competition Data'!B166)","v":"S27"},{"$f":"IF(ISBLANK('Competition Data'!C166),\"\",'Competition Data'!C166)","v":"Operational Utilisation Variable Availability"},{"$f":"IF(ISBLANK('Competition Data'!G166),\"\",'Competition Data'!G166)","v":15884},{"$f":"IF(ISBLANK('Competition Data'!D166),\"\",'Competition Data'!D166)","v":48},{"$f":"IF(ISBLANK('Competition Data'!E166),\"\",'Competition Data'!E166)","v":188},{"$f":"IF(ISBLANK('Competition Data'!F166),\"\",'Competition Data'!F166)","v":4.58},"Morton Park & Pirelli (Operational Utilisation Variable Availability)",{"$f":"IF(ISBLANK('Competition Data'!I166),\"\",'Competition Data'!I166)","v":"N/A"}]
["Morton Park & PirelliW27/28Operational Utilisation Variable Availability",{"$f":"IF(ISBLANK('Competition Data'!A167),\"\",'Competition Data'!A167)","v":"Morton Park & Pirelli"},{"$f":"IF(ISBLANK('Competition Data'!H167),\"\",'Competition Data'!H167)","v":"ENWL-46"},{"$f":"IF(ISBLANK('Competition Data'!B167),\"\",'Competition Data'!B167)","v":"W27/28"},{"$f":"IF(ISBLANK('Competition Data'!C167),\"\",'Competition Data'!C167)","v":"Operational Utilisation Variable Availability"},{"$f":"IF(ISBLANK('Competition Data'!G167),\"\",'Competition Data'!G167)","v":50116},{"$f":"IF(ISBLANK('Competition Data'!D167),\"\",'Competition Data'!D167)","v":100},{"$f":"IF(ISBLANK('Competition Data'!E167),\"\",'Competition Data'!E167)","v":1521},{"$f":"IF(ISBLANK('Competition Data'!F167),\"\",'Competition Data'!F167)","v":14.45},"Morton Park & Pirelli (Operational Utilisation Variable Availability)",{"$f":"IF(ISBLANK('Competition Data'!I167),\"\",'Competition Data'!I167)","v":"N/A"}]
["Morton Park & PirelliW26/27Operational Utilisation",{"$f":"IF(ISBLANK('Competition Data'!A168),\"\",'Competition Data'!A168)","v":"Morton Park & Pirelli"},{"$f":"IF(ISBLANK('Competition Data'!H168),\"\",'Competition Data'!H168)","v":"ENWL-47"},{"$f":"IF(ISBLANK('Competition Data'!B168),\"\",'Competition Data'!B168)","v":"W26/27"},{"$f":"IF(ISBLANK('Competition Data'!C168),\"\",'Competition Data'!C168)","v":"Operational Utilisation"},{"$f":"IF(ISBLANK('Competition Data'!G168),\"\",'Competition Data'!G168)","v":175524},{"$f":"IF(ISBLANK('Competition Data'!D168),\"\",'Competition Data'!D168)","v":100},{"$f":"IF(ISBLANK('Competition Data'!E168),\"\",'Competition Data'!E168)","v":0},{"$f":"IF(ISBLANK('Competition Data'!F168),\"\",'Competition Data'!F168)","v":12.18},"Morton Park & Pirelli (Operational Utilisation)",{"$f":"IF(ISBLANK('Competition Data'!I168),\"\",'Competition Data'!I168)","v":144.10837438423647}]
["Morton Park & PirelliW27/28Operational Utilisation",{"$f":"IF(ISBLANK('Competition Data'!A169),\"\",'Competition Data'!A169)","v":"Morton Park & Pirelli"},{"$f":"IF(ISBLANK('Competition Data'!H169),\"\",'Competition Data'!H169)","v":"ENWL-47"},{"$f":"IF(ISBLANK('Competition Data'!B169),\"\",'Competition Data'!B169)","v":"W27/28"},{"$f":"IF(ISBLANK('Competition Data'!C169),\"\",'Competition Data'!C169)","v":"Operational Utilisation"},{"$f":"IF(ISBLANK('Competition Data'!G169),\"\",'Competition Data'!G169)","v":175524},{"$f":"IF(ISBLANK('Competition Data'!D169),\"\",'Competition Data'!D169)","v":100},{"$f":"IF(ISBLANK('Competition Data'!E169),\"\",'Competition Data'!E169)","v":0},{"$f":"IF(ISBLANK('Competition Data'!F169),\"\",'Competition Data'!F169)","v":14.45},"Morton Park & Pirelli (Operational Utilisation)",{"$f":"IF(ISBLANK('Competition Data'!I169),\"\",'Competition Data'!I169)","v":121.46989619377163}]
["Morton Park & PirelliW25/26Peak Reduction",{"$f":"IF(ISBLANK('Competition Data'!A170),\"\",'Competition Data'!A170)","v":"Morton Park & Pirelli"},{"$f":"IF(ISBLANK('Competition Data'!H170),\"\",'Competition Data'!H170)","v":"ENWL-48"},{"$f":"IF(ISBLANK('Competition Data'!B170),\"\",'Competition Data'!B170)","v":"W25/26"},{"$f":"IF(ISBLANK('Competition Data'!C170),\"\",'Competition Data'!C170)","v":"Peak Reduction"},{"$f":"IF(ISBLANK('Competition Data'!G170),\"\",'Competition Data'!G170)","v":66000},{"$f":"IF(ISBLANK('Competition Data'!D170),\"\",'Competition Data'!D170)","v":2730},{"$f":"IF(ISBLANK('Competition Data'!E170),\"\",'Competition Data'!E170)","v":0},{"$f":"IF(ISBLANK('Competition Data'!F170),\"\",'Competition Data'!F170)","v":9.9499999999999993},"Morton Park & Pirelli (Peak Reduction)",{"$f":"IF(ISBLANK('Competition Data'!I170),\"\",'Competition Data'!I170)","v":2.4297310729471535}]
["Morton Park & PirelliS26Peak Reduction",{"$f":"IF(ISBLANK('Competition Data'!A171),\"\",'Competition Data'!A171)","v":"Morton Park & Pirelli"},{"$f":"IF(ISBLANK('Competition Data'!H171),\"\",'Competition Data'!H171)","v":"ENWL-48"},{"$f":"IF(ISBLANK('Competition Data'!B171),\"\",'Competition Data'!B171)","v":"S26"},{"$f":"IF(ISBLANK('Competition Data'!C171),\"\",'Competition Data'!C171)","v":"Peak Reduction"},{"$f":"IF(ISBLANK('Competition Data'!G171),\"\",'Competition Data'!G171)","v":11976},{"$f":"IF(ISBLANK('Competition Data'!D171),\"\",'Competition Data'!D171)","v":2379},{"$f":"IF(ISBLANK('Competition Data'!E171),\"\",'Competition Data'!E171)","v":0},{"$f":"IF(ISBLANK('Competition Data'!F171),\"\",'Competition Data'!F171)","v":2.7},"Morton Park & Pirelli (Peak Reduction)",{"$f":"IF(ISBLANK('Competition Data'!I171),\"\",'Competition Data'!I171)","v":1.8644621923310447}]
["Morton Park & PirelliW26/27Peak Reduction",{"$f":"IF(ISBLANK('Competition Data'!A172),\"\",'Competition Data'!A172)","v":"Morton Park & Pirelli"},{"$f":"IF(ISBLANK('Competition Data'!H172),\"\",'Competition Data'!H172)","v":"ENWL-48"},{"$f":"IF(ISBLANK('Competition Data'!B172),\"\",'Competition Data'!B172)","v":"W26/27"},{"$f":"IF(ISBLANK('Competition Data'!C172),\"\",'Competition Data'!C172)","v":"Peak Reduction"},{"$f":"IF(ISBLANK('Competition Data'!G172),\"\",'Competition Data'!G172)","v":54024},{"$f":"IF(ISBLANK('Competition Data'!D172),\"\",'Competition Data'!D172)","v":3094},{"$f":"IF(ISBLANK('Competition Data'!E172),\"\",'Competition Data'!E172)","v":0},{"$f":"IF(ISBLANK('Competition Data'!F172),\"\",'Competition Data'!F172)","v":12.18},"Morton Park & Pirelli (Peak Reduction)",{"$f":"IF(ISBLANK('Competition Data'!I172),\"\",'Competition Data'!I172)","v":1.4335707757904221}]
["Morton Park & PirelliS27Peak Reduction",{"$f":"IF(ISBLANK('Competition Data'!A173),\"\",'Competition Data'!A173)","v":"Morton Park & Pirelli"},{"$f":"IF(ISBLANK('Competition Data'!H173),\"\",'Competition Data'!H173)","v":"ENWL-48"},{"$f":"IF(ISBLANK('Competition Data'!B173),\"\",'Competition Data'!B173)","v":"S27"},{"$f":"IF(ISBLANK('Competition Data'!C173),\"\",'Competition Data'!C173)","v":"Peak Reduction"},{"$f":"IF(ISBLANK('Competition Data'!G173),\"\",'Competition Data'!G173)","v":15884},{"$f":"IF(ISBLANK('Competition Data'!D173),\"\",'Competition Data'!D173)","v":2562},{"$f":"IF(ISBLANK('Competition Data'!E173),\"\",'Competition Data'!E173)","v":0},{"$f":"IF(ISBLANK('Competition Data'!F173),\"\",'Competition Data'!F173)","v":4.58},"Morton Park & Pirelli (Peak Reduction)",{"$f":"IF(ISBLANK('Competition Data'!I173),\"\",'Competition Data'!I173)","v":1.3536777013045895}]
["Morton Park & PirelliW27/28Peak Reduction",{"$f":"IF(ISBLANK('Competition Data'!A174),\"\",'Competition Data'!A174)","v":"Morton Park & Pirelli"},{"$f":"IF(ISBLANK('Competition Data'!H174),\"\",'Competition Data'!H174)","v":"ENWL-48"},{"$f":"IF(ISBLANK('Competition Data'!B174),\"\",'Competition Data'!B174)","v":"W27/28"},{"$f":"IF(ISBLANK('Competition Data'!C174),\"\",'Competition Data'!C174)","v":"Peak Reduction"},{"$f":"IF(ISBLANK('Competition Data'!G174),\"\",'Competition Data'!G174)","v":50116},{"$f":"IF(ISBLANK('Competition Data'!D174),\"\",'Competition Data'!D174)","v":4209},{"$f":"IF(ISBLANK('Competition Data'!E174),\"\",'Competition Data'!E174)","v":0},{"$f":"IF(ISBLANK('Competition Data'!F174),\"\",'Competition Data'!F174)","v":14.45},{"$f":"CONCATENATE(B174,\" (\",E174,\")\")","v":"Morton Park & Pirelli (Peak Reduction)"},{"$f":"IF(ISBLANK('Competition Data'!I174),\"\",'Competition Data'!I174)","v":0.82400458401464649}]
["Moss Side (Longsight)W25/26Operational Utilisation Variable Availability",{"$f":"IF(ISBLANK('Competition Data'!A175),\"\",'Competition Data'!A175)","v":"Moss Side (Longsight)"},{"$f":"IF(ISBLANK('Competition Data'!H175),\"\",'Competition Data'!H175)","v":"ENWL-49"},{"$f":"IF(ISBLANK('Competition Data'!B175),\"\",'Competition Data'!B175)","v":"W25/26"},{"$f":"IF(ISBLANK('Competition Data'!C175),\"\",'Competition Data'!C175)","v":"Operational Utilisation Variable Availability"},{"$f":"IF(ISBLANK('Competition Data'!G175),\"\",'Competition Data'!G175)","v":10000},{"$f":"IF(ISBLANK('Competition Data'!D175),\"\",'Competition Data'!D175)","v":48},{"$f":"IF(ISBLANK('Competition Data'!E175),\"\",'Competition Data'!E175)","v":76},{"$f":"IF(ISBLANK('Competition Data'!F175),\"\",'Competition Data'!F175)","v":1.2},"Moss Side (Longsight) (Operational Utilisation Variable Availability)",{"$f":"IF(ISBLANK('Competition Data'!I175),\"\",'Competition Data'!I175)","v":"N/A"}]
["Moss Side (Longsight)W26/27Operational Utilisation Variable Availability",{"$f":"IF(ISBLANK('Competition Data'!A176),\"\",'Competition Data'!A176)","v":"Moss Side (Longsight)"},{"$f":"IF(ISBLANK('Competition Data'!H176),\"\",'Competition Data'!H176)","v":"ENWL-49"},{"$f":"IF(ISBLANK('Competition Data'!B176),\"\",'Competition Data'!B176)","v":"W26/27"},{"$f":"IF(ISBLANK('Competition Data'!C176),\"\",'Competition Data'!C176)","v":"Operational Utilisation Variable Availability"},{"$f":"IF(ISBLANK('Competition Data'!G176),\"\",'Competition Data'!G176)","v":10000},{"$f":"IF(ISBLANK('Competition Data'!D176),\"\",'Competition Data'!D176)","v":48},{"$f":"IF(ISBLANK('Competition Data'!E176),\"\",'Competition Data'!E176)","v":134},{"$f":"IF(ISBLANK('Competition Data'!F176),\"\",'Competition Data'!F176)","v":1.63},"Moss Side (Longsight) (Operational Utilisation Variable Availability)",{"$f":"IF(ISBLANK('Competition Data'!I176),\"\",'Competition Data'!I176)","v":"N/A"}]
["Moss Side (Longsight)W27/28Operational Utilisation Variable Availability",{"$f":"IF(ISBLANK('Competition Data'!A177),\"\",'Competition Data'!A177)","v":"Moss Side (Longsight)"},{"$f":"IF(ISBLANK('Competition Data'!H177),\"\",'Competition Data'!H177)","v":"ENWL-49"},{"$f":"IF(ISBLANK('Competition Data'!B177),\"\",'Competition Data'!B177)","v":"W27/28"},{"$f":"IF(ISBLANK('Competition Data'!C177),\"\",'Competition Data'!C177)","v":"Operational Utilisation Variable Availability"},{"$f":"IF(ISBLANK('Competition Data'!G177),\"\",'Competition Data'!G177)","v":10000},{"$f":"IF(ISBLANK('Competition Data'!D177),\"\",'Competition Data'!D177)","v":48},{"$f":"IF(ISBLANK('Competition Data'!E177),\"\",'Competition Data'!E177)","v":234},{"$f":"IF(ISBLANK('Competition Data'!F177),\"\",'Competition Data'!F177)","v":2.15},"Moss Side (Longsight) (Operational Utilisation Variable Availability)",{"$f":"IF(ISBLANK('Competition Data'!I177),\"\",'Competition Data'!I177)","v":"N/A"}]
["Moss Side (Longsight)W25/26Peak Reduction",{"$f":"IF(ISBLANK('Competition Data'!A178),\"\",'Competition Data'!A178)","v":"Moss Side (Longsight)"},{"$f":"IF(ISBLANK('Competition Data'!H178),\"\",'Competition Data'!H178)","v":"ENWL-50"},{"$f":"IF(ISBLANK('Competition Data'!B178),\"\",'Competition Data'!B178)","v":"W25/26"},{"$f":"IF(ISBLANK('Competition Data'!C178),\"\",'Competition Data'!C178)","v":"Peak Reduction"},{"$f":"IF(ISBLANK('Competition Data'!G178),\"\",'Competition Data'!G178)","v":10000},{"$f":"IF(ISBLANK('Competition Data'!D178),\"\",'Competition Data'!D178)","v":906},{"$f":"IF(ISBLANK('Competition Data'!E178),\"\",'Competition Data'!E178)","v":0},{"$f":"IF(ISBLANK('Competition Data'!F178),\"\",'Competition Data'!F178)","v":1.2},"Moss Side (Longsight) (Peak Reduction)",{"$f":"IF(ISBLANK('Competition Data'!I178),\"\",'Competition Data'!I178)","v":9.1979396615158198}]
["Moss Side (Longsight)W26/27Peak Reduction",{"$f":"IF(ISBLANK('Competition Data'!A179),\"\",'Competition Data'!A179)","v":"Moss Side (Longsight)"},{"$f":"IF(ISBLANK('Competition Data'!H179),\"\",'Competition Data'!H179)","v":"ENWL-50"},{"$f":"IF(ISBLANK('Competition Data'!B179),\"\",'Competition Data'!B179)","v":"W26/27"},{"$f":"IF(ISBLANK('Competition Data'!C179),\"\",'Competition Data'!C179)","v":"Peak Reduction"},{"$f":"IF(ISBLANK('Competition Data'!G179),\"\",'Competition Data'!G179)","v":10000},{"$f":"IF(ISBLANK('Competition Data'!D179),\"\",'Competition Data'!D179)","v":906},{"$f":"IF(ISBLANK('Competition Data'!E179),\"\",'Competition Data'!E179)","v":0},{"$f":"IF(ISBLANK('Competition Data'!F179),\"\",'Competition Data'!F179)","v":1.63},"Moss Side (Longsight) (Peak Reduction)",{"$f":"IF(ISBLANK('Competition Data'!I179),\"\",'Competition Data'!I179)","v":6.7714893213613401}]
["Moss Side (Longsight)W27/28Peak Reduction",{"$f":"IF(ISBLANK('Competition Data'!A180),\"\",'Competition Data'!A180)","v":"Moss Side (Longsight)"},{"$f":"IF(ISBLANK('Competition Data'!H180),\"\",'Competition Data'!H180)","v":"ENWL-50"},{"$f":"IF(ISBLANK('Competition Data'!B180),\"\",'Competition Data'!B180)","v":"W27/28"},{"$f":"IF(ISBLANK('Competition Data'!C180),\"\",'Competition Data'!C180)","v":"Peak Reduction"},{"$f":"IF(ISBLANK('Competition Data'!G180),\"\",'Competition Data'!G180)","v":10000},{"$f":"IF(ISBLANK('Competition Data'!D180),\"\",'Competition Data'!D180)","v":1520},{"$f":"IF(ISBLANK('Competition Data'!E180),\"\",'Competition Data'!E180)","v":0},{"$f":"IF(ISBLANK('Competition Data'!F180),\"\",'Competition Data'!F180)","v":2.15},"Moss Side (Longsight) (Peak Reduction)",{"$f":"IF(ISBLANK('Competition Data'!I180),\"\",'Competition Data'!I180)","v":3.0599755201958385}]
["Newbiggin on LuneFY26Operational Utilisation",{"$f":"IF(ISBLANK('Competition Data'!A181),\"\",'Competition Data'!A181)","v":"Newbiggin on Lune"},{"$f":"IF(ISBLANK('Competition Data'!H181),\"\",'Competition Data'!H181)","v":"ENWL-51"},{"$f":"IF(ISBLANK('Competition Data'!B181),\"\",'Competition Data'!B181)","v":"FY26"},{"$f":"IF(ISBLANK('Competition Data'!C181),\"\",'Competition Data'!C181)","v":"Operational Utilisation"},{"$f":"IF(ISBLANK('Competition Data'!G181),\"\",'Competition Data'!G181)","v":10047},{"$f":"IF(ISBLANK('Competition Data'!D181),\"\",'Competition Data'!D181)","v":100},{"$f":"IF(ISBLANK('Competition Data'!E181),\"\",'Competition Data'!E181)","v":0},{"$f":"IF(ISBLANK('Competition Data'!F181),\"\",'Competition Data'!F181)","v":0.9},"Newbiggin on Lune (Operational Utilisation)",{"$f":"IF(ISBLANK('Competition Data'!I181),\"\",'Competition Data'!I181)","v":111.63333333333333}]
["Newbiggin on LuneFY27Operational Utilisation",{"$f":"IF(ISBLANK('Competition Data'!A182),\"\",'Competition Data'!A182)","v":"Newbiggin on Lune"},{"$f":"IF(ISBLANK('Competition Data'!H182),\"\",'Competition Data'!H182)","v":"ENWL-51"},{"$f":"IF(ISBLANK('Competition Data'!B182),\"\",'Competition Data'!B182)","v":"FY27"},{"$f":"IF(ISBLANK('Competition Data'!C182),\"\",'Competition Data'!C182)","v":"Operational Utilisation"},{"$f":"IF(ISBLANK('Competition Data'!G182),\"\",'Competition Data'!G182)","v":10047},{"$f":"IF(ISBLANK('Competition Data'!D182),\"\",'Competition Data'!D182)","v":100},{"$f":"IF(ISBLANK('Competition Data'!E182),\"\",'Competition Data'!E182)","v":0},{"$f":"IF(ISBLANK('Competition Data'!F182),\"\",'Competition Data'!F182)","v":0.9},"Newbiggin on Lune (Operational Utilisation)",{"$f":"IF(ISBLANK('Competition Data'!I182),\"\",'Competition Data'!I182)","v":111.63333333333333}]
["Newbiggin on LuneFY28Operational Utilisation",{"$f":"IF(ISBLANK('Competition Data'!A183),\"\",'Competition Data'!A183)","v":"Newbiggin on Lune"},{"$f":"IF(ISBLANK('Competition Data'!H183),\"\",'Competition Data'!H183)","v":"ENWL-51"},{"$f":"IF(ISBLANK('Competition Data'!B183),\"\",'Competition Data'!B183)","v":"FY28"},{"$f":"IF(ISBLANK('Competition Data'!C183),\"\",'Competition Data'!C183)","v":"Operational Utilisation"},{"$f":"IF(ISBLANK('Competition Data'!G183),\"\",'Competition Data'!G183)","v":10047},{"$f":"IF(ISBLANK('Competition Data'!D183),\"\",'Competition Data'!D183)","v":100},{"$f":"IF(ISBLANK('Competition Data'!E183),\"\",'Competition Data'!E183)","v":0},{"$f":"IF(ISBLANK('Competition Data'!F183),\"\",'Competition Data'!F183)","v":0.9},"Newbiggin on Lune (Operational Utilisation)",{"$f":"IF(ISBLANK('Competition Data'!I183),\"\",'Competition Data'!I183)","v":111.63333333333333}]
["NewbyFY26Operational Utilisation",{"$f":"IF(ISBLANK('Competition Data'!A184),\"\",'Competition Data'!A184)","v":"Newby"},{"$f":"IF(ISBLANK('Competition Data'!H184),\"\",'Competition Data'!H184)","v":"ENWL-52"},{"$f":"IF(ISBLANK('Competition Data'!B184),\"\",'Competition Data'!B184)","v":"FY26"},{"$f":"IF(ISBLANK('Competition Data'!C184),\"\",'Competition Data'!C184)","v":"Operational Utilisation"},{"$f":"IF(ISBLANK('Competition Data'!G184),\"\",'Competition Data'!G184)","v":48518},{"$f":"IF(ISBLANK('Competition Data'!D184),\"\",'Competition Data'!D184)","v":100},{"$f":"IF(ISBLANK('Competition Data'!E184),\"\",'Competition Data'!E184)","v":0},{"$f":"IF(ISBLANK('Competition Data'!F184),\"\",'Competition Data'!F184)","v":5.3},"Newby (Operational Utilisation)",{"$f":"IF(ISBLANK('Competition Data'!I184),\"\",'Competition Data'!I184)","v":91.543396226415098}]
["NewbyFY27Operational Utilisation",{"$f":"IF(ISBLANK('Competition Data'!A185),\"\",'Competition Data'!A185)","v":"Newby"},{"$f":"IF(ISBLANK('Competition Data'!H185),\"\",'Competition Data'!H185)","v":"ENWL-52"},{"$f":"IF(ISBLANK('Competition Data'!B185),\"\",'Competition Data'!B185)","v":"FY27"},{"$f":"IF(ISBLANK('Competition Data'!C185),\"\",'Competition Data'!C185)","v":"Operational Utilisation"},{"$f":"IF(ISBLANK('Competition Data'!G185),\"\",'Competition Data'!G185)","v":48518},{"$f":"IF(ISBLANK('Competition Data'!D185),\"\",'Competition Data'!D185)","v":100},{"$f":"IF(ISBLANK('Competition Data'!E185),\"\",'Competition Data'!E185)","v":0},{"$f":"IF(ISBLANK('Competition Data'!F185),\"\",'Competition Data'!F185)","v":5.3},"Newby (Operational Utilisation)",{"$f":"IF(ISBLANK('Competition Data'!I185),\"\",'Competition Data'!I185)","v":91.543396226415098}]
["NewbyFY28Operational Utilisation",{"$f":"IF(ISBLANK('Competition Data'!A186),\"\",'Competition Data'!A186)","v":"Newby"},{"$f":"IF(ISBLANK('Competition Data'!H186),\"\",'Competition Data'!H186)","v":"ENWL-52"},{"$f":"IF(ISBLANK('Competition Data'!B186),\"\",'Competition Data'!B186)","v":"FY28"},{"$f":"IF(ISBLANK('Competition Data'!C186),\"\",'Competition Data'!C186)","v":"Operational Utilisation"},{"$f":"IF(ISBLANK('Competition Data'!G186),\"\",'Competition Data'!G186)","v":48518},{"$f":"IF(ISBLANK('Competition Data'!D186),\"\",'Competition Data'!D186)","v":100},{"$f":"IF(ISBLANK('Competition Data'!E186),\"\",'Competition Data'!E186)","v":0},{"$f":"IF(ISBLANK('Competition Data'!F186),\"\",'Competition Data'!F186)","v":5.3},"Newby (Operational Utilisation)",{"$f":"IF(ISBLANK('Competition Data'!I186),\"\",'Competition Data'!I186)","v":91.543396226415098}]
["RossallFY26Operational Utilisation",{"$f":"IF(ISBLANK('Competition Data'!A187),\"\",'Competition Data'!A187)","v":"Rossall"},{"$f":"IF(ISBLANK('Competition Data'!H187),\"\",'Competition Data'!H187)","v":"ENWL-53"},{"$f":"IF(ISBLANK('Competition Data'!B187),\"\",'Competition Data'!B187)","v":"FY26"},{"$f":"IF(ISBLANK('Competition Data'!C187),\"\",'Competition Data'!C187)","v":"Operational Utilisation"},{"$f":"IF(ISBLANK('Competition Data'!G187),\"\",'Competition Data'!G187)","v":15851},{"$f":"IF(ISBLANK('Competition Data'!D187),\"\",'Competition Data'!D187)","v":100},{"$f":"IF(ISBLANK('Competition Data'!E187),\"\",'Competition Data'!E187)","v":0},{"$f":"IF(ISBLANK('Competition Data'!F187),\"\",'Competition Data'!F187)","v":2.7},"Rossall (Operational Utilisation)",{"$f":"IF(ISBLANK('Competition Data'!I187),\"\",'Competition Data'!I187)","v":58.707407407407402}]
["RossallFY27Operational Utilisation",{"$f":"IF(ISBLANK('Competition Data'!A188),\"\",'Competition Data'!A188)","v":"Rossall"},{"$f":"IF(ISBLANK('Competition Data'!H188),\"\",'Competition Data'!H188)","v":"ENWL-53"},{"$f":"IF(ISBLANK('Competition Data'!B188),\"\",'Competition Data'!B188)","v":"FY27"},{"$f":"IF(ISBLANK('Competition Data'!C188),\"\",'Competition Data'!C188)","v":"Operational Utilisation"},{"$f":"IF(ISBLANK('Competition Data'!G188),\"\",'Competition Data'!G188)","v":15851},{"$f":"IF(ISBLANK('Competition Data'!D188),\"\",'Competition Data'!D188)","v":100},{"$f":"IF(ISBLANK('Competition Data'!E188),\"\",'Competition Data'!E188)","v":0},{"$f":"IF(ISBLANK('Competition Data'!F188),\"\",'Competition Data'!F188)","v":2.7},"Rossall (Operational Utilisation)",{"$f":"IF(ISBLANK('Competition Data'!I188),\"\",'Competition Data'!I188)","v":58.707407407407402}]
["RossallFY28Operational Utilisation",{"$f":"IF(ISBLANK('Competition Data'!A189),\"\",'Competition Data'!A189)","v":"Rossall"},{"$f":"IF(ISBLANK('Competition Data'!H189),\"\",'Competition Data'!H189)","v":"ENWL-53"},{"$f":"IF(ISBLANK('Competition Data'!B189),\"\",'Competition Data'!B189)","v":"FY28"},{"$f":"IF(ISBLANK('Competition Data'!C189),\"\",'Competition Data'!C189)","v":"Operational Utilisation"},{"$f":"IF(ISBLANK('Competition Data'!G189),\"\",'Competition Data'!G189)","v":15851},{"$f":"IF(ISBLANK('Competition Data'!D189),\"\",'Competition Data'!D189)","v":100},{"$f":"IF(ISBLANK('Competition Data'!E189),\"\",'Competition Data'!E189)","v":0},{"$f":"IF(ISBLANK('Competition Data'!F189),\"\",'Competition Data'!F189)","v":2.7},"Rossall (Operational Utilisation)",{"$f":"IF(ISBLANK('Competition Data'!I189),\"\",'Competition Data'!I189)","v":58.707407407407402}]
["ScarisbrickFY26Operational Utilisation",{"$f":"IF(ISBLANK('Competition Data'!A190),\"\",'Competition Data'!A190)","v":"Scarisbrick"},{"$f":"IF(ISBLANK('Competition Data'!H190),\"\",'Competition Data'!H190)","v":"ENWL-54"},{"$f":"IF(ISBLANK('Competition Data'!B190),\"\",'Competition Data'!B190)","v":"FY26"},{"$f":"IF(ISBLANK('Competition Data'!C190),\"\",'Competition Data'!C190)","v":"Operational Utilisation"},{"$f":"IF(ISBLANK('Competition Data'!G190),\"\",'Competition Data'!G190)","v":29315},{"$f":"IF(ISBLANK('Competition Data'!D190),\"\",'Competition Data'!D190)","v":100},{"$f":"IF(ISBLANK('Competition Data'!E190),\"\",'Competition Data'!E190)","v":0},{"$f":"IF(ISBLANK('Competition Data'!F190),\"\",'Competition Data'!F190)","v":3.7},"Scarisbrick (Operational Utilisation)",{"$f":"IF(ISBLANK('Competition Data'!I190),\"\",'Competition Data'!I190)","v":79.229729729729726}]
["ScarisbrickFY27Operational Utilisation",{"$f":"IF(ISBLANK('Competition Data'!A191),\"\",'Competition Data'!A191)","v":"Scarisbrick"},{"$f":"IF(ISBLANK('Competition Data'!H191),\"\",'Competition Data'!H191)","v":"ENWL-54"},{"$f":"IF(ISBLANK('Competition Data'!B191),\"\",'Competition Data'!B191)","v":"FY27"},{"$f":"IF(ISBLANK('Competition Data'!C191),\"\",'Competition Data'!C191)","v":"Operational Utilisation"},{"$f":"IF(ISBLANK('Competition Data'!G191),\"\",'Competition Data'!G191)","v":29315},{"$f":"IF(ISBLANK('Competition Data'!D191),\"\",'Competition Data'!D191)","v":100},{"$f":"IF(ISBLANK('Competition Data'!E191),\"\",'Competition Data'!E191)","v":0},{"$f":"IF(ISBLANK('Competition Data'!F191),\"\",'Competition Data'!F191)","v":3.7},"Scarisbrick (Operational Utilisation)",{"$f":"IF(ISBLANK('Competition Data'!I191),\"\",'Competition Data'!I191)","v":79.229729729729726}]
["ScarisbrickFY28Operational Utilisation",{"$f":"IF(ISBLANK('Competition Data'!A192),\"\",'Competition Data'!A192)","v":"Scarisbrick"},{"$f":"IF(ISBLANK('Competition Data'!H192),\"\",'Competition Data'!H192)","v":"ENWL-54"},{"$f":"IF(ISBLANK('Competition Data'!B192),\"\",'Competition Data'!B192)","v":"FY28"},{"$f":"IF(ISBLANK('Competition Data'!C192),\"\",'Competition Data'!C192)","v":"Operational Utilisation"},{"$f":"IF(ISBLANK('Competition Data'!G192),\"\",'Competition Data'!G192)","v":29315},{"$f":"IF(ISBLANK('Competition Data'!D192),\"\",'Competition Data'!D192)","v":100},{"$f":"IF(ISBLANK('Competition Data'!E192),\"\",'Competition Data'!E192)","v":0},{"$f":"IF(ISBLANK('Competition Data'!F192),\"\",'Competition Data'!F192)","v":3.7},"Scarisbrick (Operational Utilisation)",{"$f":"IF(ISBLANK('Competition Data'!I192),\"\",'Competition Data'!I192)","v":79.229729729729726}]
["SeberghamS25Operational Utilisation Variable Availability",{"$f":"IF(ISBLANK('Competition Data'!A193),\"\",'Competition Data'!A193)","v":"Sebergham"},{"$f":"IF(ISBLANK('Competition Data'!H193),\"\",'Competition Data'!H193)","v":"ENWL-55"},{"$f":"IF(ISBLANK('Competition Data'!B193),\"\",'Competition Data'!B193)","v":"S25"},{"$f":"IF(ISBLANK('Competition Data'!C193),\"\",'Competition Data'!C193)","v":"Operational Utilisation Variable Availability"},{"$f":"IF(ISBLANK('Competition Data'!G193),\"\",'Competition Data'!G193)","v":132000},{"$f":"IF(ISBLANK('Competition Data'!D193),\"\",'Competition Data'!D193)","v":24},{"$f":"IF(ISBLANK('Competition Data'!E193),\"\",'Competition Data'!E193)","v":15},{"$f":"IF(ISBLANK('Competition Data'!F193),\"\",'Competition Data'!F193)","v":0.43},"Sebergham (Operational Utilisation Variable Availability)",{"$f":"IF(ISBLANK('Competition Data'!I193),\"\",'Competition Data'!I193)","v":"N/A"}]
["SeberghamS26Operational Utilisation Variable Availability",{"$f":"IF(ISBLANK('Competition Data'!A194),\"\",'Competition Data'!A194)","v":"Sebergham"},{"$f":"IF(ISBLANK('Competition Data'!H194),\"\",'Competition Data'!H194)","v":"ENWL-55"},{"$f":"IF(ISBLANK('Competition Data'!B194),\"\",'Competition Data'!B194)","v":"S26"},{"$f":"IF(ISBLANK('Competition Data'!C194),\"\",'Competition Data'!C194)","v":"Operational Utilisation Variable Availability"},{"$f":"IF(ISBLANK('Competition Data'!G194),\"\",'Competition Data'!G194)","v":132000},{"$f":"IF(ISBLANK('Competition Data'!D194),\"\",'Competition Data'!D194)","v":48},{"$f":"IF(ISBLANK('Competition Data'!E194),\"\",'Competition Data'!E194)","v":28},{"$f":"IF(ISBLANK('Competition Data'!F194),\"\",'Competition Data'!F194)","v":0.51},"Sebergham (Operational Utilisation Variable Availability)",{"$f":"IF(ISBLANK('Competition Data'!I194),\"\",'Competition Data'!I194)","v":"N/A"}]
[{"$f":"CONCATENATE(B195,D195,E195)","v":"SeberghamS27Operational Utilisation Variable Availability"},{"$f":"IF(ISBLANK('Competition Data'!A195),\"\",'Competition Data'!A195)","v":"Sebergham"},{"$f":"IF(ISBLANK('Competition Data'!H195),\"\",'Competition Data'!H195)","v":"ENWL-55"},{"$f":"IF(ISBLANK('Competition Data'!B195),\"\",'Competition Data'!B195)","v":"S27"},{"$f":"IF(ISBLANK('Competition Data'!C195),\"\",'Competition Data'!C195)","v":"Operational Utilisation Variable Availability"},{"$f":"IF(ISBLANK('Competition Data'!G195),\"\",'Competition Data'!G195)","v":77647},{"$f":"IF(ISBLANK('Competition Data'!D195),\"\",'Competition Data'!D195)","v":48},{"$f":"IF(ISBLANK('Competition Data'!E195),\"\",'Competition Data'!E195)","v":44},{"$f":"IF(ISBLANK('Competition Data'!F195),\"\",'Competition Data'!F195)","v":0.6},{"$f":"CONCATENATE(B195,\" (\",E195,\")\")","v":"Sebergham (Operational Utilisation Variable Availability)"},{"$f":"IF(ISBLANK('Competition Data'!I195),\"\",'Competition Data'!I195)","v":"N/A"}]
["SeberghamW27/28Operational Utilisation Variable Availability",{"$f":"IF(ISBLANK('Competition Data'!A196),\"\",'Competition Data'!A196)","v":"Sebergham"},{"$f":"IF(ISBLANK('Competition Data'!H196),\"\",'Competition Data'!H196)","v":"ENWL-55"},{"$f":"IF(ISBLANK('Competition Data'!B196),\"\",'Competition Data'!B196)","v":"W27/28"},{"$f":"IF(ISBLANK('Competition Data'!C196),\"\",'Competition Data'!C196)","v":"Operational Utilisation Variable Availability"},{"$f":"IF(ISBLANK('Competition Data'!G196),\"\",'Competition Data'!G196)","v":54353},{"$f":"IF(ISBLANK('Competition Data'!D196),\"\",'Competition Data'!D196)","v":24},{"$f":"IF(ISBLANK('Competition Data'!E196),\"\",'Competition Data'!E196)","v":19},{"$f":"IF(ISBLANK('Competition Data'!F196),\"\",'Competition Data'!F196)","v":0.42},"Sebergham (Operational Utilisation Variable Availability)",{"$f":"IF(ISBLANK('Competition Data'!I196),\"\",'Competition Data'!I196)","v":"N/A"}]
["SeberghamFY26Operational Utilisation",{"$f":"IF(ISBLANK('Competition Data'!A197),\"\",'Competition Data'!A197)","v":"Sebergham"},{"$f":"IF(ISBLANK('Competition Data'!H197),\"\",'Competition Data'!H197)","v":"ENWL-56"},{"$f":"IF(ISBLANK('Competition Data'!B197),\"\",'Competition Data'!B197)","v":"FY26"},{"$f":"IF(ISBLANK('Competition Data'!C197),\"\",'Competition Data'!C197)","v":"Operational Utilisation"},{"$f":"IF(ISBLANK('Competition Data'!G197),\"\",'Competition Data'!G197)","v":20648},{"$f":"IF(ISBLANK('Competition Data'!D197),\"\",'Competition Data'!D197)","v":100},{"$f":"IF(ISBLANK('Competition Data'!E197),\"\",'Competition Data'!E197)","v":0},{"$f":"IF(ISBLANK('Competition Data'!F197),\"\",'Competition Data'!F197)","v":4.0999999999999996},"Sebergham (Operational Utilisation)",{"$f":"IF(ISBLANK('Competition Data'!I197),\"\",'Competition Data'!I197)","v":50.360975609756096}]
["SeberghamFY27Operational Utilisation",{"$f":"IF(ISBLANK('Competition Data'!A198),\"\",'Competition Data'!A198)","v":"Sebergham"},{"$f":"IF(ISBLANK('Competition Data'!H198),\"\",'Competition Data'!H198)","v":"ENWL-56"},{"$f":"IF(ISBLANK('Competition Data'!B198),\"\",'Competition Data'!B198)","v":"FY27"},{"$f":"IF(ISBLANK('Competition Data'!C198),\"\",'Competition Data'!C198)","v":"Operational Utilisation"},{"$f":"IF(ISBLANK('Competition Data'!G198),\"\",'Competition Data'!G198)","v":20648},{"$f":"IF(ISBLANK('Competition Data'!D198),\"\",'Competition Data'!D198)","v":100},{"$f":"IF(ISBLANK('Competition Data'!E198),\"\",'Competition Data'!E198)","v":0},{"$f":"IF(ISBLANK('Competition Data'!F198),\"\",'Competition Data'!F198)","v":4.0999999999999996},"Sebergham (Operational Utilisation)",{"$f":"IF(ISBLANK('Competition Data'!I198),\"\",'Competition Data'!I198)","v":50.360975609756096}]
["SeberghamFY28Operational Utilisation",{"$f":"IF(ISBLANK('Competition Data'!A199),\"\",'Competition Data'!A199)","v":"Sebergham"},{"$f":"IF(ISBLANK('Competition Data'!H199),\"\",'Competition Data'!H199)","v":"ENWL-56"},{"$f":"IF(ISBLANK('Competition Data'!B199),\"\",'Competition Data'!B199)","v":"FY28"},{"$f":"IF(ISBLANK('Competition Data'!C199),\"\",'Competition Data'!C199)","v":"Operational Utilisation"},{"$f":"IF(ISBLANK('Competition Data'!G199),\"\",'Competition Data'!G199)","v":20648},{"$f":"IF(ISBLANK('Competition Data'!D199),\"\",'Competition Data'!D199)","v":100},{"$f":"IF(ISBLANK('Competition Data'!E199),\"\",'Competition Data'!E199)","v":0},{"$f":"IF(ISBLANK('Competition Data'!F199),\"\",'Competition Data'!F199)","v":4.0999999999999996},"Sebergham (Operational Utilisation)",{"$f":"IF(ISBLANK('Competition Data'!I199),\"\",'Competition Data'!I199)","v":50.360975609756096}]
["SeberghamS25Peak Reduction",{"$f":"IF(ISBLANK('Competition Data'!A200),\"\",'Competition Data'!A200)","v":"Sebergham"},{"$f":"IF(ISBLANK('Competition Data'!H200),\"\",'Competition Data'!H200)","v":"ENWL-57"},{"$f":"IF(ISBLANK('Competition Data'!B200),\"\",'Competition Data'!B200)","v":"S25"},{"$f":"IF(ISBLANK('Competition Data'!C200),\"\",'Competition Data'!C200)","v":"Peak Reduction"},{"$f":"IF(ISBLANK('Competition Data'!G200),\"\",'Competition Data'!G200)","v":132000},{"$f":"IF(ISBLANK('Competition Data'!D200),\"\",'Competition Data'!D200)","v":765},{"$f":"IF(ISBLANK('Competition Data'!E200),\"\",'Competition Data'!E200)","v":0},{"$f":"IF(ISBLANK('Competition Data'!F200),\"\",'Competition Data'!F200)","v":0.43},"Sebergham (Peak Reduction)",{"$f":"IF(ISBLANK('Competition Data'!I200),\"\",'Competition Data'!I200)","v":401.27678978568173}]
["SeberghamS26Peak Reduction",{"$f":"IF(ISBLANK('Competition Data'!A201),\"\",'Competition Data'!A201)","v":"Sebergham"},{"$f":"IF(ISBLANK('Competition Data'!H201),\"\",'Competition Data'!H201)","v":"ENWL-57"},{"$f":"IF(ISBLANK('Competition Data'!B201),\"\",'Competition Data'!B201)","v":"S26"},{"$f":"IF(ISBLANK('Competition Data'!C201),\"\",'Competition Data'!C201)","v":"Peak Reduction"},{"$f":"IF(ISBLANK('Competition Data'!G201),\"\",'Competition Data'!G201)","v":132000},{"$f":"IF(ISBLANK('Competition Data'!D201),\"\",'Competition Data'!D201)","v":1830},{"$f":"IF(ISBLANK('Competition Data'!E201),\"\",'Competition Data'!E201)","v":0},{"$f":"IF(ISBLANK('Competition Data'!F201),\"\",'Competition Data'!F201)","v":0.51},"Sebergham (Peak Reduction)",{"$f":"IF(ISBLANK('Competition Data'!I201),\"\",'Competition Data'!I201)","v":141.43362262937961}]
["SeberghamS27Peak Reduction",{"$f":"IF(ISBLANK('Competition Data'!A202),\"\",'Competition Data'!A202)","v":"Sebergham"},{"$f":"IF(ISBLANK('Competition Data'!H202),\"\",'Competition Data'!H202)","v":"ENWL-57"},{"$f":"IF(ISBLANK('Competition Data'!B202),\"\",'Competition Data'!B202)","v":"S27"},{"$f":"IF(ISBLANK('Competition Data'!C202),\"\",'Competition Data'!C202)","v":"Peak Reduction"},{"$f":"IF(ISBLANK('Competition Data'!G202),\"\",'Competition Data'!G202)","v":77647},{"$f":"IF(ISBLANK('Competition Data'!D202),\"\",'Competition Data'!D202)","v":1830},{"$f":"IF(ISBLANK('Competition Data'!E202),\"\",'Competition Data'!E202)","v":0},{"$f":"IF(ISBLANK('Competition Data'!F202),\"\",'Competition Data'!F202)","v":0.6},"Sebergham (Peak Reduction)",{"$f":"IF(ISBLANK('Competition Data'!I202),\"\",'Competition Data'!I202)","v":70.716757741347905}]
["SeberghamW27/28Peak Reduction",{"$f":"IF(ISBLANK('Competition Data'!A203),\"\",'Competition Data'!A203)","v":"Sebergham"},{"$f":"IF(ISBLANK('Competition Data'!H203),\"\",'Competition Data'!H203)","v":"ENWL-57"},{"$f":"IF(ISBLANK('Competition Data'!B203),\"\",'Competition Data'!B203)","v":"W27/28"},{"$f":"IF(ISBLANK('Competition Data'!C203),\"\",'Competition Data'!C203)","v":"Peak Reduction"},{"$f":"IF(ISBLANK('Competition Data'!G203),\"\",'Competition Data'!G203)","v":54353},{"$f":"IF(ISBLANK('Competition Data'!D203),\"\",'Competition Data'!D203)","v":1281},{"$f":"IF(ISBLANK('Competition Data'!E203),\"\",'Competition Data'!E203)","v":0},{"$f":"IF(ISBLANK('Competition Data'!F203),\"\",'Competition Data'!F203)","v":0.42},"Sebergham (Peak Reduction)",{"$f":"IF(ISBLANK('Competition Data'!I203),\"\",'Competition Data'!I203)","v":101.02412549719341}]
["SedberghFY26Operational Utilisation",{"$f":"IF(ISBLANK('Competition Data'!A204),\"\",'Competition Data'!A204)","v":"Sedbergh"},{"$f":"IF(ISBLANK('Competition Data'!H204),\"\",'Competition Data'!H204)","v":"ENWL-58"},{"$f":"IF(ISBLANK('Competition Data'!B204),\"\",'Competition Data'!B204)","v":"FY26"},{"$f":"IF(ISBLANK('Competition Data'!C204),\"\",'Competition Data'!C204)","v":"Operational Utilisation"},{"$f":"IF(ISBLANK('Competition Data'!G204),\"\",'Competition Data'!G204)","v":41723},{"$f":"IF(ISBLANK('Competition Data'!D204),\"\",'Competition Data'!D204)","v":100},{"$f":"IF(ISBLANK('Competition Data'!E204),\"\",'Competition Data'!E204)","v":0},{"$f":"IF(ISBLANK('Competition Data'!F204),\"\",'Competition Data'!F204)","v":4.4000000000000004},"Sedbergh (Operational Utilisation)",{"$f":"IF(ISBLANK('Competition Data'!I204),\"\",'Competition Data'!I204)","v":94.825000000000003}]
["SedberghFY27Operational Utilisation",{"$f":"IF(ISBLANK('Competition Data'!A205),\"\",'Competition Data'!A205)","v":"Sedbergh"},{"$f":"IF(ISBLANK('Competition Data'!H205),\"\",'Competition Data'!H205)","v":"ENWL-58"},{"$f":"IF(ISBLANK('Competition Data'!B205),\"\",'Competition Data'!B205)","v":"FY27"},{"$f":"IF(ISBLANK('Competition Data'!C205),\"\",'Competition Data'!C205)","v":"Operational Utilisation"},{"$f":"IF(ISBLANK('Competition Data'!G205),\"\",'Competition Data'!G205)","v":41723},{"$f":"IF(ISBLANK('Competition Data'!D205),\"\",'Competition Data'!D205)","v":100},{"$f":"IF(ISBLANK('Competition Data'!E205),\"\",'Competition Data'!E205)","v":0},{"$f":"IF(ISBLANK('Competition Data'!F205),\"\",'Competition Data'!F205)","v":4.4000000000000004},"Sedbergh (Operational Utilisation)",{"$f":"IF(ISBLANK('Competition Data'!I205),\"\",'Competition Data'!I205)","v":94.825000000000003}]
["SedberghFY28Operational Utilisation",{"$f":"IF(ISBLANK('Competition Data'!A206),\"\",'Competition Data'!A206)","v":"Sedbergh"},{"$f":"IF(ISBLANK('Competition Data'!H206),\"\",'Competition Data'!H206)","v":"ENWL-58"},{"$f":"IF(ISBLANK('Competition Data'!B206),\"\",'Competition Data'!B206)","v":"FY28"},{"$f":"IF(ISBLANK('Competition Data'!C206),\"\",'Competition Data'!C206)","v":"Operational Utilisation"},{"$f":"IF(ISBLANK('Competition Data'!G206),\"\",'Competition Data'!G206)","v":41723},{"$f":"IF(ISBLANK('Competition Data'!D206),\"\",'Competition Data'!D206)","v":100},{"$f":"IF(ISBLANK('Competition Data'!E206),\"\",'Competition Data'!E206)","v":0},{"$f":"IF(ISBLANK('Competition Data'!F206),\"\",'Competition Data'!F206)","v":4.4000000000000004},"Sedbergh (Operational Utilisation)",{"$f":"IF(ISBLANK('Competition Data'!I206),\"\",'Competition Data'!I206)","v":94.825000000000003}]
["SettleFY26Operational Utilisation",{"$f":"IF(ISBLANK('Competition Data'!A207),\"\",'Competition Data'!A207)","v":"Settle"},{"$f":"IF(ISBLANK('Competition Data'!H207),\"\",'Competition Data'!H207)","v":"ENWL-59"},{"$f":"IF(ISBLANK('Competition Data'!B207),\"\",'Competition Data'!B207)","v":"FY26"},{"$f":"IF(ISBLANK('Competition Data'!C207),\"\",'Competition Data'!C207)","v":"Operational Utilisation"},{"$f":"IF(ISBLANK('Competition Data'!G207),\"\",'Competition Data'!G207)","v":41723},{"$f":"IF(ISBLANK('Competition Data'!D207),\"\",'Competition Data'!D207)","v":100},{"$f":"IF(ISBLANK('Competition Data'!E207),\"\",'Competition Data'!E207)","v":0},{"$f":"IF(ISBLANK('Competition Data'!F207),\"\",'Competition Data'!F207)","v":4.0999999999999996},"Settle (Operational Utilisation)",{"$f":"IF(ISBLANK('Competition Data'!I207),\"\",'Competition Data'!I207)","v":101.76341463414636}]
["SettleFY27Operational Utilisation",{"$f":"IF(ISBLANK('Competition Data'!A208),\"\",'Competition Data'!A208)","v":"Settle"},{"$f":"IF(ISBLANK('Competition Data'!H208),\"\",'Competition Data'!H208)","v":"ENWL-59"},{"$f":"IF(ISBLANK('Competition Data'!B208),\"\",'Competition Data'!B208)","v":"FY27"},{"$f":"IF(ISBLANK('Competition Data'!C208),\"\",'Competition Data'!C208)","v":"Operational Utilisation"},{"$f":"IF(ISBLANK('Competition Data'!G208),\"\",'Competition Data'!G208)","v":41723},{"$f":"IF(ISBLANK('Competition Data'!D208),\"\",'Competition Data'!D208)","v":100},{"$f":"IF(ISBLANK('Competition Data'!E208),\"\",'Competition Data'!E208)","v":0},{"$f":"IF(ISBLANK('Competition Data'!F208),\"\",'Competition Data'!F208)","v":4.0999999999999996},"Settle (Operational Utilisation)",{"$f":"IF(ISBLANK('Competition Data'!I208),\"\",'Competition Data'!I208)","v":101.76341463414636}]
["SettleFY28Operational Utilisation",{"$f":"IF(ISBLANK('Competition Data'!A209),\"\",'Competition Data'!A209)","v":"Settle"},{"$f":"IF(ISBLANK('Competition Data'!H209),\"\",'Competition Data'!H209)","v":"ENWL-59"},{"$f":"IF(ISBLANK('Competition Data'!B209),\"\",'Competition Data'!B209)","v":"FY28"},{"$f":"IF(ISBLANK('Competition Data'!C209),\"\",'Competition Data'!C209)","v":"Operational Utilisation"},{"$f":"IF(ISBLANK('Competition Data'!G209),\"\",'Competition Data'!G209)","v":41723},{"$f":"IF(ISBLANK('Competition Data'!D209),\"\",'Competition Data'!D209)","v":100},{"$f":"IF(ISBLANK('Competition Data'!E209),\"\",'Competition Data'!E209)","v":0},{"$f":"IF(ISBLANK('Competition Data'!F209),\"\",'Competition Data'!F209)","v":4.0999999999999996},"Settle (Operational Utilisation)",{"$f":"IF(ISBLANK('Competition Data'!I209),\"\",'Competition Data'!I209)","v":101.76341463414636}]
["YealandW25/26Operational Utilisation Variable Availability",{"$f":"IF(ISBLANK('Competition Data'!A210),\"\",'Competition Data'!A210)","v":"Yealand"},{"$f":"IF(ISBLANK('Competition Data'!H210),\"\",'Competition Data'!H210)","v":"ENWL-60"},{"$f":"IF(ISBLANK('Competition Data'!B210),\"\",'Competition Data'!B210)","v":"W25/26"},{"$f":"IF(ISBLANK('Competition Data'!C210),\"\",'Competition Data'!C210)","v":"Operational Utilisation Variable Availability"},{"$f":"IF(ISBLANK('Competition Data'!G210),\"\",'Competition Data'!G210)","v":32000},{"$f":"IF(ISBLANK('Competition Data'!D210),\"\",'Competition Data'!D210)","v":48},{"$f":"IF(ISBLANK('Competition Data'!E210),\"\",'Competition Data'!E210)","v":360},{"$f":"IF(ISBLANK('Competition Data'!F210),\"\",'Competition Data'!F210)","v":0.89},"Yealand (Operational Utilisation Variable Availability)",{"$f":"IF(ISBLANK('Competition Data'!I210),\"\",'Competition Data'!I210)","v":"N/A"}]
["YealandS26Operational Utilisation Variable Availability",{"$f":"IF(ISBLANK('Competition Data'!A211),\"\",'Competition Data'!A211)","v":"Yealand"},{"$f":"IF(ISBLANK('Competition Data'!H211),\"\",'Competition Data'!H211)","v":"ENWL-60"},{"$f":"IF(ISBLANK('Competition Data'!B211),\"\",'Competition Data'!B211)","v":"S26"},{"$f":"IF(ISBLANK('Competition Data'!C211),\"\",'Competition Data'!C211)","v":"Operational Utilisation Variable Availability"},{"$f":"IF(ISBLANK('Competition Data'!G211),\"\",'Competition Data'!G211)","v":10517},{"$f":"IF(ISBLANK('Competition Data'!D211),\"\",'Competition Data'!D211)","v":48},{"$f":"IF(ISBLANK('Competition Data'!E211),\"\",'Competition Data'!E211)","v":48},{"$f":"IF(ISBLANK('Competition Data'!F211),\"\",'Competition Data'!F211)","v":0.47},"Yealand (Operational Utilisation Variable Availability)",{"$f":"IF(ISBLANK('Competition Data'!I211),\"\",'Competition Data'!I211)","v":"N/A"}]
["YealandW26/27Operational Utilisation Variable Availability",{"$f":"IF(ISBLANK('Competition Data'!A212),\"\",'Competition Data'!A212)","v":"Yealand"},{"$f":"IF(ISBLANK('Competition Data'!H212),\"\",'Competition Data'!H212)","v":"ENWL-60"},{"$f":"IF(ISBLANK('Competition Data'!B212),\"\",'Competition Data'!B212)","v":"W26/27"},{"$f":"IF(ISBLANK('Competition Data'!C212),\"\",'Competition Data'!C212)","v":"Operational Utilisation Variable Availability"},{"$f":"IF(ISBLANK('Competition Data'!G212),\"\",'Competition Data'!G212)","v":21483},{"$f":"IF(ISBLANK('Competition Data'!D212),\"\",'Competition Data'!D212)","v":48},{"$f":"IF(ISBLANK('Competition Data'!E212),\"\",'Competition Data'!E212)","v":424},{"$f":"IF(ISBLANK('Competition Data'!F212),\"\",'Competition Data'!F212)","v":0.96},"Yealand (Operational Utilisation Variable Availability)",{"$f":"IF(ISBLANK('Competition Data'!I212),\"\",'Competition Data'!I212)","v":"N/A"}]
["YealandS27Operational Utilisation Variable Availability",{"$f":"IF(ISBLANK('Competition Data'!A213),\"\",'Competition Data'!A213)","v":"Yealand"},{"$f":"IF(ISBLANK('Competition Data'!H213),\"\",'Competition Data'!H213)","v":"ENWL-60"},{"$f":"IF(ISBLANK('Competition Data'!B213),\"\",'Competition Data'!B213)","v":"S27"},{"$f":"IF(ISBLANK('Competition Data'!C213),\"\",'Competition Data'!C213)","v":"Operational Utilisation Variable Availability"},{"$f":"IF(ISBLANK('Competition Data'!G213),\"\",'Competition Data'!G213)","v":11130},{"$f":"IF(ISBLANK('Competition Data'!D213),\"\",'Competition Data'!D213)","v":48},{"$f":"IF(ISBLANK('Competition Data'!E213),\"\",'Competition Data'!E213)","v":66},{"$f":"IF(ISBLANK('Competition Data'!F213),\"\",'Competition Data'!F213)","v":0.56000000000000005},"Yealand (Operational Utilisation Variable Availability)",{"$f":"IF(ISBLANK('Competition Data'!I213),\"\",'Competition Data'!I213)","v":"N/A"}]
["YealandW27/28Operational Utilisation Variable Availability",{"$f":"IF(ISBLANK('Competition Data'!A214),\"\",'Competition Data'!A214)","v":"Yealand"},{"$f":"IF(ISBLANK('Competition Data'!H214),\"\",'Competition Data'!H214)","v":"ENWL-60"},{"$f":"IF(ISBLANK('Competition Data'!B214),\"\",'Competition Data'!B214)","v":"W27/28"},{"$f":"IF(ISBLANK('Competition Data'!C214),\"\",'Competition Data'!C214)","v":"Operational Utilisation Variable Availability"},{"$f":"IF(ISBLANK('Competition Data'!G214),\"\",'Competition Data'!G214)","v":20870},{"$f":"IF(ISBLANK('Competition Data'!D214),\"\",'Competition Data'!D214)","v":48},{"$f":"IF(ISBLANK('Competition Data'!E214),\"\",'Competition Data'!E214)","v":527},{"$f":"IF(ISBLANK('Competition Data'!F214),\"\",'Competition Data'!F214)","v":1.05},"Yealand (Operational Utilisation Variable Availability)",{"$f":"IF(ISBLANK('Competition Data'!I214),\"\",'Competition Data'!I214)","v":"N/A"}]
["YealandFY26Operational Utilisation",{"$f":"IF(ISBLANK('Competition Data'!A215),\"\",'Competition Data'!A215)","v":"Yealand"},{"$f":"IF(ISBLANK('Competition Data'!H215),\"\",'Competition Data'!H215)","v":"ENWL-61"},{"$f":"IF(ISBLANK('Competition Data'!B215),\"\",'Competition Data'!B215)","v":"FY26"},{"$f":"IF(ISBLANK('Competition Data'!C215),\"\",'Competition Data'!C215)","v":"Operational Utilisation"},{"$f":"IF(ISBLANK('Competition Data'!G215),\"\",'Competition Data'!G215)","v":21943},{"$f":"IF(ISBLANK('Competition Data'!D215),\"\",'Competition Data'!D215)","v":100},{"$f":"IF(ISBLANK('Competition Data'!E215),\"\",'Competition Data'!E215)","v":0},{"$f":"IF(ISBLANK('Competition Data'!F215),\"\",'Competition Data'!F215)","v":2.9},"Yealand (Operational Utilisation)",{"$f":"IF(ISBLANK('Competition Data'!I215),\"\",'Competition Data'!I215)","v":75.66551724137932}]
["YealandFY27Operational Utilisation",{"$f":"IF(ISBLANK('Competition Data'!A216),\"\",'Competition Data'!A216)","v":"Yealand"},{"$f":"IF(ISBLANK('Competition Data'!H216),\"\",'Competition Data'!H216)","v":"ENWL-61"},{"$f":"IF(ISBLANK('Competition Data'!B216),\"\",'Competition Data'!B216)","v":"FY27"},{"$f":"IF(ISBLANK('Competition Data'!C216),\"\",'Competition Data'!C216)","v":"Operational Utilisation"},{"$f":"IF(ISBLANK('Competition Data'!G216),\"\",'Competition Data'!G216)","v":21943},{"$f":"IF(ISBLANK('Competition Data'!D216),\"\",'Competition Data'!D216)","v":100},{"$f":"IF(ISBLANK('Competition Data'!E216),\"\",'Competition Data'!E216)","v":0},{"$f":"IF(ISBLANK('Competition Data'!F216),\"\",'Competition Data'!F216)","v":2.9},"Yealand (Operational Utilisation)",{"$f":"IF(ISBLANK('Competition Data'!I216),\"\",'Competition Data'!I216)","v":75.66551724137932}]
["YealandFY28Operational Utilisation",{"$f":"IF(ISBLANK('Competition Data'!A217),\"\",'Competition Data'!A217)","v":"Yealand"},{"$f":"IF(ISBLANK('Competition Data'!H217),\"\",'Competition Data'!H217)","v":"ENWL-61"},{"$f":"IF(ISBLANK('Competition Data'!B217),\"\",'Competition Data'!B217)","v":"FY28"},{"$f":"IF(ISBLANK('Competition Data'!C217),\"\",'Competition Data'!C217)","v":"Operational Utilisation"},{"$f":"IF(ISBLANK('Competition Data'!G217),\"\",'Competition Data'!G217)","v":21943},{"$f":"IF(ISBLANK('Competition Data'!D217),\"\",'Competition Data'!D217)","v":100},{"$f":"IF(ISBLANK('Competition Data'!E217),\"\",'Competition Data'!E217)","v":0},{"$f":"IF(ISBLANK('Competition Data'!F217),\"\",'Competition Data'!F217)","v":2.9},"Yealand (Operational Utilisation)",{"$f":"IF(ISBLANK('Competition Data'!I217),\"\",'Competition Data'!I217)","v":75.66551724137932}]
["YealandW25/26Peak Reduction",{"$f":"IF(ISBLANK('Competition Data'!A218),\"\",'Competition Data'!A218)","v":"Yealand"},{"$f":"IF(ISBLANK('Competition Data'!H218),\"\",'Competition Data'!H218)","v":"ENWL-62"},{"$f":"IF(ISBLANK('Competition Data'!B218),\"\",'Competition Data'!B218)","v":"W25/26"},{"$f":"IF(ISBLANK('Competition Data'!C218),\"\",'Competition Data'!C218)","v":"Peak Reduction"},{"$f":"IF(ISBLANK('Competition Data'!G218),\"\",'Competition Data'!G218)","v":32000},{"$f":"IF(ISBLANK('Competition Data'!D218),\"\",'Competition Data'!D218)","v":2548},{"$f":"IF(ISBLANK('Competition Data'!E218),\"\",'Competition Data'!E218)","v":0},{"$f":"IF(ISBLANK('Competition Data'!F218),\"\",'Competition Data'!F218)","v":0.89},"Yealand (Peak Reduction)",{"$f":"IF(ISBLANK('Competition Data'!I218),\"\",'Competition Data'!I218)","v":14.111089552502072}]
["YealandS26Peak Reduction",{"$f":"IF(ISBLANK('Competition Data'!A219),\"\",'Competition Data'!A219)","v":"Yealand"},{"$f":"IF(ISBLANK('Competition Data'!H219),\"\",'Competition Data'!H219)","v":"ENWL-62"},{"$f":"IF(ISBLANK('Competition Data'!B219),\"\",'Competition Data'!B219)","v":"S26"},{"$f":"IF(ISBLANK('Competition Data'!C219),\"\",'Competition Data'!C219)","v":"Peak Reduction"},{"$f":"IF(ISBLANK('Competition Data'!G219),\"\",'Competition Data'!G219)","v":10517},{"$f":"IF(ISBLANK('Competition Data'!D219),\"\",'Competition Data'!D219)","v":732},{"$f":"IF(ISBLANK('Competition Data'!E219),\"\",'Competition Data'!E219)","v":0},{"$f":"IF(ISBLANK('Competition Data'!F219),\"\",'Competition Data'!F219)","v":0.47},"Yealand (Peak Reduction)",{"$f":"IF(ISBLANK('Competition Data'!I219),\"\",'Competition Data'!I219)","v":30.569119869782586}]
["YealandW26/27Peak Reduction",{"$f":"IF(ISBLANK('Competition Data'!A220),\"\",'Competition Data'!A220)","v":"Yealand"},{"$f":"IF(ISBLANK('Competition Data'!H220),\"\",'Competition Data'!H220)","v":"ENWL-62"},{"$f":"IF(ISBLANK('Competition Data'!B220),\"\",'Competition Data'!B220)","v":"W26/27"},{"$f":"IF(ISBLANK('Competition Data'!C220),\"\",'Competition Data'!C220)","v":"Peak Reduction"},{"$f":"IF(ISBLANK('Competition Data'!G220),\"\",'Competition Data'!G220)","v":21483},{"$f":"IF(ISBLANK('Competition Data'!D220),\"\",'Competition Data'!D220)","v":2548},{"$f":"IF(ISBLANK('Competition Data'!E220),\"\",'Competition Data'!E220)","v":0},{"$f":"IF(ISBLANK('Competition Data'!F220),\"\",'Competition Data'!F220)","v":0.96},"Yealand (Peak Reduction)",{"$f":"IF(ISBLANK('Competition Data'!I220),\"\",'Competition Data'!I220)","v":8.7826236263736259}]
["YealandS27Peak Reduction",{"$f":"IF(ISBLANK('Competition Data'!A221),\"\",'Competition Data'!A221)","v":"Yealand"},{"$f":"IF(ISBLANK('Competition Data'!H221),\"\",'Competition Data'!H221)","v":"ENWL-62"},{"$f":"IF(ISBLANK('Competition Data'!B221),\"\",'Competition Data'!B221)","v":"S27"},{"$f":"IF(ISBLANK('Competition Data'!C221),\"\",'Competition Data'!C221)","v":"Peak Reduction"},{"$f":"IF(ISBLANK('Competition Data'!G221),\"\",'Competition Data'!G221)","v":11130},{"$f":"IF(ISBLANK('Competition Data'!D221),\"\",'Competition Data'!D221)","v":1464},{"$f":"IF(ISBLANK('Competition Data'!E221),\"\",'Competition Data'!E221)","v":0},{"$f":"IF(ISBLANK('Competition Data'!F221),\"\",'Competition Data'!F221)","v":0.56000000000000005},"Yealand (Peak Reduction)",{"$f":"IF(ISBLANK('Competition Data'!I221),\"\",'Competition Data'!I221)","v":13.575819672131146}]
["YealandW27/28Peak Reduction",{"$f":"IF(ISBLANK('Competition Data'!A222),\"\",'Competition Data'!A222)","v":"Yealand"},{"$f":"IF(ISBLANK('Competition Data'!H222),\"\",'Competition Data'!H222)","v":"ENWL-62"},{"$f":"IF(ISBLANK('Competition Data'!B222),\"\",'Competition Data'!B222)","v":"W27/28"},{"$f":"IF(ISBLANK('Competition Data'!C222),\"\",'Competition Data'!C222)","v":"Peak Reduction"},{"$f":"IF(ISBLANK('Competition Data'!G222),\"\",'Competition Data'!G222)","v":20870},{"$f":"IF(ISBLANK('Competition Data'!D222),\"\",'Competition Data'!D222)","v":2745},{"$f":"IF(ISBLANK('Competition Data'!E222),\"\",'Competition Data'!E222)","v":0},{"$f":"IF(ISBLANK('Competition Data'!F222),\"\",'Competition Data'!F222)","v":1.05},"Yealand (Peak Reduction)",{"$f":"IF(ISBLANK('Competition Data'!I222),\"\",'Competition Data'!I222)","v":7.2408708474282237}]
["ANDREW STW25/26Peak Reduction",{"$f":"IF(ISBLANK('Competition Data'!A223),\"\",'Competition Data'!A223)","v":"ANDREW ST"},{"$f":"IF(ISBLANK('Competition Data'!H223),\"\",'Competition Data'!H223)","v":"ENWL-A24-74"},{"$f":"IF(ISBLANK('Competition Data'!B223),\"\",'Competition Data'!B223)","v":"W25/26"},{"$f":"IF(ISBLANK('Competition Data'!C223),\"\",'Competition Data'!C223)","v":"Peak Reduction"},{"$f":"IF(ISBLANK('Competition Data'!G223),\"\",'Competition Data'!G223)","v":"N/A"},{"$f":"IF(ISBLANK('Competition Data'!D223),\"\",'Competition Data'!D223)","v":465.5},{"$f":"IF(ISBLANK('Competition Data'!E223),\"\",'Competition Data'!E223)","v":0},{"$f":"IF(ISBLANK('Competition Data'!F223),\"\",'Competition Data'!F223)","v":0.01},"ANDREW ST (Peak Reduction)",{"$f":"IF(ISBLANK('Competition Data'!I223),\"\",'Competition Data'!I223)","v":116.5996}]
["ANDREW STW25/26Scheduled Utilisation",{"$f":"IF(ISBLANK('Competition Data'!A224),\"\",'Competition Data'!A224)","v":"ANDREW ST"},{"$f":"IF(ISBLANK('Competition Data'!H224),\"\",'Competition Data'!H224)","v":"ENWL-A24-63"},{"$f":"IF(ISBLANK('Competition Data'!B224),\"\",'Competition Data'!B224)","v":"W25/26"},{"$f":"IF(ISBLANK('Competition Data'!C224),\"\",'Competition Data'!C224)","v":"Scheduled Utilisation"},{"$f":"IF(ISBLANK('Competition Data'!G224),\"\",'Competition Data'!G224)","v":"N/A"},{"$f":"IF(ISBLANK('Competition Data'!D224),\"\",'Competition Data'!D224)","v":465.5},{"$f":"IF(ISBLANK('Competition Data'!E224),\"\",'Competition Data'!E224)","v":0},{"$f":"IF(ISBLANK('Competition Data'!F224),\"\",'Competition Data'!F224)","v":0.01},"ANDREW ST (Scheduled Utilisation)",{"$f":"IF(ISBLANK('Competition Data'!I224),\"\",'Competition Data'!I224)","v":116.5996}]
["ARMISTEAD STW25/26Peak Reduction",{"$f":"IF(ISBLANK('Competition Data'!A225),\"\",'Competition Data'!A225)","v":"ARMISTEAD ST"},{"$f":"IF(ISBLANK('Competition Data'!H225),\"\",'Competition Data'!H225)","v":"ENWL-A24-75"},{"$f":"IF(ISBLANK('Competition Data'!B225),\"\",'Competition Data'!B225)","v":"W25/26"},{"$f":"IF(ISBLANK('Competition Data'!C225),\"\",'Competition Data'!C225)","v":"Peak Reduction"},{"$f":"IF(ISBLANK('Competition Data'!G225),\"\",'Competition Data'!G225)","v":"N/A"},{"$f":"IF(ISBLANK('Competition Data'!D225),\"\",'Competition Data'!D225)","v":465.5},{"$f":"IF(ISBLANK('Competition Data'!E225),\"\",'Competition Data'!E225)","v":0},{"$f":"IF(ISBLANK('Competition Data'!F225),\"\",'Competition Data'!F225)","v":0.02},"ARMISTEAD ST (Peak Reduction)",{"$f":"IF(ISBLANK('Competition Data'!I225),\"\",'Competition Data'!I225)","v":116.5996}]
["ARMISTEAD STW25/26Scheduled Utilisation",{"$f":"IF(ISBLANK('Competition Data'!A226),\"\",'Competition Data'!A226)","v":"ARMISTEAD ST"},{"$f":"IF(ISBLANK('Competition Data'!H226),\"\",'Competition Data'!H226)","v":"ENWL-A24-64"},{"$f":"IF(ISBLANK('Competition Data'!B226),\"\",'Competition Data'!B226)","v":"W25/26"},{"$f":"IF(ISBLANK('Competition Data'!C226),\"\",'Competition Data'!C226)","v":"Scheduled Utilisation"},{"$f":"IF(ISBLANK('Competition Data'!G226),\"\",'Competition Data'!G226)","v":"N/A"},{"$f":"IF(ISBLANK('Competition Data'!D226),\"\",'Competition Data'!D226)","v":465.5},{"$f":"IF(ISBLANK('Competition Data'!E226),\"\",'Competition Data'!E226)","v":0},{"$f":"IF(ISBLANK('Competition Data'!F226),\"\",'Competition Data'!F226)","v":0.02},"ARMISTEAD ST (Scheduled Utilisation)",{"$f":"IF(ISBLANK('Competition Data'!I226),\"\",'Competition Data'!I226)","v":116.5996}]
["BACK ROCHDALE RDW25/26Peak Reduction",{"$f":"IF(ISBLANK('Competition Data'!A227),\"\",'Competition Data'!A227)","v":"BACK ROCHDALE RD"},{"$f":"IF(ISBLANK('Competition Data'!H227),\"\",'Competition Data'!H227)","v":"ENWL-A24-76"},{"$f":"IF(ISBLANK('Competition Data'!B227),\"\",'Competition Data'!B227)","v":"W25/26"},{"$f":"IF(ISBLANK('Competition Data'!C227),\"\",'Competition Data'!C227)","v":"Peak Reduction"},{"$f":"IF(ISBLANK('Competition Data'!G227),\"\",'Competition Data'!G227)","v":"N/A"},{"$f":"IF(ISBLANK('Competition Data'!D227),\"\",'Competition Data'!D227)","v":465.5},{"$f":"IF(ISBLANK('Competition Data'!E227),\"\",'Competition Data'!E227)","v":0},{"$f":"IF(ISBLANK('Competition Data'!F227),\"\",'Competition Data'!F227)","v":1.0999999999999999E-2},"BACK ROCHDALE RD (Peak Reduction)",{"$f":"IF(ISBLANK('Competition Data'!I227),\"\",'Competition Data'!I227)","v":116.5996}]
["BACK ROCHDALE RDW25/26Scheduled Utilisation",{"$f":"IF(ISBLANK('Competition Data'!A228),\"\",'Competition Data'!A228)","v":"BACK ROCHDALE RD"},{"$f":"IF(ISBLANK('Competition Data'!H228),\"\",'Competition Data'!H228)","v":"ENWL-A24-65"},{"$f":"IF(ISBLANK('Competition Data'!B228),\"\",'Competition Data'!B228)","v":"W25/26"},{"$f":"IF(ISBLANK('Competition Data'!C228),\"\",'Competition Data'!C228)","v":"Scheduled Utilisation"},{"$f":"IF(ISBLANK('Competition Data'!G228),\"\",'Competition Data'!G228)","v":"N/A"},{"$f":"IF(ISBLANK('Competition Data'!D228),\"\",'Competition Data'!D228)","v":465.5},{"$f":"IF(ISBLANK('Competition Data'!E228),\"\",'Competition Data'!E228)","v":0},{"$f":"IF(ISBLANK('Competition Data'!F228),\"\",'Competition Data'!F228)","v":1.0999999999999999E-2},"BACK ROCHDALE RD (Scheduled Utilisation)",{"$f":"IF(ISBLANK('Competition Data'!I228),\"\",'Competition Data'!I228)","v":116.5996}]
["BK MANCHESTER RDW25/26Peak Reduction",{"$f":"IF(ISBLANK('Competition Data'!A229),\"\",'Competition Data'!A229)","v":"BK MANCHESTER RD"},{"$f":"IF(ISBLANK('Competition Data'!H229),\"\",'Competition Data'!H229)","v":"ENWL-A24-77"},{"$f":"IF(ISBLANK('Competition Data'!B229),\"\",'Competition Data'!B229)","v":"W25/26"},{"$f":"IF(ISBLANK('Competition Data'!C229),\"\",'Competition Data'!C229)","v":"Peak Reduction"},{"$f":"IF(ISBLANK('Competition Data'!G229),\"\",'Competition Data'!G229)","v":"N/A"},{"$f":"IF(ISBLANK('Competition Data'!D229),\"\",'Competition Data'!D229)","v":465.5},{"$f":"IF(ISBLANK('Competition Data'!E229),\"\",'Competition Data'!E229)","v":0},{"$f":"IF(ISBLANK('Competition Data'!F229),\"\",'Competition Data'!F229)","v":1.2999999999999999E-2},"BK MANCHESTER RD (Peak Reduction)",{"$f":"IF(ISBLANK('Competition Data'!I229),\"\",'Competition Data'!I229)","v":116.5996}]
["BK MANCHESTER RDW25/26Scheduled Utilisation",{"$f":"IF(ISBLANK('Competition Data'!A230),\"\",'Competition Data'!A230)","v":"BK MANCHESTER RD"},{"$f":"IF(ISBLANK('Competition Data'!H230),\"\",'Competition Data'!H230)","v":"ENWL-A24-66"},{"$f":"IF(ISBLANK('Competition Data'!B230),\"\",'Competition Data'!B230)","v":"W25/26"},{"$f":"IF(ISBLANK('Competition Data'!C230),\"\",'Competition Data'!C230)","v":"Scheduled Utilisation"},{"$f":"IF(ISBLANK('Competition Data'!G230),\"\",'Competition Data'!G230)","v":"N/A"},{"$f":"IF(ISBLANK('Competition Data'!D230),\"\",'Competition Data'!D230)","v":465.5},{"$f":"IF(ISBLANK('Competition Data'!E230),\"\",'Competition Data'!E230)","v":0},{"$f":"IF(ISBLANK('Competition Data'!F230),\"\",'Competition Data'!F230)","v":1.2999999999999999E-2},"BK MANCHESTER RD (Scheduled Utilisation)",{"$f":"IF(ISBLANK('Competition Data'!I230),\"\",'Competition Data'!I230)","v":116.5996}]
["CARLTON STW25/26Peak Reduction",{"$f":"IF(ISBLANK('Competition Data'!A231),\"\",'Competition Data'!A231)","v":"CARLTON ST"},{"$f":"IF(ISBLANK('Competition Data'!H231),\"\",'Competition Data'!H231)","v":"ENWL-A24-78"},{"$f":"IF(ISBLANK('Competition Data'!B231),\"\",'Competition Data'!B231)","v":"W25/26"},{"$f":"IF(ISBLANK('Competition Data'!C231),\"\",'Competition Data'!C231)","v":"Peak Reduction"},{"$f":"IF(ISBLANK('Competition Data'!G231),\"\",'Competition Data'!G231)","v":"N/A"},{"$f":"IF(ISBLANK('Competition Data'!D231),\"\",'Competition Data'!D231)","v":465.5},{"$f":"IF(ISBLANK('Competition Data'!E231),\"\",'Competition Data'!E231)","v":0},{"$f":"IF(ISBLANK('Competition Data'!F231),\"\",'Competition Data'!F231)","v":1.2E-2},"CARLTON ST (Peak Reduction)",{"$f":"IF(ISBLANK('Competition Data'!I231),\"\",'Competition Data'!I231)","v":116.5996}]
["CARLTON STW25/26Scheduled Utilisation",{"$f":"IF(ISBLANK('Competition Data'!A232),\"\",'Competition Data'!A232)","v":"CARLTON ST"},{"$f":"IF(ISBLANK('Competition Data'!H232),\"\",'Competition Data'!H232)","v":"ENWL-A24-67"},{"$f":"IF(ISBLANK('Competition Data'!B232),\"\",'Competition Data'!B232)","v":"W25/26"},{"$f":"IF(ISBLANK('Competition Data'!C232),\"\",'Competition Data'!C232)","v":"Scheduled Utilisation"},{"$f":"IF(ISBLANK('Competition Data'!G232),\"\",'Competition Data'!G232)","v":"N/A"},{"$f":"IF(ISBLANK('Competition Data'!D232),\"\",'Competition Data'!D232)","v":465.5},{"$f":"IF(ISBLANK('Competition Data'!E232),\"\",'Competition Data'!E232)","v":0},{"$f":"IF(ISBLANK('Competition Data'!F232),\"\",'Competition Data'!F232)","v":1.2E-2},"CARLTON ST (Scheduled Utilisation)",{"$f":"IF(ISBLANK('Competition Data'!I232),\"\",'Competition Data'!I232)","v":116.5996}]
["CORONATION DRW25/26Peak Reduction",{"$f":"IF(ISBLANK('Competition Data'!A233),\"\",'Competition Data'!A233)","v":"CORONATION DR"},{"$f":"IF(ISBLANK('Competition Data'!H233),\"\",'Competition Data'!H233)","v":"ENWL-A24-79"},{"$f":"IF(ISBLANK('Competition Data'!B233),\"\",'Competition Data'!B233)","v":"W25/26"},{"$f":"IF(ISBLANK('Competition Data'!C233),\"\",'Competition Data'!C233)","v":"Peak Reduction"},{"$f":"IF(ISBLANK('Competition Data'!G233),\"\",'Competition Data'!G233)","v":"N/A"},{"$f":"IF(ISBLANK('Competition Data'!D233),\"\",'Competition Data'!D233)","v":465.5},{"$f":"IF(ISBLANK('Competition Data'!E233),\"\",'Competition Data'!E233)","v":0},{"$f":"IF(ISBLANK('Competition Data'!F233),\"\",'Competition Data'!F233)","v":0.01},"CORONATION DR (Peak Reduction)",{"$f":"IF(ISBLANK('Competition Data'!I233),\"\",'Competition Data'!I233)","v":116.5996}]
["CORONATION DRW25/26Scheduled Utilisation",{"$f":"IF(ISBLANK('Competition Data'!A234),\"\",'Competition Data'!A234)","v":"CORONATION DR"},{"$f":"IF(ISBLANK('Competition Data'!H234),\"\",'Competition Data'!H234)","v":"ENWL-A24-68"},{"$f":"IF(ISBLANK('Competition Data'!B234),\"\",'Competition Data'!B234)","v":"W25/26"},{"$f":"IF(ISBLANK('Competition Data'!C234),\"\",'Competition Data'!C234)","v":"Scheduled Utilisation"},{"$f":"IF(ISBLANK('Competition Data'!G234),\"\",'Competition Data'!G234)","v":"N/A"},{"$f":"IF(ISBLANK('Competition Data'!D234),\"\",'Competition Data'!D234)","v":465.5},{"$f":"IF(ISBLANK('Competition Data'!E234),\"\",'Competition Data'!E234)","v":0},{"$f":"IF(ISBLANK('Competition Data'!F234),\"\",'Competition Data'!F234)","v":0.01},"CORONATION DR (Scheduled Utilisation)",{"$f":"IF(ISBLANK('Competition Data'!I234),\"\",'Competition Data'!I234)","v":116.5996}]
["KINGSTON AVEW25/26Peak Reduction",{"$f":"IF(ISBLANK('Competition Data'!A235),\"\",'Competition Data'!A235)","v":"KINGSTON AVE"},{"$f":"IF(ISBLANK('Competition Data'!H235),\"\",'Competition Data'!H235)","v":"ENWL-A24-80"},{"$f":"IF(ISBLANK('Competition Data'!B235),\"\",'Competition Data'!B235)","v":"W25/26"},{"$f":"IF(ISBLANK('Competition Data'!C235),\"\",'Competition Data'!C235)","v":"Peak Reduction"},{"$f":"IF(ISBLANK('Competition Data'!G235),\"\",'Competition Data'!G235)","v":"N/A"},{"$f":"IF(ISBLANK('Competition Data'!D235),\"\",'Competition Data'!D235)","v":465.5},{"$f":"IF(ISBLANK('Competition Data'!E235),\"\",'Competition Data'!E235)","v":0},{"$f":"IF(ISBLANK('Competition Data'!F235),\"\",'Competition Data'!F235)","v":1.2E-2},"KINGSTON AVE (Peak Reduction)",{"$f":"IF(ISBLANK('Competition Data'!I235),\"\",'Competition Data'!I235)","v":116.5996}]
["KINGSTON AVEW25/26Scheduled Utilisation",{"$f":"IF(ISBLANK('Competition Data'!A236),\"\",'Competition Data'!A236)","v":"KINGSTON AVE"},{"$f":"IF(ISBLANK('Competition Data'!H236),\"\",'Competition Data'!H236)","v":"ENWL-A24-69"},{"$f":"IF(ISBLANK('Competition Data'!B236),\"\",'Competition Data'!B236)","v":"W25/26"},{"$f":"IF(ISBLANK('Competition Data'!C236),\"\",'Competition Data'!C236)","v":"Scheduled Utilisation"},{"$f":"IF(ISBLANK('Competition Data'!G236),\"\",'Competition Data'!G236)","v":"N/A"},{"$f":"IF(ISBLANK('Competition Data'!D236),\"\",'Competition Data'!D236)","v":465.5},{"$f":"IF(ISBLANK('Competition Data'!E236),\"\",'Competition Data'!E236)","v":0},{"$f":"IF(ISBLANK('Competition Data'!F236),\"\",'Competition Data'!F236)","v":1.2E-2},"KINGSTON AVE (Scheduled Utilisation)",{"$f":"IF(ISBLANK('Competition Data'!I236),\"\",'Competition Data'!I236)","v":116.5996}]
["MANCHESTER RDW25/26Peak Reduction",{"$f":"IF(ISBLANK('Competition Data'!A237),\"\",'Competition Data'!A237)","v":"MANCHESTER RD"},{"$f":"IF(ISBLANK('Competition Data'!H237),\"\",'Competition Data'!H237)","v":"ENWL-A24-81"},{"$f":"IF(ISBLANK('Competition Data'!B237),\"\",'Competition Data'!B237)","v":"W25/26"},{"$f":"IF(ISBLANK('Competition Data'!C237),\"\",'Competition Data'!C237)","v":"Peak Reduction"},{"$f":"IF(ISBLANK('Competition Data'!G237),\"\",'Competition Data'!G237)","v":"N/A"},{"$f":"IF(ISBLANK('Competition Data'!D237),\"\",'Competition Data'!D237)","v":465.5},{"$f":"IF(ISBLANK('Competition Data'!E237),\"\",'Competition Data'!E237)","v":0},{"$f":"IF(ISBLANK('Competition Data'!F237),\"\",'Competition Data'!F237)","v":2.3E-2},"MANCHESTER RD (Peak Reduction)",{"$f":"IF(ISBLANK('Competition Data'!I237),\"\",'Competition Data'!I237)","v":116.5996}]
["MANCHESTER RDW25/26Scheduled Utilisation",{"$f":"IF(ISBLANK('Competition Data'!A238),\"\",'Competition Data'!A238)","v":"MANCHESTER RD"},{"$f":"IF(ISBLANK('Competition Data'!H238),\"\",'Competition Data'!H238)","v":"ENWL-A24-70"},{"$f":"IF(ISBLANK('Competition Data'!B238),\"\",'Competition Data'!B238)","v":"W25/26"},{"$f":"IF(ISBLANK('Competition Data'!C238),\"\",'Competition Data'!C238)","v":"Scheduled Utilisation"},{"$f":"IF(ISBLANK('Competition Data'!G238),\"\",'Competition Data'!G238)","v":"N/A"},{"$f":"IF(ISBLANK('Competition Data'!D238),\"\",'Competition Data'!D238)","v":465.5},{"$f":"IF(ISBLANK('Competition Data'!E238),\"\",'Competition Data'!E238)","v":0},{"$f":"IF(ISBLANK('Competition Data'!F238),\"\",'Competition Data'!F238)","v":2.3E-2},"MANCHESTER RD (Scheduled Utilisation)",{"$f":"IF(ISBLANK('Competition Data'!I238),\"\",'Competition Data'!I238)","v":116.5996}]
["SPENDMORE LN WW25/26Peak Reduction",{"$f":"IF(ISBLANK('Competition Data'!A239),\"\",'Competition Data'!A239)","v":"SPENDMORE LN W"},{"$f":"IF(ISBLANK('Competition Data'!H239),\"\",'Competition Data'!H239)","v":"ENWL-A24-82"},{"$f":"IF(ISBLANK('Competition Data'!B239),\"\",'Competition Data'!B239)","v":"W25/26"},{"$f":"IF(ISBLANK('Competition Data'!C239),\"\",'Competition Data'!C239)","v":"Peak Reduction"},{"$f":"IF(ISBLANK('Competition Data'!G239),\"\",'Competition Data'!G239)","v":"N/A"},{"$f":"IF(ISBLANK('Competition Data'!D239),\"\",'Competition Data'!D239)","v":465.5},{"$f":"IF(ISBLANK('Competition Data'!E239),\"\",'Competition Data'!E239)","v":0},{"$f":"IF(ISBLANK('Competition Data'!F239),\"\",'Competition Data'!F239)","v":1.2999999999999999E-2},"SPENDMORE LN W (Peak Reduction)",{"$f":"IF(ISBLANK('Competition Data'!I239),\"\",'Competition Data'!I239)","v":116.5996}]
["SPENDMORE LN WW25/26Scheduled Utilisation",{"$f":"IF(ISBLANK('Competition Data'!A240),\"\",'Competition Data'!A240)","v":"SPENDMORE LN W"},{"$f":"IF(ISBLANK('Competition Data'!H240),\"\",'Competition Data'!H240)","v":"ENWL-A24-71"},{"$f":"IF(ISBLANK('Competition Data'!B240),\"\",'Competition Data'!B240)","v":"W25/26"},{"$f":"IF(ISBLANK('Competition Data'!C240),\"\",'Competition Data'!C240)","v":"Scheduled Utilisation"},{"$f":"IF(ISBLANK('Competition Data'!G240),\"\",'Competition Data'!G240)","v":"N/A"},{"$f":"IF(ISBLANK('Competition Data'!D240),\"\",'Competition Data'!D240)","v":465.5},{"$f":"IF(ISBLANK('Competition Data'!E240),\"\",'Competition Data'!E240)","v":0},{"$f":"IF(ISBLANK('Competition Data'!F240),\"\",'Competition Data'!F240)","v":1.2999999999999999E-2},"SPENDMORE LN W (Scheduled Utilisation)",{"$f":"IF(ISBLANK('Competition Data'!I240),\"\",'Competition Data'!I240)","v":116.5996}]
["ST GEORGES STW25/26Peak Reduction",{"$f":"IF(ISBLANK('Competition Data'!A241),\"\",'Competition Data'!A241)","v":"ST GEORGES ST"},{"$f":"IF(ISBLANK('Competition Data'!H241),\"\",'Competition Data'!H241)","v":"ENWL-A24-83"},{"$f":"IF(ISBLANK('Competition Data'!B241),\"\",'Competition Data'!B241)","v":"W25/26"},{"$f":"IF(ISBLANK('Competition Data'!C241),\"\",'Competition Data'!C241)","v":"Peak Reduction"},{"$f":"IF(ISBLANK('Competition Data'!G241),\"\",'Competition Data'!G241)","v":"N/A"},{"$f":"IF(ISBLANK('Competition Data'!D241),\"\",'Competition Data'!D241)","v":465.5},{"$f":"IF(ISBLANK('Competition Data'!E241),\"\",'Competition Data'!E241)","v":0},{"$f":"IF(ISBLANK('Competition Data'!F241),\"\",'Competition Data'!F241)","v":2.5000000000000001E-2},"ST GEORGES ST (Peak Reduction)",{"$f":"IF(ISBLANK('Competition Data'!I241),\"\",'Competition Data'!I241)","v":116.5996}]
["ST GEORGES STW25/26Scheduled Utilisation",{"$f":"IF(ISBLANK('Competition Data'!A242),\"\",'Competition Data'!A242)","v":"ST GEORGES ST"},{"$f":"IF(ISBLANK('Competition Data'!H242),\"\",'Competition Data'!H242)","v":"ENWL-A24-72"},{"$f":"IF(ISBLANK('Competition Data'!B242),\"\",'Competition Data'!B242)","v":"W25/26"},{"$f":"IF(ISBLANK('Competition Data'!C242),\"\",'Competition Data'!C242)","v":"Scheduled Utilisation"},{"$f":"IF(ISBLANK('Competition Data'!G242),\"\",'Competition Data'!G242)","v":"N/A"},{"$f":"IF(ISBLANK('Competition Data'!D242),\"\",'Competition Data'!D242)","v":465.5},{"$f":"IF(ISBLANK('Competition Data'!E242),\"\",'Competition Data'!E242)","v":0},{"$f":"IF(ISBLANK('Competition Data'!F242),\"\",'Competition Data'!F242)","v":2.5000000000000001E-2},"ST GEORGES ST (Scheduled Utilisation)",{"$f":"IF(ISBLANK('Competition Data'!I242),\"\",'Competition Data'!I242)","v":116.5996}]
["SYCAMORE ESTW25/26Peak Reduction",{"$f":"IF(ISBLANK('Competition Data'!A243),\"\",'Competition Data'!A243)","v":"SYCAMORE EST"},{"$f":"IF(ISBLANK('Competition Data'!H243),\"\",'Competition Data'!H243)","v":"ENWL-A24-84"},{"$f":"IF(ISBLANK('Competition Data'!B243),\"\",'Competition Data'!B243)","v":"W25/26"},{"$f":"IF(ISBLANK('Competition Data'!C243),\"\",'Competition Data'!C243)","v":"Peak Reduction"},{"$f":"IF(ISBLANK('Competition Data'!G243),\"\",'Competition Data'!G243)","v":"N/A"},{"$f":"IF(ISBLANK('Competition Data'!D243),\"\",'Competition Data'!D243)","v":465.5},{"$f":"IF(ISBLANK('Competition Data'!E243),\"\",'Competition Data'!E243)","v":0},{"$f":"IF(ISBLANK('Competition Data'!F243),\"\",'Competition Data'!F243)","v":2.1000000000000001E-2},"SYCAMORE EST (Peak Reduction)",{"$f":"IF(ISBLANK('Competition Data'!I243),\"\",'Competition Data'!I243)","v":116.5996}]
["SYCAMORE ESTW25/26Scheduled Utilisation",{"$f":"IF(ISBLANK('Competition Data'!A244),\"\",'Competition Data'!A244)","v":"SYCAMORE EST"},{"$f":"IF(ISBLANK('Competition Data'!H244),\"\",'Competition Data'!H244)","v":"ENWL-A24-73"},{"$f":"IF(ISBLANK('Competition Data'!B244),\"\",'Competition Data'!B244)","v":"W25/26"},{"$f":"IF(ISBLANK('Competition Data'!C244),\"\",'Competition Data'!C244)","v":"Scheduled Utilisation"},{"$f":"IF(ISBLANK('Competition Data'!G244),\"\",'Competition Data'!G244)","v":"N/A"},{"$f":"IF(ISBLANK('Competition Data'!D244),\"\",'Competition Data'!D244)","v":465.5},{"$f":"IF(ISBLANK('Competition Data'!E244),\"\",'Competition Data'!E244)","v":0},{"$f":"IF(ISBLANK('Competition Data'!F244),\"\",'Competition Data'!F244)","v":2.1000000000000001E-2},"SYCAMORE EST (Scheduled Utilisation)",{"$f":"IF(ISBLANK('Competition Data'!I244),\"\",'Competition Data'!I244)","v":116.5996}]
["",{"$f":"IF(ISBLANK('Competition Data'!A245),\"\",'Competition Data'!A245)","v":""},{"$f":"IF(ISBLANK('Competition Data'!H245),\"\",'Competition Data'!H245)","v":""},{"$f":"IF(ISBLANK('Competition Data'!B245),\"\",'Competition Data'!B245)","v":""},{"$f":"IF(ISBLANK('Competition Data'!C245),\"\",'Competition Data'!C245)","v":""},{"$f":"IF(ISBLANK('Competition Data'!G245),\"\",'Competition Data'!G245)","v":""},{"$f":"IF(ISBLANK('Competition Data'!D245),\"\",'Competition Data'!D245)","v":""},{"$f":"IF(ISBLANK('Competition Data'!E245),\"\",'Competition Data'!E245)","v":""},{"$f":"IF(ISBLANK('Competition Data'!F245),\"\",'Competition Data'!F245)","v":""}," ()",{"$f":"IF(ISBLANK('Competition Data'!I245),\"\",'Competition Data'!I245)","v":""}]
["",{"$f":"IF(ISBLANK('Competition Data'!A246),\"\",'Competition Data'!A246)","v":""},{"$f":"IF(ISBLANK('Competition Data'!H246),\"\",'Competition Data'!H246)","v":""},{"$f":"IF(ISBLANK('Competition Data'!B246),\"\",'Competition Data'!B246)","v":""},{"$f":"IF(ISBLANK('Competition Data'!C246),\"\",'Competition Data'!C246)","v":""},{"$f":"IF(ISBLANK('Competition Data'!G246),\"\",'Competition Data'!G246)","v":""},{"$f":"IF(ISBLANK('Competition Data'!D246),\"\",'Competition Data'!D246)","v":""},{"$f":"IF(ISBLANK('Competition Data'!E246),\"\",'Competition Data'!E246)","v":""},{"$f":"IF(ISBLANK('Competition Data'!F246),\"\",'Competition Data'!F246)","v":""}," ()",{"$f":"IF(ISBLANK('Competition Data'!I246),\"\",'Competition Data'!I246)","v":""}]
["",{"$f":"IF(ISBLANK('Competition Data'!A247),\"\",'Competition Data'!A247)","v":""},{"$f":"IF(ISBLANK('Competition Data'!H247),\"\",'Competition Data'!H247)","v":""},{"$f":"IF(ISBLANK('Competition Data'!B247),\"\",'Competition Data'!B247)","v":""},{"$f":"IF(ISBLANK('Competition Data'!C247),\"\",'Competition Data'!C247)","v":""},{"$f":"IF(ISBLANK('Competition Data'!G247),\"\",'Competition Data'!G247)","v":""},{"$f":"IF(ISBLANK('Competition Data'!D247),\"\",'Competition Data'!D247)","v":""},{"$f":"IF(ISBLANK('Competition Data'!E247),\"\",'Competition Data'!E247)","v":""},{"$f":"IF(ISBLANK('Competition Data'!F247),\"\",'Competition Data'!F247)","v":""}," ()",{"$f":"IF(ISBLANK('Competition Data'!I247),\"\",'Competition Data'!I247)","v":""}]
["",{"$f":"IF(ISBLANK('Competition Data'!A248),\"\",'Competition Data'!A248)","v":""},{"$f":"IF(ISBLANK('Competition Data'!H248),\"\",'Competition Data'!H248)","v":""},{"$f":"IF(ISBLANK('Competition Data'!B248),\"\",'Competition Data'!B248)","v":""},{"$f":"IF(ISBLANK('Competition Data'!C248),\"\",'Competition Data'!C248)","v":""},{"$f":"IF(ISBLANK('Competition Data'!G248),\"\",'Competition Data'!G248)","v":""},{"$f":"IF(ISBLANK('Competition Data'!D248),\"\",'Competition Data'!D248)","v":""},{"$f":"IF(ISBLANK('Competition Data'!E248),\"\",'Competition Data'!E248)","v":""},{"$f":"IF(ISBLANK('Competition Data'!F248),\"\",'Competition Data'!F248)","v":""}," ()",{"$f":"IF(ISBLANK('Competition Data'!I248),\"\",'Competition Data'!I248)","v":""}]
["",{"$f":"IF(ISBLANK('Competition Data'!A249),\"\",'Competition Data'!A249)","v":""},{"$f":"IF(ISBLANK('Competition Data'!H249),\"\",'Competition Data'!H249)","v":""},{"$f":"IF(ISBLANK('Competition Data'!B249),\"\",'Competition Data'!B249)","v":""},{"$f":"IF(ISBLANK('Competition Data'!C249),\"\",'Competition Data'!C249)","v":""},{"$f":"IF(ISBLANK('Competition Data'!G249),\"\",'Competition Data'!G249)","v":""},{"$f":"IF(ISBLANK('Competition Data'!D249),\"\",'Competition Data'!D249)","v":""},{"$f":"IF(ISBLANK('Competition Data'!E249),\"\",'Competition Data'!E249)","v":""},{"$f":"IF(ISBLANK('Competition Data'!F249),\"\",'Competition Data'!F249)","v":""}," ()",{"$f":"IF(ISBLANK('Competition Data'!I249),\"\",'Competition Data'!I249)","v":""}]
["",{"$f":"IF(ISBLANK('Competition Data'!A250),\"\",'Competition Data'!A250)","v":""},{"$f":"IF(ISBLANK('Competition Data'!H250),\"\",'Competition Data'!H250)","v":""},{"$f":"IF(ISBLANK('Competition Data'!B250),\"\",'Competition Data'!B250)","v":""},{"$f":"IF(ISBLANK('Competition Data'!C250),\"\",'Competition Data'!C250)","v":""},{"$f":"IF(ISBLANK('Competition Data'!G250),\"\",'Competition Data'!G250)","v":""},{"$f":"IF(ISBLANK('Competition Data'!D250),\"\",'Competition Data'!D250)","v":""},{"$f":"IF(ISBLANK('Competition Data'!E250),\"\",'Competition Data'!E250)","v":""},{"$f":"IF(ISBLANK('Competition Data'!F250),\"\",'Competition Data'!F250)","v":""}," ()",{"$f":"IF(ISBLANK('Competition Data'!I250),\"\",'Competition Data'!I250)","v":""}]
["",{"$f":"IF(ISBLANK('Competition Data'!A251),\"\",'Competition Data'!A251)","v":""},{"$f":"IF(ISBLANK('Competition Data'!H251),\"\",'Competition Data'!H251)","v":""},{"$f":"IF(ISBLANK('Competition Data'!B251),\"\",'Competition Data'!B251)","v":""},{"$f":"IF(ISBLANK('Competition Data'!C251),\"\",'Competition Data'!C251)","v":""},{"$f":"IF(ISBLANK('Competition Data'!G251),\"\",'Competition Data'!G251)","v":""},{"$f":"IF(ISBLANK('Competition Data'!D251),\"\",'Competition Data'!D251)","v":""},{"$f":"IF(ISBLANK('Competition Data'!E251),\"\",'Competition Data'!E251)","v":""},{"$f":"IF(ISBLANK('Competition Data'!F251),\"\",'Competition Data'!F251)","v":""}," ()",{"$f":"IF(ISBLANK('Competition Data'!I251),\"\",'Competition Data'!I251)","v":""}]
["",{"$f":"IF(ISBLANK('Competition Data'!A252),\"\",'Competition Data'!A252)","v":""},{"$f":"IF(ISBLANK('Competition Data'!H252),\"\",'Competition Data'!H252)","v":""},{"$f":"IF(ISBLANK('Competition Data'!B252),\"\",'Competition Data'!B252)","v":""},{"$f":"IF(ISBLANK('Competition Data'!C252),\"\",'Competition Data'!C252)","v":""},null,{"$f":"IF(ISBLANK('Competition Data'!D252),\"\",'Competition Data'!D252)","v":""},{"$f":"IF(ISBLANK('Competition Data'!E252),\"\",'Competition Data'!E252)","v":""},{"$f":"IF(ISBLANK('Competition Data'!F252),\"\",'Competition Data'!F252)","v":""}," ()",{"$f":"IF(ISBLANK('Competition Data'!I252),\"\",'Competition Data'!I252)","v":""}]
["",{"$f":"IF(ISBLANK('Competition Data'!A253),\"\",'Competition Data'!A253)","v":""},{"$f":"IF(ISBLANK('Competition Data'!H253),\"\",'Competition Data'!H253)","v":""},{"$f":"IF(ISBLANK('Competition Data'!B253),\"\",'Competition Data'!B253)","v":""},{"$f":"IF(ISBLANK('Competition Data'!C253),\"\",'Competition Data'!C253)","v":""},null,{"$f":"IF(ISBLANK('Competition Data'!D253),\"\",'Competition Data'!D253)","v":""},{"$f":"IF(ISBLANK('Competition Data'!E253),\"\",'Competition Data'!E253)","v":""},{"$f":"IF(ISBLANK('Competition Data'!F253),\"\",'Competition Data'!F253)","v":""}," ()",{"$f":"IF(ISBLANK('Competition Data'!I253),\"\",'Competition Data'!I253)","v":""}]
["",{"$f":"IF(ISBLANK('Competition Data'!A254),\"\",'Competition Data'!A254)","v":""},{"$f":"IF(ISBLANK('Competition Data'!H254),\"\",'Competition Data'!H254)","v":""},{"$f":"IF(ISBLANK('Competition Data'!B254),\"\",'Competition Data'!B254)","v":""},{"$f":"IF(ISBLANK('Competition Data'!C254),\"\",'Competition Data'!C254)","v":""},null,{"$f":"IF(ISBLANK('Competition Data'!D254),\"\",'Competition Data'!D254)","v":""},{"$f":"IF(ISBLANK('Competition Data'!E254),\"\",'Competition Data'!E254)","v":""},{"$f":"IF(ISBLANK('Competition Data'!F254),\"\",'Competition Data'!F254)","v":""}," ()",{"$f":"IF(ISBLANK('Competition Data'!I254),\"\",'Competition Data'!I254)","v":""}]
["",{"$f":"IF(ISBLANK('Competition Data'!A255),\"\",'Competition Data'!A255)","v":""},{"$f":"IF(ISBLANK('Competition Data'!H255),\"\",'Competition Data'!H255)","v":""},{"$f":"IF(ISBLANK('Competition Data'!B255),\"\",'Competition Data'!B255)","v":""},{"$f":"IF(ISBLANK('Competition Data'!C255),\"\",'Competition Data'!C255)","v":""},null,{"$f":"IF(ISBLANK('Competition Data'!D255),\"\",'Competition Data'!D255)","v":""},{"$f":"IF(ISBLANK('Competition Data'!E255),\"\",'Competition Data'!E255)","v":""},{"$f":"IF(ISBLANK('Competition Data'!F255),\"\",'Competition Data'!F255)","v":""}," ()",{"$f":"IF(ISBLANK('Competition Data'!I255),\"\",'Competition Data'!I255)","v":""}]
["",{"$f":"IF(ISBLANK('Competition Data'!A256),\"\",'Competition Data'!A256)","v":""},{"$f":"IF(ISBLANK('Competition Data'!H256),\"\",'Competition Data'!H256)","v":""},{"$f":"IF(ISBLANK('Competition Data'!B256),\"\",'Competition Data'!B256)","v":""},{"$f":"IF(ISBLANK('Competition Data'!C256),\"\",'Competition Data'!C256)","v":""},null,{"$f":"IF(ISBLANK('Competition Data'!D256),\"\",'Competition Data'!D256)","v":""},{"$f":"IF(ISBLANK('Competition Data'!E256),\"\",'Competition Data'!E256)","v":""},{"$f":"IF(ISBLANK('Competition Data'!F256),\"\",'Competition Data'!F256)","v":""}," ()",{"$f":"IF(ISBLANK('Competition Data'!I256),\"\",'Competition Data'!I256)","v":""}]
["",{"$f":"IF(ISBLANK('Competition Data'!A257),\"\",'Competition Data'!A257)","v":""},{"$f":"IF(ISBLANK('Competition Data'!H257),\"\",'Competition Data'!H257)","v":""},{"$f":"IF(ISBLANK('Competition Data'!B257),\"\",'Competition Data'!B257)","v":""},{"$f":"IF(ISBLANK('Competition Data'!C257),\"\",'Competition Data'!C257)","v":""},null,{"$f":"IF(ISBLANK('Competition Data'!D257),\"\",'Competition Data'!D257)","v":""},{"$f":"IF(ISBLANK('Competition Data'!E257),\"\",'Competition Data'!E257)","v":""},{"$f":"IF(ISBLANK('Competition Data'!F257),\"\",'Competition Data'!F257)","v":""}," ()",{"$f":"IF(ISBLANK('Competition Data'!I257),\"\",'Competition Data'!I257)","v":""}]
["",{"$f":"IF(ISBLANK('Competition Data'!A258),\"\",'Competition Data'!A258)","v":""},{"$f":"IF(ISBLANK('Competition Data'!H258),\"\",'Competition Data'!H258)","v":""},{"$f":"IF(ISBLANK('Competition Data'!B258),\"\",'Competition Data'!B258)","v":""},{"$f":"IF(ISBLANK('Competition Data'!C258),\"\",'Competition Data'!C258)","v":""},null,{"$f":"IF(ISBLANK('Competition Data'!D258),\"\",'Competition Data'!D258)","v":""},{"$f":"IF(ISBLANK('Competition Data'!E258),\"\",'Competition Data'!E258)","v":""},{"$f":"IF(ISBLANK('Competition Data'!F258),\"\",'Competition Data'!F258)","v":""}," ()",{"$f":"IF(ISBLANK('Competition Data'!I258),\"\",'Competition Data'!I258)","v":""}]
[{"$f":"CONCATENATE(B259,D259,E259)","v":""},{"$f":"IF(ISBLANK('Competition Data'!A259),\"\",'Competition Data'!A259)","v":""},{"$f":"IF(ISBLANK('Competition Data'!H259),\"\",'Competition Data'!H259)","v":""},{"$f":"IF(ISBLANK('Competition Data'!B259),\"\",'Competition Data'!B259)","v":""},{"$f":"IF(ISBLANK('Competition Data'!C259),\"\",'Competition Data'!C259)","v":""},null,{"$f":"IF(ISBLANK('Competition Data'!D259),\"\",'Competition Data'!D259)","v":""},{"$f":"IF(ISBLANK('Competition Data'!E259),\"\",'Competition Data'!E259)","v":""},{"$f":"IF(ISBLANK('Competition Data'!F259),\"\",'Competition Data'!F259)","v":""},{"$f":"CONCATENATE(B259,\" (\",E259,\")\")","v":" ()"},{"$f":"IF(ISBLANK('Competition Data'!I259),\"\",'Competition Data'!I259)","v":""}]
["",{"$f":"IF(ISBLANK('Competition Data'!A260),\"\",'Competition Data'!A260)","v":""},{"$f":"IF(ISBLANK('Competition Data'!H260),\"\",'Competition Data'!H260)","v":""},{"$f":"IF(ISBLANK('Competition Data'!B260),\"\",'Competition Data'!B260)","v":""},{"$f":"IF(ISBLANK('Competition Data'!C260),\"\",'Competition Data'!C260)","v":""},null,{"$f":"IF(ISBLANK('Competition Data'!D260),\"\",'Competition Data'!D260)","v":""},{"$f":"IF(ISBLANK('Competition Data'!E260),\"\",'Competition Data'!E260)","v":""},{"$f":"IF(ISBLANK('Competition Data'!F260),\"\",'Competition Data'!F260)","v":""}," ()",{"$f":"IF(ISBLANK('Competition Data'!I260),\"\",'Competition Data'!I260)","v":""}]
["",{"$f":"IF(ISBLANK('Competition Data'!A261),\"\",'Competition Data'!A261)","v":""},{"$f":"IF(ISBLANK('Competition Data'!H261),\"\",'Competition Data'!H261)","v":""},{"$f":"IF(ISBLANK('Competition Data'!B261),\"\",'Competition Data'!B261)","v":""},{"$f":"IF(ISBLANK('Competition Data'!C261),\"\",'Competition Data'!C261)","v":""},null,{"$f":"IF(ISBLANK('Competition Data'!D261),\"\",'Competition Data'!D261)","v":""},{"$f":"IF(ISBLANK('Competition Data'!E261),\"\",'Competition Data'!E261)","v":""},{"$f":"IF(ISBLANK('Competition Data'!F261),\"\",'Competition Data'!F261)","v":""}," ()",{"$f":"IF(ISBLANK('Competition Data'!I261),\"\",'Competition Data'!I261)","v":""}]
["",{"$f":"IF(ISBLANK('Competition Data'!A262),\"\",'Competition Data'!A262)","v":""},{"$f":"IF(ISBLANK('Competition Data'!H262),\"\",'Competition Data'!H262)","v":""},{"$f":"IF(ISBLANK('Competition Data'!B262),\"\",'Competition Data'!B262)","v":""},{"$f":"IF(ISBLANK('Competition Data'!C262),\"\",'Competition Data'!C262)","v":""},null,{"$f":"IF(ISBLANK('Competition Data'!D262),\"\",'Competition Data'!D262)","v":""},{"$f":"IF(ISBLANK('Competition Data'!E262),\"\",'Competition Data'!E262)","v":""},{"$f":"IF(ISBLANK('Competition Data'!F262),\"\",'Competition Data'!F262)","v":""}," ()",{"$f":"IF(ISBLANK('Competition Data'!I262),\"\",'Competition Data'!I262)","v":""}]
["",{"$f":"IF(ISBLANK('Competition Data'!A263),\"\",'Competition Data'!A263)","v":""},{"$f":"IF(ISBLANK('Competition Data'!H263),\"\",'Competition Data'!H263)","v":""},{"$f":"IF(ISBLANK('Competition Data'!B263),\"\",'Competition Data'!B263)","v":""},{"$f":"IF(ISBLANK('Competition Data'!C263),\"\",'Competition Data'!C263)","v":""},null,{"$f":"IF(ISBLANK('Competition Data'!D263),\"\",'Competition Data'!D263)","v":""},{"$f":"IF(ISBLANK('Competition Data'!E263),\"\",'Competition Data'!E263)","v":""},{"$f":"IF(ISBLANK('Competition Data'!F263),\"\",'Competition Data'!F263)","v":""}," ()",{"$f":"IF(ISBLANK('Competition Data'!I263),\"\",'Competition Data'!I263)","v":""}]
["",{"$f":"IF(ISBLANK('Competition Data'!A264),\"\",'Competition Data'!A264)","v":""},{"$f":"IF(ISBLANK('Competition Data'!H264),\"\",'Competition Data'!H264)","v":""},{"$f":"IF(ISBLANK('Competition Data'!B264),\"\",'Competition Data'!B264)","v":""},{"$f":"IF(ISBLANK('Competition Data'!C264),\"\",'Competition Data'!C264)","v":""},null,{"$f":"IF(ISBLANK('Competition Data'!D264),\"\",'Competition Data'!D264)","v":""},{"$f":"IF(ISBLANK('Competition Data'!E264),\"\",'Competition Data'!E264)","v":""},{"$f":"IF(ISBLANK('Competition Data'!F264),\"\",'Competition Data'!F264)","v":""}," ()",{"$f":"IF(ISBLANK('Competition Data'!I264),\"\",'Competition Data'!I264)","v":""}]
["",{"$f":"IF(ISBLANK('Competition Data'!A265),\"\",'Competition Data'!A265)","v":""},{"$f":"IF(ISBLANK('Competition Data'!H265),\"\",'Competition Data'!H265)","v":""},{"$f":"IF(ISBLANK('Competition Data'!B265),\"\",'Competition Data'!B265)","v":""},{"$f":"IF(ISBLANK('Competition Data'!C265),\"\",'Competition Data'!C265)","v":""},null,{"$f":"IF(ISBLANK('Competition Data'!D265),\"\",'Competition Data'!D265)","v":""},{"$f":"IF(ISBLANK('Competition Data'!E265),\"\",'Competition Data'!E265)","v":""},{"$f":"IF(ISBLANK('Competition Data'!F265),\"\",'Competition Data'!F265)","v":""}," ()",{"$f":"IF(ISBLANK('Competition Data'!I265),\"\",'Competition Data'!I265)","v":""}]
["",{"$f":"IF(ISBLANK('Competition Data'!A266),\"\",'Competition Data'!A266)","v":""},{"$f":"IF(ISBLANK('Competition Data'!H266),\"\",'Competition Data'!H266)","v":""},{"$f":"IF(ISBLANK('Competition Data'!B266),\"\",'Competition Data'!B266)","v":""},{"$f":"IF(ISBLANK('Competition Data'!C266),\"\",'Competition Data'!C266)","v":""},null,{"$f":"IF(ISBLANK('Competition Data'!D266),\"\",'Competition Data'!D266)","v":""},{"$f":"IF(ISBLANK('Competition Data'!E266),\"\",'Competition Data'!E266)","v":""},{"$f":"IF(ISBLANK('Competition Data'!F266),\"\",'Competition Data'!F266)","v":""}," ()",{"$f":"IF(ISBLANK('Competition Data'!I266),\"\",'Competition Data'!I266)","v":""}]
["",{"$f":"IF(ISBLANK('Competition Data'!A267),\"\",'Competition Data'!A267)","v":""},{"$f":"IF(ISBLANK('Competition Data'!H267),\"\",'Competition Data'!H267)","v":""},{"$f":"IF(ISBLANK('Competition Data'!B267),\"\",'Competition Data'!B267)","v":""},{"$f":"IF(ISBLANK('Competition Data'!C267),\"\",'Competition Data'!C267)","v":""},null,{"$f":"IF(ISBLANK('Competition Data'!D267),\"\",'Competition Data'!D267)","v":""},{"$f":"IF(ISBLANK('Competition Data'!E267),\"\",'Competition Data'!E267)","v":""},{"$f":"IF(ISBLANK('Competition Data'!F267),\"\",'Competition Data'!F267)","v":""}," ()",{"$f":"IF(ISBLANK('Competition Data'!I267),\"\",'Competition Data'!I267)","v":""}]
["",{"$f":"IF(ISBLANK('Competition Data'!A268),\"\",'Competition Data'!A268)","v":""},{"$f":"IF(ISBLANK('Competition Data'!H268),\"\",'Competition Data'!H268)","v":""},{"$f":"IF(ISBLANK('Competition Data'!B268),\"\",'Competition Data'!B268)","v":""},{"$f":"IF(ISBLANK('Competition Data'!C268),\"\",'Competition Data'!C268)","v":""},null,{"$f":"IF(ISBLANK('Competition Data'!D268),\"\",'Competition Data'!D268)","v":""},{"$f":"IF(ISBLANK('Competition Data'!E268),\"\",'Competition Data'!E268)","v":""},{"$f":"IF(ISBLANK('Competition Data'!F268),\"\",'Competition Data'!F268)","v":""}," ()",{"$f":"IF(ISBLANK('Competition Data'!I268),\"\",'Competition Data'!I268)","v":""}]
["",{"$f":"IF(ISBLANK('Competition Data'!A269),\"\",'Competition Data'!A269)","v":""},{"$f":"IF(ISBLANK('Competition Data'!H269),\"\",'Competition Data'!H269)","v":""},{"$f":"IF(ISBLANK('Competition Data'!B269),\"\",'Competition Data'!B269)","v":""},{"$f":"IF(ISBLANK('Competition Data'!C269),\"\",'Competition Data'!C269)","v":""},null,{"$f":"IF(ISBLANK('Competition Data'!D269),\"\",'Competition Data'!D269)","v":""},{"$f":"IF(ISBLANK('Competition Data'!E269),\"\",'Competition Data'!E269)","v":""},{"$f":"IF(ISBLANK('Competition Data'!F269),\"\",'Competition Data'!F269)","v":""}," ()",{"$f":"IF(ISBLANK('Competition Data'!I269),\"\",'Competition Data'!I269)","v":""}]
["",{"$f":"IF(ISBLANK('Competition Data'!A270),\"\",'Competition Data'!A270)","v":""},{"$f":"IF(ISBLANK('Competition Data'!H270),\"\",'Competition Data'!H270)","v":""},{"$f":"IF(ISBLANK('Competition Data'!B270),\"\",'Competition Data'!B270)","v":""},{"$f":"IF(ISBLANK('Competition Data'!C270),\"\",'Competition Data'!C270)","v":""},null,{"$f":"IF(ISBLANK('Competition Data'!D270),\"\",'Competition Data'!D270)","v":""},{"$f":"IF(ISBLANK('Competition Data'!E270),\"\",'Competition Data'!E270)","v":""},{"$f":"IF(ISBLANK('Competition Data'!F270),\"\",'Competition Data'!F270)","v":""}," ()",{"$f":"IF(ISBLANK('Competition Data'!I270),\"\",'Competition Data'!I270)","v":""}]
["",{"$f":"IF(ISBLANK('Competition Data'!A271),\"\",'Competition Data'!A271)","v":""},{"$f":"IF(ISBLANK('Competition Data'!H271),\"\",'Competition Data'!H271)","v":""},{"$f":"IF(ISBLANK('Competition Data'!B271),\"\",'Competition Data'!B271)","v":""},{"$f":"IF(ISBLANK('Competition Data'!C271),\"\",'Competition Data'!C271)","v":""},null,{"$f":"IF(ISBLANK('Competition Data'!D271),\"\",'Competition Data'!D271)","v":""},{"$f":"IF(ISBLANK('Competition Data'!E271),\"\",'Competition Data'!E271)","v":""},{"$f":"IF(ISBLANK('Competition Data'!F271),\"\",'Competition Data'!F271)","v":""}," ()",{"$f":"IF(ISBLANK('Competition Data'!I271),\"\",'Competition Data'!I271)","v":""}]
["",{"$f":"IF(ISBLANK('Competition Data'!A272),\"\",'Competition Data'!A272)","v":""},{"$f":"IF(ISBLANK('Competition Data'!H272),\"\",'Competition Data'!H272)","v":""},{"$f":"IF(ISBLANK('Competition Data'!B272),\"\",'Competition Data'!B272)","v":""},{"$f":"IF(ISBLANK('Competition Data'!C272),\"\",'Competition Data'!C272)","v":""},null,{"$f":"IF(ISBLANK('Competition Data'!D272),\"\",'Competition Data'!D272)","v":""},{"$f":"IF(ISBLANK('Competition Data'!E272),\"\",'Competition Data'!E272)","v":""},{"$f":"IF(ISBLANK('Competition Data'!F272),\"\",'Competition Data'!F272)","v":""}," ()",{"$f":"IF(ISBLANK('Competition Data'!I272),\"\",'Competition Data'!I272)","v":""}]
["",{"$f":"IF(ISBLANK('Competition Data'!A273),\"\",'Competition Data'!A273)","v":""},{"$f":"IF(ISBLANK('Competition Data'!H273),\"\",'Competition Data'!H273)","v":""},{"$f":"IF(ISBLANK('Competition Data'!B273),\"\",'Competition Data'!B273)","v":""},{"$f":"IF(ISBLANK('Competition Data'!C273),\"\",'Competition Data'!C273)","v":""},null,{"$f":"IF(ISBLANK('Competition Data'!D273),\"\",'Competition Data'!D273)","v":""},{"$f":"IF(ISBLANK('Competition Data'!E273),\"\",'Competition Data'!E273)","v":""},{"$f":"IF(ISBLANK('Competition Data'!F273),\"\",'Competition Data'!F273)","v":""}," ()",{"$f":"IF(ISBLANK('Competition Data'!I273),\"\",'Competition Data'!I273)","v":""}]
["",{"$f":"IF(ISBLANK('Competition Data'!A274),\"\",'Competition Data'!A274)","v":""},{"$f":"IF(ISBLANK('Competition Data'!H274),\"\",'Competition Data'!H274)","v":""},{"$f":"IF(ISBLANK('Competition Data'!B274),\"\",'Competition Data'!B274)","v":""},{"$f":"IF(ISBLANK('Competition Data'!C274),\"\",'Competition Data'!C274)","v":""},null,{"$f":"IF(ISBLANK('Competition Data'!D274),\"\",'Competition Data'!D274)","v":""},{"$f":"IF(ISBLANK('Competition Data'!E274),\"\",'Competition Data'!E274)","v":""},{"$f":"IF(ISBLANK('Competition Data'!F274),\"\",'Competition Data'!F274)","v":""}," ()",{"$f":"IF(ISBLANK('Competition Data'!I274),\"\",'Competition Data'!I274)","v":""}]
["",{"$f":"IF(ISBLANK('Competition Data'!A275),\"\",'Competition Data'!A275)","v":""},{"$f":"IF(ISBLANK('Competition Data'!H275),\"\",'Competition Data'!H275)","v":""},{"$f":"IF(ISBLANK('Competition Data'!B275),\"\",'Competition Data'!B275)","v":""},{"$f":"IF(ISBLANK('Competition Data'!C275),\"\",'Competition Data'!C275)","v":""},null,{"$f":"IF(ISBLANK('Competition Data'!D275),\"\",'Competition Data'!D275)","v":""},{"$f":"IF(ISBLANK('Competition Data'!E275),\"\",'Competition Data'!E275)","v":""},{"$f":"IF(ISBLANK('Competition Data'!F275),\"\",'Competition Data'!F275)","v":""}," ()",{"$f":"IF(ISBLANK('Competition Data'!I275),\"\",'Competition Data'!I275)","v":""}]
["",{"$f":"IF(ISBLANK('Competition Data'!A276),\"\",'Competition Data'!A276)","v":""},{"$f":"IF(ISBLANK('Competition Data'!H276),\"\",'Competition Data'!H276)","v":""},{"$f":"IF(ISBLANK('Competition Data'!B276),\"\",'Competition Data'!B276)","v":""},{"$f":"IF(ISBLANK('Competition Data'!C276),\"\",'Competition Data'!C276)","v":""},null,{"$f":"IF(ISBLANK('Competition Data'!D276),\"\",'Competition Data'!D276)","v":""},{"$f":"IF(ISBLANK('Competition Data'!E276),\"\",'Competition Data'!E276)","v":""},{"$f":"IF(ISBLANK('Competition Data'!F276),\"\",'Competition Data'!F276)","v":""}," ()",{"$f":"IF(ISBLANK('Competition Data'!I276),\"\",'Competition Data'!I276)","v":""}]
["",{"$f":"IF(ISBLANK('Competition Data'!A277),\"\",'Competition Data'!A277)","v":""},{"$f":"IF(ISBLANK('Competition Data'!H277),\"\",'Competition Data'!H277)","v":""},{"$f":"IF(ISBLANK('Competition Data'!B277),\"\",'Competition Data'!B277)","v":""},{"$f":"IF(ISBLANK('Competition Data'!C277),\"\",'Competition Data'!C277)","v":""},null,{"$f":"IF(ISBLANK('Competition Data'!D277),\"\",'Competition Data'!D277)","v":""},{"$f":"IF(ISBLANK('Competition Data'!E277),\"\",'Competition Data'!E277)","v":""},{"$f":"IF(ISBLANK('Competition Data'!F277),\"\",'Competition Data'!F277)","v":""}," ()",{"$f":"IF(ISBLANK('Competition Data'!I277),\"\",'Competition Data'!I277)","v":""}]
["",{"$f":"IF(ISBLANK('Competition Data'!A278),\"\",'Competition Data'!A278)","v":""},{"$f":"IF(ISBLANK('Competition Data'!H278),\"\",'Competition Data'!H278)","v":""},{"$f":"IF(ISBLANK('Competition Data'!B278),\"\",'Competition Data'!B278)","v":""},{"$f":"IF(ISBLANK('Competition Data'!C278),\"\",'Competition Data'!C278)","v":""},null,{"$f":"IF(ISBLANK('Competition Data'!D278),\"\",'Competition Data'!D278)","v":""},{"$f":"IF(ISBLANK('Competition Data'!E278),\"\",'Competition Data'!E278)","v":""},{"$f":"IF(ISBLANK('Competition Data'!F278),\"\",'Competition Data'!F278)","v":""}," ()",{"$f":"IF(ISBLANK('Competition Data'!I278),\"\",'Competition Data'!I278)","v":""}]
["",{"$f":"IF(ISBLANK('Competition Data'!A279),\"\",'Competition Data'!A279)","v":""},{"$f":"IF(ISBLANK('Competition Data'!H279),\"\",'Competition Data'!H279)","v":""},{"$f":"IF(ISBLANK('Competition Data'!B279),\"\",'Competition Data'!B279)","v":""},{"$f":"IF(ISBLANK('Competition Data'!C279),\"\",'Competition Data'!C279)","v":""},null,{"$f":"IF(ISBLANK('Competition Data'!D279),\"\",'Competition Data'!D279)","v":""},{"$f":"IF(ISBLANK('Competition Data'!E279),\"\",'Competition Data'!E279)","v":""},{"$f":"IF(ISBLANK('Competition Data'!F279),\"\",'Competition Data'!F279)","v":""}," ()",{"$f":"IF(ISBLANK('Competition Data'!I279),\"\",'Competition Data'!I279)","v":""}]
["",{"$f":"IF(ISBLANK('Competition Data'!A280),\"\",'Competition Data'!A280)","v":""},{"$f":"IF(ISBLANK('Competition Data'!H280),\"\",'Competition Data'!H280)","v":""},{"$f":"IF(ISBLANK('Competition Data'!B280),\"\",'Competition Data'!B280)","v":""},{"$f":"IF(ISBLANK('Competition Data'!C280),\"\",'Competition Data'!C280)","v":""},null,{"$f":"IF(ISBLANK('Competition Data'!D280),\"\",'Competition Data'!D280)","v":""},{"$f":"IF(ISBLANK('Competition Data'!E280),\"\",'Competition Data'!E280)","v":""},{"$f":"IF(ISBLANK('Competition Data'!F280),\"\",'Competition Data'!F280)","v":""}," ()",{"$f":"IF(ISBLANK('Competition Data'!I280),\"\",'Competition Data'!I280)","v":""}]
["",{"$f":"IF(ISBLANK('Competition Data'!A281),\"\",'Competition Data'!A281)","v":""},{"$f":"IF(ISBLANK('Competition Data'!H281),\"\",'Competition Data'!H281)","v":""},{"$f":"IF(ISBLANK('Competition Data'!B281),\"\",'Competition Data'!B281)","v":""},{"$f":"IF(ISBLANK('Competition Data'!C281),\"\",'Competition Data'!C281)","v":""},null,{"$f":"IF(ISBLANK('Competition Data'!D281),\"\",'Competition Data'!D281)","v":""},{"$f":"IF(ISBLANK('Competition Data'!E281),\"\",'Competition Data'!E281)","v":""},{"$f":"IF(ISBLANK('Competition Data'!F281),\"\",'Competition Data'!F281)","v":""}," ()",{"$f":"IF(ISBLANK('Competition Data'!I281),\"\",'Competition Data'!I281)","v":""}]
["",{"$f":"IF(ISBLANK('Competition Data'!A282),\"\",'Competition Data'!A282)","v":""},{"$f":"IF(ISBLANK('Competition Data'!H282),\"\",'Competition Data'!H282)","v":""},{"$f":"IF(ISBLANK('Competition Data'!B282),\"\",'Competition Data'!B282)","v":""},{"$f":"IF(ISBLANK('Competition Data'!C282),\"\",'Competition Data'!C282)","v":""},null,{"$f":"IF(ISBLANK('Competition Data'!D282),\"\",'Competition Data'!D282)","v":""},{"$f":"IF(ISBLANK('Competition Data'!E282),\"\",'Competition Data'!E282)","v":""},{"$f":"IF(ISBLANK('Competition Data'!F282),\"\",'Competition Data'!F282)","v":""}," ()",{"$f":"IF(ISBLANK('Competition Data'!I282),\"\",'Competition Data'!I282)","v":""}]
["",null,{"$f":"IF(ISBLANK('Competition Data'!H283),\"\",'Competition Data'!H283)","v":""},{"$f":"IF(ISBLANK('Competition Data'!B283),\"\",'Competition Data'!B283)","v":""},{"$f":"IF(ISBLANK('Competition Data'!C283),\"\",'Competition Data'!C283)","v":""},null,{"$f":"IF(ISBLANK('Competition Data'!D283),\"\",'Competition Data'!D283)","v":""},{"$f":"IF(ISBLANK('Competition Data'!E283),\"\",'Competition Data'!E283)","v":""},{"$f":"IF(ISBLANK('Competition Data'!F283),\"\",'Competition Data'!F283)","v":""}," ()",{"$f":"IF(ISBLANK('Competition Data'!I283),\"\",'Competition Data'!I283)","v":""}]
["",null,{"$f":"IF(ISBLANK('Competition Data'!H284),\"\",'Competition Data'!H284)","v":""},{"$f":"IF(ISBLANK('Competition Data'!B284),\"\",'Competition Data'!B284)","v":""},{"$f":"IF(ISBLANK('Competition Data'!C284),\"\",'Competition Data'!C284)","v":""},null,{"$f":"IF(ISBLANK('Competition Data'!D284),\"\",'Competition Data'!D284)","v":""},{"$f":"IF(ISBLANK('Competition Data'!E284),\"\",'Competition Data'!E284)","v":""},{"$f":"IF(ISBLANK('Competition Data'!F284),\"\",'Competition Data'!F284)","v":""}," ()",{"$f":"IF(ISBLANK('Competition Data'!I284),\"\",'Competition Data'!I284)","v":""}]
["",null,{"$f":"IF(ISBLANK('Competition Data'!H285),\"\",'Competition Data'!H285)","v":""},{"$f":"IF(ISBLANK('Competition Data'!B285),\"\",'Competition Data'!B285)","v":""},{"$f":"IF(ISBLANK('Competition Data'!C285),\"\",'Competition Data'!C285)","v":""},null,{"$f":"IF(ISBLANK('Competition Data'!D285),\"\",'Competition Data'!D285)","v":""},{"$f":"IF(ISBLANK('Competition Data'!E285),\"\",'Competition Data'!E285)","v":""},{"$f":"IF(ISBLANK('Competition Data'!F285),\"\",'Competition Data'!F285)","v":""}," ()",{"$f":"IF(ISBLANK('Competition Data'!I285),\"\",'Competition Data'!I285)","v":""}]
["",null,{"$f":"IF(ISBLANK('Competition Data'!H286),\"\",'Competition Data'!H286)","v":""},{"$f":"IF(ISBLANK('Competition Data'!B286),\"\",'Competition Data'!B286)","v":""},{"$f":"IF(ISBLANK('Competition Data'!C286),\"\",'Competition Data'!C286)","v":""},null,{"$f":"IF(ISBLANK('Competition Data'!D286),\"\",'Competition Data'!D286)","v":""},{"$f":"IF(ISBLANK('Competition Data'!E286),\"\",'Competition Data'!E286)","v":""},{"$f":"IF(ISBLANK('Competition Data'!F286),\"\",'Competition Data'!F286)","v":""}," ()",{"$f":"IF(ISBLANK('Competition Data'!I286),\"\",'Competition Data'!I286)","v":""}]
["",null,{"$f":"IF(ISBLANK('Competition Data'!H287),\"\",'Competition Data'!H287)","v":""},{"$f":"IF(ISBLANK('Competition Data'!B287),\"\",'Competition Data'!B287)","v":""},{"$f":"IF(ISBLANK('Competition Data'!C287),\"\",'Competition Data'!C287)","v":""},null,{"$f":"IF(ISBLANK('Competition Data'!D287),\"\",'Competition Data'!D287)","v":""},{"$f":"IF(ISBLANK('Competition Data'!E287),\"\",'Competition Data'!E287)","v":""},{"$f":"IF(ISBLANK('Competition Data'!F287),\"\",'Competition Data'!F287)","v":""}," ()",{"$f":"IF(ISBLANK('Competition Data'!I287),\"\",'Competition Data'!I287)","v":""}]
["",null,{"$f":"IF(ISBLANK('Competition Data'!H288),\"\",'Competition Data'!H288)","v":""},{"$f":"IF(ISBLANK('Competition Data'!B288),\"\",'Competition Data'!B288)","v":""},{"$f":"IF(ISBLANK('Competition Data'!C288),\"\",'Competition Data'!C288)","v":""},null,{"$f":"IF(ISBLANK('Competition Data'!D288),\"\",'Competition Data'!D288)","v":""},{"$f":"IF(ISBLANK('Competition Data'!E288),\"\",'Competition Data'!E288)","v":""},{"$f":"IF(ISBLANK('Competition Data'!F288),\"\",'Competition Data'!F288)","v":""}," ()",{"$f":"IF(ISBLANK('Competition Data'!I288),\"\",'Competition Data'!I288)","v":""}]
["",null,{"$f":"IF(ISBLANK('Competition Data'!H289),\"\",'Competition Data'!H289)","v":""},{"$f":"IF(ISBLANK('Competition Data'!B289),\"\",'Competition Data'!B289)","v":""},{"$f":"IF(ISBLANK('Competition Data'!C289),\"\",'Competition Data'!C289)","v":""},null,{"$f":"IF(ISBLANK('Competition Data'!D289),\"\",'Competition Data'!D289)","v":""},{"$f":"IF(ISBLANK('Competition Data'!E289),\"\",'Competition Data'!E289)","v":""},{"$f":"IF(ISBLANK('Competition Data'!F289),\"\",'Competition Data'!F289)","v":""}," ()",{"$f":"IF(ISBLANK('Competition Data'!I289),\"\",'Competition Data'!I289)","v":""}]
["",null,{"$f":"IF(ISBLANK('Competition Data'!H290),\"\",'Competition Data'!H290)","v":""},{"$f":"IF(ISBLANK('Competition Data'!B290),\"\",'Competition Data'!B290)","v":""},{"$f":"IF(ISBLANK('Competition Data'!C290),\"\",'Competition Data'!C290)","v":""},null,{"$f":"IF(ISBLANK('Competition Data'!D290),\"\",'Competition Data'!D290)","v":""},{"$f":"IF(ISBLANK('Competition Data'!E290),\"\",'Competition Data'!E290)","v":""},{"$f":"IF(ISBLANK('Competition Data'!F290),\"\",'Competition Data'!F290)","v":""}," ()",{"$f":"IF(ISBLANK('Competition Data'!I290),\"\",'Competition Data'!I290)","v":""}]
["",null,{"$f":"IF(ISBLANK('Competition Data'!H291),\"\",'Competition Data'!H291)","v":""},{"$f":"IF(ISBLANK('Competition Data'!B291),\"\",'Competition Data'!B291)","v":""},{"$f":"IF(ISBLANK('Competition Data'!C291),\"\",'Competition Data'!C291)","v":""},null,{"$f":"IF(ISBLANK('Competition Data'!D291),\"\",'Competition Data'!D291)","v":""},{"$f":"IF(ISBLANK('Competition Data'!E291),\"\",'Competition Data'!E291)","v":""},{"$f":"IF(ISBLANK('Competition Data'!F291),\"\",'Competition Data'!F291)","v":""}," ()",{"$f":"IF(ISBLANK('Competition Data'!I291),\"\",'Competition Data'!I291)","v":""}]
["",null,{"$f":"IF(ISBLANK('Competition Data'!H292),\"\",'Competition Data'!H292)","v":""},{"$f":"IF(ISBLANK('Competition Data'!B292),\"\",'Competition Data'!B292)","v":""},{"$f":"IF(ISBLANK('Competition Data'!C292),\"\",'Competition Data'!C292)","v":""},null,{"$f":"IF(ISBLANK('Competition Data'!D292),\"\",'Competition Data'!D292)","v":""},{"$f":"IF(ISBLANK('Competition Data'!E292),\"\",'Competition Data'!E292)","v":""},{"$f":"IF(ISBLANK('Competition Data'!F292),\"\",'Competition Data'!F292)","v":""}," ()",{"$f":"IF(ISBLANK('Competition Data'!I292),\"\",'Competition Data'!I292)","v":""}]
["",null,{"$f":"IF(ISBLANK('Competition Data'!H293),\"\",'Competition Data'!H293)","v":""},{"$f":"IF(ISBLANK('Competition Data'!B293),\"\",'Competition Data'!B293)","v":""},{"$f":"IF(ISBLANK('Competition Data'!C293),\"\",'Competition Data'!C293)","v":""},null,{"$f":"IF(ISBLANK('Competition Data'!D293),\"\",'Competition Data'!D293)","v":""},{"$f":"IF(ISBLANK('Competition Data'!E293),\"\",'Competition Data'!E293)","v":""},{"$f":"IF(ISBLANK('Competition Data'!F293),\"\",'Competition Data'!F293)","v":""}," ()",{"$f":"IF(ISBLANK('Competition Data'!I293),\"\",'Competition Data'!I293)","v":""}]
["",null,{"$f":"IF(ISBLANK('Competition Data'!H294),\"\",'Competition Data'!H294)","v":""},{"$f":"IF(ISBLANK('Competition Data'!B294),\"\",'Competition Data'!B294)","v":""},{"$f":"IF(ISBLANK('Competition Data'!C294),\"\",'Competition Data'!C294)","v":""},null,{"$f":"IF(ISBLANK('Competition Data'!D294),\"\",'Competition Data'!D294)","v":""},{"$f":"IF(ISBLANK('Competition Data'!E294),\"\",'Competition Data'!E294)","v":""},{"$f":"IF(ISBLANK('Competition Data'!F294),\"\",'Competition Data'!F294)","v":""}," ()",{"$f":"IF(ISBLANK('Competition Data'!I294),\"\",'Competition Data'!I294)","v":""}]
["",null,{"$f":"IF(ISBLANK('Competition Data'!H295),\"\",'Competition Data'!H295)","v":""},{"$f":"IF(ISBLANK('Competition Data'!B295),\"\",'Competition Data'!B295)","v":""},{"$f":"IF(ISBLANK('Competition Data'!C295),\"\",'Competition Data'!C295)","v":""},null,{"$f":"IF(ISBLANK('Competition Data'!D295),\"\",'Competition Data'!D295)","v":""},{"$f":"IF(ISBLANK('Competition Data'!E295),\"\",'Competition Data'!E295)","v":""},{"$f":"IF(ISBLANK('Competition Data'!F295),\"\",'Competition Data'!F295)","v":""}," ()",{"$f":"IF(ISBLANK('Competition Data'!I295),\"\",'Competition Data'!I295)","v":""}]
["",null,{"$f":"IF(ISBLANK('Competition Data'!H296),\"\",'Competition Data'!H296)","v":""},{"$f":"IF(ISBLANK('Competition Data'!B296),\"\",'Competition Data'!B296)","v":""},{"$f":"IF(ISBLANK('Competition Data'!C296),\"\",'Competition Data'!C296)","v":""},null,{"$f":"IF(ISBLANK('Competition Data'!D296),\"\",'Competition Data'!D296)","v":""},{"$f":"IF(ISBLANK('Competition Data'!E296),\"\",'Competition Data'!E296)","v":""},{"$f":"IF(ISBLANK('Competition Data'!F296),\"\",'Competition Data'!F296)","v":""}," ()",{"$f":"IF(ISBLANK('Competition Data'!I296),\"\",'Competition Data'!I296)","v":""}]
["",null,{"$f":"IF(ISBLANK('Competition Data'!H297),\"\",'Competition Data'!H297)","v":""},{"$f":"IF(ISBLANK('Competition Data'!B297),\"\",'Competition Data'!B297)","v":""},{"$f":"IF(ISBLANK('Competition Data'!C297),\"\",'Competition Data'!C297)","v":""},null,{"$f":"IF(ISBLANK('Competition Data'!D297),\"\",'Competition Data'!D297)","v":""},{"$f":"IF(ISBLANK('Competition Data'!E297),\"\",'Competition Data'!E297)","v":""},{"$f":"IF(ISBLANK('Competition Data'!F297),\"\",'Competition Data'!F297)","v":""}," ()",{"$f":"IF(ISBLANK('Competition Data'!I297),\"\",'Competition Data'!I297)","v":""}]
["",null,{"$f":"IF(ISBLANK('Competition Data'!H298),\"\",'Competition Data'!H298)","v":""},{"$f":"IF(ISBLANK('Competition Data'!B298),\"\",'Competition Data'!B298)","v":""},{"$f":"IF(ISBLANK('Competition Data'!C298),\"\",'Competition Data'!C298)","v":""},null,{"$f":"IF(ISBLANK('Competition Data'!D298),\"\",'Competition Data'!D298)","v":""},{"$f":"IF(ISBLANK('Competition Data'!E298),\"\",'Competition Data'!E298)","v":""},{"$f":"IF(ISBLANK('Competition Data'!F298),\"\",'Competition Data'!F298)","v":""}," ()",{"$f":"IF(ISBLANK('Competition Data'!I298),\"\",'Competition Data'!I298)","v":""}]
["",null,{"$f":"IF(ISBLANK('Competition Data'!H299),\"\",'Competition Data'!H299)","v":""},{"$f":"IF(ISBLANK('Competition Data'!B299),\"\",'Competition Data'!B299)","v":""},{"$f":"IF(ISBLANK('Competition Data'!C299),\"\",'Competition Data'!C299)","v":""},null,{"$f":"IF(ISBLANK('Competition Data'!D299),\"\",'Competition Data'!D299)","v":""},{"$f":"IF(ISBLANK('Competition Data'!E299),\"\",'Competition Data'!E299)","v":""},{"$f":"IF(ISBLANK('Competition Data'!F299),\"\",'Competition Data'!F299)","v":""}," ()",{"$f":"IF(ISBLANK('Competition Data'!I299),\"\",'Competition Data'!I299)","v":""}]
["",null,{"$f":"IF(ISBLANK('Competition Data'!H300),\"\",'Competition Data'!H300)","v":""},{"$f":"IF(ISBLANK('Competition Data'!B300),\"\",'Competition Data'!B300)","v":""},{"$f":"IF(ISBLANK('Competition Data'!C300),\"\",'Competition Data'!C300)","v":""},null,{"$f":"IF(ISBLANK('Competition Data'!D300),\"\",'Competition Data'!D300)","v":""},{"$f":"IF(ISBLANK('Competition Data'!E300),\"\",'Competition Data'!E300)","v":""},{"$f":"IF(ISBLANK('Competition Data'!F300),\"\",'Competition Data'!F300)","v":""}," ()",{"$f":"IF(ISBLANK('Competition Data'!I300),\"\",'Competition Data'!I300)","v":""}]
["",null,{"$f":"IF(ISBLANK('Competition Data'!H301),\"\",'Competition Data'!H301)","v":""},{"$f":"IF(ISBLANK('Competition Data'!B301),\"\",'Competition Data'!B301)","v":""},{"$f":"IF(ISBLANK('Competition Data'!C301),\"\",'Competition Data'!C301)","v":""},null,{"$f":"IF(ISBLANK('Competition Data'!D301),\"\",'Competition Data'!D301)","v":""},{"$f":"IF(ISBLANK('Competition Data'!E301),\"\",'Competition Data'!E301)","v":""},{"$f":"IF(ISBLANK('Competition Data'!F301),\"\",'Competition Data'!F301)","v":""}," ()",{"$f":"IF(ISBLANK('Competition Data'!I301),\"\",'Competition Data'!I301)","v":""}]
["",null,{"$f":"IF(ISBLANK('Competition Data'!H302),\"\",'Competition Data'!H302)","v":""},{"$f":"IF(ISBLANK('Competition Data'!B302),\"\",'Competition Data'!B302)","v":""},{"$f":"IF(ISBLANK('Competition Data'!C302),\"\",'Competition Data'!C302)","v":""},null,{"$f":"IF(ISBLANK('Competition Data'!D302),\"\",'Competition Data'!D302)","v":""},{"$f":"IF(ISBLANK('Competition Data'!E302),\"\",'Competition Data'!E302)","v":""},{"$f":"IF(ISBLANK('Competition Data'!F302),\"\",'Competition Data'!F302)","v":""}," ()",{"$f":"IF(ISBLANK('Competition Data'!I302),\"\",'Competition Data'!I302)","v":""}]
["",null,{"$f":"IF(ISBLANK('Competition Data'!H303),\"\",'Competition Data'!H303)","v":""},{"$f":"IF(ISBLANK('Competition Data'!B303),\"\",'Competition Data'!B303)","v":""},{"$f":"IF(ISBLANK('Competition Data'!C303),\"\",'Competition Data'!C303)","v":""},null,{"$f":"IF(ISBLANK('Competition Data'!D303),\"\",'Competition Data'!D303)","v":""},{"$f":"IF(ISBLANK('Competition Data'!E303),\"\",'Competition Data'!E303)","v":""},{"$f":"IF(ISBLANK('Competition Data'!F303),\"\",'Competition Data'!F303)","v":""}," ()",{"$f":"IF(ISBLANK('Competition Data'!I303),\"\",'Competition Data'!I303)","v":""}]
["",null,{"$f":"IF(ISBLANK('Competition Data'!H304),\"\",'Competition Data'!H304)","v":""},{"$f":"IF(ISBLANK('Competition Data'!B304),\"\",'Competition Data'!B304)","v":""},{"$f":"IF(ISBLANK('Competition Data'!C304),\"\",'Competition Data'!C304)","v":""},null,{"$f":"IF(ISBLANK('Competition Data'!D304),\"\",'Competition Data'!D304)","v":""},{"$f":"IF(ISBLANK('Competition Data'!E304),\"\",'Competition Data'!E304)","v":""},{"$f":"IF(ISBLANK('Competition Data'!F304),\"\",'Competition Data'!F304)","v":""}," ()",{"$f":"IF(ISBLANK('Competition Data'!I304),\"\",'Competition Data'!I304)","v":""}]
["",null,{"$f":"IF(ISBLANK('Competition Data'!H305),\"\",'Competition Data'!H305)","v":""},{"$f":"IF(ISBLANK('Competition Data'!B305),\"\",'Competition Data'!B305)","v":""},{"$f":"IF(ISBLANK('Competition Data'!C305),\"\",'Competition Data'!C305)","v":""},null,{"$f":"IF(ISBLANK('Competition Data'!D305),\"\",'Competition Data'!D305)","v":""},{"$f":"IF(ISBLANK('Competition Data'!E305),\"\",'Competition Data'!E305)","v":""},{"$f":"IF(ISBLANK('Competition Data'!F305),\"\",'Competition Data'!F305)","v":""}," ()",{"$f":"IF(ISBLANK('Competition Data'!I305),\"\",'Competition Data'!I305)","v":""}]
["",null,{"$f":"IF(ISBLANK('Competition Data'!H306),\"\",'Competition Data'!H306)","v":""},{"$f":"IF(ISBLANK('Competition Data'!B306),\"\",'Competition Data'!B306)","v":""},{"$f":"IF(ISBLANK('Competition Data'!C306),\"\",'Competition Data'!C306)","v":""},null,{"$f":"IF(ISBLANK('Competition Data'!D306),\"\",'Competition Data'!D306)","v":""},{"$f":"IF(ISBLANK('Competition Data'!E306),\"\",'Competition Data'!E306)","v":""},{"$f":"IF(ISBLANK('Competition Data'!F306),\"\",'Competition Data'!F306)","v":""}," ()",{"$f":"IF(ISBLANK('Competition Data'!I306),\"\",'Competition Data'!I306)","v":""}]
["",null,{"$f":"IF(ISBLANK('Competition Data'!H307),\"\",'Competition Data'!H307)","v":""},{"$f":"IF(ISBLANK('Competition Data'!B307),\"\",'Competition Data'!B307)","v":""},{"$f":"IF(ISBLANK('Competition Data'!C307),\"\",'Competition Data'!C307)","v":""},null,{"$f":"IF(ISBLANK('Competition Data'!D307),\"\",'Competition Data'!D307)","v":""},{"$f":"IF(ISBLANK('Competition Data'!E307),\"\",'Competition Data'!E307)","v":""},{"$f":"IF(ISBLANK('Competition Data'!F307),\"\",'Competition Data'!F307)","v":""}," ()",{"$f":"IF(ISBLANK('Competition Data'!I307),\"\",'Competition Data'!I307)","v":""}]
["",null,{"$f":"IF(ISBLANK('Competition Data'!H308),\"\",'Competition Data'!H308)","v":""},{"$f":"IF(ISBLANK('Competition Data'!B308),\"\",'Competition Data'!B308)","v":""},{"$f":"IF(ISBLANK('Competition Data'!C308),\"\",'Competition Data'!C308)","v":""},null,{"$f":"IF(ISBLANK('Competition Data'!D308),\"\",'Competition Data'!D308)","v":""},{"$f":"IF(ISBLANK('Competition Data'!E308),\"\",'Competition Data'!E308)","v":""},{"$f":"IF(ISBLANK('Competition Data'!F308),\"\",'Competition Data'!F308)","v":""}," ()",{"$f":"IF(ISBLANK('Competition Data'!I308),\"\",'Competition Data'!I308)","v":""}]
["",null,{"$f":"IF(ISBLANK('Competition Data'!H309),\"\",'Competition Data'!H309)","v":""},{"$f":"IF(ISBLANK('Competition Data'!B309),\"\",'Competition Data'!B309)","v":""},{"$f":"IF(ISBLANK('Competition Data'!C309),\"\",'Competition Data'!C309)","v":""},null,{"$f":"IF(ISBLANK('Competition Data'!D309),\"\",'Competition Data'!D309)","v":""},{"$f":"IF(ISBLANK('Competition Data'!E309),\"\",'Competition Data'!E309)","v":""},{"$f":"IF(ISBLANK('Competition Data'!F309),\"\",'Competition Data'!F309)","v":""}," ()",{"$f":"IF(ISBLANK('Competition Data'!I309),\"\",'Competition Data'!I309)","v":""}]
["",null,{"$f":"IF(ISBLANK('Competition Data'!H310),\"\",'Competition Data'!H310)","v":""},{"$f":"IF(ISBLANK('Competition Data'!B310),\"\",'Competition Data'!B310)","v":""},{"$f":"IF(ISBLANK('Competition Data'!C310),\"\",'Competition Data'!C310)","v":""},null,{"$f":"IF(ISBLANK('Competition Data'!D310),\"\",'Competition Data'!D310)","v":""},{"$f":"IF(ISBLANK('Competition Data'!E310),\"\",'Competition Data'!E310)","v":""},{"$f":"IF(ISBLANK('Competition Data'!F310),\"\",'Competition Data'!F310)","v":""}," ()",{"$f":"IF(ISBLANK('Competition Data'!I310),\"\",'Competition Data'!I310)","v":""}]
["",null,{"$f":"IF(ISBLANK('Competition Data'!H311),\"\",'Competition Data'!H311)","v":""},{"$f":"IF(ISBLANK('Competition Data'!B311),\"\",'Competition Data'!B311)","v":""},{"$f":"IF(ISBLANK('Competition Data'!C311),\"\",'Competition Data'!C311)","v":""},null,{"$f":"IF(ISBLANK('Competition Data'!D311),\"\",'Competition Data'!D311)","v":""},{"$f":"IF(ISBLANK('Competition Data'!E311),\"\",'Competition Data'!E311)","v":""},{"$f":"IF(ISBLANK('Competition Data'!F311),\"\",'Competition Data'!F311)","v":""}," ()",{"$f":"IF(ISBLANK('Competition Data'!I311),\"\",'Competition Data'!I311)","v":""}]
["",null,{"$f":"IF(ISBLANK('Competition Data'!H312),\"\",'Competition Data'!H312)","v":""},{"$f":"IF(ISBLANK('Competition Data'!B312),\"\",'Competition Data'!B312)","v":""},{"$f":"IF(ISBLANK('Competition Data'!C312),\"\",'Competition Data'!C312)","v":""},null,{"$f":"IF(ISBLANK('Competition Data'!D312),\"\",'Competition Data'!D312)","v":""},{"$f":"IF(ISBLANK('Competition Data'!E312),\"\",'Competition Data'!E312)","v":""},{"$f":"IF(ISBLANK('Competition Data'!F312),\"\",'Competition Data'!F312)","v":""}," ()",{"$f":"IF(ISBLANK('Competition Data'!I312),\"\",'Competition Data'!I312)","v":""}]
["",null,{"$f":"IF(ISBLANK('Competition Data'!H313),\"\",'Competition Data'!H313)","v":""},{"$f":"IF(ISBLANK('Competition Data'!B313),\"\",'Competition Data'!B313)","v":""},{"$f":"IF(ISBLANK('Competition Data'!C313),\"\",'Competition Data'!C313)","v":""},null,{"$f":"IF(ISBLANK('Competition Data'!D313),\"\",'Competition Data'!D313)","v":""},{"$f":"IF(ISBLANK('Competition Data'!E313),\"\",'Competition Data'!E313)","v":""},{"$f":"IF(ISBLANK('Competition Data'!F313),\"\",'Competition Data'!F313)","v":""}," ()",{"$f":"IF(ISBLANK('Competition Data'!I313),\"\",'Competition Data'!I313)","v":""}]
["",null,{"$f":"IF(ISBLANK('Competition Data'!H314),\"\",'Competition Data'!H314)","v":""},{"$f":"IF(ISBLANK('Competition Data'!B314),\"\",'Competition Data'!B314)","v":""},{"$f":"IF(ISBLANK('Competition Data'!C314),\"\",'Competition Data'!C314)","v":""},null,{"$f":"IF(ISBLANK('Competition Data'!D314),\"\",'Competition Data'!D314)","v":""},{"$f":"IF(ISBLANK('Competition Data'!E314),\"\",'Competition Data'!E314)","v":""},{"$f":"IF(ISBLANK('Competition Data'!F314),\"\",'Competition Data'!F314)","v":""}," ()",{"$f":"IF(ISBLANK('Competition Data'!I314),\"\",'Competition Data'!I314)","v":""}]
["",null,{"$f":"IF(ISBLANK('Competition Data'!H315),\"\",'Competition Data'!H315)","v":""},{"$f":"IF(ISBLANK('Competition Data'!B315),\"\",'Competition Data'!B315)","v":""},{"$f":"IF(ISBLANK('Competition Data'!C315),\"\",'Competition Data'!C315)","v":""},null,{"$f":"IF(ISBLANK('Competition Data'!D315),\"\",'Competition Data'!D315)","v":""},{"$f":"IF(ISBLANK('Competition Data'!E315),\"\",'Competition Data'!E315)","v":""},{"$f":"IF(ISBLANK('Competition Data'!F315),\"\",'Competition Data'!F315)","v":""}," ()",{"$f":"IF(ISBLANK('Competition Data'!I315),\"\",'Competition Data'!I315)","v":""}]
["",null,{"$f":"IF(ISBLANK('Competition Data'!H316),\"\",'Competition Data'!H316)","v":""},{"$f":"IF(ISBLANK('Competition Data'!B316),\"\",'Competition Data'!B316)","v":""},{"$f":"IF(ISBLANK('Competition Data'!C316),\"\",'Competition Data'!C316)","v":""},null,{"$f":"IF(ISBLANK('Competition Data'!D316),\"\",'Competition Data'!D316)","v":""},{"$f":"IF(ISBLANK('Competition Data'!E316),\"\",'Competition Data'!E316)","v":""},{"$f":"IF(ISBLANK('Competition Data'!F316),\"\",'Competition Data'!F316)","v":""}," ()",{"$f":"IF(ISBLANK('Competition Data'!I316),\"\",'Competition Data'!I316)","v":""}]
["",null,{"$f":"IF(ISBLANK('Competition Data'!H317),\"\",'Competition Data'!H317)","v":""},{"$f":"IF(ISBLANK('Competition Data'!B317),\"\",'Competition Data'!B317)","v":""},{"$f":"IF(ISBLANK('Competition Data'!C317),\"\",'Competition Data'!C317)","v":""},null,{"$f":"IF(ISBLANK('Competition Data'!D317),\"\",'Competition Data'!D317)","v":""},{"$f":"IF(ISBLANK('Competition Data'!E317),\"\",'Competition Data'!E317)","v":""},{"$f":"IF(ISBLANK('Competition Data'!F317),\"\",'Competition Data'!F317)","v":""}," ()",{"$f":"IF(ISBLANK('Competition Data'!I317),\"\",'Competition Data'!I317)","v":""}]
["",null,{"$f":"IF(ISBLANK('Competition Data'!H318),\"\",'Competition Data'!H318)","v":""},{"$f":"IF(ISBLANK('Competition Data'!B318),\"\",'Competition Data'!B318)","v":""},{"$f":"IF(ISBLANK('Competition Data'!C318),\"\",'Competition Data'!C318)","v":""},null,{"$f":"IF(ISBLANK('Competition Data'!D318),\"\",'Competition Data'!D318)","v":""},{"$f":"IF(ISBLANK('Competition Data'!E318),\"\",'Competition Data'!E318)","v":""},{"$f":"IF(ISBLANK('Competition Data'!F318),\"\",'Competition Data'!F318)","v":""}," ()",{"$f":"IF(ISBLANK('Competition Data'!I318),\"\",'Competition Data'!I318)","v":""}]
["",null,{"$f":"IF(ISBLANK('Competition Data'!H319),\"\",'Competition Data'!H319)","v":""},{"$f":"IF(ISBLANK('Competition Data'!B319),\"\",'Competition Data'!B319)","v":""},{"$f":"IF(ISBLANK('Competition Data'!C319),\"\",'Competition Data'!C319)","v":""},null,{"$f":"IF(ISBLANK('Competition Data'!D319),\"\",'Competition Data'!D319)","v":""},{"$f":"IF(ISBLANK('Competition Data'!E319),\"\",'Competition Data'!E319)","v":""},{"$f":"IF(ISBLANK('Competition Data'!F319),\"\",'Competition Data'!F319)","v":""}," ()",{"$f":"IF(ISBLANK('Competition Data'!I319),\"\",'Competition Data'!I319)","v":""}]
["",null,{"$f":"IF(ISBLANK('Competition Data'!H320),\"\",'Competition Data'!H320)","v":""},{"$f":"IF(ISBLANK('Competition Data'!B320),\"\",'Competition Data'!B320)","v":""},{"$f":"IF(ISBLANK('Competition Data'!C320),\"\",'Competition Data'!C320)","v":""},null,{"$f":"IF(ISBLANK('Competition Data'!D320),\"\",'Competition Data'!D320)","v":""},{"$f":"IF(ISBLANK('Competition Data'!E320),\"\",'Competition Data'!E320)","v":""},{"$f":"IF(ISBLANK('Competition Data'!F320),\"\",'Competition Data'!F320)","v":""}," ()",{"$f":"IF(ISBLANK('Competition Data'!I320),\"\",'Competition Data'!I320)","v":""}]
["",null,{"$f":"IF(ISBLANK('Competition Data'!H321),\"\",'Competition Data'!H321)","v":""},{"$f":"IF(ISBLANK('Competition Data'!B321),\"\",'Competition Data'!B321)","v":""},{"$f":"IF(ISBLANK('Competition Data'!C321),\"\",'Competition Data'!C321)","v":""},null,{"$f":"IF(ISBLANK('Competition Data'!D321),\"\",'Competition Data'!D321)","v":""},{"$f":"IF(ISBLANK('Competition Data'!E321),\"\",'Competition Data'!E321)","v":""},{"$f":"IF(ISBLANK('Competition Data'!F321),\"\",'Competition Data'!F321)","v":""}," ()",{"$f":"IF(ISBLANK('Competition Data'!I321),\"\",'Competition Data'!I321)","v":""}]
["",null,{"$f":"IF(ISBLANK('Competition Data'!H322),\"\",'Competition Data'!H322)","v":""},{"$f":"IF(ISBLANK('Competition Data'!B322),\"\",'Competition Data'!B322)","v":""},{"$f":"IF(ISBLANK('Competition Data'!C322),\"\",'Competition Data'!C322)","v":""},null,{"$f":"IF(ISBLANK('Competition Data'!D322),\"\",'Competition Data'!D322)","v":""},{"$f":"IF(ISBLANK('Competition Data'!E322),\"\",'Competition Data'!E322)","v":""},{"$f":"IF(ISBLANK('Competition Data'!F322),\"\",'Competition Data'!F322)","v":""}," ()",{"$f":"IF(ISBLANK('Competition Data'!I322),\"\",'Competition Data'!I322)","v":""}]
[{"$f":"CONCATENATE(B323,D323,E323)","v":""},null,{"$f":"IF(ISBLANK('Competition Data'!H323),\"\",'Competition Data'!H323)","v":""},{"$f":"IF(ISBLANK('Competition Data'!B323),\"\",'Competition Data'!B323)","v":""},{"$f":"IF(ISBLANK('Competition Data'!C323),\"\",'Competition Data'!C323)","v":""},null,{"$f":"IF(ISBLANK('Competition Data'!D323),\"\",'Competition Data'!D323)","v":""},{"$f":"IF(ISBLANK('Competition Data'!E323),\"\",'Competition Data'!E323)","v":""},{"$f":"IF(ISBLANK('Competition Data'!F323),\"\",'Competition Data'!F323)","v":""},{"$f":"CONCATENATE(B323,\" (\",E323,\")\")","v":" ()"},{"$f":"IF(ISBLANK('Competition Data'!I323),\"\",'Competition Data'!I323)","v":""}]
["",null,{"$f":"IF(ISBLANK('Competition Data'!H324),\"\",'Competition Data'!H324)","v":""},{"$f":"IF(ISBLANK('Competition Data'!B324),\"\",'Competition Data'!B324)","v":""},{"$f":"IF(ISBLANK('Competition Data'!C324),\"\",'Competition Data'!C324)","v":""},null,{"$f":"IF(ISBLANK('Competition Data'!D324),\"\",'Competition Data'!D324)","v":""},{"$f":"IF(ISBLANK('Competition Data'!E324),\"\",'Competition Data'!E324)","v":""},{"$f":"IF(ISBLANK('Competition Data'!F324),\"\",'Competition Data'!F324)","v":""}," ()",{"$f":"IF(ISBLANK('Competition Data'!I324),\"\",'Competition Data'!I324)","v":""}]
["",null,{"$f":"IF(ISBLANK('Competition Data'!H325),\"\",'Competition Data'!H325)","v":""},{"$f":"IF(ISBLANK('Competition Data'!B325),\"\",'Competition Data'!B325)","v":""},{"$f":"IF(ISBLANK('Competition Data'!C325),\"\",'Competition Data'!C325)","v":""},null,{"$f":"IF(ISBLANK('Competition Data'!D325),\"\",'Competition Data'!D325)","v":""},{"$f":"IF(ISBLANK('Competition Data'!E325),\"\",'Competition Data'!E325)","v":""},{"$f":"IF(ISBLANK('Competition Data'!F325),\"\",'Competition Data'!F325)","v":""}," ()",{"$f":"IF(ISBLANK('Competition Data'!I325),\"\",'Competition Data'!I325)","v":""}]
["",null,{"$f":"IF(ISBLANK('Competition Data'!H326),\"\",'Competition Data'!H326)","v":""},{"$f":"IF(ISBLANK('Competition Data'!B326),\"\",'Competition Data'!B326)","v":""},{"$f":"IF(ISBLANK('Competition Data'!C326),\"\",'Competition Data'!C326)","v":""},null,{"$f":"IF(ISBLANK('Competition Data'!D326),\"\",'Competition Data'!D326)","v":""},{"$f":"IF(ISBLANK('Competition Data'!E326),\"\",'Competition Data'!E326)","v":""},{"$f":"IF(ISBLANK('Competition Data'!F326),\"\",'Competition Data'!F326)","v":""}," ()",{"$f":"IF(ISBLANK('Competition Data'!I326),\"\",'Competition Data'!I326)","v":""}]
["",null,{"$f":"IF(ISBLANK('Competition Data'!H327),\"\",'Competition Data'!H327)","v":""},{"$f":"IF(ISBLANK('Competition Data'!B327),\"\",'Competition Data'!B327)","v":""},{"$f":"IF(ISBLANK('Competition Data'!C327),\"\",'Competition Data'!C327)","v":""},null,{"$f":"IF(ISBLANK('Competition Data'!D327),\"\",'Competition Data'!D327)","v":""},{"$f":"IF(ISBLANK('Competition Data'!E327),\"\",'Competition Data'!E327)","v":""},{"$f":"IF(ISBLANK('Competition Data'!F327),\"\",'Competition Data'!F327)","v":""}," ()",{"$f":"IF(ISBLANK('Competition Data'!I327),\"\",'Competition Data'!I327)","v":""}]
["",null,{"$f":"IF(ISBLANK('Competition Data'!H328),\"\",'Competition Data'!H328)","v":""},{"$f":"IF(ISBLANK('Competition Data'!B328),\"\",'Competition Data'!B328)","v":""},{"$f":"IF(ISBLANK('Competition Data'!C328),\"\",'Competition Data'!C328)","v":""},null,{"$f":"IF(ISBLANK('Competition Data'!D328),\"\",'Competition Data'!D328)","v":""},{"$f":"IF(ISBLANK('Competition Data'!E328),\"\",'Competition Data'!E328)","v":""},{"$f":"IF(ISBLANK('Competition Data'!F328),\"\",'Competition Data'!F328)","v":""}," ()",{"$f":"IF(ISBLANK('Competition Data'!I328),\"\",'Competition Data'!I328)","v":""}]
["",null,{"$f":"IF(ISBLANK('Competition Data'!H329),\"\",'Competition Data'!H329)","v":""},{"$f":"IF(ISBLANK('Competition Data'!B329),\"\",'Competition Data'!B329)","v":""},{"$f":"IF(ISBLANK('Competition Data'!C329),\"\",'Competition Data'!C329)","v":""},null,{"$f":"IF(ISBLANK('Competition Data'!D329),\"\",'Competition Data'!D329)","v":""},{"$f":"IF(ISBLANK('Competition Data'!E329),\"\",'Competition Data'!E329)","v":""},{"$f":"IF(ISBLANK('Competition Data'!F329),\"\",'Competition Data'!F329)","v":""}," ()",{"$f":"IF(ISBLANK('Competition Data'!I329),\"\",'Competition Data'!I329)","v":""}]
["",null,{"$f":"IF(ISBLANK('Competition Data'!H330),\"\",'Competition Data'!H330)","v":""},{"$f":"IF(ISBLANK('Competition Data'!B330),\"\",'Competition Data'!B330)","v":""},{"$f":"IF(ISBLANK('Competition Data'!C330),\"\",'Competition Data'!C330)","v":""},null,{"$f":"IF(ISBLANK('Competition Data'!D330),\"\",'Competition Data'!D330)","v":""},{"$f":"IF(ISBLANK('Competition Data'!E330),\"\",'Competition Data'!E330)","v":""},{"$f":"IF(ISBLANK('Competition Data'!F330),\"\",'Competition Data'!F330)","v":""}," ()",{"$f":"IF(ISBLANK('Competition Data'!I330),\"\",'Competition Data'!I330)","v":""}]
["",null,{"$f":"IF(ISBLANK('Competition Data'!H331),\"\",'Competition Data'!H331)","v":""},{"$f":"IF(ISBLANK('Competition Data'!B331),\"\",'Competition Data'!B331)","v":""},{"$f":"IF(ISBLANK('Competition Data'!C331),\"\",'Competition Data'!C331)","v":""},null,{"$f":"IF(ISBLANK('Competition Data'!D331),\"\",'Competition Data'!D331)","v":""},{"$f":"IF(ISBLANK('Competition Data'!E331),\"\",'Competition Data'!E331)","v":""},{"$f":"IF(ISBLANK('Competition Data'!F331),\"\",'Competition Data'!F331)","v":""}," ()",{"$f":"IF(ISBLANK('Competition Data'!I331),\"\",'Competition Data'!I331)","v":""}]
["",null,{"$f":"IF(ISBLANK('Competition Data'!H332),\"\",'Competition Data'!H332)","v":""},{"$f":"IF(ISBLANK('Competition Data'!B332),\"\",'Competition Data'!B332)","v":""},{"$f":"IF(ISBLANK('Competition Data'!C332),\"\",'Competition Data'!C332)","v":""},null,{"$f":"IF(ISBLANK('Competition Data'!D332),\"\",'Competition Data'!D332)","v":""},{"$f":"IF(ISBLANK('Competition Data'!E332),\"\",'Competition Data'!E332)","v":""},{"$f":"IF(ISBLANK('Competition Data'!F332),\"\",'Competition Data'!F332)","v":""}," ()",{"$f":"IF(ISBLANK('Competition Data'!I332),\"\",'Competition Data'!I332)","v":""}]
["",null,{"$f":"IF(ISBLANK('Competition Data'!H333),\"\",'Competition Data'!H333)","v":""},{"$f":"IF(ISBLANK('Competition Data'!B333),\"\",'Competition Data'!B333)","v":""},{"$f":"IF(ISBLANK('Competition Data'!C333),\"\",'Competition Data'!C333)","v":""},null,{"$f":"IF(ISBLANK('Competition Data'!D333),\"\",'Competition Data'!D333)","v":""},{"$f":"IF(ISBLANK('Competition Data'!E333),\"\",'Competition Data'!E333)","v":""},{"$f":"IF(ISBLANK('Competition Data'!F333),\"\",'Competition Data'!F333)","v":""}," ()",{"$f":"IF(ISBLANK('Competition Data'!I333),\"\",'Competition Data'!I333)","v":""}]
["",null,{"$f":"IF(ISBLANK('Competition Data'!H334),\"\",'Competition Data'!H334)","v":""},{"$f":"IF(ISBLANK('Competition Data'!B334),\"\",'Competition Data'!B334)","v":""},{"$f":"IF(ISBLANK('Competition Data'!C334),\"\",'Competition Data'!C334)","v":""},null,{"$f":"IF(ISBLANK('Competition Data'!D334),\"\",'Competition Data'!D334)","v":""},{"$f":"IF(ISBLANK('Competition Data'!E334),\"\",'Competition Data'!E334)","v":""},{"$f":"IF(ISBLANK('Competition Data'!F334),\"\",'Competition Data'!F334)","v":""}," ()",{"$f":"IF(ISBLANK('Competition Data'!I334),\"\",'Competition Data'!I334)","v":""}]
["",null,{"$f":"IF(ISBLANK('Competition Data'!H335),\"\",'Competition Data'!H335)","v":""},{"$f":"IF(ISBLANK('Competition Data'!B335),\"\",'Competition Data'!B335)","v":""},{"$f":"IF(ISBLANK('Competition Data'!C335),\"\",'Competition Data'!C335)","v":""},null,{"$f":"IF(ISBLANK('Competition Data'!D335),\"\",'Competition Data'!D335)","v":""},{"$f":"IF(ISBLANK('Competition Data'!E335),\"\",'Competition Data'!E335)","v":""},{"$f":"IF(ISBLANK('Competition Data'!F335),\"\",'Competition Data'!F335)","v":""}," ()",{"$f":"IF(ISBLANK('Competition Data'!I335),\"\",'Competition Data'!I335)","v":""}]
["",null,{"$f":"IF(ISBLANK('Competition Data'!H336),\"\",'Competition Data'!H336)","v":""},{"$f":"IF(ISBLANK('Competition Data'!B336),\"\",'Competition Data'!B336)","v":""},{"$f":"IF(ISBLANK('Competition Data'!C336),\"\",'Competition Data'!C336)","v":""},null,{"$f":"IF(ISBLANK('Competition Data'!D336),\"\",'Competition Data'!D336)","v":""},{"$f":"IF(ISBLANK('Competition Data'!E336),\"\",'Competition Data'!E336)","v":""},{"$f":"IF(ISBLANK('Competition Data'!F336),\"\",'Competition Data'!F336)","v":""}," ()",{"$f":"IF(ISBLANK('Competition Data'!I336),\"\",'Competition Data'!I336)","v":""}]
["",null,{"$f":"IF(ISBLANK('Competition Data'!H337),\"\",'Competition Data'!H337)","v":""},{"$f":"IF(ISBLANK('Competition Data'!B337),\"\",'Competition Data'!B337)","v":""},{"$f":"IF(ISBLANK('Competition Data'!C337),\"\",'Competition Data'!C337)","v":""},null,{"$f":"IF(ISBLANK('Competition Data'!D337),\"\",'Competition Data'!D337)","v":""},{"$f":"IF(ISBLANK('Competition Data'!E337),\"\",'Competition Data'!E337)","v":""},{"$f":"IF(ISBLANK('Competition Data'!F337),\"\",'Competition Data'!F337)","v":""}," ()",{"$f":"IF(ISBLANK('Competition Data'!I337),\"\",'Competition Data'!I337)","v":""}]
["",null,{"$f":"IF(ISBLANK('Competition Data'!H338),\"\",'Competition Data'!H338)","v":""},{"$f":"IF(ISBLANK('Competition Data'!B338),\"\",'Competition Data'!B338)","v":""},{"$f":"IF(ISBLANK('Competition Data'!C338),\"\",'Competition Data'!C338)","v":""},null,{"$f":"IF(ISBLANK('Competition Data'!D338),\"\",'Competition Data'!D338)","v":""},{"$f":"IF(ISBLANK('Competition Data'!E338),\"\",'Competition Data'!E338)","v":""},{"$f":"IF(ISBLANK('Competition Data'!F338),\"\",'Competition Data'!F338)","v":""}," ()",{"$f":"IF(ISBLANK('Competition Data'!I338),\"\",'Competition Data'!I338)","v":""}]
["",null,{"$f":"IF(ISBLANK('Competition Data'!H339),\"\",'Competition Data'!H339)","v":""},{"$f":"IF(ISBLANK('Competition Data'!B339),\"\",'Competition Data'!B339)","v":""},{"$f":"IF(ISBLANK('Competition Data'!C339),\"\",'Competition Data'!C339)","v":""},null,{"$f":"IF(ISBLANK('Competition Data'!D339),\"\",'Competition Data'!D339)","v":""},{"$f":"IF(ISBLANK('Competition Data'!E339),\"\",'Competition Data'!E339)","v":""},{"$f":"IF(ISBLANK('Competition Data'!F339),\"\",'Competition Data'!F339)","v":""}," ()",{"$f":"IF(ISBLANK('Competition Data'!I339),\"\",'Competition Data'!I339)","v":""}]
["",null,{"$f":"IF(ISBLANK('Competition Data'!H340),\"\",'Competition Data'!H340)","v":""},{"$f":"IF(ISBLANK('Competition Data'!B340),\"\",'Competition Data'!B340)","v":""},{"$f":"IF(ISBLANK('Competition Data'!C340),\"\",'Competition Data'!C340)","v":""},null,{"$f":"IF(ISBLANK('Competition Data'!D340),\"\",'Competition Data'!D340)","v":""},{"$f":"IF(ISBLANK('Competition Data'!E340),\"\",'Competition Data'!E340)","v":""},{"$f":"IF(ISBLANK('Competition Data'!F340),\"\",'Competition Data'!F340)","v":""}," ()",{"$f":"IF(ISBLANK('Competition Data'!I340),\"\",'Competition Data'!I340)","v":""}]
["",null,{"$f":"IF(ISBLANK('Competition Data'!H341),\"\",'Competition Data'!H341)","v":""},{"$f":"IF(ISBLANK('Competition Data'!B341),\"\",'Competition Data'!B341)","v":""},{"$f":"IF(ISBLANK('Competition Data'!C341),\"\",'Competition Data'!C341)","v":""},null,{"$f":"IF(ISBLANK('Competition Data'!D341),\"\",'Competition Data'!D341)","v":""},{"$f":"IF(ISBLANK('Competition Data'!E341),\"\",'Competition Data'!E341)","v":""},{"$f":"IF(ISBLANK('Competition Data'!F341),\"\",'Competition Data'!F341)","v":""}," ()",{"$f":"IF(ISBLANK('Competition Data'!I341),\"\",'Competition Data'!I341)","v":""}]
["",null,{"$f":"IF(ISBLANK('Competition Data'!H342),\"\",'Competition Data'!H342)","v":""},{"$f":"IF(ISBLANK('Competition Data'!B342),\"\",'Competition Data'!B342)","v":""},{"$f":"IF(ISBLANK('Competition Data'!C342),\"\",'Competition Data'!C342)","v":""},null,{"$f":"IF(ISBLANK('Competition Data'!D342),\"\",'Competition Data'!D342)","v":""},{"$f":"IF(ISBLANK('Competition Data'!E342),\"\",'Competition Data'!E342)","v":""},{"$f":"IF(ISBLANK('Competition Data'!F342),\"\",'Competition Data'!F342)","v":""}," ()",{"$f":"IF(ISBLANK('Competition Data'!I342),\"\",'Competition Data'!I342)","v":""}]
["",null,{"$f":"IF(ISBLANK('Competition Data'!H343),\"\",'Competition Data'!H343)","v":""},{"$f":"IF(ISBLANK('Competition Data'!B343),\"\",'Competition Data'!B343)","v":""},{"$f":"IF(ISBLANK('Competition Data'!C343),\"\",'Competition Data'!C343)","v":""},null,{"$f":"IF(ISBLANK('Competition Data'!D343),\"\",'Competition Data'!D343)","v":""},{"$f":"IF(ISBLANK('Competition Data'!E343),\"\",'Competition Data'!E343)","v":""},{"$f":"IF(ISBLANK('Competition Data'!F343),\"\",'Competition Data'!F343)","v":""}," ()",{"$f":"IF(ISBLANK('Competition Data'!I343),\"\",'Competition Data'!I343)","v":""}]
["",null,{"$f":"IF(ISBLANK('Competition Data'!H344),\"\",'Competition Data'!H344)","v":""},{"$f":"IF(ISBLANK('Competition Data'!B344),\"\",'Competition Data'!B344)","v":""},{"$f":"IF(ISBLANK('Competition Data'!C344),\"\",'Competition Data'!C344)","v":""},null,{"$f":"IF(ISBLANK('Competition Data'!D344),\"\",'Competition Data'!D344)","v":""},{"$f":"IF(ISBLANK('Competition Data'!E344),\"\",'Competition Data'!E344)","v":""},{"$f":"IF(ISBLANK('Competition Data'!F344),\"\",'Competition Data'!F344)","v":""}," ()",{"$f":"IF(ISBLANK('Competition Data'!I344),\"\",'Competition Data'!I344)","v":""}]
["",null,{"$f":"IF(ISBLANK('Competition Data'!H345),\"\",'Competition Data'!H345)","v":""},{"$f":"IF(ISBLANK('Competition Data'!B345),\"\",'Competition Data'!B345)","v":""},{"$f":"IF(ISBLANK('Competition Data'!C345),\"\",'Competition Data'!C345)","v":""},null,{"$f":"IF(ISBLANK('Competition Data'!D345),\"\",'Competition Data'!D345)","v":""},{"$f":"IF(ISBLANK('Competition Data'!E345),\"\",'Competition Data'!E345)","v":""},{"$f":"IF(ISBLANK('Competition Data'!F345),\"\",'Competition Data'!F345)","v":""}," ()",{"$f":"IF(ISBLANK('Competition Data'!I345),\"\",'Competition Data'!I345)","v":""}]
["",null,{"$f":"IF(ISBLANK('Competition Data'!H346),\"\",'Competition Data'!H346)","v":""},{"$f":"IF(ISBLANK('Competition Data'!B346),\"\",'Competition Data'!B346)","v":""},{"$f":"IF(ISBLANK('Competition Data'!C346),\"\",'Competition Data'!C346)","v":""},null,{"$f":"IF(ISBLANK('Competition Data'!D346),\"\",'Competition Data'!D346)","v":""},{"$f":"IF(ISBLANK('Competition Data'!E346),\"\",'Competition Data'!E346)","v":""},{"$f":"IF(ISBLANK('Competition Data'!F346),\"\",'Competition Data'!F346)","v":""}," ()",{"$f":"IF(ISBLANK('Competition Data'!I346),\"\",'Competition Data'!I346)","v":""}]
["",null,{"$f":"IF(ISBLANK('Competition Data'!H347),\"\",'Competition Data'!H347)","v":""},{"$f":"IF(ISBLANK('Competition Data'!B347),\"\",'Competition Data'!B347)","v":""},{"$f":"IF(ISBLANK('Competition Data'!C347),\"\",'Competition Data'!C347)","v":""},null,{"$f":"IF(ISBLANK('Competition Data'!D347),\"\",'Competition Data'!D347)","v":""},{"$f":"IF(ISBLANK('Competition Data'!E347),\"\",'Competition Data'!E347)","v":""},{"$f":"IF(ISBLANK('Competition Data'!F347),\"\",'Competition Data'!F347)","v":""}," ()",{"$f":"IF(ISBLANK('Competition Data'!I347),\"\",'Competition Data'!I347)","v":""}]
["",null,{"$f":"IF(ISBLANK('Competition Data'!H348),\"\",'Competition Data'!H348)","v":""},{"$f":"IF(ISBLANK('Competition Data'!B348),\"\",'Competition Data'!B348)","v":""},{"$f":"IF(ISBLANK('Competition Data'!C348),\"\",'Competition Data'!C348)","v":""},null,{"$f":"IF(ISBLANK('Competition Data'!D348),\"\",'Competition Data'!D348)","v":""},{"$f":"IF(ISBLANK('Competition Data'!E348),\"\",'Competition Data'!E348)","v":""},{"$f":"IF(ISBLANK('Competition Data'!F348),\"\",'Competition Data'!F348)","v":""}," ()",{"$f":"IF(ISBLANK('Competition Data'!I348),\"\",'Competition Data'!I348)","v":""}]

{"sheet":"Lists & wording","index":7,"n_rows":71,"n_cols":18,"rows_kept":71,"cut":false,"hidden":true,"merged":[]}
["Site Names",null,"Service windows",null,"Service Types",null,null,null,null,null,null,null,null,null,null,null,null,{"$f":"IF(A3=\"\",\"\",MAX(A$1:A1)+1)","v":1}]
["Distinct",null,"Distinct",null,"Distinct",null,null,null,null,null,null,null,null,null,null,null,null,{"$f":"IF(A4=\"\",\"\",MAX(A$1:A2)+1)","v":1}]
[{"$f":"IFERROR(INDEX('Competition Data'!$A$2:$A$2996, MATCH(0, INDEX(COUNTIF($A$2:A2, 'Competition Data'!$A$2:$A$2996), 0, 0), 0)), \"\")","v":"Alston"},{"$f":"IF(A3=0,\"\",A3)","v":"Alston"},"W24/25",null,{"$f":"IFERROR(INDEX('Competition Data'!$C$2:$C$2996, MATCH(0, INDEX(COUNTIF($E$2:E2, 'Competition Data'!$C$2:$C$2996), 0, 0), 0)), \"\")","v":"Operational Utilisation Variable Availability"},{"$f":"IF(E3=0,\"\",E3)","v":"Operational Utilisation Variable Availability"},null,null,null,"Message for success","Your tendered price is within the ceiling price. \nNote: This is not a guarantee that your submission will be accepted.",null,null,null,null,null,null,{"$f":"IF(A5=\"\",\"\",MAX(A$1:A3)+1)","v":1}]
[{"$f":"IFERROR(INDEX('Competition Data'!$A$2:$A$2996, MATCH(0, INDEX(COUNTIF($A$2:A3, 'Competition Data'!$A$2:$A$2996), 0, 0), 0)), \"\")","v":"Ambleside, Calgarth, Mintsfeet & Windermere"},{"$f":"IF(A4=0,\"\",A4)","v":"Ambleside, Calgarth, Mintsfeet & Windermere"},"FY25",null,{"$f":"IFERROR(INDEX('Competition Data'!$C$2:$C$2996, MATCH(0, INDEX(COUNTIF($E$2:E3, 'Competition Data'!$C$2:$C$2996), 0, 0), 0)), \"\")","v":"Operational Utilisation"},{"$f":"IF(E4=0,\"\",E4)","v":"Operational Utilisation"},null,null,null,"Message for failure","Your tendered price is not within the ceiling price.\nYou may wish to concider revising your costs in order to improve the likelyhood of being a sucessful participant."]
[{"$f":"IFERROR(INDEX('Competition Data'!$A$2:$A$2996, MATCH(0, INDEX(COUNTIF($A$2:A4, 'Competition Data'!$A$2:$A$2996), 0, 0), 0)), \"\")","v":"Ardwick"},"Ardwick","S25",null,{"$f":"IFERROR(INDEX('Competition Data'!$C$2:$C$2996, MATCH(0, INDEX(COUNTIF($E$2:E4, 'Competition Data'!$C$2:$C$2996), 0, 0), 0)), \"\")","v":"Peak Reduction"},"Peak Reduction"]
[{"$f":"IFERROR(INDEX('Competition Data'!$A$2:$A$2996, MATCH(0, INDEX(COUNTIF($A$2:A5, 'Competition Data'!$A$2:$A$2996), 0, 0), 0)), \"\")","v":"Askerton Castle"},"Askerton Castle","W25/26",null,{"$f":"IFERROR(INDEX('Competition Data'!$C$2:$C$2996, MATCH(0, INDEX(COUNTIF($E$2:E5, 'Competition Data'!$C$2:$C$2996), 0, 0), 0)), \"\")","v":"Scheduled Utilisation"},{"$f":"IF(E6=0,\"\",E6)","v":"Scheduled Utilisation"},null,null,null,"Message for SU, OU, PR product","Ceiling Price is "]
[{"$f":"IFERROR(INDEX('Competition Data'!$A$2:$A$2996, MATCH(0, INDEX(COUNTIF($A$2:A6, 'Competition Data'!$A$2:$A$2996), 0, 0), 0)), \"\")","v":"Bentham"},"Bentham","FY26",null,{"$f":"IFERROR(INDEX('Competition Data'!$C$2:$C$2996, MATCH(0, INDEX(COUNTIF($E$2:E6, 'Competition Data'!$C$2:$C$2996), 0, 0), 0)), \"\")","v":0}]
[{"$f":"IFERROR(INDEX('Competition Data'!$A$2:$A$2996, MATCH(0, INDEX(COUNTIF($A$2:A7, 'Competition Data'!$A$2:$A$2996), 0, 0), 0)), \"\")","v":"Blackpool Airport Enterprise Zone"},"Blackpool Airport Enterprise Zone","S26",null,{"$f":"IFERROR(INDEX('Competition Data'!$C$2:$C$2996, MATCH(0, INDEX(COUNTIF($E$2:E7, 'Competition Data'!$C$2:$C$2996), 0, 0), 0)), \"\")","v":""}]
[{"$f":"IFERROR(INDEX('Competition Data'!$A$2:$A$2996, MATCH(0, INDEX(COUNTIF($A$2:A8, 'Competition Data'!$A$2:$A$2996), 0, 0), 0)), \"\")","v":"Bolton By Bowland"},"Bolton By Bowland","W26/27",null,{"$f":"IFERROR(INDEX('Competition Data'!$C$2:$C$2996, MATCH(0, INDEX(COUNTIF($E$2:E8, 'Competition Data'!$C$2:$C$2996), 0, 0), 0)), \"\")","v":""}]
[{"$f":"IFERROR(INDEX('Competition Data'!$A$2:$A$2996, MATCH(0, INDEX(COUNTIF($A$2:A9, 'Competition Data'!$A$2:$A$2996), 0, 0), 0)), \"\")","v":"Burrow Beck"},"Burrow Beck","FY27",null,{"$f":"IFERROR(INDEX('Competition Data'!$C$2:$C$2996, MATCH(0, INDEX(COUNTIF($E$2:E9, 'Competition Data'!$C$2:$C$2996), 0, 0), 0)), \"\")","v":""}]
[{"$f":"IFERROR(INDEX('Competition Data'!$A$2:$A$2996, MATCH(0, INDEX(COUNTIF($A$2:A10, 'Competition Data'!$A$2:$A$2996), 0, 0), 0)), \"\")","v":"Capontree, Westlinton & Pirelli"},"Capontree, Westlinton & Pirelli","S27",null,{"$f":"IFERROR(INDEX('Competition Data'!$C$2:$C$2996, MATCH(0, INDEX(COUNTIF($E$2:E10, 'Competition Data'!$C$2:$C$2996), 0, 0), 0)), \"\")","v":""},null,null,null,null,"No Tender matching these parameters"]
[{"$f":"IFERROR(INDEX('Competition Data'!$A$2:$A$2996, MATCH(0, INDEX(COUNTIF($A$2:A11, 'Competition Data'!$A$2:$A$2996), 0, 0), 0)), \"\")","v":"Catterall Waterworks"},"Catterall Waterworks","W27/28",null,{"$f":"IFERROR(INDEX('Competition Data'!$C$2:$C$2996, MATCH(0, INDEX(COUNTIF($E$2:E11, 'Competition Data'!$C$2:$C$2996), 0, 0), 0)), \"\")","v":""}]
[{"$f":"IFERROR(INDEX('Competition Data'!$A$2:$A$2996, MATCH(0, INDEX(COUNTIF($A$2:A12, 'Competition Data'!$A$2:$A$2996), 0, 0), 0)), \"\")","v":"Church"},"Church","FY28",null,{"$f":"IFERROR(INDEX('Competition Data'!$C$2:$C$2996, MATCH(0, INDEX(COUNTIF($E$2:E12, 'Competition Data'!$C$2:$C$2996), 0, 0), 0)), \"\")","v":""}]
[{"$f":"IFERROR(INDEX('Competition Data'!$A$2:$A$2996, MATCH(0, INDEX(COUNTIF($A$2:A13, 'Competition Data'!$A$2:$A$2996), 0, 0), 0)), \"\")","v":"Claughton"},"Claughton",null,null,{"$f":"IFERROR(INDEX('Competition Data'!$C$2:$C$2996, MATCH(0, INDEX(COUNTIF($E$2:E13, 'Competition Data'!$C$2:$C$2996), 0, 0), 0)), \"\")","v":""}]
[{"$f":"IFERROR(INDEX('Competition Data'!$A$2:$A$2996, MATCH(0, INDEX(COUNTIF($A$2:A14, 'Competition Data'!$A$2:$A$2996), 0, 0), 0)), \"\")","v":"Coniston"},"Coniston",null,null,{"$f":"IFERROR(INDEX('Competition Data'!$C$2:$C$9996, MATCH(0, INDEX(COUNTIF($A$2:E14, 'Competition Data'!$C$2:$C$9996), 0, 0), 0)), \"\")","v":""}]
[{"$f":"IFERROR(INDEX('Competition Data'!$A$2:$A$2996, MATCH(0, INDEX(COUNTIF($A$2:A15, 'Competition Data'!$A$2:$A$2996), 0, 0), 0)), \"\")","v":"Flat Lane"},"Flat Lane",null,null,{"$f":"IFERROR(INDEX('Competition Data'!$C$2:$C$9996, MATCH(0, INDEX(COUNTIF($A$2:E15, 'Competition Data'!$C$2:$C$9996), 0, 0), 0)), \"\")","v":""}]
[{"$f":"IFERROR(INDEX('Competition Data'!$A$2:$A$2996, MATCH(0, INDEX(COUNTIF($A$2:A16, 'Competition Data'!$A$2:$A$2996), 0, 0), 0)), \"\")","v":"Frederick Rd BSP"},"Frederick Rd BSP",null,null,{"$f":"IFERROR(INDEX('Competition Data'!$C$2:$C$9996, MATCH(0, INDEX(COUNTIF($A$2:E16, 'Competition Data'!$C$2:$C$9996), 0, 0), 0)), \"\")","v":""}]
[{"$f":"IFERROR(INDEX('Competition Data'!$A$2:$A$2996, MATCH(0, INDEX(COUNTIF($A$2:A17, 'Competition Data'!$A$2:$A$2996), 0, 0), 0)), \"\")","v":"Gillsrow"},"Gillsrow",null,null,{"$f":"IFERROR(INDEX('Competition Data'!$C$2:$C$9996, MATCH(0, INDEX(COUNTIF($A$2:E17, 'Competition Data'!$C$2:$C$9996), 0, 0), 0)), \"\")","v":""}]
[{"$f":"IFERROR(INDEX('Competition Data'!$A$2:$A$2996, MATCH(0, INDEX(COUNTIF($A$2:A18, 'Competition Data'!$A$2:$A$2996), 0, 0), 0)), \"\")","v":"Helwith Bridge"},"Helwith Bridge",null,null,{"$f":"IFERROR(INDEX('Competition Data'!$C$2:$C$9996, MATCH(0, INDEX(COUNTIF($A$2:E18, 'Competition Data'!$C$2:$C$9996), 0, 0), 0)), \"\")","v":""}]
[{"$f":"IFERROR(INDEX('Competition Data'!$A$2:$A$2996, MATCH(0, INDEX(COUNTIF($A$2:A19, 'Competition Data'!$A$2:$A$2996), 0, 0), 0)), \"\")","v":"Ingleton"},"Ingleton",null,null,{"$f":"IFERROR(INDEX('Competition Data'!$C$2:$C$9996, MATCH(0, INDEX(COUNTIF($A$2:E19, 'Competition Data'!$C$2:$C$9996), 0, 0), 0)), \"\")","v":""}]
[{"$f":"IFERROR(INDEX('Competition Data'!$A$2:$A$2996, MATCH(0, INDEX(COUNTIF($A$2:A20, 'Competition Data'!$A$2:$A$2996), 0, 0), 0)), \"\")","v":"Knott Mill"},"Knott Mill",null,null,{"$f":"IFERROR(INDEX('Competition Data'!$C$2:$C$9996, MATCH(0, INDEX(COUNTIF($A$2:E20, 'Competition Data'!$C$2:$C$9996), 0, 0), 0)), \"\")","v":""}]
[{"$f":"IFERROR(INDEX('Competition Data'!$A$2:$A$2996, MATCH(0, INDEX(COUNTIF($A$2:A21, 'Competition Data'!$A$2:$A$2996), 0, 0), 0)), \"\")","v":"Longsight BSP"},"Longsight BSP",null,null,{"$f":"IFERROR(INDEX('Competition Data'!$C$2:$C$9996, MATCH(0, INDEX(COUNTIF($A$2:E21, 'Competition Data'!$C$2:$C$9996), 0, 0), 0)), \"\")","v":""}]
[{"$f":"IFERROR(INDEX('Competition Data'!$A$2:$A$2996, MATCH(0, INDEX(COUNTIF($A$2:A22, 'Competition Data'!$A$2:$A$2996), 0, 0), 0)), \"\")","v":"Marple"},"Marple",null,null,{"$f":"IFERROR(INDEX('Competition Data'!$C$2:$C$9996, MATCH(0, INDEX(COUNTIF($A$2:E22, 'Competition Data'!$C$2:$C$9996), 0, 0), 0)), \"\")","v":""}]
[{"$f":"IFERROR(INDEX('Competition Data'!$A$2:$A$2996, MATCH(0, INDEX(COUNTIF($A$2:A23, 'Competition Data'!$A$2:$A$2996), 0, 0), 0)), \"\")","v":"Melling"},"Melling",null,null,{"$f":"IFERROR(INDEX('Competition Data'!$C$2:$C$9996, MATCH(0, INDEX(COUNTIF($A$2:E23, 'Competition Data'!$C$2:$C$9996), 0, 0), 0)), \"\")","v":""}]
[{"$f":"IFERROR(INDEX('Competition Data'!$A$2:$A$2996, MATCH(0, INDEX(COUNTIF($A$2:A24, 'Competition Data'!$A$2:$A$2996), 0, 0), 0)), \"\")","v":"Mintsfeet"},"Mintsfeet"]
[{"$f":"IFERROR(INDEX('Competition Data'!$A$2:$A$2996, MATCH(0, INDEX(COUNTIF($A$2:A25, 'Competition Data'!$A$2:$A$2996), 0, 0), 0)), \"\")","v":"Morton Park & Pirelli"},"Morton Park & Pirelli"]
[{"$f":"IFERROR(INDEX('Competition Data'!$A$2:$A$2996, MATCH(0, INDEX(COUNTIF($A$2:A26, 'Competition Data'!$A$2:$A$2996), 0, 0), 0)), \"\")","v":"Moss Side (Longsight)"},"Moss Side (Longsight)"]
[{"$f":"IFERROR(INDEX('Competition Data'!$A$2:$A$2996, MATCH(0, INDEX(COUNTIF($A$2:A27, 'Competition Data'!$A$2:$A$2996), 0, 0), 0)), \"\")","v":"Newbiggin on Lune"},"Newbiggin on Lune"]
[{"$f":"IFERROR(INDEX('Competition Data'!$A$2:$A$2996, MATCH(0, INDEX(COUNTIF($A$2:A28, 'Competition Data'!$A$2:$A$2996), 0, 0), 0)), \"\")","v":"Newby"},"Newby"]
[{"$f":"IFERROR(INDEX('Competition Data'!$A$2:$A$2996, MATCH(0, INDEX(COUNTIF($A$2:A29, 'Competition Data'!$A$2:$A$2996), 0, 0), 0)), \"\")","v":"Rossall"},"Rossall"]
[{"$f":"IFERROR(INDEX('Competition Data'!$A$2:$A$2996, MATCH(0, INDEX(COUNTIF($A$2:A30, 'Competition Data'!$A$2:$A$2996), 0, 0), 0)), \"\")","v":"Scarisbrick"},"Scarisbrick"]
[{"$f":"IFERROR(INDEX('Competition Data'!$A$2:$A$2996, MATCH(0, INDEX(COUNTIF($A$2:A31, 'Competition Data'!$A$2:$A$2996), 0, 0), 0)), \"\")","v":"Sebergham"},"Sebergham"]
[{"$f":"IFERROR(INDEX('Competition Data'!$A$2:$A$2996, MATCH(0, INDEX(COUNTIF($A$2:A32, 'Competition Data'!$A$2:$A$2996), 0, 0), 0)), \"\")","v":"Sedbergh"},"Sedbergh"]
[{"$f":"IFERROR(INDEX('Competition Data'!$A$2:$A$2996, MATCH(0, INDEX(COUNTIF($A$2:A33, 'Competition Data'!$A$2:$A$2996), 0, 0), 0)), \"\")","v":"Settle"},"Settle"]
[{"$f":"IFERROR(INDEX('Competition Data'!$A$2:$A$2996, MATCH(0, INDEX(COUNTIF($A$2:A34, 'Competition Data'!$A$2:$A$2996), 0, 0), 0)), \"\")","v":"Yealand"},"Yealand"]
[{"$f":"IFERROR(INDEX('Competition Data'!$A$2:$A$2996, MATCH(0, INDEX(COUNTIF($A$2:A35, 'Competition Data'!$A$2:$A$2996), 0, 0), 0)), \"\")","v":"ANDREW ST"},"ANDREW ST"]
[{"$f":"IFERROR(INDEX('Competition Data'!$A$2:$A$2996, MATCH(0, INDEX(COUNTIF($A$2:A36, 'Competition Data'!$A$2:$A$2996), 0, 0), 0)), \"\")","v":"ARMISTEAD ST"},"ARMISTEAD ST",null,null,{"$f":"IF(A37=\"\",F38,A37)","v":"ARMISTEAD ST"}]
[{"$f":"IFERROR(INDEX('Competition Data'!$A$2:$A$2996, MATCH(0, INDEX(COUNTIF($A$2:A37, 'Competition Data'!$A$2:$A$2996), 0, 0), 0)), \"\")","v":"BACK ROCHDALE RD"},"BACK ROCHDALE RD"]
[{"$f":"IFERROR(INDEX('Competition Data'!$A$2:$A$2996, MATCH(0, INDEX(COUNTIF($A$2:A38, 'Competition Data'!$A$2:$A$2996), 0, 0), 0)), \"\")","v":"BK MANCHESTER RD"},"BK MANCHESTER RD"]
[{"$f":"IFERROR(INDEX('Competition Data'!$A$2:$A$2996, MATCH(0, INDEX(COUNTIF($A$2:A39, 'Competition Data'!$A$2:$A$2996), 0, 0), 0)), \"\")","v":"CARLTON ST"},"CARLTON ST"]
[{"$f":"IFERROR(INDEX('Competition Data'!$A$2:$A$2996, MATCH(0, INDEX(COUNTIF($A$2:A40, 'Competition Data'!$A$2:$A$2996), 0, 0), 0)), \"\")","v":"CORONATION DR"},"CORONATION DR"]
[{"$f":"IFERROR(INDEX('Competition Data'!$A$2:$A$2996, MATCH(0, INDEX(COUNTIF($A$2:A41, 'Competition Data'!$A$2:$A$2996), 0, 0), 0)), \"\")","v":"KINGSTON AVE"},"KINGSTON AVE"]
[{"$f":"IFERROR(INDEX('Competition Data'!$A$2:$A$2996, MATCH(0, INDEX(COUNTIF($A$2:A42, 'Competition Data'!$A$2:$A$2996), 0, 0), 0)), \"\")","v":"MANCHESTER RD"},"MANCHESTER RD"]
[{"$f":"IFERROR(INDEX('Competition Data'!$A$2:$A$2996, MATCH(0, INDEX(COUNTIF($A$2:A43, 'Competition Data'!$A$2:$A$2996), 0, 0), 0)), \"\")","v":"SPENDMORE LN W"},"SPENDMORE LN W"]
[{"$f":"IFERROR(INDEX('Competition Data'!$A$2:$A$2996, MATCH(0, INDEX(COUNTIF($A$2:A44, 'Competition Data'!$A$2:$A$2996), 0, 0), 0)), \"\")","v":"ST GEORGES ST"},"ST GEORGES ST"]
[{"$f":"IFERROR(INDEX('Competition Data'!$A$2:$A$2996, MATCH(0, INDEX(COUNTIF($A$2:A45, 'Competition Data'!$A$2:$A$2996), 0, 0), 0)), \"\")","v":"SYCAMORE EST"},"SYCAMORE EST"]
[{"$f":"IFERROR(INDEX('Competition Data'!$A$2:$A$2996, MATCH(0, INDEX(COUNTIF($A$2:A46, 'Competition Data'!$A$2:$A$2996), 0, 0), 0)), \"\")","v":0},""]
[{"$f":"IFERROR(INDEX('Competition Data'!$A$2:$A$2996, MATCH(0, INDEX(COUNTIF($A$2:A47, 'Competition Data'!$A$2:$A$2996), 0, 0), 0)), \"\")","v":""},""]
[{"$f":"IFERROR(INDEX('Competition Data'!$A$2:$A$2996, MATCH(0, INDEX(COUNTIF($A$2:A48, 'Competition Data'!$A$2:$A$2996), 0, 0), 0)), \"\")","v":""},""]
[{"$f":"IFERROR(INDEX('Competition Data'!$A$2:$A$2996, MATCH(0, INDEX(COUNTIF($A$2:A49, 'Competition Data'!$A$2:$A$2996), 0, 0), 0)), \"\")","v":""},""]
[{"$f":"IFERROR(INDEX('Competition Data'!$A$2:$A$2996, MATCH(0, INDEX(COUNTIF($A$2:A50, 'Competition Data'!$A$2:$A$2996), 0, 0), 0)), \"\")","v":""},""]
[{"$f":"IFERROR(INDEX('Competition Data'!$A$2:$A$2996, MATCH(0, INDEX(COUNTIF($A$2:A51, 'Competition Data'!$A$2:$A$2996), 0, 0), 0)), \"\")","v":""},""]
[{"$f":"IFERROR(INDEX('Competition Data'!$A$2:$A$2996, MATCH(0, INDEX(COUNTIF($A$2:A52, 'Competition Data'!$A$2:$A$2996), 0, 0), 0)), \"\")","v":""},""]
[{"$f":"IFERROR(INDEX('Competition Data'!$A$2:$A$2996, MATCH(0, INDEX(COUNTIF($A$2:A53, 'Competition Data'!$A$2:$A$2996), 0, 0), 0)), \"\")","v":""}]
[{"$f":"IFERROR(INDEX('Competition Data'!$A$2:$A$2996, MATCH(0, INDEX(COUNTIF($A$2:A54, 'Competition Data'!$A$2:$A$2996), 0, 0), 0)), \"\")","v":""}]
[{"$f":"IFERROR(INDEX('Competition Data'!$A$2:$A$2996, MATCH(0, INDEX(COUNTIF($A$2:A55, 'Competition Data'!$A$2:$A$2996), 0, 0), 0)), \"\")","v":""}]
[{"$f":"IFERROR(INDEX('Competition Data'!$A$2:$A$2996, MATCH(0, INDEX(COUNTIF($A$2:A56, 'Competition Data'!$A$2:$A$2996), 0, 0), 0)), \"\")","v":""}]
[{"$f":"IFERROR(INDEX('Competition Data'!$A$2:$A$2996, MATCH(0, INDEX(COUNTIF($A$2:A57, 'Competition Data'!$A$2:$A$2996), 0, 0), 0)), \"\")","v":""}]
[{"$f":"IFERROR(INDEX('Competition Data'!$A$2:$A$2996, MATCH(0, INDEX(COUNTIF($A$2:A58, 'Competition Data'!$A$2:$A$2996), 0, 0), 0)), \"\")","v":""}]
[{"$f":"IFERROR(INDEX('Competition Data'!$A$2:$A$2996, MATCH(0, INDEX(COUNTIF($A$2:A59, 'Competition Data'!$A$2:$A$2996), 0, 0), 0)), \"\")","v":""}]
[{"$f":"IFERROR(INDEX('Competition Data'!$A$2:$A$2996, MATCH(0, INDEX(COUNTIF($A$2:A60, 'Competition Data'!$A$2:$A$2996), 0, 0), 0)), \"\")","v":""}]
[{"$f":"IFERROR(INDEX('Competition Data'!$A$2:$A$2996, MATCH(0, INDEX(COUNTIF($A$2:A61, 'Competition Data'!$A$2:$A$2996), 0, 0), 0)), \"\")","v":""}]
[{"$f":"IFERROR(INDEX('Competition Data'!$A$2:$A$2996, MATCH(0, INDEX(COUNTIF($A$2:A62, 'Competition Data'!$A$2:$A$2996), 0, 0), 0)), \"\")","v":""}]
[{"$f":"IFERROR(INDEX('Competition Data'!$A$2:$A$2996, MATCH(0, INDEX(COUNTIF($A$2:A63, 'Competition Data'!$A$2:$A$2996), 0, 0), 0)), \"\")","v":""}]
[{"$f":"IFERROR(INDEX('Competition Data'!$A$2:$A$2996, MATCH(0, INDEX(COUNTIF($A$2:A64, 'Competition Data'!$A$2:$A$2996), 0, 0), 0)), \"\")","v":""}]
[{"$f":"IFERROR(INDEX('Competition Data'!$A$2:$A$2996, MATCH(0, INDEX(COUNTIF($A$2:A65, 'Competition Data'!$A$2:$A$2996), 0, 0), 0)), \"\")","v":""}]
[{"$f":"IFERROR(INDEX('Competition Data'!$A$2:$A$2996, MATCH(0, INDEX(COUNTIF($A$2:A66, 'Competition Data'!$A$2:$A$2996), 0, 0), 0)), \"\")","v":""}]
[{"$f":"IFERROR(INDEX('Competition Data'!$A$2:$A$2996, MATCH(0, INDEX(COUNTIF($A$2:A67, 'Competition Data'!$A$2:$A$2996), 0, 0), 0)), \"\")","v":""}]
[{"$f":"IFERROR(INDEX('Competition Data'!$A$2:$A$2996, MATCH(0, INDEX(COUNTIF($A$2:A68, 'Competition Data'!$A$2:$A$2996), 0, 0), 0)), \"\")","v":""}]
[{"$f":"IFERROR(INDEX('Competition Data'!$A$2:$A$2996, MATCH(0, INDEX(COUNTIF($A$2:A69, 'Competition Data'!$A$2:$A$2996), 0, 0), 0)), \"\")","v":""}]
[{"$f":"IFERROR(INDEX('Competition Data'!$A$2:$A$2996, MATCH(0, INDEX(COUNTIF($A$2:A70, 'Competition Data'!$A$2:$A$2996), 0, 0), 0)), \"\")","v":""}]

{"sheet":"result period from comp name","index":8,"n_rows":52,"n_cols":28,"rows_kept":52,"cut":false,"hidden":true,"merged":[]}
["Select_name","Result_period",null,null,null,null,null,null,null,null,null,null,null,null,null,null,null,null,null,"Data Validation Formula"]
["= Unique(Competition_name)'","= TOROW'",null,null,null,null,null,null,null,null,null,null,null,null,null,null,null,null,null,"Yealand",{"$f":"_xlfn.ANCHORARRAY( _xlfn.XLOOKUP(T2, select_name_for_result_period, result_period_from_select_name))","v":"W25/26"},"S26","W26/27","S27","W27/28","FY26","FY27","FY28"]
[{"$f":" _xlfn.UNIQUE(Competition_Name)","v":"Alston"},{"$f":" _xlfn.TOROW(_xlfn.UNIQUE(_xlfn._xlws.FILTER(Period, Competition_Name=A3, \"Empty List\")))","v":"S25"},"W25/26","S26","W26/27","S27","W27/28","FY26","FY27","FY28",null,null,null,null,null,null,null,null,null,"https://www.youtube.com/watch?v=U3WnM2JCrVc"]
["Ambleside, Calgarth, Mintsfeet & Windermere",{"$f":" _xlfn.TOROW(_xlfn.UNIQUE(_xlfn._xlws.FILTER(Period, Competition_Name=A4, \"Empty List\")))","v":"W26/27"},"W27/28"]
["Ardwick",{"$f":" _xlfn.TOROW(_xlfn.UNIQUE(_xlfn._xlws.FILTER(Period, Competition_Name=A5, \"Empty List\")))","v":"W25/26"},"W26/27","W27/28"]
["Askerton Castle",{"$f":" _xlfn.TOROW(_xlfn.UNIQUE(_xlfn._xlws.FILTER(Period, Competition_Name=A6, \"Empty List\")))","v":"FY26"},"FY27","FY28"]
["Bentham",{"$f":" _xlfn.TOROW(_xlfn.UNIQUE(_xlfn._xlws.FILTER(Period, Competition_Name=A7, \"Empty List\")))","v":"FY26"},"FY27","FY28"]
["Blackpool Airport Enterprise Zone",{"$f":" _xlfn.TOROW(_xlfn.UNIQUE(_xlfn._xlws.FILTER(Period, Competition_Name=A8, \"Empty List\")))","v":"S25"},"W25/26","S26","W26/27","S27","W27/28"]
["Bolton By Bowland",{"$f":" _xlfn.TOROW(_xlfn.UNIQUE(_xlfn._xlws.FILTER(Period, Competition_Name=A9, \"Empty List\")))","v":"FY26"},"FY27","FY28"]
["Burrow Beck",{"$f":" _xlfn.TOROW(_xlfn.UNIQUE(_xlfn._xlws.FILTER(Period, Competition_Name=A10, \"Empty List\")))","v":"S25"},"W25/26","S26","W26/27","S27","W27/28"]
["Capontree, Westlinton & Pirelli",{"$f":" _xlfn.TOROW(_xlfn.UNIQUE(_xlfn._xlws.FILTER(Period, Competition_Name=A11, \"Empty List\")))","v":"W25/26"},"W26/27","W27/28"]
["Catterall Waterworks",{"$f":" _xlfn.TOROW(_xlfn.UNIQUE(_xlfn._xlws.FILTER(Period, Competition_Name=A12, \"Empty List\")))","v":"S25"},"W25/26","S26","W26/27","S27","W27/28","FY26","FY27","FY28"]
["Church",{"$f":" _xlfn.TOROW(_xlfn.UNIQUE(_xlfn._xlws.FILTER(Period, Competition_Name=A13, \"Empty List\")))","v":"FY26"},"FY27","FY28"]
["Claughton",{"$f":" _xlfn.TOROW(_xlfn.UNIQUE(_xlfn._xlws.FILTER(Period, Competition_Name=A14, \"Empty List\")))","v":"FY26"},"FY27","FY28"]
["Coniston",{"$f":" _xlfn.TOROW(_xlfn.UNIQUE(_xlfn._xlws.FILTER(Period, Competition_Name=A15, \"Empty List\")))","v":"S25"},"W25/26","S26","W26/27","S27","W27/28","FY26","FY27","FY28"]
["Flat Lane",{"$f":" _xlfn.TOROW(_xlfn.UNIQUE(_xlfn._xlws.FILTER(Period, Competition_Name=A16, \"Empty List\")))","v":"W25/26"},"W26/27","W27/28","FY26","FY27","FY28"]
["Frederick Rd BSP",{"$f":" _xlfn.TOROW(_xlfn.UNIQUE(_xlfn._xlws.FILTER(Period, Competition_Name=A17, \"Empty List\")))","v":"W25/26"},"W26/27","W27/28"]
["Gillsrow",{"$f":" _xlfn.TOROW(_xlfn.UNIQUE(_xlfn._xlws.FILTER(Period, Competition_Name=A18, \"Empty List\")))","v":"FY26"},"FY27","FY28"]
["Helwith Bridge",{"$f":" _xlfn.TOROW(_xlfn.UNIQUE(_xlfn._xlws.FILTER(Period, Competition_Name=A19, \"Empty List\")))","v":"FY26"},"FY27","FY28"]
["Ingleton",{"$f":" _xlfn.TOROW(_xlfn.UNIQUE(_xlfn._xlws.FILTER(Period, Competition_Name=A20, \"Empty List\")))","v":"FY26"},"FY27","FY28"]
["Knott Mill",{"$f":" _xlfn.TOROW(_xlfn.UNIQUE(_xlfn._xlws.FILTER(Period, Competition_Name=A21, \"Empty List\")))","v":"W25/26"},"W26/27","W27/28"]
["Longsight BSP",{"$f":" _xlfn.TOROW(_xlfn.UNIQUE(_xlfn._xlws.FILTER(Period, Competition_Name=A22, \"Empty List\")))","v":"W27/28"}]
["Marple",{"$f":" _xlfn.TOROW(_xlfn.UNIQUE(_xlfn._xlws.FILTER(Period, Competition_Name=A23, \"Empty List\")))","v":"FY26"},"FY27","FY28"]
["Melling",{"$f":" _xlfn.TOROW(_xlfn.UNIQUE(_xlfn._xlws.FILTER(Period, Competition_Name=A24, \"Empty List\")))","v":"FY26"},"FY27","FY28"]
["Mintsfeet",{"$f":" _xlfn.TOROW(_xlfn.UNIQUE(_xlfn._xlws.FILTER(Period, Competition_Name=A25, \"Empty List\")))","v":"S25"},"W25/26","S26","W26/27","S27","W27/28"]
["Morton Park & Pirelli",{"$f":" _xlfn.TOROW(_xlfn.UNIQUE(_xlfn._xlws.FILTER(Period, Competition_Name=A26, \"Empty List\")))","v":"W25/26"},"S26","W26/27","S27","W27/28"]
["Moss Side (Longsight)",{"$f":" _xlfn.TOROW(_xlfn.UNIQUE(_xlfn._xlws.FILTER(Period, Competition_Name=A27, \"Empty List\")))","v":"W25/26"},"W26/27","W27/28"]
["Newbiggin on Lune",{"$f":" _xlfn.TOROW(_xlfn.UNIQUE(_xlfn._xlws.FILTER(Period, Competition_Name=A28, \"Empty List\")))","v":"FY26"},"FY27","FY28"]
["Newby",{"$f":" _xlfn.TOROW(_xlfn.UNIQUE(_xlfn._xlws.FILTER(Period, Competition_Name=A29, \"Empty List\")))","v":"FY26"},"FY27","FY28"]
["Rossall",{"$f":" _xlfn.TOROW(_xlfn.UNIQUE(_xlfn._xlws.FILTER(Period, Competition_Name=A30, \"Empty List\")))","v":"FY26"},"FY27","FY28"]
["Scarisbrick",{"$f":" _xlfn.TOROW(_xlfn.UNIQUE(_xlfn._xlws.FILTER(Period, Competition_Name=A31, \"Empty List\")))","v":"FY26"},"FY27","FY28"]
["Sebergham",{"$f":" _xlfn.TOROW(_xlfn.UNIQUE(_xlfn._xlws.FILTER(Period, Competition_Name=A32, \"Empty List\")))","v":"S25"},"S26","S27","W27/28","FY26","FY27","FY28"]
["Sedbergh",{"$f":" _xlfn.TOROW(_xlfn.UNIQUE(_xlfn._xlws.FILTER(Period, Competition_Name=A33, \"Empty List\")))","v":"FY26"},"FY27","FY28"]
["Settle",{"$f":" _xlfn.TOROW(_xlfn.UNIQUE(_xlfn._xlws.FILTER(Period, Competition_Name=A34, \"Empty List\")))","v":"FY26"},"FY27","FY28"]
["Yealand",{"$f":" _xlfn.TOROW(_xlfn.UNIQUE(_xlfn._xlws.FILTER(Period, Competition_Name=A35, \"Empty List\")))","v":"W25/26"},"S26","W26/27","S27","W27/28","FY26","FY27","FY28"]
["ANDREW ST",{"$f":" _xlfn.TOROW(_xlfn.UNIQUE(_xlfn._xlws.FILTER(Period, Competition_Name=A36, \"Empty List\")))","v":"W25/26"}]
["ARMISTEAD ST",{"$f":" _xlfn.TOROW(_xlfn.UNIQUE(_xlfn._xlws.FILTER(Period, Competition_Name=A37, \"Empty List\")))","v":"W25/26"}]
["BACK ROCHDALE RD",{"$f":" _xlfn.TOROW(_xlfn.UNIQUE(_xlfn._xlws.FILTER(Period, Competition_Name=A38, \"Empty List\")))","v":"W25/26"}]
["BK MANCHESTER RD",{"$f":" _xlfn.TOROW(_xlfn.UNIQUE(_xlfn._xlws.FILTER(Period, Competition_Name=A39, \"Empty List\")))","v":"W25/26"}]
["CARLTON ST",{"$f":" _xlfn.TOROW(_xlfn.UNIQUE(_xlfn._xlws.FILTER(Period, Competition_Name=A40, \"Empty List\")))","v":"W25/26"}]
["CORONATION DR",{"$f":" _xlfn.TOROW(_xlfn.UNIQUE(_xlfn._xlws.FILTER(Period, Competition_Name=A41, \"Empty List\")))","v":"W25/26"}]
["KINGSTON AVE",{"$f":" _xlfn.TOROW(_xlfn.UNIQUE(_xlfn._xlws.FILTER(Period, Competition_Name=A42, \"Empty List\")))","v":"W25/26"}]
["MANCHESTER RD",{"$f":" _xlfn.TOROW(_xlfn.UNIQUE(_xlfn._xlws.FILTER(Period, Competition_Name=A43, \"Empty List\")))","v":"W25/26"}]
["SPENDMORE LN W",{"$f":" _xlfn.TOROW(_xlfn.UNIQUE(_xlfn._xlws.FILTER(Period, Competition_Name=A44, \"Empty List\")))","v":"W25/26"}]
["ST GEORGES ST",{"$f":" _xlfn.TOROW(_xlfn.UNIQUE(_xlfn._xlws.FILTER(Period, Competition_Name=A45, \"Empty List\")))","v":"W25/26"}]
["SYCAMORE EST",{"$f":" _xlfn.TOROW(_xlfn.UNIQUE(_xlfn._xlws.FILTER(Period, Competition_Name=A46, \"Empty List\")))","v":"W25/26"}]
[0,{"$f":" _xlfn.TOROW(_xlfn.UNIQUE(_xlfn._xlws.FILTER(Period, Competition_Name=A47, \"Empty List\")))","v":0}]
[null,{"$f":" _xlfn.TOROW(_xlfn.UNIQUE(_xlfn._xlws.FILTER(Period, Competition_Name=A48, \"Empty List\")))","v":0}]
[null,{"$f":" _xlfn.TOROW(_xlfn.UNIQUE(_xlfn._xlws.FILTER(Period, Competition_Name=A49, \"Empty List\")))","v":0}]
[null,{"$f":" _xlfn.TOROW(_xlfn.UNIQUE(_xlfn._xlws.FILTER(Period, Competition_Name=A50, \"Empty List\")))","v":0}]
[null,{"$f":" _xlfn.TOROW(_xlfn.UNIQUE(_xlfn._xlws.FILTER(Period, Competition_Name=A51, \"Empty List\")))","v":0}]
[null,{"$f":" _xlfn.TOROW(_xlfn.UNIQUE(_xlfn._xlws.FILTER(Period, Competition_Name=A52, \"Empty List\")))","v":0}]

{"sheet":"result type from comp name","index":9,"n_rows":47,"n_cols":21,"rows_kept":47,"cut":false,"hidden":true,"merged":[]}
["Select_name","Result_period",null,null,null,null,null,null,null,null,null,null,null,null,null,null,null,null,null,"Data Validation Formula"]
["= Unique(competition_type)'","= TOROW'",null,null,null,null,null,null,null,null,null,null,null,null,null,null,null,null,null,"moss lane",{"$f":"_xlfn.ANCHORARRAY( _xlfn.XLOOKUP(T4, select_name_for_result_type, result_type_from_select_name))","v":{"$error":"#REF!"}}]
[{"$f":" _xlfn.UNIQUE(Competition_Name)","v":"Alston"},{"$f":" _xlfn.TOROW(_xlfn.UNIQUE(_xlfn._xlws.FILTER(Competition_type, Competition_Name=A3, \"Empty List\")))","v":"Operational Utilisation Variable Availability"},"Operational Utilisation","Peak Reduction"]
["Ambleside, Calgarth, Mintsfeet & Windermere",{"$f":" _xlfn.TOROW(_xlfn.UNIQUE(_xlfn._xlws.FILTER(Competition_type, Competition_Name=A4, \"Empty List\")))","v":"Operational Utilisation Variable Availability"},"Peak Reduction"]
["Ardwick",{"$f":" _xlfn.TOROW(_xlfn.UNIQUE(_xlfn._xlws.FILTER(Competition_type, Competition_Name=A5, \"Empty List\")))","v":"Operational Utilisation Variable Availability"},"Operational Utilisation","Peak Reduction"]
["Askerton Castle",{"$f":" _xlfn.TOROW(_xlfn.UNIQUE(_xlfn._xlws.FILTER(Competition_type, Competition_Name=A6, \"Empty List\")))","v":"Operational Utilisation"}]
["Bentham",{"$f":" _xlfn.TOROW(_xlfn.UNIQUE(_xlfn._xlws.FILTER(Competition_type, Competition_Name=A7, \"Empty List\")))","v":"Operational Utilisation"}]
["Blackpool Airport Enterprise Zone",{"$f":" _xlfn.TOROW(_xlfn.UNIQUE(_xlfn._xlws.FILTER(Competition_type, Competition_Name=A8, \"Empty List\")))","v":"Peak Reduction"},"Scheduled Utilisation"]
["Bolton By Bowland",{"$f":" _xlfn.TOROW(_xlfn.UNIQUE(_xlfn._xlws.FILTER(Competition_type, Competition_Name=A9, \"Empty List\")))","v":"Operational Utilisation"}]
["Burrow Beck",{"$f":" _xlfn.TOROW(_xlfn.UNIQUE(_xlfn._xlws.FILTER(Competition_type, Competition_Name=A10, \"Empty List\")))","v":"Operational Utilisation Variable Availability"},"Operational Utilisation","Peak Reduction"]
["Capontree, Westlinton & Pirelli",{"$f":" _xlfn.TOROW(_xlfn.UNIQUE(_xlfn._xlws.FILTER(Competition_type, Competition_Name=A11, \"Empty List\")))","v":"Operational Utilisation Variable Availability"},"Peak Reduction"]
["Catterall Waterworks",{"$f":" _xlfn.TOROW(_xlfn.UNIQUE(_xlfn._xlws.FILTER(Competition_type, Competition_Name=A12, \"Empty List\")))","v":"Operational Utilisation Variable Availability"},"Operational Utilisation","Peak Reduction"]
["Church",{"$f":" _xlfn.TOROW(_xlfn.UNIQUE(_xlfn._xlws.FILTER(Competition_type, Competition_Name=A13, \"Empty List\")))","v":"Operational Utilisation"}]
["Claughton",{"$f":" _xlfn.TOROW(_xlfn.UNIQUE(_xlfn._xlws.FILTER(Competition_type, Competition_Name=A14, \"Empty List\")))","v":"Operational Utilisation"}]
["Coniston",{"$f":" _xlfn.TOROW(_xlfn.UNIQUE(_xlfn._xlws.FILTER(Competition_type, Competition_Name=A15, \"Empty List\")))","v":"Operational Utilisation Variable Availability"},"Operational Utilisation","Peak Reduction"]
["Flat Lane",{"$f":" _xlfn.TOROW(_xlfn.UNIQUE(_xlfn._xlws.FILTER(Competition_type, Competition_Name=A16, \"Empty List\")))","v":"Operational Utilisation Variable Availability"},"Operational Utilisation","Peak Reduction"]
["Frederick Rd BSP",{"$f":" _xlfn.TOROW(_xlfn.UNIQUE(_xlfn._xlws.FILTER(Competition_type, Competition_Name=A17, \"Empty List\")))","v":"Operational Utilisation Variable Availability"},"Operational Utilisation","Peak Reduction"]
["Gillsrow",{"$f":" _xlfn.TOROW(_xlfn.UNIQUE(_xlfn._xlws.FILTER(Competition_type, Competition_Name=A18, \"Empty List\")))","v":"Operational Utilisation"}]
["Helwith Bridge",{"$f":" _xlfn.TOROW(_xlfn.UNIQUE(_xlfn._xlws.FILTER(Competition_type, Competition_Name=A19, \"Empty List\")))","v":"Operational Utilisation"}]
["Ingleton",{"$f":" _xlfn.TOROW(_xlfn.UNIQUE(_xlfn._xlws.FILTER(Competition_type, Competition_Name=A20, \"Empty List\")))","v":"Operational Utilisation"}]
["Knott Mill",{"$f":" _xlfn.TOROW(_xlfn.UNIQUE(_xlfn._xlws.FILTER(Competition_type, Competition_Name=A21, \"Empty List\")))","v":"Operational Utilisation Variable Availability"},"Peak Reduction"]
["Longsight BSP",{"$f":" _xlfn.TOROW(_xlfn.UNIQUE(_xlfn._xlws.FILTER(Competition_type, Competition_Name=A22, \"Empty List\")))","v":"Operational Utilisation Variable Availability"},"Peak Reduction"]
["Marple",{"$f":" _xlfn.TOROW(_xlfn.UNIQUE(_xlfn._xlws.FILTER(Competition_type, Competition_Name=A23, \"Empty List\")))","v":"Operational Utilisation"}]
["Melling",{"$f":" _xlfn.TOROW(_xlfn.UNIQUE(_xlfn._xlws.FILTER(Competition_type, Competition_Name=A24, \"Empty List\")))","v":"Operational Utilisation"}]
["Mintsfeet",{"$f":" _xlfn.TOROW(_xlfn.UNIQUE(_xlfn._xlws.FILTER(Competition_type, Competition_Name=A25, \"Empty List\")))","v":"Operational Utilisation Variable Availability"},"Operational Utilisation","Peak Reduction"]
["Morton Park & Pirelli",{"$f":" _xlfn.TOROW(_xlfn.UNIQUE(_xlfn._xlws.FILTER(Competition_type, Competition_Name=A26, \"Empty List\")))","v":"Operational Utilisation Variable Availability"},"Operational Utilisation","Peak Reduction"]
["Moss Side (Longsight)",{"$f":" _xlfn.TOROW(_xlfn.UNIQUE(_xlfn._xlws.FILTER(Competition_type, Competition_Name=A27, \"Empty List\")))","v":"Operational Utilisation Variable Availability"},"Peak Reduction"]
["Newbiggin on Lune",{"$f":" _xlfn.TOROW(_xlfn.UNIQUE(_xlfn._xlws.FILTER(Competition_type, Competition_Name=A28, \"Empty List\")))","v":"Operational Utilisation"}]
["Newby",{"$f":" _xlfn.TOROW(_xlfn.UNIQUE(_xlfn._xlws.FILTER(Competition_type, Competition_Name=A29, \"Empty List\")))","v":"Operational Utilisation"}]
["Rossall",{"$f":" _xlfn.TOROW(_xlfn.UNIQUE(_xlfn._xlws.FILTER(Competition_type, Competition_Name=A30, \"Empty List\")))","v":"Operational Utilisation"}]
["Scarisbrick",{"$f":" _xlfn.TOROW(_xlfn.UNIQUE(_xlfn._xlws.FILTER(Competition_type, Competition_Name=A31, \"Empty List\")))","v":"Operational Utilisation"}]
["Sebergham",{"$f":" _xlfn.TOROW(_xlfn.UNIQUE(_xlfn._xlws.FILTER(Competition_type, Competition_Name=A32, \"Empty List\")))","v":"Operational Utilisation Variable Availability"},"Operational Utilisation","Peak Reduction"]
["Sedbergh",{"$f":" _xlfn.TOROW(_xlfn.UNIQUE(_xlfn._xlws.FILTER(Competition_type, Competition_Name=A33, \"Empty List\")))","v":"Operational Utilisation"}]
["Settle",{"$f":" _xlfn.TOROW(_xlfn.UNIQUE(_xlfn._xlws.FILTER(Competition_type, Competition_Name=A34, \"Empty List\")))","v":"Operational Utilisation"}]
["Yealand",{"$f":" _xlfn.TOROW(_xlfn.UNIQUE(_xlfn._xlws.FILTER(Competition_type, Competition_Name=A35, \"Empty List\")))","v":"Operational Utilisation Variable Availability"},"Operational Utilisation","Peak Reduction"]
["ANDREW ST",{"$f":" _xlfn.TOROW(_xlfn.UNIQUE(_xlfn._xlws.FILTER(Competition_type, Competition_Name=A36, \"Empty List\")))","v":"Peak Reduction"},"Scheduled Utilisation"]
["ARMISTEAD ST",{"$f":" _xlfn.TOROW(_xlfn.UNIQUE(_xlfn._xlws.FILTER(Competition_type, Competition_Name=A37, \"Empty List\")))","v":"Peak Reduction"},"Scheduled Utilisation"]
["BACK ROCHDALE RD",{"$f":" _xlfn.TOROW(_xlfn.UNIQUE(_xlfn._xlws.FILTER(Competition_type, Competition_Name=A38, \"Empty List\")))","v":"Peak Reduction"},"Scheduled Utilisation"]
["BK MANCHESTER RD",{"$f":" _xlfn.TOROW(_xlfn.UNIQUE(_xlfn._xlws.FILTER(Competition_type, Competition_Name=A39, \"Empty List\")))","v":"Peak Reduction"},"Scheduled Utilisation"]
["CARLTON ST",{"$f":" _xlfn.TOROW(_xlfn.UNIQUE(_xlfn._xlws.FILTER(Competition_type, Competition_Name=A40, \"Empty List\")))","v":"Peak Reduction"},"Scheduled Utilisation"]
["CORONATION DR",{"$f":" _xlfn.TOROW(_xlfn.UNIQUE(_xlfn._xlws.FILTER(Competition_type, Competition_Name=A41, \"Empty List\")))","v":"Peak Reduction"},"Scheduled Utilisation"]
["KINGSTON AVE",{"$f":" _xlfn.TOROW(_xlfn.UNIQUE(_xlfn._xlws.FILTER(Competition_type, Competition_Name=A42, \"Empty List\")))","v":"Peak Reduction"},"Scheduled Utilisation"]
["MANCHESTER RD",{"$f":" _xlfn.TOROW(_xlfn.UNIQUE(_xlfn._xlws.FILTER(Competition_type, Competition_Name=A43, \"Empty List\")))","v":"Peak Reduction"},"Scheduled Utilisation"]
["SPENDMORE LN W",{"$f":" _xlfn.TOROW(_xlfn.UNIQUE(_xlfn._xlws.FILTER(Competition_type, Competition_Name=A44, \"Empty List\")))","v":"Peak Reduction"},"Scheduled Utilisation"]
["ST GEORGES ST",{"$f":" _xlfn.TOROW(_xlfn.UNIQUE(_xlfn._xlws.FILTER(Competition_type, Competition_Name=A45, \"Empty List\")))","v":"Peak Reduction"},"Scheduled Utilisation"]
["SYCAMORE EST",{"$f":" _xlfn.TOROW(_xlfn.UNIQUE(_xlfn._xlws.FILTER(Competition_type, Competition_Name=A46, \"Empty List\")))","v":"Peak Reduction"},"Scheduled Utilisation"]
[0]